Workbook

Sheet NOTES
A1: 1. Dates shaded in orange on the "Date Selection" tab represent Flex Alert/Emergency Alert Days that were added to the Top 5 Load Days set.
A3: 2. Due to the small amount of historical data available for OOS Wind, Staff utilized modeled production data in line with D.23-04-010.
A5: 3. For ease of calculation, the display of data in this model has been modified in the "Source Data" tab. The choosing of exceedance levels via Solver (and the resulting exceedance generation profiles) here is performed with the same constraints as the 10/4/2023 exceedance update.
A7: 4. For each technology/location, the Solver setup picks an exceedance level for each season using hourly weights (based on reliability risk) and overcounting/undercounting weights (prioritizing minimization of overcounting relative to undercounting).
A9: 5. Additional Solver constraints: no overcounting greater than 10% in any hour relative to Worst Day profile, no overcounting greater than 2% in LOLE hours relative to the Worst Day profile, and chosen exceedance levels have a lower bound of 50% and upper bound of 85%.
A11: 6. Beginning with the 2025 RA Compliance Year, exceedance levels are chosen on a monthly rather than seasonal basis.

Sheet Source Data
A1: Date | B1: Year | C1: Month | D1: Day | E1: Hour Ending | F1: Station | G1: Capacity Factor
A2: 2018-01-01 | B2: 2018 | C2: 1 | D2: 1 | E2: 1 | F2: AZ | G2: 0.23
A3: 2018-01-01 | B3: 2018 | C3: 1 | D3: 1 | E3: 1 | F3: NM | G3: 0.44
A4: 2018-01-01 | B4: 2018 | C4: 1 | D4: 1 | E4: 1 | F4: OR | G4: 0.15
A5: 2018-01-01 | B5: 2018 | C5: 1 | D5: 1 | E5: 2 | F5: AZ | G5: 0.23
A6: 2018-01-01 | B6: 2018 | C6: 1 | D6: 1 | E6: 2 | F6: NM | G6: 0.44
A7: 2018-01-01 | B7: 2018 | C7: 1 | D7: 1 | E7: 2 | F7: OR | G7: 0.1
A8: 2018-01-01 | B8: 2018 | C8: 1 | D8: 1 | E8: 3 | F8: AZ | G8: 0.2
A9: 2018-01-01 | B9: 2018 | C9: 1 | D9: 1 | E9: 3 | F9: NM | G9: 0.39
A10: 2018-01-01 | B10: 2018 | C10: 1 | D10: 1 | E10: 3 | F10: OR | G10: 0.09
A11: 2018-01-01 | B11: 2018 | C11: 1 | D11: 1 | E11: 4 | F11: AZ | G11: 0.17
A12: 2018-01-01 | B12: 2018 | C12: 1 | D12: 1 | E12: 4 | F12: NM | G12: 0.35
A13: 2018-01-01 | B13: 2018 | C13: 1 | D13: 1 | E13: 4 | F13: OR | G13: 0.09
A14: 2018-01-01 | B14: 2018 | C14: 1 | D14: 1 | E14: 5 | F14: AZ | G14: 0.15
A15: 2018-01-01 | B15: 2018 | C15: 1 | D15: 1 | E15: 5 | F15: NM | G15: 0.31
A16: 2018-01-01 | B16: 2018 | C16: 1 | D16: 1 | E16: 5 | F16: OR | G16: 0.09
A17: 2018-01-01 | B17: 2018 | C17: 1 | D17: 1 | E17: 6 | F17: AZ | G17: 0.13
A18: 2018-01-01 | B18: 2018 | C18: 1 | D18: 1 | E18: 6 | F18: NM | G18: 0.25
A19: 2018-01-01 | B19: 2018 | C19: 1 | D19: 1 | E19: 6 | F19: OR | G19: 0.14
A20: 2018-01-01 | B20: 2018 | C20: 1 | D20: 1 | E20: 7 | F20: AZ | G20: 0.06
A21: 2018-01-01 | B21: 2018 | C21: 1 | D21: 1 | E21: 7 | F21: NM | G21: 0.11
A22: 2018-01-01 | B22: 2018 | C22: 1 | D22: 1 | E22: 7 | F22: OR | G22: 0.1
A23: 2018-01-01 | B23: 2018 | C23: 1 | D23: 1 | E23: 8 | F23: AZ | G23: 0.03
A24: 2018-01-01 | B24: 2018 | C24: 1 | D24: 1 | E24: 8 | F24: NM | G24: 0.04
A25: 2018-01-01 | B25: 2018 | C25: 1 | D25: 1 | E25: 8 | F25: OR | G25: 0.09
A26: 2018-01-01 | B26: 2018 | C26: 1 | D26: 1 | E26: 9 | F26: AZ | G26: 0.01
A27: 2018-01-01 | B27: 2018 | C27: 1 | D27: 1 | E27: 9 | F27: NM | G27: 0.01
A28: 2018-01-01 | B28: 2018 | C28: 1 | D28: 1 | E28: 9 | F28: OR | G28: 0.08
A29: 2018-01-01 | B29: 2018 | C29: 1 | D29: 1 | E29: 10 | F29: AZ | G29: 0.01
A30: 2018-01-01 | B30: 2018 | C30: 1 | D30: 1 | E30: 10 | F30: NM | G30: 0
A31: 2018-01-01 | B31: 2018 | C31: 1 | D31: 1 | E31: 10 | F31: OR | G31: 0.07
A32: 2018-01-01 | B32: 2018 | C32: 1 | D32: 1 | E32: 11 | F32: AZ | G32: 0.02
A33: 2018-01-01 | B33: 2018 | C33: 1 | D33: 1 | E33: 11 | F33: NM | G33: 0.02
A34: 2018-01-01 | B34: 2018 | C34: 1 | D34: 1 | E34: 11 | F34: OR | G34: 0.06
A35: 2018-01-01 | B35: 2018 | C35: 1 | D35: 1 | E35: 12 | F35: AZ | G35: 0.05
A36: 2018-01-01 | B36: 2018 | C36: 1 | D36: 1 | E36: 12 | F36: NM | G36: 0.09
A37: 2018-01-01 | B37: 2018 | C37: 1 | D37: 1 | E37: 12 | F37: OR | G37: 0.04
A38: 2018-01-01 | B38: 2018 | C38: 1 | D38: 1 | E38: 13 | F38: AZ | G38: 0.11
A39: 2018-01-01 | B39: 2018 | C39: 1 | D39: 1 | E39: 13 | F39: NM | G39: 0.2
A40: 2018-01-01 | B40: 2018 | C40: 1 | D40: 1 | E40: 13 | F40: OR | G40: 0.02
A41: 2018-01-01 | B41: 2018 | C41: 1 | D41: 1 | E41: 14 | F41: AZ | G41: 0.18
A42: 2018-01-01 | B42: 2018 | C42: 1 | D42: 1 | E42: 14 | F42: NM | G42: 0.37
A43: 2018-01-01 | B43: 2018 | C43: 1 | D43: 1 | E43: 14 | F43: OR | G43: 0.01
A44: 2018-01-01 | B44: 2018 | C44: 1 | D44: 1 | E44: 15 | F44: AZ | G44: 0.28
A45: 2018-01-01 | B45: 2018 | C45: 1 | D45: 1 | E45: 15 | F45: NM | G45: 0.52
A46: 2018-01-01 | B46: 2018 | C46: 1 | D46: 1 | E46: 15 | F46: OR | G46: 0.01
A47: 2018-01-01 | B47: 2018 | C47: 1 | D47: 1 | E47: 16 | F47: AZ | G47: 0.34
A48: 2018-01-01 | B48: 2018 | C48: 1 | D48: 1 | E48: 16 | F48: NM | G48: 0.58
A49: 2018-01-01 | B49: 2018 | C49: 1 | D49: 1 | E49: 16 | F49: OR | G49: 0.01
A50: 2018-01-01 | B50: 2018 | C50: 1 | D50: 1 | E50: 17 | F50: AZ | G50: 0.41
A51: 2018-01-01 | B51: 2018 | C51: 1 | D51: 1 | E51: 17 | F51: NM | G51: 0.64
A52: 2018-01-01 | B52: 2018 | C52: 1 | D52: 1 | E52: 17 | F52: OR | G52: 0.04
A53: 2018-01-01 | B53: 2018 | C53: 1 | D53: 1 | E53: 18 | F53: AZ | G53: 0.47
A54: 2018-01-01 | B54: 2018 | C54: 1 | D54: 1 | E54: 18 | F54: NM | G54: 0.69
A55: 2018-01-01 | B55: 2018 | C55: 1 | D55: 1 | E55: 18 | F55: OR | G55: 0.07
A56: 2018-01-01 | B56: 2018 | C56: 1 | D56: 1 | E56: 19 | F56: AZ | G56: 0.45
A57: 2018-01-01 | B57: 2018 | C57: 1 | D57: 1 | E57: 19 | F57: NM | G57: 0.68
A58: 2018-01-01 | B58: 2018 | C58: 1 | D58: 1 | E58: 19 | F58: OR | G58: 0.13
A59: 2018-01-01 | B59: 2018 | C59: 1 | D59: 1 | E59: 20 | F59: AZ | G59: 0.36
A60: 2018-01-01 | B60: 2018 | C60: 1 | D60: 1 | E60: 20 | F60: NM | G60: 0.6
A61: 2018-01-01 | B61: 2018 | C61: 1 | D61: 1 | E61: 20 | F61: OR | G61: 0.19
A62: 2018-01-01 | B62: 2018 | C62: 1 | D62: 1 | E62: 21 | F62: AZ | G62: 0.28
A63: 2018-01-01 | B63: 2018 | C63: 1 | D63: 1 | E63: 21 | F63: NM | G63: 0.51
A64: 2018-01-01 | B64: 2018 | C64: 1 | D64: 1 | E64: 21 | F64: OR | G64: 0.22
A65: 2018-01-01 | B65: 2018 | C65: 1 | D65: 1 | E65: 22 | F65: AZ | G65: 0.26
A66: 2018-01-01 | B66: 2018 | C66: 1 | D66: 1 | E66: 22 | F66: NM | G66: 0.49
A67: 2018-01-01 | B67: 2018 | C67: 1 | D67: 1 | E67: 22 | F67: OR | G67: 0.24
A68: 2018-01-01 | B68: 2018 | C68: 1 | D68: 1 | E68: 23 | F68: AZ | G68: 0.26
A69: 2018-01-01 | B69: 2018 | C69: 1 | D69: 1 | E69: 23 | F69: NM | G69: 0.49
A70: 2018-01-01 | B70: 2018 | C70: 1 | D70: 1 | E70: 23 | F70: OR | G70: 0.28
A71: 2018-01-01 | B71: 2018 | C71: 1 | D71: 1 | E71: 24 | F71: AZ | G71: 0.29
A72: 2018-01-01 | B72: 2018 | C72: 1 | D72: 1 | E72: 24 | F72: NM | G72: 0.52
A73: 2018-01-01 | B73: 2018 | C73: 1 | D73: 1 | E73: 24 | F73: OR | G73: 0.25
A74: 2018-01-02 | B74: 2018 | C74: 1 | D74: 2 | E74: 1 | F74: AZ | G74: 0.27
A75: 2018-01-02 | B75: 2018 | C75: 1 | D75: 2 | E75: 1 | F75: NM | G75: 0.51
A76: 2018-01-02 | B76: 2018 | C76: 1 | D76: 2 | E76: 1 | F76: OR | G76: 0.21
A77: 2018-01-02 | B77: 2018 | C77: 1 | D77: 2 | E77: 2 | F77: AZ | G77: 0.2
A78: 2018-01-02 | B78: 2018 | C78: 1 | D78: 2 | E78: 2 | F78: NM | G78: 0.38
A79: 2018-01-02 | B79: 2018 | C79: 1 | D79: 2 | E79: 2 | F79: OR | G79: 0.14
A80: 2018-01-02 | B80: 2018 | C80: 1 | D80: 2 | E80: 3 | F80: AZ | G80: 0.15
A81: 2018-01-02 | B81: 2018 | C81: 1 | D81: 2 | E81: 3 | F81: NM | G81: 0.3
A82: 2018-01-02 | B82: 2018 | C82: 1 | D82: 2 | E82: 3 | F82: OR | G82: 0.09
A83: 2018-01-02 | B83: 2018 | C83: 1 | D83: 2 | E83: 4 | F83: AZ | G83: 0.15
A84: 2018-01-02 | B84: 2018 | C84: 1 | D84: 2 | E84: 4 | F84: NM | G84: 0.33
A85: 2018-01-02 | B85: 2018 | C85: 1 | D85: 2 | E85: 4 | F85: OR | G85: 0.08
A86: 2018-01-02 | B86: 2018 | C86: 1 | D86: 2 | E86: 5 | F86: AZ | G86: 0.15
A87: 2018-01-02 | B87: 2018 | C87: 1 | D87: 2 | E87: 5 | F87: NM | G87: 0.31
A88: 2018-01-02 | B88: 2018 | C88: 1 | D88: 2 | E88: 5 | F88: OR | G88: 0.09
A89: 2018-01-02 | B89: 2018 | C89: 1 | D89: 2 | E89: 6 | F89: AZ | G89: 0.14
A90: 2018-01-02 | B90: 2018 | C90: 1 | D90: 2 | E90: 6 | F90: NM | G90: 0.3
A91: 2018-01-02 | B91: 2018 | C91: 1 | D91: 2 | E91: 6 | F91: OR | G91: 0.11
A92: 2018-01-02 | B92: 2018 | C92: 1 | D92: 2 | E92: 7 | F92: AZ | G92: 0.13
A93: 2018-01-02 | B93: 2018 | C93: 1 | D93: 2 | E93: 7 | F93: NM | G93: 0.26
A94: 2018-01-02 | B94: 2018 | C94: 1 | D94: 2 | E94: 7 | F94: OR | G94: 0.14
A95: 2018-01-02 | B95: 2018 | C95: 1 | D95: 2 | E95: 8 | F95: AZ | G95: 0.09
A96: 2018-01-02 | B96: 2018 | C96: 1 | D96: 2 | E96: 8 | F96: NM | G96: 0.17
A97: 2018-01-02 | B97: 2018 | C97: 1 | D97: 2 | E97: 8 | F97: OR | G97: 0.17
A98: 2018-01-02 | B98: 2018 | C98: 1 | D98: 2 | E98: 9 | F98: AZ | G98: 0.1
A99: 2018-01-02 | B99: 2018 | C99: 1 | D99: 2 | E99: 9 | F99: NM | G99: 0.19
A100: 2018-01-02 | B100: 2018 | C100: 1 | D100: 2 | E100: 9 | F100: OR | G100: 0.17
A101: 2018-01-02 | B101: 2018 | C101: 1 | D101: 2 | E101: 10 | F101: AZ | G101: 0.12
A102: 2018-01-02 | B102: 2018 | C102: 1 | D102: 2 | E102: 10 | F102: NM | G102: 0.24
A103: 2018-01-02 | B103: 2018 | C103: 1 | D103: 2 | E103: 10 | F103: OR | G103: 0.2
A104: 2018-01-02 | B104: 2018 | C104: 1 | D104: 2 | E104: 11 | F104: AZ | G104: 0.16
A105: 2018-01-02 | B105: 2018 | C105: 1 | D105: 2 | E105: 11 | F105: NM | G105: 0.33
A106: 2018-01-02 | B106: 2018 | C106: 1 | D106: 2 | E106: 11 | F106: OR | G106: 0.21
A107: 2018-01-02 | B107: 2018 | C107: 1 | D107: 2 | E107: 12 | F107: AZ | G107: 0.2
A108: 2018-01-02 | B108: 2018 | C108: 1 | D108: 2 | E108: 12 | F108: NM | G108: 0.39
A109: 2018-01-02 | B109: 2018 | C109: 1 | D109: 2 | E109: 12 | F109: OR | G109: 0.2
A110: 2018-01-02 | B110: 2018 | C110: 1 | D110: 2 | E110: 13 | F110: AZ | G110: 0.16
A111: 2018-01-02 | B111: 2018 | C111: 1 | D111: 2 | E111: 13 | F111: NM | G111: 0.33
A112: 2018-01-02 | B112: 2018 | C112: 1 | D112: 2 | E112: 13 | F112: OR | G112: 0.19
A113: 2018-01-02 | B113: 2018 | C113: 1 | D113: 2 | E113: 14 | F113: AZ | G113: 0.07
A114: 2018-01-02 | B114: 2018 | C114: 1 | D114: 2 | E114: 14 | F114: NM | G114: 0.13
A115: 2018-01-02 | B115: 2018 | C115: 1 | D115: 2 | E115: 14 | F115: OR | G115: 0.13
A116: 2018-01-02 | B116: 2018 | C116: 1 | D116: 2 | E116: 15 | F116: AZ | G116: 0.02
A117: 2018-01-02 | B117: 2018 | C117: 1 | D117: 2 | E117: 15 | F117: NM | G117: 0.02
A118: 2018-01-02 | B118: 2018 | C118: 1 | D118: 2 | E118: 15 | F118: OR | G118: 0.1
A119: 2018-01-02 | B119: 2018 | C119: 1 | D119: 2 | E119: 16 | F119: AZ | G119: 0.01
A120: 2018-01-02 | B120: 2018 | C120: 1 | D120: 2 | E120: 16 | F120: NM | G120: 0.01
A121: 2018-01-02 | B121: 2018 | C121: 1 | D121: 2 | E121: 16 | F121: OR | G121: 0.07
A122: 2018-01-02 | B122: 2018 | C122: 1 | D122: 2 | E122: 17 | F122: AZ | G122: 0.04
A123: 2018-01-02 | B123: 2018 | C123: 1 | D123: 2 | E123: 17 | F123: NM | G123: 0.05
A124: 2018-01-02 | B124: 2018 | C124: 1 | D124: 2 | E124: 17 | F124: OR | G124: 0.08
A125: 2018-01-02 | B125: 2018 | C125: 1 | D125: 2 | E125: 18 | F125: AZ | G125: 0.06
A126: 2018-01-02 | B126: 2018 | C126: 1 | D126: 2 | E126: 18 | F126: NM | G126: 0.12
A127: 2018-01-02 | B127: 2018 | C127: 1 | D127: 2 | E127: 18 | F127: OR | G127: 0.09
A128: 2018-01-02 | B128: 2018 | C128: 1 | D128: 2 | E128: 19 | F128: AZ | G128: 0.09
A129: 2018-01-02 | B129: 2018 | C129: 1 | D129: 2 | E129: 19 | F129: NM | G129: 0.17
A130: 2018-01-02 | B130: 2018 | C130: 1 | D130: 2 | E130: 19 | F130: OR | G130: 0.09
A131: 2018-01-02 | B131: 2018 | C131: 1 | D131: 2 | E131: 20 | F131: AZ | G131: 0.1
A132: 2018-01-02 | B132: 2018 | C132: 1 | D132: 2 | E132: 20 | F132: NM | G132: 0.2
A133: 2018-01-02 | B133: 2018 | C133: 1 | D133: 2 | E133: 20 | F133: OR | G133: 0.17
A134: 2018-01-02 | B134: 2018 | C134: 1 | D134: 2 | E134: 21 | F134: AZ | G134: 0.08
A135: 2018-01-02 | B135: 2018 | C135: 1 | D135: 2 | E135: 21 | F135: NM | G135: 0.14
A136: 2018-01-02 | B136: 2018 | C136: 1 | D136: 2 | E136: 21 | F136: OR | G136: 0.21
A137: 2018-01-02 | B137: 2018 | C137: 1 | D137: 2 | E137: 22 | F137: AZ | G137: 0.1
A138: 2018-01-02 | B138: 2018 | C138: 1 | D138: 2 | E138: 22 | F138: NM | G138: 0.19
A139: 2018-01-02 | B139: 2018 | C139: 1 | D139: 2 | E139: 22 | F139: OR | G139: 0.22
A140: 2018-01-02 | B140: 2018 | C140: 1 | D140: 2 | E140: 23 | F140: AZ | G140: 0.16
A141: 2018-01-02 | B141: 2018 | C141: 1 | D141: 2 | E141: 23 | F141: NM | G141: 0.33
A142: 2018-01-02 | B142: 2018 | C142: 1 | D142: 2 | E142: 23 | F142: OR | G142: 0.22
A143: 2018-01-02 | B143: 2018 | C143: 1 | D143: 2 | E143: 24 | F143: AZ | G143: 0.17
A144: 2018-01-02 | B144: 2018 | C144: 1 | D144: 2 | E144: 24 | F144: NM | G144: 0.35
A145: 2018-01-02 | B145: 2018 | C145: 1 | D145: 2 | E145: 24 | F145: OR | G145: 0.14
A146: 2018-01-03 | B146: 2018 | C146: 1 | D146: 3 | E146: 1 | F146: AZ | G146: 0.19
A147: 2018-01-03 | B147: 2018 | C147: 1 | D147: 3 | E147: 1 | F147: NM | G147: 0.38
A148: 2018-01-03 | B148: 2018 | C148: 1 | D148: 3 | E148: 1 | F148: OR | G148: 0.07
A149: 2018-01-03 | B149: 2018 | C149: 1 | D149: 3 | E149: 2 | F149: AZ | G149: 0.21
A150: 2018-01-03 | B150: 2018 | C150: 1 | D150: 3 | E150: 2 | F150: NM | G150: 0.42
A151: 2018-01-03 | B151: 2018 | C151: 1 | D151: 3 | E151: 2 | F151: OR | G151: 0.05
A152: 2018-01-03 | B152: 2018 | C152: 1 | D152: 3 | E152: 3 | F152: AZ | G152: 0.25
A153: 2018-01-03 | B153: 2018 | C153: 1 | D153: 3 | E153: 3 | F153: NM | G153: 0.48
A154: 2018-01-03 | B154: 2018 | C154: 1 | D154: 3 | E154: 3 | F154: OR | G154: 0.06
A155: 2018-01-03 | B155: 2018 | C155: 1 | D155: 3 | E155: 4 | F155: AZ | G155: 0.3
A156: 2018-01-03 | B156: 2018 | C156: 1 | D156: 3 | E156: 4 | F156: NM | G156: 0.53
A157: 2018-01-03 | B157: 2018 | C157: 1 | D157: 3 | E157: 4 | F157: OR | G157: 0.07
A158: 2018-01-03 | B158: 2018 | C158: 1 | D158: 3 | E158: 5 | F158: AZ | G158: 0.3
A159: 2018-01-03 | B159: 2018 | C159: 1 | D159: 3 | E159: 5 | F159: NM | G159: 0.55
A160: 2018-01-03 | B160: 2018 | C160: 1 | D160: 3 | E160: 5 | F160: OR | G160: 0.1
A161: 2018-01-03 | B161: 2018 | C161: 1 | D161: 3 | E161: 6 | F161: AZ | G161: 0.3
A162: 2018-01-03 | B162: 2018 | C162: 1 | D162: 3 | E162: 6 | F162: NM | G162: 0.54
A163: 2018-01-03 | B163: 2018 | C163: 1 | D163: 3 | E163: 6 | F163: OR | G163: 0.1
A164: 2018-01-03 | B164: 2018 | C164: 1 | D164: 3 | E164: 7 | F164: AZ | G164: 0.27
A165: 2018-01-03 | B165: 2018 | C165: 1 | D165: 3 | E165: 7 | F165: NM | G165: 0.51
A166: 2018-01-03 | B166: 2018 | C166: 1 | D166: 3 | E166: 7 | F166: OR | G166: 0.07
A167: 2018-01-03 | B167: 2018 | C167: 1 | D167: 3 | E167: 8 | F167: AZ | G167: 0.25
A168: 2018-01-03 | B168: 2018 | C168: 1 | D168: 3 | E168: 8 | F168: NM | G168: 0.47
A169: 2018-01-03 | B169: 2018 | C169: 1 | D169: 3 | E169: 8 | F169: OR | G169: 0.06
A170: 2018-01-03 | B170: 2018 | C170: 1 | D170: 3 | E170: 9 | F170: AZ | G170: 0.21
A171: 2018-01-03 | B171: 2018 | C171: 1 | D171: 3 | E171: 9 | F171: NM | G171: 0.4
A172: 2018-01-03 | B172: 2018 | C172: 1 | D172: 3 | E172: 9 | F172: OR | G172: 0.05
A173: 2018-01-03 | B173: 2018 | C173: 1 | D173: 3 | E173: 10 | F173: AZ | G173: 0.17
A174: 2018-01-03 | B174: 2018 | C174: 1 | D174: 3 | E174: 10 | F174: NM | G174: 0.34
A175: 2018-01-03 | B175: 2018 | C175: 1 | D175: 3 | E175: 10 | F175: OR | G175: 0.07
A176: 2018-01-03 | B176: 2018 | C176: 1 | D176: 3 | E176: 11 | F176: AZ | G176: 0.15
A177: 2018-01-03 | B177: 2018 | C177: 1 | D177: 3 | E177: 11 | F177: NM | G177: 0.31
A178: 2018-01-03 | B178: 2018 | C178: 1 | D178: 3 | E178: 11 | F178: OR | G178: 0.08
A179: 2018-01-03 | B179: 2018 | C179: 1 | D179: 3 | E179: 12 | F179: AZ | G179: 0.18
A180: 2018-01-03 | B180: 2018 | C180: 1 | D180: 3 | E180: 12 | F180: NM | G180: 0.37
A181: 2018-01-03 | B181: 2018 | C181: 1 | D181: 3 | E181: 12 | F181: OR | G181: 0.11
A182: 2018-01-03 | B182: 2018 | C182: 1 | D182: 3 | E182: 13 | F182: AZ | G182: 0.26
A183: 2018-01-03 | B183: 2018 | C183: 1 | D183: 3 | E183: 13 | F183: NM | G183: 0.49
A184: 2018-01-03 | B184: 2018 | C184: 1 | D184: 3 | E184: 13 | F184: OR | G184: 0.13
A185: 2018-01-03 | B185: 2018 | C185: 1 | D185: 3 | E185: 14 | F185: AZ | G185: 0.33
A186: 2018-01-03 | B186: 2018 | C186: 1 | D186: 3 | E186: 14 | F186: NM | G186: 0.58
A187: 2018-01-03 | B187: 2018 | C187: 1 | D187: 3 | E187: 14 | F187: OR | G187: 0.1
A188: 2018-01-03 | B188: 2018 | C188: 1 | D188: 3 | E188: 15 | F188: AZ | G188: 0.35
A189: 2018-01-03 | B189: 2018 | C189: 1 | D189: 3 | E189: 15 | F189: NM | G189: 0.59
A190: 2018-01-03 | B190: 2018 | C190: 1 | D190: 3 | E190: 15 | F190: OR | G190: 0.08
A191: 2018-01-03 | B191: 2018 | C191: 1 | D191: 3 | E191: 16 | F191: AZ | G191: 0.33
A192: 2018-01-03 | B192: 2018 | C192: 1 | D192: 3 | E192: 16 | F192: NM | G192: 0.58
A193: 2018-01-03 | B193: 2018 | C193: 1 | D193: 3 | E193: 16 | F193: OR | G193: 0.09
A194: 2018-01-03 | B194: 2018 | C194: 1 | D194: 3 | E194: 17 | F194: AZ | G194: 0.3
A195: 2018-01-03 | B195: 2018 | C195: 1 | D195: 3 | E195: 17 | F195: NM | G195: 0.53
A196: 2018-01-03 | B196: 2018 | C196: 1 | D196: 3 | E196: 17 | F196: OR | G196: 0.1
A197: 2018-01-03 | B197: 2018 | C197: 1 | D197: 3 | E197: 18 | F197: AZ | G197: 0.17
A198: 2018-01-03 | B198: 2018 | C198: 1 | D198: 3 | E198: 18 | F198: NM | G198: 0.35
A199: 2018-01-03 | B199: 2018 | C199: 1 | D199: 3 | E199: 18 | F199: OR | G199: 0.14
A200: 2018-01-03 | B200: 2018 | C200: 1 | D200: 3 | E200: 19 | F200: AZ | G200: 0.09
... 4300 more rows

Sheet Date Selection
B2: 2018 | G2: 2019 | L2: 2020 | Q2: 2021 | V2: 2022 | AA2: 2023
B3: Month | C3: Rank | D3: Load | E3: Date | G3: Month | H3: Rank | I3: Load | J3: Date | L3: Month | M3: Rank | N3: Load | O3: Date | Q3: Month | R3: Rank | S3: Load | T3: Date | V3: Month | W3: Rank | X3: Load | Y3: Date | AA3: Month | AB3: Rank | AC3: Load | AD3: Date
B4: 1 | C4: 1 | D4: 29544.64695 | E4: 2018-01-29 | G4: 1 | H4: 1 | I4: 29253.02 | J4: 2019-01-14 | L4: 1 | M4: 1 | N4: 29239.33 | O4: 2020-01-16 | Q4: 1 | R4: 1 | S4: 29289.18282 | T4: 2021-01-25 | V4: 1 | W4: 1 | X4: 29104.85232 | Y4: 2022-01-03 | AA4: 1 | AB4: 5 | AC4: 28426.10362 | AD4: 2023-01-02
B5: 1 | C5: 2 | D5: 29225.77984 | E5: 2018-01-08 | G5: 1 | H5: 2 | I5: 29151.89 | J5: 2019-01-15 | L5: 1 | M5: 2 | N5: 28539.89 | O5: 2020-01-15 | Q5: 1 | R5: 2 | S5: 29137.06456 | T5: 2021-01-26 | V5: 1 | W5: 2 | X5: 28584.10654 | Y5: 2022-01-04 | AA5: 1 | AB5: 1 | AC5: 28989.95666 | AD5: 2023-01-03
B6: 1 | C6: 3 | D6: 29075.88426 | E6: 2018-01-22 | G6: 1 | H6: 3 | I6: 29136.91 | J6: 2019-01-02 | L6: 1 | M6: 3 | N6: 28321.13 | O6: 2020-01-13 | Q6: 1 | R6: 3 | S6: 28252.71768 | T6: 2021-01-27 | V6: 1 | W6: 3 | X6: 28398.10137 | Y6: 2022-01-31 | AA6: 1 | AB6: 3 | AC6: 28863.94217 | AD6: 2023-01-11
B7: 1 | C7: 4 | D7: 29065.34263 | E7: 2018-01-25 | G7: 1 | H7: 4 | I7: 29030.74 | J7: 2019-01-03 | L7: 1 | M7: 4 | N7: 28251.49 | O7: 2020-01-14 | Q7: 1 | R7: 4 | S7: 27894.34825 | T7: 2021-01-07 | V7: 1 | W7: 4 | X7: 28180.43125 | Y7: 2022-01-10 | AA7: 1 | AB7: 4 | AC7: 28457.83471 | AD7: 2023-01-17
B8: 1 | C8: 5 | D8: 28932.36281 | E8: 2018-01-03 | G8: 1 | H8: 5 | I8: 28671.39 | J8: 2019-01-16 | L8: 1 | M8: 5 | N8: 28226 | O8: 2020-01-09 | Q8: 1 | R8: 5 | S8: 27882.88786 | T8: 2021-01-06 | V8: 1 | W8: 5 | X8: 28126.16449 | Y8: 2022-01-05 | AA8: 1 | AB8: 2 | AC8: 28865.55216 | AD8: 2023-01-19
B9: 2 | C9: 1 | D9: 30054 | E9: 2018-02-20 | G9: 2 | H9: 1 | I9: 29582.5179 | J9: 2019-02-20 | L9: 2 | M9: 1 | N9: 29437.06 | O9: 2020-02-04 | Q9: 2 | R9: 1 | S9: 27252.8 | T9: 2021-02-09 | V9: 2 | W9: 1 | X9: 29019.71188 | Y9: 2022-02-23 | AA9: 2 | AB9: 5 | AC9: 28371.919 | AD9: 2023-02-14
B10: 2 | C10: 2 | D10: 29747 | E10: 2018-02-22 | G10: 2 | H10: 2 | I10: 29408.8075 | J10: 2019-02-21 | L10: 2 | M10: 2 | N10: 29114.35 | O10: 2020-02-03 | Q10: 2 | R10: 2 | S10: 27130.8 | T10: 2021-02-11 | V10: 2 | W10: 2 | X10: 28726.9742 | Y10: 2022-02-22 | AA10: 2 | AB10: 3 | AC10: 28756.04857 | AD10: 2023-02-22
B11: 2 | C11: 3 | D11: 29387 | E11: 2018-02-27 | G11: 2 | H11: 3 | I11: 29066.0053 | J11: 2019-02-05 | L11: 2 | M11: 3 | N11: 28754.82 | O11: 2020-02-05 | Q11: 2 | R11: 3 | S11: 27120.2 | T11: 2021-02-17 | V11: 2 | W11: 3 | X11: 28307.8715 | Y11: 2022-02-24 | AA11: 2 | AB11: 2 | AC11: 28891.04789 | AD11: 2023-02-23
B12: 2 | C12: 4 | D12: 29382 | E12: 2018-02-19 | G12: 2 | H12: 4 | I12: 29021.2922 | J12: 2019-02-13 | L12: 2 | M12: 4 | N12: 28276.01 | O12: 2020-02-10 | Q12: 2 | R12: 4 | S12: 26993.5 | T12: 2021-02-08 | V12: 2 | W12: 4 | X12: 28081.92842 | Y12: 2022-02-01 | AA12: 2 | AB12: 1 | AC12: 29126.65588 | AD12: 2023-02-27
B13: 2 | C13: 5 | D13: 29350 | E13: 2018-02-21 | G13: 2 | H13: 5 | I13: 29001.3896 | J13: 2019-02-12 | L13: 2 | M13: 5 | N13: 28132.87 | O13: 2020-02-11 | Q13: 2 | R13: 5 | S13: 26980.7 | T13: 2021-02-04 | V13: 2 | W13: 5 | X13: 28048.59459 | Y13: 2022-02-10 | AA13: 2 | AB13: 4 | AC13: 28573.85766 | AD13: 2023-02-28
B14: 3 | C14: 1 | D14: 28329 | E14: 2018-03-01 | G14: 3 | H14: 1 | I14: 28091.8381 | J14: 2019-03-06 | L14: 3 | M14: 1 | N14: 28215.79 | O14: 2020-03-05 | Q14: 3 | R14: 1 | S14: 28135.80429 | T14: 2021-03-10 | V14: 3 | W14: 1 | X14: 28687.81929 | Y14: 2022-03-23 | AA14: 3 | AB14: 1 | AC14: 28696.96473 | AD14: 2023-03-01
B15: 3 | C15: 2 | D15: 28151 | E15: 2018-03-05 | G15: 3 | H15: 2 | I15: 28089.6574 | J15: 2019-03-05 | L15: 3 | M15: 2 | N15: 28046.77 | O15: 2020-03-02 | Q15: 3 | R15: 2 | S15: 27973.0972 | T15: 2021-03-09 | V15: 3 | W15: 2 | X15: 28483.51477 | Y15: 2022-03-24 | AA15: 3 | AB15: 6 | AC15: 27308.40349 | AD15: 2023-03-10
B16: 3 | C16: 3 | D16: 28121 | E16: 2018-03-02 | G16: 3 | H16: 3 | I16: 27730.9129 | J16: 2019-03-07 | L16: 3 | M16: 3 | N16: 27992.38 | O16: 2020-03-04 | Q16: 3 | R16: 3 | S16: 27910.53441 | T16: 2021-03-03 | V16: 3 | W16: 3 | X16: 27970.66538 | Y16: 2022-03-22 | AA16: 3 | AB16: 7 | AC16: 25888.42099 | AD16: 2023-03-11
B17: 3 | C17: 4 | D17: 27979 | E17: 2018-03-12 | G17: 3 | H17: 4 | I17: 27518.9062 | J17: 2019-03-11 | L17: 3 | M17: 4 | N17: 27946.4 | O17: 2020-03-03 | Q17: 3 | R17: 4 | S17: 27620.06656 | T17: 2021-03-15 | V17: 3 | W17: 4 | X17: 27687.06434 | Y17: 2022-03-25 | AA17: 3 | AB17: 5 | AC17: 27699.40471 | AD17: 2023-03-06
B18: 3 | C18: 5 | D18: 27926 | E18: 2018-03-29 | G18: 3 | H18: 5 | I18: 27492.597 | J18: 2019-03-04 | L18: 3 | M18: 5 | N18: 27607.96 | O18: 2020-03-12 | Q18: 3 | R18: 5 | S18: 27612.11876 | T18: 2021-03-11 | V18: 3 | W18: 5 | X18: 27608.88618 | Y18: 2022-03-01 | AA18: 3 | AB18: 2 | AC18: 28308.12945 | AD18: 2023-03-09
B19: 4 | C19: 1 | D19: 30025 | E19: 2018-04-09 | G19: 4 | H19: 1 | I19: 30960.24 | J19: 2019-04-24 | L19: 4 | M19: 1 | N19: 30577.76 | O19: 2020-04-28 | Q19: 4 | R19: 1 | S19: 30066.20242 | T19: 2021-04-30 | V19: 4 | W19: 1 | X19: 33267.74566 | Y19: 2022-04-08 | AA19: 3 | AB19: 4 | AC19: 27717.79031 | AD19: 2023-03-21
B20: 4 | C20: 2 | D20: 29399 | E20: 2018-04-23 | G20: 4 | H20: 2 | I20: 30604.18 | J20: 2019-04-25 | L20: 4 | M20: 2 | N20: 30114.52 | O20: 2020-04-24 | Q20: 4 | R20: 2 | S20: 29496.21423 | T20: 2021-04-29 | V20: 4 | W20: 2 | X20: 32916.58253 | Y20: 2022-04-07 | AA20: 3 | AB20: 3 | AC20: 27943.82391 | AD20: 2023-03-29
B21: 4 | C21: 3 | D21: 29396 | E21: 2018-04-10 | G21: 4 | H21: 3 | I21: 29828.47 | J21: 2019-04-23 | L21: 4 | M21: 3 | N21: 29381.28 | O21: 2020-04-25 | Q21: 4 | R21: 3 | S21: 28297.72874 | T21: 2021-04-19 | V21: 4 | W21: 3 | X21: 29756.17752 | Y21: 2022-04-06 | AA21: 4 | AB21: 4 | AC21: 27566.16984 | AD21: 2023-04-03
B22: 4 | C22: 4 | D22: 29237 | E22: 2018-04-25 | G22: 4 | H22: 4 | I22: 29046.52 | J22: 2019-04-18 | L22: 4 | M22: 4 | N22: 28109.86 | O22: 2020-04-27 | Q22: 4 | R22: 4 | S22: 27496.87809 | T22: 2021-04-01 | V22: 4 | W22: 4 | X22: 28178.47151 | Y22: 2022-04-25 | AA22: 4 | AB22: 5 | AC22: 27256.25714 | AD22: 2023-04-04
B23: 4 | C23: 5 | D23: 29103 | E23: 2018-04-24 | G23: 4 | H23: 5 | I23: 29025.38 | J23: 2019-04-26 | L23: 4 | M23: 5 | N23: 27998.14 | O23: 2020-04-29 | Q23: 4 | R23: 5 | S23: 27439.43344 | T23: 2021-04-28 | V23: 4 | W23: 5 | X23: 27449.93711 | Y23: 2022-04-26 | AA23: 4 | AB23: 3 | AC23: 28645.8436 | AD23: 2023-04-26
B24: 5 | C24: 1 | D24: 32256 | E24: 2018-05-29 | G24: 5 | H24: 1 | I24: 28446.15 | J24: 2019-05-13 | L24: 5 | M24: 1 | N24: 37822.63 | O24: 2020-05-27 | Q24: 5 | R24: 1 | S24: 31650.49662 | T24: 2021-05-31 | V24: 5 | W24: 1 | X24: 34250.08402 | Y24: 2022-05-25 | AA24: 4 | AB24: 1 | AC24: 29200.94221 | AD24: 2023-04-27
B25: 5 | C25: 2 | D25: 30456 | E25: 2018-05-08 | G25: 5 | H25: 2 | I25: 28320.04 | J25: 2019-05-14 | L25: 5 | M25: 2 | N25: 37693.83 | O25: 2020-05-26 | Q25: 5 | R25: 2 | S25: 31397.03964 | T25: 2021-05-05 | V25: 5 | W25: 2 | X25: 33299.16802 | Y25: 2022-05-24 | AA25: 4 | AB25: 2 | AC25: 29110.26109 | AD25: 2023-04-28
B26: 5 | C26: 3 | D26: 30273 | E26: 2018-05-09 | G26: 5 | H26: 3 | I26: 28276.29 | J26: 2019-05-02 | L26: 5 | M26: 3 | N26: 35390.98 | O26: 2020-05-28 | Q26: 5 | R26: 3 | S26: 30671.95881 | T26: 2021-05-04 | V26: 5 | W26: 3 | X26: 31018.81597 | Y26: 2022-05-18 | AA26: 5 | AB26: 5 | AC26: 29581.91909 | AD26: 2023-05-15
B27: 5 | C27: 4 | D27: 30190 | E27: 2018-05-07 | G27: 5 | H27: 4 | I27: 28133.49 | J27: 2019-05-08 | L27: 5 | M27: 4 | N27: 32792.35 | O27: 2020-05-07 | Q27: 5 | R27: 4 | S27: 30556.33444 | T27: 2021-05-12 | V27: 5 | W27: 4 | X27: 30367.70159 | Y27: 2022-05-26 | AA27: 5 | AB27: 1 | AC27: 30753.99502 | AD27: 2023-05-16
B28: 5 | C28: 5 | D28: 29720 | E28: 2018-05-28 | G28: 5 | H28: 5 | I28: 28059.27 | J28: 2019-05-30 | L28: 5 | M28: 5 | N28: 32491.92 | O28: 2020-05-25 | Q28: 5 | R28: 5 | S28: 30108.0715 | T28: 2021-05-25 | V28: 5 | W28: 5 | X28: 30040.02536 | Y28: 2022-05-14 | AA28: 5 | AB28: 3 | AC28: 30107.31687 | AD28: 2023-05-17
B29: 6 | C29: 1 | D29: 37595 | E29: 2018-06-22 | G29: 6 | H29: 1 | I29: 42437.17 | J29: 2019-06-11 | L29: 6 | M29: 1 | N29: 39814.93 | O29: 2020-06-03 | Q29: 6 | R29: 1 | S29: 41083.25036 | T29: 2021-06-17 | V29: 6 | W29: 1 | X29: 41362.38771 | Y29: 2022-06-27 | AA29: 5 | AB29: 4 | AC29: 29598.56265 | AD29: 2023-05-18
B30: 6 | C30: 2 | D30: 37311 | E30: 2018-06-13 | G30: 6 | H30: 2 | I30: 40947.39 | J30: 2019-06-10 | L30: 6 | M30: 2 | N30: 38850.06 | O30: 2020-06-10 | Q30: 6 | R30: 2 | S30: 40580.30114 | T30: 2021-06-18 | V30: 6 | W30: 2 | X30: 40648.39698 | Y30: 2022-06-28 | AA30: 5 | AB30: 2 | AC30: 30543.10755 | AD30: 2023-05-22
B31: 6 | C31: 3 | D31: 36538 | E31: 2018-06-12 | G31: 6 | H31: 3 | I31: 39317.66 | J31: 2019-06-12 | L31: 6 | M31: 3 | N31: 36961.18 | O31: 2020-06-11 | Q31: 6 | R31: 3 | S31: 38943.00304 | T31: 2021-06-16 | V31: 6 | W31: 3 | X31: 39998.73236 | Y31: 2022-06-23 | AA31: 6 | AB31: 5 | AC31: 29972.98939 | AD31: 2023-06-14
B32: 6 | C32: 4 | D32: 36127 | E32: 2018-06-14 | G32: 6 | H32: 4 | I32: 33673.69 | J32: 2019-06-05 | L32: 6 | M32: 4 | N32: 36665.15 | O32: 2020-06-24 | Q32: 6 | R32: 4 | S32: 38842.99301 | T32: 2021-06-15 | V32: 6 | W32: 4 | X32: 39709.84017 | Y32: 2022-06-24 | AA32: 6 | AB32: 4 | AC32: 30075.04829 | AD32: 2023-06-16
B33: 6 | C33: 5 | D33: 35380 | E33: 2018-06-26 | G33: 6 | H33: 5 | I33: 33436.57 | J33: 2019-06-19 | L33: 6 | M33: 5 | N33: 36586.31 | O33: 2020-06-23 | Q33: 6 | R33: 5 | S33: 37734.44823 | T33: 2021-06-28 | V33: 6 | W33: 5 | X33: 39408.69592 | Y33: 2022-06-21 | AA33: 6 | AB33: 3 | AC33: 30259.48358 | AD33: 2023-06-28
B34: 7 | C34: 1 | D34: 46310 | E34: 2018-07-25 | G34: 7 | H34: 1 | I34: 42844.9 | J34: 2019-07-24 | L34: 7 | M34: 1 | N34: 41535.69 | O34: 2020-07-12 | Q34: 7 | R34: 1 | S34: 42993.81831 | T34: 2021-07-09 | V34: 7 | W34: 1 | X34: 41412.79449 | Y34: 2022-07-18 | AA34: 6 | AB34: 2 | AC34: 32874.11908 | AD34: 2023-06-29
B35: 7 | C35: 2 | D35: 46172 | E35: 2018-07-24 | G35: 7 | H35: 2 | I35: 42040.68 | J35: 2019-07-26 | L35: 7 | M35: 2 | N35: 41409.77 | O35: 2020-07-11 | Q35: 7 | R35: 2 | S35: 41867.97223 | T35: 2021-07-19 | V35: 7 | W35: 2 | X35: 41266.38495 | Y35: 2022-07-19 | AA35: 6 | AB35: 1 | AC35: 35723.01921 | AD35: 2023-06-30
B36: 7 | C36: 3 | D36: 45749 | E36: 2018-07-23 | G36: 7 | H36: 3 | I36: 41714.3 | J36: 2019-07-25 | L36: 7 | M36: 3 | N36: 40518.24 | O36: 2020-07-10 | Q36: 7 | R36: 3 | S36: 41363.03688 | T36: 2021-07-29 | V36: 7 | W36: 3 | X36: 40413.1546 | Y36: 2022-07-20 | AA36: 7 | AB36: 3 | AC36: 42461.253 | AD36: 2023-07-17
B37: 7 | C37: 4 | D37: 45126 | E37: 2018-07-06 | G37: 7 | H37: 4 | I37: 41703.11 | J37: 2019-07-23 | L37: 7 | M37: 4 | N37: 40391.224 | O37: 2020-07-31 | Q37: 7 | R37: 4 | S37: 41046.40339 | T37: 2021-07-21 | V37: 7 | W37: 4 | X37: 39452.93803 | Y37: 2022-07-11 | AA37: 7 | AB37: 4 | AC37: 42079.30856 | AD37: 2023-07-20
B38: 7 | C38: 5 | D38: 43741 | E38: 2018-07-31 | G38: 7 | H38: 5 | I38: 41339.64 | J38: 2019-07-27 | L38: 7 | M38: 5 | N38: 39833.38 | O38: 2020-07-13 | Q38: 7 | R38: 5 | S38: 41000.11837 | T38: 2021-07-20 | V38: 7 | W38: 5 | X38: 39327.84355 | Y38: 2022-07-21 | AA38: 7 | AB38: 5 | AC38: 41366.92147 | AD38: 2023-07-21
B39: 8 | C39: 1 | D39: 44996 | E39: 2018-08-09 | G39: 7 | H39: 6 | I39: 39384.57 | J39: 2019-07-28 | L39: 8 | M39: 1 | N39: 46973.59 | O39: 2020-08-18 | Q39: 7 | R39: 6 | S39: 40897.12 | T39: 2021-07-28 | V39: 8 | W39: 1 | X39: 45232.86481 | Y39: 2022-08-16 | AA39: 7 | AB39: 1 | AC39: 43236.42061 | AD39: 2023-07-25
B40: 8 | C40: 2 | D40: 44272 | E40: 2018-08-06 | G40: 8 | H40: 1 | I40: 44094.87 | J40: 2019-08-15 | L40: 8 | M40: 2 | N40: 46284.1 | O40: 2020-08-14 | Q40: 7 | R40: 7 | S40: 40325.07 | T40: 7/10/2021 | V40: 8 | W40: 2 | X40: 45178.58447 | Y40: 2022-08-31 | AA40: 7 | AB40: 2 | AC40: 42851.18828 | AD40: 2023-07-26
B41: 8 | C41: 3 | D41: 43962 | E41: 2018-08-07 | G41: 8 | H41: 2 | I41: 43853.62 | J41: 2019-08-14 | L41: 8 | M41: 3 | N41: 45846.06 | O41: 2020-08-19 | Q41: 7 | R41: 8 | S41: 38447.76 | T41: 2021-07-12 | V41: 8 | W41: 3 | X41: 43385.67067 | Y41: 2022-08-15 | AA41: 8 | AB41: 2 | AC41: 43220.13327 | AD41: 2023-08-15
B42: 8 | C42: 4 | D42: 43891 | E42: 2018-08-08 | G42: 8 | H42: 3 | I42: 43387.9 | J42: 2019-08-26 | L42: 8 | M42: 4 | N42: 44939.06 | O42: 2020-08-17 | Q42: 8 | R42: 1 | S42: 42720.08681 | T42: 2021-08-16 | V42: 8 | W42: 4 | X42: 42754.72357 | Y42: 2022-08-17 | AA42: 8 | AB42: 6 | AC42: 42089.59296 | AD42: 2023-08-30
B43: 8 | C43: 5 | D43: 43803 | E43: 2018-08-01 | G43: 8 | H43: 4 | I43: 42814.98 | J43: 2019-08-27 | L43: 8 | M43: 5 | N43: 44791.4 | O43: 2020-08-15 | Q43: 8 | R43: 2 | S43: 42147.96491 | T43: 2021-08-12 | V43: 8 | W43: 5 | X43: 42101.81302 | Y43: 2022-08-23 | AA43: 8 | AB43: 1 | AC43: 44230.28638 | AD43: 2023-08-16
B44: 9 | C44: 1 | D44: 38558 | E44: 2018-09-07 | G44: 8 | H44: 5 | I44: 41222.57 | J44: 2019-08-06 | L44: 8 | M44: 6 | N44: 43471.27 | O44: 2020-08-16 | Q44: 8 | R44: 3 | S44: 42138.5456 | T44: 2021-08-27 | V44: 9 | W44: 1 | X44: 51479.0047 | Y44: 2022-09-06 | AA44: 8 | AB44: 5 | AC44: 42449.19772 | AD44: 2023-08-17
B45: 9 | C45: 2 | D45: 37844 | E45: 2018-09-08 | G45: 9 | H45: 1 | I45: 43835.2 | J45: 2019-09-03 | L45: 8 | M45: 7 | N45: 42153.89 | O45: 2020-08-13 | Q45: 8 | R45: 4 | S45: 41733.48803 | T45: 2021-08-10 | V45: 9 | W45: 2 | X45: 49859.09202 | Y45: 2022-09-07 | AA45: 8 | AB45: 3 | AC45: 42664.93311 | AD45: 2023-08-28
B46: 9 | C46: 3 | D46: 37682 | E46: 2018-09-10 | G46: 9 | H46: 2 | I46: 43395.22 | J46: 2019-09-04 | L46: 9 | M46: 1 | N46: 46528 | O46: 2020-09-06 | Q46: 8 | R46: 5 | S46: 41225.0628 | T46: 2021-08-11 | V46: 9 | W46: 3 | X46: 48704.1645 | Y46: 2022-09-05 | AA46: 8 | AB46: 4 | AC46: 42581.8333 | AD46: 2023-08-29
B47: 9 | C47: 4 | D47: 36199 | E47: 2018-09-09 | G47: 9 | H47: 3 | I47: 42132.35 | J47: 2019-09-13 | L47: 9 | M47: 2 | N47: 45656.33 | O47: 2020-09-05 | Q47: 9 | R47: 1 | S47: 43789.22775 | T47: 2021-09-08 | V47: 9 | W47: 4 | X47: 48351.20318 | Y47: 2022-09-08 | AA47: 9 | AB47: 5 | AC47: 35853.28307 | AD47: 2023-09-07
B48: 9 | C48: 5 | D48: 36058 | E48: 2018-09-04 | G48: 9 | H48: 4 | I48: 41915.82 | J48: 2019-09-05 | L48: 9 | M48: 3 | N48: 42754.1158 | O48: 2020-09-30 | Q48: 9 | R48: 2 | S48: 43232.35919 | T48: 2021-09-09 | V48: 9 | W48: 5 | X48: 47101.35921 | Y48: 2022-09-01 | AA48: 9 | AB48: 1 | AC48: 38490.28696 | AD48: 2023-09-08
B49: 10 | C49: 1 | D49: 34751 | E49: 2018-10-01 | G49: 9 | H49: 5 | I49: 41322.42 | J49: 2019-09-06 | L49: 9 | M49: 4 | N49: 41632.12 | O49: 2020-09-07 | Q49: 9 | R49: 3 | S49: 42344.89957 | T49: 2021-09-07 | V49: 9 | W49: 6 | X49: 45674.86103 | Y49: 2022-09-02 | AA49: 9 | AB49: 3 | AC49: 36321.83476 | AD49: 2023-09-09
B50: 10 | C50: 2 | D50: 32185 | E50: 2018-10-02 | G50: 10 | H50: 1 | I50: 33227.4 | J50: 2019-10-24 | L50: 9 | M50: 5 | N50: 41191.31 | O50: 2020-09-29 | Q50: 9 | R50: 4 | S50: 40762.68742 | T50: 2021-09-21 | V50: 9 | W50: 7 | X50: 43888.31231 | Y50: 2022-09-04 | AA50: 9 | AB50: 4 | AC50: 36296.13726 | AD50: 2023-09-10
B51: 10 | C51: 3 | D51: 31183 | E51: 2018-10-03 | G51: 10 | H51: 2 | I51: 32787.3 | J51: 2019-10-25 | L51: 9 | M51: 6 | N51: 37516.87 | O51: 2020-09-03 | Q51: 9 | R51: 5 | S51: 40084.72763 | T51: 2021-09-10 | V51: 9 | W51: 8 | X51: 43852.15282 | Y51: 2022-09-03 | AA51: 9 | AB51: 2 | AC51: 36495.1945 | AD51: 2023-09-11
B52: 10 | C52: 4 | D52: 30528 | E52: 2018-10-08 | G52: 10 | H52: 3 | I52: 32608.64 | J52: 2019-10-22 | L52: 10 | M52: 1 | N52: 43147.4021 | O52: 2020-10-01 | Q52: 10 | R52: 1 | S52: 33102.16759 | T52: 2021-10-01 | V52: 9 | W52: 9 | X52: 42862.31083 | Y52: 2022-09-09 | AA52: 10 | AB52: 2 | AC52: 36354.2857 | AD52: 2023-10-05
B53: 10 | C53: 5 | D53: 30307 | E53: 2018-10-04 | G53: 10 | H53: 4 | I53: 32115.26 | J53: 2019-10-07 | L53: 10 | M53: 2 | N53: 41403.8186 | O53: 2020-10-02 | Q53: 10 | R53: 2 | S53: 32743.8278 | T53: 2021-10-04 | V53: 10 | W53: 1 | X53: 34315.99362 | Y53: 2022-10-05 | AA53: 10 | AB53: 1 | AC53: 36936.50625 | AD53: 2023-10-06
B54: 11 | C54: 1 | D54: 29880 | E54: 2018-11-02 | G54: 10 | H54: 5 | I54: 31773.56 | J54: 2019-10-23 | L54: 10 | M54: 3 | N54: 37676.8114 | O54: 2020-10-15 | Q54: 10 | R54: 3 | S54: 32497.63372 | T54: 2021-10-03 | V54: 10 | W54: 2 | X54: 34170.62828 | Y54: 2022-10-19 | AA54: 10 | AB54: 3 | AC54: 34282.09645 | AD54: 2023-10-07
B55: 11 | C55: 2 | D55: 29673 | E55: 2018-11-01 | G55: 11 | H55: 1 | I55: 29661.386 | J55: 2019-11-18 | L55: 10 | M55: 4 | N55: 37512.199 | O55: 2020-10-16 | Q55: 10 | R55: 4 | S55: 32353.87552 | T55: 2021-10-02 | V55: 10 | W55: 3 | X55: 33933.97899 | Y55: 2022-10-07 | AA55: 10 | AB55: 5 | AC55: 33448.83964 | AD55: 2023-10-18
B56: 11 | C56: 3 | D56: 29409 | E56: 2018-11-05 | G56: 11 | H56: 2 | I56: 29030.5956 | J56: 2019-11-08 | L56: 10 | M56: 5 | N56: 37301.1641 | O56: 2020-10-03 | Q56: 10 | R56: 5 | S56: 31214.74818 | T56: 2021-10-05 | V56: 10 | W56: 4 | X56: 33521.90166 | Y56: 2022-10-06 | AA56: 10 | AB56: 4 | AC56: 34220.78619 | AD56: 2023-10-19
B57: 11 | C57: 4 | D57: 29342 | E57: 2018-11-14 | G57: 11 | H57: 3 | I57: 28960.8639 | J57: 2019-11-07 | L57: 11 | M57: 1 | N57: 29618.7771 | O57: 2020-11-05 | Q57: 11 | R57: 1 | S57: 30145.66765 | T57: 2021-11-12 | V57: 10 | W57: 5 | X57: 33436.5574 | Y57: 2022-10-04 | AA57: 11 | AB57: 1 | AC57: 28695.44847 | AD57: 2023-11-02
B58: 11 | C58: 5 | D58: 29122 | E58: 2018-11-07 | G58: 11 | H58: 4 | I58: 28870.0123 | J58: 2019-11-05 | L58: 11 | M58: 2 | N58: 29520.6935 | O58: 2020-11-04 | Q58: 11 | R58: 2 | S58: 29317.43546 | T58: 2021-11-11 | V58: 11 | W58: 1 | X58: 28252.65066 | Y58: 2022-11-30 | AA58: 11 | AB58: 5 | AC58: 28392.60499 | AD58: 2023-11-06
B59: 12 | C59: 1 | D59: 30118 | E59: 2018-12-05 | G59: 11 | H59: 5 | I59: 28780.1161 | J59: 2019-11-26 | L59: 11 | M59: 3 | N59: 28838.7847 | O59: 2020-11-02 | Q59: 11 | R59: 3 | S59: 28968.75916 | T59: 2021-11-15 | V59: 11 | W59: 2 | X59: 28183.5979 | Y59: 2022-11-29 | AA59: 11 | AB59: 4 | AC59: 28414.94986 | AD59: 2023-11-27
B60: 12 | C60: 2 | D60: 29942 | E60: 2018-12-10 | G60: 12 | H60: 1 | I60: 30238.55 | J60: 2019-12-16 | L60: 11 | M60: 4 | N60: 28711.0952 | O60: 2020-11-30 | Q60: 11 | R60: 4 | S60: 28658.18955 | T60: 2021-11-29 | V60: 11 | W60: 3 | X60: 28175.72008 | Y60: 2022-11-08 | AA60: 11 | AB60: 3 | AC60: 28480.70529 | AD60: 2023-11-29
B61: 12 | C61: 3 | D61: 29760 | E61: 2018-12-06 | G61: 12 | H61: 2 | I61: 30120.74 | J61: 2019-12-17 | L61: 11 | M61: 5 | N61: 28627.1288 | O61: 2020-11-03 | Q61: 11 | R61: 5 | S61: 28626.43484 | T61: 2021-11-30 | V61: 11 | W61: 4 | X61: 28110.24198 | Y61: 2022-11-28 | AA61: 11 | AB61: 2 | AC61: 28488.71447 | AD61: 2023-11-30
B62: 12 | C62: 4 | D62: 29592 | E62: 2018-12-11 | G62: 12 | H62: 3 | I62: 30106.8 | J62: 2019-12-18 | L62: 12 | M62: 1 | N62: 29458.1152 | O62: 2020-12-15 | Q62: 12 | R62: 1 | S62: 31157.7637 | T62: 2021-12-14 | V62: 11 | W62: 5 | X62: 27980.38376 | Y62: 2022-11-21 | AA62: 12 | AB62: 5 | AC62: 28717.23183 | AD62: 2023-12-11
B63: 12 | C63: 5 | D63: 29564 | E63: 2018-12-03 | G63: 12 | H63: 4 | I63: 29421.98 | J63: 2019-12-19 | L63: 12 | M63: 2 | N63: 29317.8984 | O63: 2020-12-14 | Q63: 12 | R63: 2 | S63: 31111.53546 | T63: 2021-12-15 | V63: 12 | W63: 1 | X63: 30047.57175 | Y63: 2022-12-12 | AA63: 12 | AB63: 2 | AC63: 28936.19376 | AD63: 2023-12-13
G64: 12 | H64: 5 | I64: 29280.58 | J64: 2019-12-11 | L64: 12 | M64: 3 | N64: 29305.9684 | O64: 2020-12-16 | Q64: 12 | R64: 3 | S64: 30600.0154 | T64: 2021-12-13 | V64: 12 | W64: 2 | X64: 29773.13592 | Y64: 2022-12-14 | AA64: 12 | AB64: 4 | AC64: 28754.72214 | AD64: 2023-12-14
L65: 12 | M65: 4 | N65: 29117.9462 | O65: 2020-12-07 | Q65: 12 | R65: 4 | S65: 30438.99727 | T65: 2021-12-16 | V65: 12 | W65: 3 | X65: 29724.8021 | Y65: 2022-12-13 | AA65: 12 | AB65: 1 | AC65: 28973.08691 | AD65: 2023-12-18
L66: 12 | M66: 5 | N66: 29055.51 | O66: 2020-12-17 | Q66: 12 | R66: 5 | S66: 30149.97769 | T66: 2021-12-20 | V66: 12 | W66: 4 | X66: 29588.0673 | Y66: 2022-12-19 | AA66: 12 | AB66: 3 | AC66: 28887.81022 | AD66: 2023-12-20
V67: 12 | W67: 5 | X67: 29321.55919 | Y67: 2022-12-15

Sheet Date List
A1: 2018-01-29
A2: 2018-01-08
A3: 2018-01-22
A4: 2018-01-25
A5: 2018-01-03
A6: 2018-02-20
A7: 2018-02-22
A8: 2018-02-27
A9: 2018-02-19
A10: 2018-02-21
A11: 2018-03-01
A12: 2018-03-05
A13: 2018-03-02
A14: 2018-03-12
A15: 2018-03-29
A16: 2018-04-09
A17: 2018-04-23
A18: 2018-04-10
A19: 2018-04-25
A20: 2018-04-24
A21: 2018-05-29
A22: 2018-05-08
A23: 2018-05-09
A24: 2018-05-07
A25: 2018-05-28
A26: 2018-06-22
A27: 2018-06-13
A28: 2018-06-12
A29: 2018-06-14
A30: 2018-06-26
A31: 2018-07-25
A32: 2018-07-24
A33: 2018-07-23
A34: 2018-07-06
A35: 2018-07-31
A36: 2018-08-09
A37: 2018-08-06
A38: 2018-08-07
A39: 2018-08-08
A40: 2018-08-01
A41: 2018-09-07
A42: 2018-09-08
A43: 2018-09-10
A44: 2018-09-09
A45: 2018-09-04
A46: 2018-10-01
A47: 2018-10-02
A48: 2018-10-03
A49: 2018-10-08
A50: 2018-10-04
A51: 2018-11-02
A52: 2018-11-01
A53: 2018-11-05
A54: 2018-11-14
A55: 2018-11-07
A56: 2018-12-05
A57: 2018-12-10
A58: 2018-12-06
A59: 2018-12-11
A60: 2018-12-03
A61: 2019-01-14
A62: 2019-01-15
A63: 2019-01-02
A64: 2019-01-03
A65: 2019-01-16
A66: 2019-02-20
A67: 2019-02-21
A68: 2019-02-05
A69: 2019-02-13
A70: 2019-02-12
A71: 2019-03-06
A72: 2019-03-05
A73: 2019-03-07
A74: 2019-03-11
A75: 2019-03-04
A76: 2019-04-24
A77: 2019-04-25
A78: 2019-04-23
A79: 2019-04-18
A80: 2019-04-26
A81: 2019-05-13
A82: 2019-05-14
A83: 2019-05-02
A84: 2019-05-08
A85: 2019-05-30
A86: 2019-06-11
A87: 2019-06-10
A88: 2019-06-12
A89: 2019-06-05
A90: 2019-06-19
A91: 2019-07-24
A92: 2019-07-26
A93: 2019-07-25
A94: 2019-07-23
A95: 2019-07-27
A96: 2019-07-28
A97: 2019-08-15
A98: 2019-08-14
A99: 2019-08-26
A100: 2019-08-27
A101: 2019-08-06
A102: 2019-09-03
A103: 2019-09-04
A104: 2019-09-13
A105: 2019-09-05
A106: 2019-09-06
A107: 2019-10-24
A108: 2019-10-25
A109: 2019-10-22
A110: 2019-10-07
A111: 2019-10-23
A112: 2019-11-18
A113: 2019-11-08
A114: 2019-11-07
A115: 2019-11-05
A116: 2019-11-26
A117: 2019-12-16
A118: 2019-12-17
A119: 2019-12-18
A120: 2019-12-19
A121: 2019-12-11
A122: 2020-01-16
A123: 2020-01-15
A124: 2020-01-13
A125: 2020-01-14
A126: 2020-01-09
A127: 2020-02-04
A128: 2020-02-03
A129: 2020-02-05
A130: 2020-02-10
A131: 2020-02-11
A132: 2020-03-05
A133: 2020-03-02
A134: 2020-03-04
A135: 2020-03-03
A136: 2020-03-12
A137: 2020-04-28
A138: 2020-04-24
A139: 2020-04-25
A140: 2020-04-27
A141: 2020-04-29
A142: 2020-05-27
A143: 2020-05-26
A144: 2020-05-28
A145: 2020-05-07
A146: 2020-05-25
A147: 2020-06-03
A148: 2020-06-10
A149: 2020-06-11
A150: 2020-06-24
A151: 2020-06-23
A152: 2020-07-12
A153: 2020-07-11
A154: 2020-07-10
A155: 2020-07-31
A156: 2020-07-13
A157: 2020-08-18
A158: 2020-08-14
A159: 2020-08-19
A160: 2020-08-17
A161: 2020-08-15
A162: 2020-08-16
A163: 2020-08-13
A164: 2020-09-06
A165: 2020-09-05
A166: 2020-09-30
A167: 2020-09-07
A168: 2020-09-29
A169: 2020-09-03
A170: 2020-10-01
A171: 2020-10-02
A172: 2020-10-15
A173: 2020-10-16
A174: 2020-10-03
A175: 2020-11-05
A176: 2020-11-04
A177: 2020-11-02
A178: 2020-11-30
A179: 2020-11-03
A180: 2020-12-15
A181: 2020-12-14
A182: 2020-12-16
A183: 2020-12-07
A184: 2020-12-17
A185: 2021-01-25
A186: 2021-01-26
A187: 2021-01-27
A188: 2021-01-07
A189: 2021-01-06
A190: 2021-02-09
A191: 2021-02-11
A192: 2021-02-17
A193: 2021-02-08
A194: 2021-02-04
A195: 2021-03-10
A196: 2021-03-09
A197: 2021-03-03
A198: 2021-03-15
A199: 2021-03-11
A200: 2021-04-30
... 174 more rows

Sheet Worst Day Profile (AZ)
A1: AZ | C1: Hour
B2: Month | C2: 1 | D2: 2 | E2: 3 | F2: 4 | G2: 5 | H2: 6 | I2: 7 | J2: 8 | K2: 9 | L2: 10 | M2: 11 | N2: 12 | O2: 13 | P2: 14 | Q2: 15 | R2: 16 | S2: 17 | T2: 18 | U2: 19 | V2: 20 | W2: 21 | X2: 22 | Y2: 23 | Z2: 24
A3: 2018-01-29 | B3: =MONTH(A3) -> 1 | C3: =SUMIFS('Source Data'!$G$2:$G$157681,'Source Data'!$F$2:$F$157681,'Worst Day Profile (AZ)'!$A$1,'Source Data'!$A$2:$A$157681,'Worst Day Profile (AZ)'!$A3,'Source Data'!$E$2:$E$157681,'Worst Day Profile (AZ)'!C$2) -> 0.02 | D3: =SUMIFS('Source Data'!$G$2:$G$157681,'Source Data'!$F$2:$F$157681,'Worst Day Profile (AZ)'!$A$1,'Source Data'!$A$2:$A$157681,'Worst Day Profile (AZ)'!$A3,'Source Data'!$E$2:$E$157681,'Worst Day Profile (AZ)'!D$2) -> 0.01 | E3: =SUMIFS('Source Data'!$G$2:$G$157681,'Source Data'!$F$2:$F$157681,'Worst Day Profile (AZ)'!$A$1,'Source Data'!$A$2:$A$157681,'Worst Day Profile (AZ)'!$A3,'Source Data'!$E$2:$E$157681,'Worst Day Profile (AZ)'!E$2) -> 0.02 | F3: =SUMIFS('Source Data'!$G$2:$G$157681,'Source Data'!$F$2:$F$157681,'Worst Day Profile (AZ)'!$A$1,'Source Data'!$A$2:$A$157681,'Worst Day Profile (AZ)'!$A3,'Source Data'!$E$2:$E$157681,'Worst Day Profile (AZ)'!F$2) -> 0.04 | G3: =SUMIFS('Source Data'!$G$2:$G$157681,'Source Data'!$F$2:$F$157681,'Worst Day Profile (AZ)'!$A$1,'Source Data'!$A$2:$A$157681,'Worst Day Profile (AZ)'!$A3,'Source Data'!$E$2:$E$157681,'Worst Day Profile (AZ)'!G$2) -> 0.06 | H3: =SUMIFS('Source Data'!$G$2:$G$157681,'Source Data'!$F$2:$F$157681,'Worst Day Profile (AZ)'!$A$1,'Source Data'!$A$2:$A$157681,'Worst Day Profile (AZ)'!$A3,'Source Data'!$E$2:$E$157681,'Worst Day Profile (AZ)'!H$2) -> 0.13 | I3: =SUMIFS('Source Data'!$G$2:$G$157681,'Source Data'!$F$2:$F$157681,'Worst Day Profile (AZ)'!$A$1,'Source Data'!$A$2:$A$157681,'Worst Day Profile (AZ)'!$A3,'Source Data'!$E$2:$E$157681,'Worst Day Profile (AZ)'!I$2) -> 0.21 | J3: =SUMIFS('Source Data'!$G$2:$G$157681,'Source Data'!$F$2:$F$157681,'Worst Day Profile (AZ)'!$A$1,'Source Data'!$A$2:$A$157681,'Worst Day Profile (AZ)'!$A3,'Source Data'!$E$2:$E$157681,'Worst Day Profile (AZ)'!J$2) -> 0.24 | K3: =SUMIFS('Source Data'!$G$2:$G$157681,'Source Data'!$F$2:$F$157681,'Worst Day Profile (AZ)'!$A$1,'Source Data'!$A$2:$A$157681,'Worst Day Profile (AZ)'!$A3,'Source Data'!$E$2:$E$157681,'Worst Day Profile (AZ)'!K$2) -> 0.24 | L3: =SUMIFS('Source Data'!$G$2:$G$157681,'Source Data'!$F$2:$F$157681,'Worst Day Profile (AZ)'!$A$1,'Source Data'!$A$2:$A$157681,'Worst Day Profile (AZ)'!$A3,'Source Data'!$E$2:$E$157681,'Worst Day Profile (AZ)'!L$2) -> 0.18 | M3: =SUMIFS('Source Data'!$G$2:$G$157681,'Source Data'!$F$2:$F$157681,'Worst Day Profile (AZ)'!$A$1,'Source Data'!$A$2:$A$157681,'Worst Day Profile (AZ)'!$A3,'Source Data'!$E$2:$E$157681,'Worst Day Profile (AZ)'!M$2) -> 0.07 | N3: =SUMIFS('Source Data'!$G$2:$G$157681,'Source Data'!$F$2:$F$157681,'Worst Day Profile (AZ)'!$A$1,'Source Data'!$A$2:$A$157681,'Worst Day Profile (AZ)'!$A3,'Source Data'!$E$2:$E$157681,'Worst Day Profile (AZ)'!N$2) -> 0.04 | O3: =SUMIFS('Source Data'!$G$2:$G$157681,'Source Data'!$F$2:$F$157681,'Worst Day Profile (AZ)'!$A$1,'Source Data'!$A$2:$A$157681,'Worst Day Profile (AZ)'!$A3,'Source Data'!$E$2:$E$157681,'Worst Day Profile (AZ)'!O$2) -> 0.02 | P3: =SUMIFS('Source Data'!$G$2:$G$157681,'Source Data'!$F$2:$F$157681,'Worst Day Profile (AZ)'!$A$1,'Source Data'!$A$2:$A$157681,'Worst Day Profile (AZ)'!$A3,'Source Data'!$E$2:$E$157681,'Worst Day Profile (AZ)'!P$2) -> 0.03 | Q3: =SUMIFS('Source Data'!$G$2:$G$157681,'Source Data'!$F$2:$F$157681,'Worst Day Profile (AZ)'!$A$1,'Source Data'!$A$2:$A$157681,'Worst Day Profile (AZ)'!$A3,'Source Data'!$E$2:$E$157681,'Worst Day Profile (AZ)'!Q$2) -> 0.07 | R3: =SUMIFS('Source Data'!$G$2:$G$157681,'Source Data'!$F$2:$F$157681,'Worst Day Profile (AZ)'!$A$1,'Source Data'!$A$2:$A$157681,'Worst Day Profile (AZ)'!$A3,'Source Data'!$E$2:$E$157681,'Worst Day Profile (AZ)'!R$2) -> 0.14 | S3: =SUMIFS('Source Data'!$G$2:$G$157681,'Source Data'!$F$2:$F$157681,'Worst Day Profile (AZ)'!$A$1,'Source Data'!$A$2:$A$157681,'Worst Day Profile (AZ)'!$A3,'Source Data'!$E$2:$E$157681,'Worst Day Profile (AZ)'!S$2) -> 0.19 | T3: =SUMIFS('Source Data'!$G$2:$G$157681,'Source Data'!$F$2:$F$157681,'Worst Day Profile (AZ)'!$A$1,'Source Data'!$A$2:$A$157681,'Worst Day Profile (AZ)'!$A3,'Source Data'!$E$2:$E$157681,'Worst Day Profile (AZ)'!T$2) -> 0.2 | U3: =SUMIFS('Source Data'!$G$2:$G$157681,'Source Data'!$F$2:$F$157681,'Worst Day Profile (AZ)'!$A$1,'Source Data'!$A$2:$A$157681,'Worst Day Profile (AZ)'!$A3,'Source Data'!$E$2:$E$157681,'Worst Day Profile (AZ)'!U$2) -> 0.14 | V3: =SUMIFS('Source Data'!$G$2:$G$157681,'Source Data'!$F$2:$F$157681,'Worst Day Profile (AZ)'!$A$1,'Source Data'!$A$2:$A$157681,'Worst Day Profile (AZ)'!$A3,'Source Data'!$E$2:$E$157681,'Worst Day Profile (AZ)'!V$2) -> 0.13 | W3: =SUMIFS('Source Data'!$G$2:$G$157681,'Source Data'!$F$2:$F$157681,'Worst Day Profile (AZ)'!$A$1,'Source Data'!$A$2:$A$157681,'Worst Day Profile (AZ)'!$A3,'Source Data'!$E$2:$E$157681,'Worst Day Profile (AZ)'!W$2) -> 0.13 | X3: =SUMIFS('Source Data'!$G$2:$G$157681,'Source Data'!$F$2:$F$157681,'Worst Day Profile (AZ)'!$A$1,'Source Data'!$A$2:$A$157681,'Worst Day Profile (AZ)'!$A3,'Source Data'!$E$2:$E$157681,'Worst Day Profile (AZ)'!X$2) -> 0.18 | Y3: =SUMIFS('Source Data'!$G$2:$G$157681,'Source Data'!$F$2:$F$157681,'Worst Day Profile (AZ)'!$A$1,'Source Data'!$A$2:$A$157681,'Worst Day Profile (AZ)'!$A3,'Source Data'!$E$2:$E$157681,'Worst Day Profile (AZ)'!Y$2) -> 0.28 | Z3: =SUMIFS('Source Data'!$G$2:$G$157681,'Source Data'!$F$2:$F$157681,'Worst Day Profile (AZ)'!$A$1,'Source Data'!$A$2:$A$157681,'Worst Day Profile (AZ)'!$A3,'Source Data'!$E$2:$E$157681,'Worst Day Profile (AZ)'!Z$2) -> 0.33
A4: 2018-01-08 | B4: =MONTH(A4) -> 1 | C4: =SUMIFS('Source Data'!$G$2:$G$157681,'Source Data'!$F$2:$F$157681,'Worst Day Profile (AZ)'!$A$1,'Source Data'!$A$2:$A$157681,'Worst Day Profile (AZ)'!$A4,'Source Data'!$E$2:$E$157681,'Worst Day Profile (AZ)'!C$2) -> 0.14 | D4: =SUMIFS('Source Data'!$G$2:$G$157681,'Source Data'!$F$2:$F$157681,'Worst Day Profile (AZ)'!$A$1,'Source Data'!$A$2:$A$157681,'Worst Day Profile (AZ)'!$A4,'Source Data'!$E$2:$E$157681,'Worst Day Profile (AZ)'!D$2) -> 0.18 | E4: =SUMIFS('Source Data'!$G$2:$G$157681,'Source Data'!$F$2:$F$157681,'Worst Day Profile (AZ)'!$A$1,'Source Data'!$A$2:$A$157681,'Worst Day Profile (AZ)'!$A4,'Source Data'!$E$2:$E$157681,'Worst Day Profile (AZ)'!E$2) -> 0.24 | F4: =SUMIFS('Source Data'!$G$2:$G$157681,'Source Data'!$F$2:$F$157681,'Worst Day Profile (AZ)'!$A$1,'Source Data'!$A$2:$A$157681,'Worst Day Profile (AZ)'!$A4,'Source Data'!$E$2:$E$157681,'Worst Day Profile (AZ)'!F$2) -> 0.25 | G4: =SUMIFS('Source Data'!$G$2:$G$157681,'Source Data'!$F$2:$F$157681,'Worst Day Profile (AZ)'!$A$1,'Source Data'!$A$2:$A$157681,'Worst Day Profile (AZ)'!$A4,'Source Data'!$E$2:$E$157681,'Worst Day Profile (AZ)'!G$2) -> 0.26 | H4: =SUMIFS('Source Data'!$G$2:$G$157681,'Source Data'!$F$2:$F$157681,'Worst Day Profile (AZ)'!$A$1,'Source Data'!$A$2:$A$157681,'Worst Day Profile (AZ)'!$A4,'Source Data'!$E$2:$E$157681,'Worst Day Profile (AZ)'!H$2) -> 0.27 | I4: =SUMIFS('Source Data'!$G$2:$G$157681,'Source Data'!$F$2:$F$157681,'Worst Day Profile (AZ)'!$A$1,'Source Data'!$A$2:$A$157681,'Worst Day Profile (AZ)'!$A4,'Source Data'!$E$2:$E$157681,'Worst Day Profile (AZ)'!I$2) -> 0.28 | J4: =SUMIFS('Source Data'!$G$2:$G$157681,'Source Data'!$F$2:$F$157681,'Worst Day Profile (AZ)'!$A$1,'Source Data'!$A$2:$A$157681,'Worst Day Profile (AZ)'!$A4,'Source Data'!$E$2:$E$157681,'Worst Day Profile (AZ)'!J$2) -> 0.3 | K4: =SUMIFS('Source Data'!$G$2:$G$157681,'Source Data'!$F$2:$F$157681,'Worst Day Profile (AZ)'!$A$1,'Source Data'!$A$2:$A$157681,'Worst Day Profile (AZ)'!$A4,'Source Data'!$E$2:$E$157681,'Worst Day Profile (AZ)'!K$2) -> 0.28 | L4: =SUMIFS('Source Data'!$G$2:$G$157681,'Source Data'!$F$2:$F$157681,'Worst Day Profile (AZ)'!$A$1,'Source Data'!$A$2:$A$157681,'Worst Day Profile (AZ)'!$A4,'Source Data'!$E$2:$E$157681,'Worst Day Profile (AZ)'!L$2) -> 0.24 | M4: =SUMIFS('Source Data'!$G$2:$G$157681,'Source Data'!$F$2:$F$157681,'Worst Day Profile (AZ)'!$A$1,'Source Data'!$A$2:$A$157681,'Worst Day Profile (AZ)'!$A4,'Source Data'!$E$2:$E$157681,'Worst Day Profile (AZ)'!M$2) -> 0.17 | N4: =SUMIFS('Source Data'!$G$2:$G$157681,'Source Data'!$F$2:$F$157681,'Worst Day Profile (AZ)'!$A$1,'Source Data'!$A$2:$A$157681,'Worst Day Profile (AZ)'!$A4,'Source Data'!$E$2:$E$157681,'Worst Day Profile (AZ)'!N$2) -> 0.1 | O4: =SUMIFS('Source Data'!$G$2:$G$157681,'Source Data'!$F$2:$F$157681,'Worst Day Profile (AZ)'!$A$1,'Source Data'!$A$2:$A$157681,'Worst Day Profile (AZ)'!$A4,'Source Data'!$E$2:$E$157681,'Worst Day Profile (AZ)'!O$2) -> 0.06 | P4: =SUMIFS('Source Data'!$G$2:$G$157681,'Source Data'!$F$2:$F$157681,'Worst Day Profile (AZ)'!$A$1,'Source Data'!$A$2:$A$157681,'Worst Day Profile (AZ)'!$A4,'Source Data'!$E$2:$E$157681,'Worst Day Profile (AZ)'!P$2) -> 0.04 | Q4: =SUMIFS('Source Data'!$G$2:$G$157681,'Source Data'!$F$2:$F$157681,'Worst Day Profile (AZ)'!$A$1,'Source Data'!$A$2:$A$157681,'Worst Day Profile (AZ)'!$A4,'Source Data'!$E$2:$E$157681,'Worst Day Profile (AZ)'!Q$2) -> 0.04 | R4: =SUMIFS('Source Data'!$G$2:$G$157681,'Source Data'!$F$2:$F$157681,'Worst Day Profile (AZ)'!$A$1,'Source Data'!$A$2:$A$157681,'Worst Day Profile (AZ)'!$A4,'Source Data'!$E$2:$E$157681,'Worst Day Profile (AZ)'!R$2) -> 0.05 | S4: =SUMIFS('Source Data'!$G$2:$G$157681,'Source Data'!$F$2:$F$157681,'Worst Day Profile (AZ)'!$A$1,'Source Data'!$A$2:$A$157681,'Worst Day Profile (AZ)'!$A4,'Source Data'!$E$2:$E$157681,'Worst Day Profile (AZ)'!S$2) -> 0.08 | T4: =SUMIFS('Source Data'!$G$2:$G$157681,'Source Data'!$F$2:$F$157681,'Worst Day Profile (AZ)'!$A$1,'Source Data'!$A$2:$A$157681,'Worst Day Profile (AZ)'!$A4,'Source Data'!$E$2:$E$157681,'Worst Day Profile (AZ)'!T$2) -> 0.13 | U4: =SUMIFS('Source Data'!$G$2:$G$157681,'Source Data'!$F$2:$F$157681,'Worst Day Profile (AZ)'!$A$1,'Source Data'!$A$2:$A$157681,'Worst Day Profile (AZ)'!$A4,'Source Data'!$E$2:$E$157681,'Worst Day Profile (AZ)'!U$2) -> 0.2 | V4: =SUMIFS('Source Data'!$G$2:$G$157681,'Source Data'!$F$2:$F$157681,'Worst Day Profile (AZ)'!$A$1,'Source Data'!$A$2:$A$157681,'Worst Day Profile (AZ)'!$A4,'Source Data'!$E$2:$E$157681,'Worst Day Profile (AZ)'!V$2) -> 0.3 | W4: =SUMIFS('Source Data'!$G$2:$G$157681,'Source Data'!$F$2:$F$157681,'Worst Day Profile (AZ)'!$A$1,'Source Data'!$A$2:$A$157681,'Worst Day Profile (AZ)'!$A4,'Source Data'!$E$2:$E$157681,'Worst Day Profile (AZ)'!W$2) -> 0.38 | X4: =SUMIFS('Source Data'!$G$2:$G$157681,'Source Data'!$F$2:$F$157681,'Worst Day Profile (AZ)'!$A$1,'Source Data'!$A$2:$A$157681,'Worst Day Profile (AZ)'!$A4,'Source Data'!$E$2:$E$157681,'Worst Day Profile (AZ)'!X$2) -> 0.45 | Y4: =SUMIFS('Source Data'!$G$2:$G$157681,'Source Data'!$F$2:$F$157681,'Worst Day Profile (AZ)'!$A$1,'Source Data'!$A$2:$A$157681,'Worst Day Profile (AZ)'!$A4,'Source Data'!$E$2:$E$157681,'Worst Day Profile (AZ)'!Y$2) -> 0.54 | Z4: =SUMIFS('Source Data'!$G$2:$G$157681,'Source Data'!$F$2:$F$157681,'Worst Day Profile (AZ)'!$A$1,'Source Data'!$A$2:$A$157681,'Worst Day Profile (AZ)'!$A4,'Source Data'!$E$2:$E$157681,'Worst Day Profile (AZ)'!Z$2) -> 0.58
A5: 2018-01-22 | B5: 1 | C5: =SUMIFS('Source Data'!$G$2:$G$157681,'Source Data'!$F$2:$F$157681,'Worst Day Profile (AZ)'!$A$1,'Source Data'!$A$2:$A$157681,'Worst Day Profile (AZ)'!$A5,'Source Data'!$E$2:$E$157681,'Worst Day Profile (AZ)'!C$2) -> 0.47 | D5: =SUMIFS('Source Data'!$G$2:$G$157681,'Source Data'!$F$2:$F$157681,'Worst Day Profile (AZ)'!$A$1,'Source Data'!$A$2:$A$157681,'Worst Day Profile (AZ)'!$A5,'Source Data'!$E$2:$E$157681,'Worst Day Profile (AZ)'!D$2) -> 0.37 | E5: =SUMIFS('Source Data'!$G$2:$G$157681,'Source Data'!$F$2:$F$157681,'Worst Day Profile (AZ)'!$A$1,'Source Data'!$A$2:$A$157681,'Worst Day Profile (AZ)'!$A5,'Source Data'!$E$2:$E$157681,'Worst Day Profile (AZ)'!E$2) -> 0.34 | F5: =SUMIFS('Source Data'!$G$2:$G$157681,'Source Data'!$F$2:$F$157681,'Worst Day Profile (AZ)'!$A$1,'Source Data'!$A$2:$A$157681,'Worst Day Profile (AZ)'!$A5,'Source Data'!$E$2:$E$157681,'Worst Day Profile (AZ)'!F$2) -> 0.4 | G5: =SUMIFS('Source Data'!$G$2:$G$157681,'Source Data'!$F$2:$F$157681,'Worst Day Profile (AZ)'!$A$1,'Source Data'!$A$2:$A$157681,'Worst Day Profile (AZ)'!$A5,'Source Data'!$E$2:$E$157681,'Worst Day Profile (AZ)'!G$2) -> 0.58 | H5: =SUMIFS('Source Data'!$G$2:$G$157681,'Source Data'!$F$2:$F$157681,'Worst Day Profile (AZ)'!$A$1,'Source Data'!$A$2:$A$157681,'Worst Day Profile (AZ)'!$A5,'Source Data'!$E$2:$E$157681,'Worst Day Profile (AZ)'!H$2) -> 0.72 | I5: =SUMIFS('Source Data'!$G$2:$G$157681,'Source Data'!$F$2:$F$157681,'Worst Day Profile (AZ)'!$A$1,'Source Data'!$A$2:$A$157681,'Worst Day Profile (AZ)'!$A5,'Source Data'!$E$2:$E$157681,'Worst Day Profile (AZ)'!I$2) -> 0.78 | J5: =SUMIFS('Source Data'!$G$2:$G$157681,'Source Data'!$F$2:$F$157681,'Worst Day Profile (AZ)'!$A$1,'Source Data'!$A$2:$A$157681,'Worst Day Profile (AZ)'!$A5,'Source Data'!$E$2:$E$157681,'Worst Day Profile (AZ)'!J$2) -> 0.81 | K5: =SUMIFS('Source Data'!$G$2:$G$157681,'Source Data'!$F$2:$F$157681,'Worst Day Profile (AZ)'!$A$1,'Source Data'!$A$2:$A$157681,'Worst Day Profile (AZ)'!$A5,'Source Data'!$E$2:$E$157681,'Worst Day Profile (AZ)'!K$2) -> 0.8 | L5: =SUMIFS('Source Data'!$G$2:$G$157681,'Source Data'!$F$2:$F$157681,'Worst Day Profile (AZ)'!$A$1,'Source Data'!$A$2:$A$157681,'Worst Day Profile (AZ)'!$A5,'Source Data'!$E$2:$E$157681,'Worst Day Profile (AZ)'!L$2) -> 0.82 | M5: =SUMIFS('Source Data'!$G$2:$G$157681,'Source Data'!$F$2:$F$157681,'Worst Day Profile (AZ)'!$A$1,'Source Data'!$A$2:$A$157681,'Worst Day Profile (AZ)'!$A5,'Source Data'!$E$2:$E$157681,'Worst Day Profile (AZ)'!M$2) -> 0.82 | N5: =SUMIFS('Source Data'!$G$2:$G$157681,'Source Data'!$F$2:$F$157681,'Worst Day Profile (AZ)'!$A$1,'Source Data'!$A$2:$A$157681,'Worst Day Profile (AZ)'!$A5,'Source Data'!$E$2:$E$157681,'Worst Day Profile (AZ)'!N$2) -> 0.86 | O5: =SUMIFS('Source Data'!$G$2:$G$157681,'Source Data'!$F$2:$F$157681,'Worst Day Profile (AZ)'!$A$1,'Source Data'!$A$2:$A$157681,'Worst Day Profile (AZ)'!$A5,'Source Data'!$E$2:$E$157681,'Worst Day Profile (AZ)'!O$2) -> 0.86 | P5: =SUMIFS('Source Data'!$G$2:$G$157681,'Source Data'!$F$2:$F$157681,'Worst Day Profile (AZ)'!$A$1,'Source Data'!$A$2:$A$157681,'Worst Day Profile (AZ)'!$A5,'Source Data'!$E$2:$E$157681,'Worst Day Profile (AZ)'!P$2) -> 0.82 | Q5: =SUMIFS('Source Data'!$G$2:$G$157681,'Source Data'!$F$2:$F$157681,'Worst Day Profile (AZ)'!$A$1,'Source Data'!$A$2:$A$157681,'Worst Day Profile (AZ)'!$A5,'Source Data'!$E$2:$E$157681,'Worst Day Profile (AZ)'!Q$2) -> 0.77 | R5: =SUMIFS('Source Data'!$G$2:$G$157681,'Source Data'!$F$2:$F$157681,'Worst Day Profile (AZ)'!$A$1,'Source Data'!$A$2:$A$157681,'Worst Day Profile (AZ)'!$A5,'Source Data'!$E$2:$E$157681,'Worst Day Profile (AZ)'!R$2) -> 0.66 | S5: =SUMIFS('Source Data'!$G$2:$G$157681,'Source Data'!$F$2:$F$157681,'Worst Day Profile (AZ)'!$A$1,'Source Data'!$A$2:$A$157681,'Worst Day Profile (AZ)'!$A5,'Source Data'!$E$2:$E$157681,'Worst Day Profile (AZ)'!S$2) -> 0.52 | T5: =SUMIFS('Source Data'!$G$2:$G$157681,'Source Data'!$F$2:$F$157681,'Worst Day Profile (AZ)'!$A$1,'Source Data'!$A$2:$A$157681,'Worst Day Profile (AZ)'!$A5,'Source Data'!$E$2:$E$157681,'Worst Day Profile (AZ)'!T$2) -> 0.36 | U5: =SUMIFS('Source Data'!$G$2:$G$157681,'Source Data'!$F$2:$F$157681,'Worst Day Profile (AZ)'!$A$1,'Source Data'!$A$2:$A$157681,'Worst Day Profile (AZ)'!$A5,'Source Data'!$E$2:$E$157681,'Worst Day Profile (AZ)'!U$2) -> 0.26 | V5: =SUMIFS('Source Data'!$G$2:$G$157681,'Source Data'!$F$2:$F$157681,'Worst Day Profile (AZ)'!$A$1,'Source Data'!$A$2:$A$157681,'Worst Day Profile (AZ)'!$A5,'Source Data'!$E$2:$E$157681,'Worst Day Profile (AZ)'!V$2) -> 0.2 | W5: =SUMIFS('Source Data'!$G$2:$G$157681,'Source Data'!$F$2:$F$157681,'Worst Day Profile (AZ)'!$A$1,'Source Data'!$A$2:$A$157681,'Worst Day Profile (AZ)'!$A5,'Source Data'!$E$2:$E$157681,'Worst Day Profile (AZ)'!W$2) -> 0.22 | X5: =SUMIFS('Source Data'!$G$2:$G$157681,'Source Data'!$F$2:$F$157681,'Worst Day Profile (AZ)'!$A$1,'Source Data'!$A$2:$A$157681,'Worst Day Profile (AZ)'!$A5,'Source Data'!$E$2:$E$157681,'Worst Day Profile (AZ)'!X$2) -> 0.25 | Y5: =SUMIFS('Source Data'!$G$2:$G$157681,'Source Data'!$F$2:$F$157681,'Worst Day Profile (AZ)'!$A$1,'Source Data'!$A$2:$A$157681,'Worst Day Profile (AZ)'!$A5,'Source Data'!$E$2:$E$157681,'Worst Day Profile (AZ)'!Y$2) -> 0.3 | Z5: =SUMIFS('Source Data'!$G$2:$G$157681,'Source Data'!$F$2:$F$157681,'Worst Day Profile (AZ)'!$A$1,'Source Data'!$A$2:$A$157681,'Worst Day Profile (AZ)'!$A5,'Source Data'!$E$2:$E$157681,'Worst Day Profile (AZ)'!Z$2) -> 0.32
A6: 2018-01-25 | B6: 1 | C6: =SUMIFS('Source Data'!$G$2:$G$157681,'Source Data'!$F$2:$F$157681,'Worst Day Profile (AZ)'!$A$1,'Source Data'!$A$2:$A$157681,'Worst Day Profile (AZ)'!$A6,'Source Data'!$E$2:$E$157681,'Worst Day Profile (AZ)'!C$2) -> 0.47 | D6: =SUMIFS('Source Data'!$G$2:$G$157681,'Source Data'!$F$2:$F$157681,'Worst Day Profile (AZ)'!$A$1,'Source Data'!$A$2:$A$157681,'Worst Day Profile (AZ)'!$A6,'Source Data'!$E$2:$E$157681,'Worst Day Profile (AZ)'!D$2) -> 0.49 | E6: =SUMIFS('Source Data'!$G$2:$G$157681,'Source Data'!$F$2:$F$157681,'Worst Day Profile (AZ)'!$A$1,'Source Data'!$A$2:$A$157681,'Worst Day Profile (AZ)'!$A6,'Source Data'!$E$2:$E$157681,'Worst Day Profile (AZ)'!E$2) -> 0.51 | F6: =SUMIFS('Source Data'!$G$2:$G$157681,'Source Data'!$F$2:$F$157681,'Worst Day Profile (AZ)'!$A$1,'Source Data'!$A$2:$A$157681,'Worst Day Profile (AZ)'!$A6,'Source Data'!$E$2:$E$157681,'Worst Day Profile (AZ)'!F$2) -> 0.52 | G6: =SUMIFS('Source Data'!$G$2:$G$157681,'Source Data'!$F$2:$F$157681,'Worst Day Profile (AZ)'!$A$1,'Source Data'!$A$2:$A$157681,'Worst Day Profile (AZ)'!$A6,'Source Data'!$E$2:$E$157681,'Worst Day Profile (AZ)'!G$2) -> 0.53 | H6: =SUMIFS('Source Data'!$G$2:$G$157681,'Source Data'!$F$2:$F$157681,'Worst Day Profile (AZ)'!$A$1,'Source Data'!$A$2:$A$157681,'Worst Day Profile (AZ)'!$A6,'Source Data'!$E$2:$E$157681,'Worst Day Profile (AZ)'!H$2) -> 0.54 | I6: =SUMIFS('Source Data'!$G$2:$G$157681,'Source Data'!$F$2:$F$157681,'Worst Day Profile (AZ)'!$A$1,'Source Data'!$A$2:$A$157681,'Worst Day Profile (AZ)'!$A6,'Source Data'!$E$2:$E$157681,'Worst Day Profile (AZ)'!I$2) -> 0.55 | J6: =SUMIFS('Source Data'!$G$2:$G$157681,'Source Data'!$F$2:$F$157681,'Worst Day Profile (AZ)'!$A$1,'Source Data'!$A$2:$A$157681,'Worst Day Profile (AZ)'!$A6,'Source Data'!$E$2:$E$157681,'Worst Day Profile (AZ)'!J$2) -> 0.55 | K6: =SUMIFS('Source Data'!$G$2:$G$157681,'Source Data'!$F$2:$F$157681,'Worst Day Profile (AZ)'!$A$1,'Source Data'!$A$2:$A$157681,'Worst Day Profile (AZ)'!$A6,'Source Data'!$E$2:$E$157681,'Worst Day Profile (AZ)'!K$2) -> 0.54 | L6: =SUMIFS('Source Data'!$G$2:$G$157681,'Source Data'!$F$2:$F$157681,'Worst Day Profile (AZ)'!$A$1,'Source Data'!$A$2:$A$157681,'Worst Day Profile (AZ)'!$A6,'Source Data'!$E$2:$E$157681,'Worst Day Profile (AZ)'!L$2) -> 0.49 | M6: =SUMIFS('Source Data'!$G$2:$G$157681,'Source Data'!$F$2:$F$157681,'Worst Day Profile (AZ)'!$A$1,'Source Data'!$A$2:$A$157681,'Worst Day Profile (AZ)'!$A6,'Source Data'!$E$2:$E$157681,'Worst Day Profile (AZ)'!M$2) -> 0.46 | N6: =SUMIFS('Source Data'!$G$2:$G$157681,'Source Data'!$F$2:$F$157681,'Worst Day Profile (AZ)'!$A$1,'Source Data'!$A$2:$A$157681,'Worst Day Profile (AZ)'!$A6,'Source Data'!$E$2:$E$157681,'Worst Day Profile (AZ)'!N$2) -> 0.46 | O6: =SUMIFS('Source Data'!$G$2:$G$157681,'Source Data'!$F$2:$F$157681,'Worst Day Profile (AZ)'!$A$1,'Source Data'!$A$2:$A$157681,'Worst Day Profile (AZ)'!$A6,'Source Data'!$E$2:$E$157681,'Worst Day Profile (AZ)'!O$2) -> 0.49 | P6: =SUMIFS('Source Data'!$G$2:$G$157681,'Source Data'!$F$2:$F$157681,'Worst Day Profile (AZ)'!$A$1,'Source Data'!$A$2:$A$157681,'Worst Day Profile (AZ)'!$A6,'Source Data'!$E$2:$E$157681,'Worst Day Profile (AZ)'!P$2) -> 0.57 | Q6: =SUMIFS('Source Data'!$G$2:$G$157681,'Source Data'!$F$2:$F$157681,'Worst Day Profile (AZ)'!$A$1,'Source Data'!$A$2:$A$157681,'Worst Day Profile (AZ)'!$A6,'Source Data'!$E$2:$E$157681,'Worst Day Profile (AZ)'!Q$2) -> 0.6 | R6: =SUMIFS('Source Data'!$G$2:$G$157681,'Source Data'!$F$2:$F$157681,'Worst Day Profile (AZ)'!$A$1,'Source Data'!$A$2:$A$157681,'Worst Day Profile (AZ)'!$A6,'Source Data'!$E$2:$E$157681,'Worst Day Profile (AZ)'!R$2) -> 0.61 | S6: =SUMIFS('Source Data'!$G$2:$G$157681,'Source Data'!$F$2:$F$157681,'Worst Day Profile (AZ)'!$A$1,'Source Data'!$A$2:$A$157681,'Worst Day Profile (AZ)'!$A6,'Source Data'!$E$2:$E$157681,'Worst Day Profile (AZ)'!S$2) -> 0.6 | T6: =SUMIFS('Source Data'!$G$2:$G$157681,'Source Data'!$F$2:$F$157681,'Worst Day Profile (AZ)'!$A$1,'Source Data'!$A$2:$A$157681,'Worst Day Profile (AZ)'!$A6,'Source Data'!$E$2:$E$157681,'Worst Day Profile (AZ)'!T$2) -> 0.6 | U6: =SUMIFS('Source Data'!$G$2:$G$157681,'Source Data'!$F$2:$F$157681,'Worst Day Profile (AZ)'!$A$1,'Source Data'!$A$2:$A$157681,'Worst Day Profile (AZ)'!$A6,'Source Data'!$E$2:$E$157681,'Worst Day Profile (AZ)'!U$2) -> 0.6 | V6: =SUMIFS('Source Data'!$G$2:$G$157681,'Source Data'!$F$2:$F$157681,'Worst Day Profile (AZ)'!$A$1,'Source Data'!$A$2:$A$157681,'Worst Day Profile (AZ)'!$A6,'Source Data'!$E$2:$E$157681,'Worst Day Profile (AZ)'!V$2) -> 0.62 | W6: =SUMIFS('Source Data'!$G$2:$G$157681,'Source Data'!$F$2:$F$157681,'Worst Day Profile (AZ)'!$A$1,'Source Data'!$A$2:$A$157681,'Worst Day Profile (AZ)'!$A6,'Source Data'!$E$2:$E$157681,'Worst Day Profile (AZ)'!W$2) -> 0.61 | X6: =SUMIFS('Source Data'!$G$2:$G$157681,'Source Data'!$F$2:$F$157681,'Worst Day Profile (AZ)'!$A$1,'Source Data'!$A$2:$A$157681,'Worst Day Profile (AZ)'!$A6,'Source Data'!$E$2:$E$157681,'Worst Day Profile (AZ)'!X$2) -> 0.6 | Y6: =SUMIFS('Source Data'!$G$2:$G$157681,'Source Data'!$F$2:$F$157681,'Worst Day Profile (AZ)'!$A$1,'Source Data'!$A$2:$A$157681,'Worst Day Profile (AZ)'!$A6,'Source Data'!$E$2:$E$157681,'Worst Day Profile (AZ)'!Y$2) -> 0.56 | Z6: =SUMIFS('Source Data'!$G$2:$G$157681,'Source Data'!$F$2:$F$157681,'Worst Day Profile (AZ)'!$A$1,'Source Data'!$A$2:$A$157681,'Worst Day Profile (AZ)'!$A6,'Source Data'!$E$2:$E$157681,'Worst Day Profile (AZ)'!Z$2) -> 0.47
A7: 2018-01-03 | B7: 1 | C7: =SUMIFS('Source Data'!$G$2:$G$157681,'Source Data'!$F$2:$F$157681,'Worst Day Profile (AZ)'!$A$1,'Source Data'!$A$2:$A$157681,'Worst Day Profile (AZ)'!$A7,'Source Data'!$E$2:$E$157681,'Worst Day Profile (AZ)'!C$2) -> 0.19 | D7: =SUMIFS('Source Data'!$G$2:$G$157681,'Source Data'!$F$2:$F$157681,'Worst Day Profile (AZ)'!$A$1,'Source Data'!$A$2:$A$157681,'Worst Day Profile (AZ)'!$A7,'Source Data'!$E$2:$E$157681,'Worst Day Profile (AZ)'!D$2) -> 0.21 | E7: =SUMIFS('Source Data'!$G$2:$G$157681,'Source Data'!$F$2:$F$157681,'Worst Day Profile (AZ)'!$A$1,'Source Data'!$A$2:$A$157681,'Worst Day Profile (AZ)'!$A7,'Source Data'!$E$2:$E$157681,'Worst Day Profile (AZ)'!E$2) -> 0.25 | F7: =SUMIFS('Source Data'!$G$2:$G$157681,'Source Data'!$F$2:$F$157681,'Worst Day Profile (AZ)'!$A$1,'Source Data'!$A$2:$A$157681,'Worst Day Profile (AZ)'!$A7,'Source Data'!$E$2:$E$157681,'Worst Day Profile (AZ)'!F$2) -> 0.3 | G7: =SUMIFS('Source Data'!$G$2:$G$157681,'Source Data'!$F$2:$F$157681,'Worst Day Profile (AZ)'!$A$1,'Source Data'!$A$2:$A$157681,'Worst Day Profile (AZ)'!$A7,'Source Data'!$E$2:$E$157681,'Worst Day Profile (AZ)'!G$2) -> 0.3 | H7: =SUMIFS('Source Data'!$G$2:$G$157681,'Source Data'!$F$2:$F$157681,'Worst Day Profile (AZ)'!$A$1,'Source Data'!$A$2:$A$157681,'Worst Day Profile (AZ)'!$A7,'Source Data'!$E$2:$E$157681,'Worst Day Profile (AZ)'!H$2) -> 0.3 | I7: =SUMIFS('Source Data'!$G$2:$G$157681,'Source Data'!$F$2:$F$157681,'Worst Day Profile (AZ)'!$A$1,'Source Data'!$A$2:$A$157681,'Worst Day Profile (AZ)'!$A7,'Source Data'!$E$2:$E$157681,'Worst Day Profile (AZ)'!I$2) -> 0.27 | J7: =SUMIFS('Source Data'!$G$2:$G$157681,'Source Data'!$F$2:$F$157681,'Worst Day Profile (AZ)'!$A$1,'Source Data'!$A$2:$A$157681,'Worst Day Profile (AZ)'!$A7,'Source Data'!$E$2:$E$157681,'Worst Day Profile (AZ)'!J$2) -> 0.25 | K7: =SUMIFS('Source Data'!$G$2:$G$157681,'Source Data'!$F$2:$F$157681,'Worst Day Profile (AZ)'!$A$1,'Source Data'!$A$2:$A$157681,'Worst Day Profile (AZ)'!$A7,'Source Data'!$E$2:$E$157681,'Worst Day Profile (AZ)'!K$2) -> 0.21 | L7: =SUMIFS('Source Data'!$G$2:$G$157681,'Source Data'!$F$2:$F$157681,'Worst Day Profile (AZ)'!$A$1,'Source Data'!$A$2:$A$157681,'Worst Day Profile (AZ)'!$A7,'Source Data'!$E$2:$E$157681,'Worst Day Profile (AZ)'!L$2) -> 0.17 | M7: =SUMIFS('Source Data'!$G$2:$G$157681,'Source Data'!$F$2:$F$157681,'Worst Day Profile (AZ)'!$A$1,'Source Data'!$A$2:$A$157681,'Worst Day Profile (AZ)'!$A7,'Source Data'!$E$2:$E$157681,'Worst Day Profile (AZ)'!M$2) -> 0.15 | N7: =SUMIFS('Source Data'!$G$2:$G$157681,'Source Data'!$F$2:$F$157681,'Worst Day Profile (AZ)'!$A$1,'Source Data'!$A$2:$A$157681,'Worst Day Profile (AZ)'!$A7,'Source Data'!$E$2:$E$157681,'Worst Day Profile (AZ)'!N$2) -> 0.18 | O7: =SUMIFS('Source Data'!$G$2:$G$157681,'Source Data'!$F$2:$F$157681,'Worst Day Profile (AZ)'!$A$1,'Source Data'!$A$2:$A$157681,'Worst Day Profile (AZ)'!$A7,'Source Data'!$E$2:$E$157681,'Worst Day Profile (AZ)'!O$2) -> 0.26 | P7: =SUMIFS('Source Data'!$G$2:$G$157681,'Source Data'!$F$2:$F$157681,'Worst Day Profile (AZ)'!$A$1,'Source Data'!$A$2:$A$157681,'Worst Day Profile (AZ)'!$A7,'Source Data'!$E$2:$E$157681,'Worst Day Profile (AZ)'!P$2) -> 0.33 | Q7: =SUMIFS('Source Data'!$G$2:$G$157681,'Source Data'!$F$2:$F$157681,'Worst Day Profile (AZ)'!$A$1,'Source Data'!$A$2:$A$157681,'Worst Day Profile (AZ)'!$A7,'Source Data'!$E$2:$E$157681,'Worst Day Profile (AZ)'!Q$2) -> 0.35 | R7: =SUMIFS('Source Data'!$G$2:$G$157681,'Source Data'!$F$2:$F$157681,'Worst Day Profile (AZ)'!$A$1,'Source Data'!$A$2:$A$157681,'Worst Day Profile (AZ)'!$A7,'Source Data'!$E$2:$E$157681,'Worst Day Profile (AZ)'!R$2) -> 0.33 | S7: =SUMIFS('Source Data'!$G$2:$G$157681,'Source Data'!$F$2:$F$157681,'Worst Day Profile (AZ)'!$A$1,'Source Data'!$A$2:$A$157681,'Worst Day Profile (AZ)'!$A7,'Source Data'!$E$2:$E$157681,'Worst Day Profile (AZ)'!S$2) -> 0.3 | T7: =SUMIFS('Source Data'!$G$2:$G$157681,'Source Data'!$F$2:$F$157681,'Worst Day Profile (AZ)'!$A$1,'Source Data'!$A$2:$A$157681,'Worst Day Profile (AZ)'!$A7,'Source Data'!$E$2:$E$157681,'Worst Day Profile (AZ)'!T$2) -> 0.17 | U7: =SUMIFS('Source Data'!$G$2:$G$157681,'Source Data'!$F$2:$F$157681,'Worst Day Profile (AZ)'!$A$1,'Source Data'!$A$2:$A$157681,'Worst Day Profile (AZ)'!$A7,'Source Data'!$E$2:$E$157681,'Worst Day Profile (AZ)'!U$2) -> 0.09 | V7: =SUMIFS('Source Data'!$G$2:$G$157681,'Source Data'!$F$2:$F$157681,'Worst Day Profile (AZ)'!$A$1,'Source Data'!$A$2:$A$157681,'Worst Day Profile (AZ)'!$A7,'Source Data'!$E$2:$E$157681,'Worst Day Profile (AZ)'!V$2) -> 0.09 | W7: =SUMIFS('Source Data'!$G$2:$G$157681,'Source Data'!$F$2:$F$157681,'Worst Day Profile (AZ)'!$A$1,'Source Data'!$A$2:$A$157681,'Worst Day Profile (AZ)'!$A7,'Source Data'!$E$2:$E$157681,'Worst Day Profile (AZ)'!W$2) -> 0.11 | X7: =SUMIFS('Source Data'!$G$2:$G$157681,'Source Data'!$F$2:$F$157681,'Worst Day Profile (AZ)'!$A$1,'Source Data'!$A$2:$A$157681,'Worst Day Profile (AZ)'!$A7,'Source Data'!$E$2:$E$157681,'Worst Day Profile (AZ)'!X$2) -> 0.19 | Y7: =SUMIFS('Source Data'!$G$2:$G$157681,'Source Data'!$F$2:$F$157681,'Worst Day Profile (AZ)'!$A$1,'Source Data'!$A$2:$A$157681,'Worst Day Profile (AZ)'!$A7,'Source Data'!$E$2:$E$157681,'Worst Day Profile (AZ)'!Y$2) -> 0.27 | Z7: =SUMIFS('Source Data'!$G$2:$G$157681,'Source Data'!$F$2:$F$157681,'Worst Day Profile (AZ)'!$A$1,'Source Data'!$A$2:$A$157681,'Worst Day Profile (AZ)'!$A7,'Source Data'!$E$2:$E$157681,'Worst Day Profile (AZ)'!Z$2) -> 0.27
A8: 2018-02-20 | B8: 2 | C8: =SUMIFS('Source Data'!$G$2:$G$157681,'Source Data'!$F$2:$F$157681,'Worst Day Profile (AZ)'!$A$1,'Source Data'!$A$2:$A$157681,'Worst Day Profile (AZ)'!$A8,'Source Data'!$E$2:$E$157681,'Worst Day Profile (AZ)'!C$2) -> 0.54 | D8: =SUMIFS('Source Data'!$G$2:$G$157681,'Source Data'!$F$2:$F$157681,'Worst Day Profile (AZ)'!$A$1,'Source Data'!$A$2:$A$157681,'Worst Day Profile (AZ)'!$A8,'Source Data'!$E$2:$E$157681,'Worst Day Profile (AZ)'!D$2) -> 0.45 | E8: =SUMIFS('Source Data'!$G$2:$G$157681,'Source Data'!$F$2:$F$157681,'Worst Day Profile (AZ)'!$A$1,'Source Data'!$A$2:$A$157681,'Worst Day Profile (AZ)'!$A8,'Source Data'!$E$2:$E$157681,'Worst Day Profile (AZ)'!E$2) -> 0.32 | F8: =SUMIFS('Source Data'!$G$2:$G$157681,'Source Data'!$F$2:$F$157681,'Worst Day Profile (AZ)'!$A$1,'Source Data'!$A$2:$A$157681,'Worst Day Profile (AZ)'!$A8,'Source Data'!$E$2:$E$157681,'Worst Day Profile (AZ)'!F$2) -> 0.21 | G8: =SUMIFS('Source Data'!$G$2:$G$157681,'Source Data'!$F$2:$F$157681,'Worst Day Profile (AZ)'!$A$1,'Source Data'!$A$2:$A$157681,'Worst Day Profile (AZ)'!$A8,'Source Data'!$E$2:$E$157681,'Worst Day Profile (AZ)'!G$2) -> 0.12 | H8: =SUMIFS('Source Data'!$G$2:$G$157681,'Source Data'!$F$2:$F$157681,'Worst Day Profile (AZ)'!$A$1,'Source Data'!$A$2:$A$157681,'Worst Day Profile (AZ)'!$A8,'Source Data'!$E$2:$E$157681,'Worst Day Profile (AZ)'!H$2) -> 0.09 | I8: =SUMIFS('Source Data'!$G$2:$G$157681,'Source Data'!$F$2:$F$157681,'Worst Day Profile (AZ)'!$A$1,'Source Data'!$A$2:$A$157681,'Worst Day Profile (AZ)'!$A8,'Source Data'!$E$2:$E$157681,'Worst Day Profile (AZ)'!I$2) -> 0.05 | J8: =SUMIFS('Source Data'!$G$2:$G$157681,'Source Data'!$F$2:$F$157681,'Worst Day Profile (AZ)'!$A$1,'Source Data'!$A$2:$A$157681,'Worst Day Profile (AZ)'!$A8,'Source Data'!$E$2:$E$157681,'Worst Day Profile (AZ)'!J$2) -> 0.05 | K8: =SUMIFS('Source Data'!$G$2:$G$157681,'Source Data'!$F$2:$F$157681,'Worst Day Profile (AZ)'!$A$1,'Source Data'!$A$2:$A$157681,'Worst Day Profile (AZ)'!$A8,'Source Data'!$E$2:$E$157681,'Worst Day Profile (AZ)'!K$2) -> 0.1 | L8: =SUMIFS('Source Data'!$G$2:$G$157681,'Source Data'!$F$2:$F$157681,'Worst Day Profile (AZ)'!$A$1,'Source Data'!$A$2:$A$157681,'Worst Day Profile (AZ)'!$A8,'Source Data'!$E$2:$E$157681,'Worst Day Profile (AZ)'!L$2) -> 0.16 | M8: =SUMIFS('Source Data'!$G$2:$G$157681,'Source Data'!$F$2:$F$157681,'Worst Day Profile (AZ)'!$A$1,'Source Data'!$A$2:$A$157681,'Worst Day Profile (AZ)'!$A8,'Source Data'!$E$2:$E$157681,'Worst Day Profile (AZ)'!M$2) -> 0.26 | N8: =SUMIFS('Source Data'!$G$2:$G$157681,'Source Data'!$F$2:$F$157681,'Worst Day Profile (AZ)'!$A$1,'Source Data'!$A$2:$A$157681,'Worst Day Profile (AZ)'!$A8,'Source Data'!$E$2:$E$157681,'Worst Day Profile (AZ)'!N$2) -> 0.39 | O8: =SUMIFS('Source Data'!$G$2:$G$157681,'Source Data'!$F$2:$F$157681,'Worst Day Profile (AZ)'!$A$1,'Source Data'!$A$2:$A$157681,'Worst Day Profile (AZ)'!$A8,'Source Data'!$E$2:$E$157681,'Worst Day Profile (AZ)'!O$2) -> 0.45 | P8: =SUMIFS('Source Data'!$G$2:$G$157681,'Source Data'!$F$2:$F$157681,'Worst Day Profile (AZ)'!$A$1,'Source Data'!$A$2:$A$157681,'Worst Day Profile (AZ)'!$A8,'Source Data'!$E$2:$E$157681,'Worst Day Profile (AZ)'!P$2) -> 0.52 | Q8: =SUMIFS('Source Data'!$G$2:$G$157681,'Source Data'!$F$2:$F$157681,'Worst Day Profile (AZ)'!$A$1,'Source Data'!$A$2:$A$157681,'Worst Day Profile (AZ)'!$A8,'Source Data'!$E$2:$E$157681,'Worst Day Profile (AZ)'!Q$2) -> 0.55 | R8: =SUMIFS('Source Data'!$G$2:$G$157681,'Source Data'!$F$2:$F$157681,'Worst Day Profile (AZ)'!$A$1,'Source Data'!$A$2:$A$157681,'Worst Day Profile (AZ)'!$A8,'Source Data'!$E$2:$E$157681,'Worst Day Profile (AZ)'!R$2) -> 0.63 | S8: =SUMIFS('Source Data'!$G$2:$G$157681,'Source Data'!$F$2:$F$157681,'Worst Day Profile (AZ)'!$A$1,'Source Data'!$A$2:$A$157681,'Worst Day Profile (AZ)'!$A8,'Source Data'!$E$2:$E$157681,'Worst Day Profile (AZ)'!S$2) -> 0.67 | T8: =SUMIFS('Source Data'!$G$2:$G$157681,'Source Data'!$F$2:$F$157681,'Worst Day Profile (AZ)'!$A$1,'Source Data'!$A$2:$A$157681,'Worst Day Profile (AZ)'!$A8,'Source Data'!$E$2:$E$157681,'Worst Day Profile (AZ)'!T$2) -> 0.66 | U8: =SUMIFS('Source Data'!$G$2:$G$157681,'Source Data'!$F$2:$F$157681,'Worst Day Profile (AZ)'!$A$1,'Source Data'!$A$2:$A$157681,'Worst Day Profile (AZ)'!$A8,'Source Data'!$E$2:$E$157681,'Worst Day Profile (AZ)'!U$2) -> 0.63 | V8: =SUMIFS('Source Data'!$G$2:$G$157681,'Source Data'!$F$2:$F$157681,'Worst Day Profile (AZ)'!$A$1,'Source Data'!$A$2:$A$157681,'Worst Day Profile (AZ)'!$A8,'Source Data'!$E$2:$E$157681,'Worst Day Profile (AZ)'!V$2) -> 0.52 | W8: =SUMIFS('Source Data'!$G$2:$G$157681,'Source Data'!$F$2:$F$157681,'Worst Day Profile (AZ)'!$A$1,'Source Data'!$A$2:$A$157681,'Worst Day Profile (AZ)'!$A8,'Source Data'!$E$2:$E$157681,'Worst Day Profile (AZ)'!W$2) -> 0.38 | X8: =SUMIFS('Source Data'!$G$2:$G$157681,'Source Data'!$F$2:$F$157681,'Worst Day Profile (AZ)'!$A$1,'Source Data'!$A$2:$A$157681,'Worst Day Profile (AZ)'!$A8,'Source Data'!$E$2:$E$157681,'Worst Day Profile (AZ)'!X$2) -> 0.26 | Y8: =SUMIFS('Source Data'!$G$2:$G$157681,'Source Data'!$F$2:$F$157681,'Worst Day Profile (AZ)'!$A$1,'Source Data'!$A$2:$A$157681,'Worst Day Profile (AZ)'!$A8,'Source Data'!$E$2:$E$157681,'Worst Day Profile (AZ)'!Y$2) -> 0.17 | Z8: =SUMIFS('Source Data'!$G$2:$G$157681,'Source Data'!$F$2:$F$157681,'Worst Day Profile (AZ)'!$A$1,'Source Data'!$A$2:$A$157681,'Worst Day Profile (AZ)'!$A8,'Source Data'!$E$2:$E$157681,'Worst Day Profile (AZ)'!Z$2) -> 0.12
A9: 2018-02-22 | B9: 2 | C9: =SUMIFS('Source Data'!$G$2:$G$157681,'Source Data'!$F$2:$F$157681,'Worst Day Profile (AZ)'!$A$1,'Source Data'!$A$2:$A$157681,'Worst Day Profile (AZ)'!$A9,'Source Data'!$E$2:$E$157681,'Worst Day Profile (AZ)'!C$2) -> 0.27 | D9: =SUMIFS('Source Data'!$G$2:$G$157681,'Source Data'!$F$2:$F$157681,'Worst Day Profile (AZ)'!$A$1,'Source Data'!$A$2:$A$157681,'Worst Day Profile (AZ)'!$A9,'Source Data'!$E$2:$E$157681,'Worst Day Profile (AZ)'!D$2) -> 0.2 | E9: =SUMIFS('Source Data'!$G$2:$G$157681,'Source Data'!$F$2:$F$157681,'Worst Day Profile (AZ)'!$A$1,'Source Data'!$A$2:$A$157681,'Worst Day Profile (AZ)'!$A9,'Source Data'!$E$2:$E$157681,'Worst Day Profile (AZ)'!E$2) -> 0.13 | F9: =SUMIFS('Source Data'!$G$2:$G$157681,'Source Data'!$F$2:$F$157681,'Worst Day Profile (AZ)'!$A$1,'Source Data'!$A$2:$A$157681,'Worst Day Profile (AZ)'!$A9,'Source Data'!$E$2:$E$157681,'Worst Day Profile (AZ)'!F$2) -> 0.1 | G9: =SUMIFS('Source Data'!$G$2:$G$157681,'Source Data'!$F$2:$F$157681,'Worst Day Profile (AZ)'!$A$1,'Source Data'!$A$2:$A$157681,'Worst Day Profile (AZ)'!$A9,'Source Data'!$E$2:$E$157681,'Worst Day Profile (AZ)'!G$2) -> 0.06 | H9: =SUMIFS('Source Data'!$G$2:$G$157681,'Source Data'!$F$2:$F$157681,'Worst Day Profile (AZ)'!$A$1,'Source Data'!$A$2:$A$157681,'Worst Day Profile (AZ)'!$A9,'Source Data'!$E$2:$E$157681,'Worst Day Profile (AZ)'!H$2) -> 0.06 | I9: =SUMIFS('Source Data'!$G$2:$G$157681,'Source Data'!$F$2:$F$157681,'Worst Day Profile (AZ)'!$A$1,'Source Data'!$A$2:$A$157681,'Worst Day Profile (AZ)'!$A9,'Source Data'!$E$2:$E$157681,'Worst Day Profile (AZ)'!I$2) -> 0.06 | J9: =SUMIFS('Source Data'!$G$2:$G$157681,'Source Data'!$F$2:$F$157681,'Worst Day Profile (AZ)'!$A$1,'Source Data'!$A$2:$A$157681,'Worst Day Profile (AZ)'!$A9,'Source Data'!$E$2:$E$157681,'Worst Day Profile (AZ)'!J$2) -> 0.06 | K9: =SUMIFS('Source Data'!$G$2:$G$157681,'Source Data'!$F$2:$F$157681,'Worst Day Profile (AZ)'!$A$1,'Source Data'!$A$2:$A$157681,'Worst Day Profile (AZ)'!$A9,'Source Data'!$E$2:$E$157681,'Worst Day Profile (AZ)'!K$2) -> 0.03 | L9: =SUMIFS('Source Data'!$G$2:$G$157681,'Source Data'!$F$2:$F$157681,'Worst Day Profile (AZ)'!$A$1,'Source Data'!$A$2:$A$157681,'Worst Day Profile (AZ)'!$A9,'Source Data'!$E$2:$E$157681,'Worst Day Profile (AZ)'!L$2) -> 0.02 | M9: =SUMIFS('Source Data'!$G$2:$G$157681,'Source Data'!$F$2:$F$157681,'Worst Day Profile (AZ)'!$A$1,'Source Data'!$A$2:$A$157681,'Worst Day Profile (AZ)'!$A9,'Source Data'!$E$2:$E$157681,'Worst Day Profile (AZ)'!M$2) -> 0.02 | N9: =SUMIFS('Source Data'!$G$2:$G$157681,'Source Data'!$F$2:$F$157681,'Worst Day Profile (AZ)'!$A$1,'Source Data'!$A$2:$A$157681,'Worst Day Profile (AZ)'!$A9,'Source Data'!$E$2:$E$157681,'Worst Day Profile (AZ)'!N$2) -> 0.02 | O9: =SUMIFS('Source Data'!$G$2:$G$157681,'Source Data'!$F$2:$F$157681,'Worst Day Profile (AZ)'!$A$1,'Source Data'!$A$2:$A$157681,'Worst Day Profile (AZ)'!$A9,'Source Data'!$E$2:$E$157681,'Worst Day Profile (AZ)'!O$2) -> 0.05 | P9: =SUMIFS('Source Data'!$G$2:$G$157681,'Source Data'!$F$2:$F$157681,'Worst Day Profile (AZ)'!$A$1,'Source Data'!$A$2:$A$157681,'Worst Day Profile (AZ)'!$A9,'Source Data'!$E$2:$E$157681,'Worst Day Profile (AZ)'!P$2) -> 0.14 | Q9: =SUMIFS('Source Data'!$G$2:$G$157681,'Source Data'!$F$2:$F$157681,'Worst Day Profile (AZ)'!$A$1,'Source Data'!$A$2:$A$157681,'Worst Day Profile (AZ)'!$A9,'Source Data'!$E$2:$E$157681,'Worst Day Profile (AZ)'!Q$2) -> 0.34 | R9: =SUMIFS('Source Data'!$G$2:$G$157681,'Source Data'!$F$2:$F$157681,'Worst Day Profile (AZ)'!$A$1,'Source Data'!$A$2:$A$157681,'Worst Day Profile (AZ)'!$A9,'Source Data'!$E$2:$E$157681,'Worst Day Profile (AZ)'!R$2) -> 0.56 | S9: =SUMIFS('Source Data'!$G$2:$G$157681,'Source Data'!$F$2:$F$157681,'Worst Day Profile (AZ)'!$A$1,'Source Data'!$A$2:$A$157681,'Worst Day Profile (AZ)'!$A9,'Source Data'!$E$2:$E$157681,'Worst Day Profile (AZ)'!S$2) -> 0.67 | T9: =SUMIFS('Source Data'!$G$2:$G$157681,'Source Data'!$F$2:$F$157681,'Worst Day Profile (AZ)'!$A$1,'Source Data'!$A$2:$A$157681,'Worst Day Profile (AZ)'!$A9,'Source Data'!$E$2:$E$157681,'Worst Day Profile (AZ)'!T$2) -> 0.68 | U9: =SUMIFS('Source Data'!$G$2:$G$157681,'Source Data'!$F$2:$F$157681,'Worst Day Profile (AZ)'!$A$1,'Source Data'!$A$2:$A$157681,'Worst Day Profile (AZ)'!$A9,'Source Data'!$E$2:$E$157681,'Worst Day Profile (AZ)'!U$2) -> 0.62 | V9: =SUMIFS('Source Data'!$G$2:$G$157681,'Source Data'!$F$2:$F$157681,'Worst Day Profile (AZ)'!$A$1,'Source Data'!$A$2:$A$157681,'Worst Day Profile (AZ)'!$A9,'Source Data'!$E$2:$E$157681,'Worst Day Profile (AZ)'!V$2) -> 0.48 | W9: =SUMIFS('Source Data'!$G$2:$G$157681,'Source Data'!$F$2:$F$157681,'Worst Day Profile (AZ)'!$A$1,'Source Data'!$A$2:$A$157681,'Worst Day Profile (AZ)'!$A9,'Source Data'!$E$2:$E$157681,'Worst Day Profile (AZ)'!W$2) -> 0.37 | X9: =SUMIFS('Source Data'!$G$2:$G$157681,'Source Data'!$F$2:$F$157681,'Worst Day Profile (AZ)'!$A$1,'Source Data'!$A$2:$A$157681,'Worst Day Profile (AZ)'!$A9,'Source Data'!$E$2:$E$157681,'Worst Day Profile (AZ)'!X$2) -> 0.23 | Y9: =SUMIFS('Source Data'!$G$2:$G$157681,'Source Data'!$F$2:$F$157681,'Worst Day Profile (AZ)'!$A$1,'Source Data'!$A$2:$A$157681,'Worst Day Profile (AZ)'!$A9,'Source Data'!$E$2:$E$157681,'Worst Day Profile (AZ)'!Y$2) -> 0.15 | Z9: =SUMIFS('Source Data'!$G$2:$G$157681,'Source Data'!$F$2:$F$157681,'Worst Day Profile (AZ)'!$A$1,'Source Data'!$A$2:$A$157681,'Worst Day Profile (AZ)'!$A9,'Source Data'!$E$2:$E$157681,'Worst Day Profile (AZ)'!Z$2) -> 0.1
A10: 2018-02-27 | B10: 2 | C10: =SUMIFS('Source Data'!$G$2:$G$157681,'Source Data'!$F$2:$F$157681,'Worst Day Profile (AZ)'!$A$1,'Source Data'!$A$2:$A$157681,'Worst Day Profile (AZ)'!$A10,'Source Data'!$E$2:$E$157681,'Worst Day Profile (AZ)'!C$2) -> 0.52 | D10: =SUMIFS('Source Data'!$G$2:$G$157681,'Source Data'!$F$2:$F$157681,'Worst Day Profile (AZ)'!$A$1,'Source Data'!$A$2:$A$157681,'Worst Day Profile (AZ)'!$A10,'Source Data'!$E$2:$E$157681,'Worst Day Profile (AZ)'!D$2) -> 0.52 | E10: =SUMIFS('Source Data'!$G$2:$G$157681,'Source Data'!$F$2:$F$157681,'Worst Day Profile (AZ)'!$A$1,'Source Data'!$A$2:$A$157681,'Worst Day Profile (AZ)'!$A10,'Source Data'!$E$2:$E$157681,'Worst Day Profile (AZ)'!E$2) -> 0.53 | F10: =SUMIFS('Source Data'!$G$2:$G$157681,'Source Data'!$F$2:$F$157681,'Worst Day Profile (AZ)'!$A$1,'Source Data'!$A$2:$A$157681,'Worst Day Profile (AZ)'!$A10,'Source Data'!$E$2:$E$157681,'Worst Day Profile (AZ)'!F$2) -> 0.53 | G10: =SUMIFS('Source Data'!$G$2:$G$157681,'Source Data'!$F$2:$F$157681,'Worst Day Profile (AZ)'!$A$1,'Source Data'!$A$2:$A$157681,'Worst Day Profile (AZ)'!$A10,'Source Data'!$E$2:$E$157681,'Worst Day Profile (AZ)'!G$2) -> 0.52 | H10: =SUMIFS('Source Data'!$G$2:$G$157681,'Source Data'!$F$2:$F$157681,'Worst Day Profile (AZ)'!$A$1,'Source Data'!$A$2:$A$157681,'Worst Day Profile (AZ)'!$A10,'Source Data'!$E$2:$E$157681,'Worst Day Profile (AZ)'!H$2) -> 0.49 | I10: =SUMIFS('Source Data'!$G$2:$G$157681,'Source Data'!$F$2:$F$157681,'Worst Day Profile (AZ)'!$A$1,'Source Data'!$A$2:$A$157681,'Worst Day Profile (AZ)'!$A10,'Source Data'!$E$2:$E$157681,'Worst Day Profile (AZ)'!I$2) -> 0.47 | J10: =SUMIFS('Source Data'!$G$2:$G$157681,'Source Data'!$F$2:$F$157681,'Worst Day Profile (AZ)'!$A$1,'Source Data'!$A$2:$A$157681,'Worst Day Profile (AZ)'!$A10,'Source Data'!$E$2:$E$157681,'Worst Day Profile (AZ)'!J$2) -> 0.46 | K10: =SUMIFS('Source Data'!$G$2:$G$157681,'Source Data'!$F$2:$F$157681,'Worst Day Profile (AZ)'!$A$1,'Source Data'!$A$2:$A$157681,'Worst Day Profile (AZ)'!$A10,'Source Data'!$E$2:$E$157681,'Worst Day Profile (AZ)'!K$2) -> 0.46 | L10: =SUMIFS('Source Data'!$G$2:$G$157681,'Source Data'!$F$2:$F$157681,'Worst Day Profile (AZ)'!$A$1,'Source Data'!$A$2:$A$157681,'Worst Day Profile (AZ)'!$A10,'Source Data'!$E$2:$E$157681,'Worst Day Profile (AZ)'!L$2) -> 0.53 | M10: =SUMIFS('Source Data'!$G$2:$G$157681,'Source Data'!$F$2:$F$157681,'Worst Day Profile (AZ)'!$A$1,'Source Data'!$A$2:$A$157681,'Worst Day Profile (AZ)'!$A10,'Source Data'!$E$2:$E$157681,'Worst Day Profile (AZ)'!M$2) -> 0.58 | N10: =SUMIFS('Source Data'!$G$2:$G$157681,'Source Data'!$F$2:$F$157681,'Worst Day Profile (AZ)'!$A$1,'Source Data'!$A$2:$A$157681,'Worst Day Profile (AZ)'!$A10,'Source Data'!$E$2:$E$157681,'Worst Day Profile (AZ)'!N$2) -> 0.66 | O10: =SUMIFS('Source Data'!$G$2:$G$157681,'Source Data'!$F$2:$F$157681,'Worst Day Profile (AZ)'!$A$1,'Source Data'!$A$2:$A$157681,'Worst Day Profile (AZ)'!$A10,'Source Data'!$E$2:$E$157681,'Worst Day Profile (AZ)'!O$2) -> 0.72 | P10: =SUMIFS('Source Data'!$G$2:$G$157681,'Source Data'!$F$2:$F$157681,'Worst Day Profile (AZ)'!$A$1,'Source Data'!$A$2:$A$157681,'Worst Day Profile (AZ)'!$A10,'Source Data'!$E$2:$E$157681,'Worst Day Profile (AZ)'!P$2) -> 0.72 | Q10: =SUMIFS('Source Data'!$G$2:$G$157681,'Source Data'!$F$2:$F$157681,'Worst Day Profile (AZ)'!$A$1,'Source Data'!$A$2:$A$157681,'Worst Day Profile (AZ)'!$A10,'Source Data'!$E$2:$E$157681,'Worst Day Profile (AZ)'!Q$2) -> 0.75 | R10: =SUMIFS('Source Data'!$G$2:$G$157681,'Source Data'!$F$2:$F$157681,'Worst Day Profile (AZ)'!$A$1,'Source Data'!$A$2:$A$157681,'Worst Day Profile (AZ)'!$A10,'Source Data'!$E$2:$E$157681,'Worst Day Profile (AZ)'!R$2) -> 0.78 | S10: =SUMIFS('Source Data'!$G$2:$G$157681,'Source Data'!$F$2:$F$157681,'Worst Day Profile (AZ)'!$A$1,'Source Data'!$A$2:$A$157681,'Worst Day Profile (AZ)'!$A10,'Source Data'!$E$2:$E$157681,'Worst Day Profile (AZ)'!S$2) -> 0.74 | T10: =SUMIFS('Source Data'!$G$2:$G$157681,'Source Data'!$F$2:$F$157681,'Worst Day Profile (AZ)'!$A$1,'Source Data'!$A$2:$A$157681,'Worst Day Profile (AZ)'!$A10,'Source Data'!$E$2:$E$157681,'Worst Day Profile (AZ)'!T$2) -> 0.66 | U10: =SUMIFS('Source Data'!$G$2:$G$157681,'Source Data'!$F$2:$F$157681,'Worst Day Profile (AZ)'!$A$1,'Source Data'!$A$2:$A$157681,'Worst Day Profile (AZ)'!$A10,'Source Data'!$E$2:$E$157681,'Worst Day Profile (AZ)'!U$2) -> 0.48 | V10: =SUMIFS('Source Data'!$G$2:$G$157681,'Source Data'!$F$2:$F$157681,'Worst Day Profile (AZ)'!$A$1,'Source Data'!$A$2:$A$157681,'Worst Day Profile (AZ)'!$A10,'Source Data'!$E$2:$E$157681,'Worst Day Profile (AZ)'!V$2) -> 0.32 | W10: =SUMIFS('Source Data'!$G$2:$G$157681,'Source Data'!$F$2:$F$157681,'Worst Day Profile (AZ)'!$A$1,'Source Data'!$A$2:$A$157681,'Worst Day Profile (AZ)'!$A10,'Source Data'!$E$2:$E$157681,'Worst Day Profile (AZ)'!W$2) -> 0.22 | X10: =SUMIFS('Source Data'!$G$2:$G$157681,'Source Data'!$F$2:$F$157681,'Worst Day Profile (AZ)'!$A$1,'Source Data'!$A$2:$A$157681,'Worst Day Profile (AZ)'!$A10,'Source Data'!$E$2:$E$157681,'Worst Day Profile (AZ)'!X$2) -> 0.21 | Y10: =SUMIFS('Source Data'!$G$2:$G$157681,'Source Data'!$F$2:$F$157681,'Worst Day Profile (AZ)'!$A$1,'Source Data'!$A$2:$A$157681,'Worst Day Profile (AZ)'!$A10,'Source Data'!$E$2:$E$157681,'Worst Day Profile (AZ)'!Y$2) -> 0.23 | Z10: =SUMIFS('Source Data'!$G$2:$G$157681,'Source Data'!$F$2:$F$157681,'Worst Day Profile (AZ)'!$A$1,'Source Data'!$A$2:$A$157681,'Worst Day Profile (AZ)'!$A10,'Source Data'!$E$2:$E$157681,'Worst Day Profile (AZ)'!Z$2) -> 0.26
A11: 2018-02-19 | B11: 2 | C11: =SUMIFS('Source Data'!$G$2:$G$157681,'Source Data'!$F$2:$F$157681,'Worst Day Profile (AZ)'!$A$1,'Source Data'!$A$2:$A$157681,'Worst Day Profile (AZ)'!$A11,'Source Data'!$E$2:$E$157681,'Worst Day Profile (AZ)'!C$2) -> 0.56 | D11: =SUMIFS('Source Data'!$G$2:$G$157681,'Source Data'!$F$2:$F$157681,'Worst Day Profile (AZ)'!$A$1,'Source Data'!$A$2:$A$157681,'Worst Day Profile (AZ)'!$A11,'Source Data'!$E$2:$E$157681,'Worst Day Profile (AZ)'!D$2) -> 0.54 | E11: =SUMIFS('Source Data'!$G$2:$G$157681,'Source Data'!$F$2:$F$157681,'Worst Day Profile (AZ)'!$A$1,'Source Data'!$A$2:$A$157681,'Worst Day Profile (AZ)'!$A11,'Source Data'!$E$2:$E$157681,'Worst Day Profile (AZ)'!E$2) -> 0.45 | F11: =SUMIFS('Source Data'!$G$2:$G$157681,'Source Data'!$F$2:$F$157681,'Worst Day Profile (AZ)'!$A$1,'Source Data'!$A$2:$A$157681,'Worst Day Profile (AZ)'!$A11,'Source Data'!$E$2:$E$157681,'Worst Day Profile (AZ)'!F$2) -> 0.38 | G11: =SUMIFS('Source Data'!$G$2:$G$157681,'Source Data'!$F$2:$F$157681,'Worst Day Profile (AZ)'!$A$1,'Source Data'!$A$2:$A$157681,'Worst Day Profile (AZ)'!$A11,'Source Data'!$E$2:$E$157681,'Worst Day Profile (AZ)'!G$2) -> 0.27 | H11: =SUMIFS('Source Data'!$G$2:$G$157681,'Source Data'!$F$2:$F$157681,'Worst Day Profile (AZ)'!$A$1,'Source Data'!$A$2:$A$157681,'Worst Day Profile (AZ)'!$A11,'Source Data'!$E$2:$E$157681,'Worst Day Profile (AZ)'!H$2) -> 0.22 | I11: =SUMIFS('Source Data'!$G$2:$G$157681,'Source Data'!$F$2:$F$157681,'Worst Day Profile (AZ)'!$A$1,'Source Data'!$A$2:$A$157681,'Worst Day Profile (AZ)'!$A11,'Source Data'!$E$2:$E$157681,'Worst Day Profile (AZ)'!I$2) -> 0.28 | J11: =SUMIFS('Source Data'!$G$2:$G$157681,'Source Data'!$F$2:$F$157681,'Worst Day Profile (AZ)'!$A$1,'Source Data'!$A$2:$A$157681,'Worst Day Profile (AZ)'!$A11,'Source Data'!$E$2:$E$157681,'Worst Day Profile (AZ)'!J$2) -> 0.39 | K11: =SUMIFS('Source Data'!$G$2:$G$157681,'Source Data'!$F$2:$F$157681,'Worst Day Profile (AZ)'!$A$1,'Source Data'!$A$2:$A$157681,'Worst Day Profile (AZ)'!$A11,'Source Data'!$E$2:$E$157681,'Worst Day Profile (AZ)'!K$2) -> 0.47 | L11: =SUMIFS('Source Data'!$G$2:$G$157681,'Source Data'!$F$2:$F$157681,'Worst Day Profile (AZ)'!$A$1,'Source Data'!$A$2:$A$157681,'Worst Day Profile (AZ)'!$A11,'Source Data'!$E$2:$E$157681,'Worst Day Profile (AZ)'!L$2) -> 0.52 | M11: =SUMIFS('Source Data'!$G$2:$G$157681,'Source Data'!$F$2:$F$157681,'Worst Day Profile (AZ)'!$A$1,'Source Data'!$A$2:$A$157681,'Worst Day Profile (AZ)'!$A11,'Source Data'!$E$2:$E$157681,'Worst Day Profile (AZ)'!M$2) -> 0.54 | N11: =SUMIFS('Source Data'!$G$2:$G$157681,'Source Data'!$F$2:$F$157681,'Worst Day Profile (AZ)'!$A$1,'Source Data'!$A$2:$A$157681,'Worst Day Profile (AZ)'!$A11,'Source Data'!$E$2:$E$157681,'Worst Day Profile (AZ)'!N$2) -> 0.54 | O11: =SUMIFS('Source Data'!$G$2:$G$157681,'Source Data'!$F$2:$F$157681,'Worst Day Profile (AZ)'!$A$1,'Source Data'!$A$2:$A$157681,'Worst Day Profile (AZ)'!$A11,'Source Data'!$E$2:$E$157681,'Worst Day Profile (AZ)'!O$2) -> 0.53 | P11: =SUMIFS('Source Data'!$G$2:$G$157681,'Source Data'!$F$2:$F$157681,'Worst Day Profile (AZ)'!$A$1,'Source Data'!$A$2:$A$157681,'Worst Day Profile (AZ)'!$A11,'Source Data'!$E$2:$E$157681,'Worst Day Profile (AZ)'!P$2) -> 0.48 | Q11: =SUMIFS('Source Data'!$G$2:$G$157681,'Source Data'!$F$2:$F$157681,'Worst Day Profile (AZ)'!$A$1,'Source Data'!$A$2:$A$157681,'Worst Day Profile (AZ)'!$A11,'Source Data'!$E$2:$E$157681,'Worst Day Profile (AZ)'!Q$2) -> 0.53 | R11: =SUMIFS('Source Data'!$G$2:$G$157681,'Source Data'!$F$2:$F$157681,'Worst Day Profile (AZ)'!$A$1,'Source Data'!$A$2:$A$157681,'Worst Day Profile (AZ)'!$A11,'Source Data'!$E$2:$E$157681,'Worst Day Profile (AZ)'!R$2) -> 0.58 | S11: =SUMIFS('Source Data'!$G$2:$G$157681,'Source Data'!$F$2:$F$157681,'Worst Day Profile (AZ)'!$A$1,'Source Data'!$A$2:$A$157681,'Worst Day Profile (AZ)'!$A11,'Source Data'!$E$2:$E$157681,'Worst Day Profile (AZ)'!S$2) -> 0.66 | T11: =SUMIFS('Source Data'!$G$2:$G$157681,'Source Data'!$F$2:$F$157681,'Worst Day Profile (AZ)'!$A$1,'Source Data'!$A$2:$A$157681,'Worst Day Profile (AZ)'!$A11,'Source Data'!$E$2:$E$157681,'Worst Day Profile (AZ)'!T$2) -> 0.66 | U11: =SUMIFS('Source Data'!$G$2:$G$157681,'Source Data'!$F$2:$F$157681,'Worst Day Profile (AZ)'!$A$1,'Source Data'!$A$2:$A$157681,'Worst Day Profile (AZ)'!$A11,'Source Data'!$E$2:$E$157681,'Worst Day Profile (AZ)'!U$2) -> 0.61 | V11: =SUMIFS('Source Data'!$G$2:$G$157681,'Source Data'!$F$2:$F$157681,'Worst Day Profile (AZ)'!$A$1,'Source Data'!$A$2:$A$157681,'Worst Day Profile (AZ)'!$A11,'Source Data'!$E$2:$E$157681,'Worst Day Profile (AZ)'!V$2) -> 0.52 | W11: =SUMIFS('Source Data'!$G$2:$G$157681,'Source Data'!$F$2:$F$157681,'Worst Day Profile (AZ)'!$A$1,'Source Data'!$A$2:$A$157681,'Worst Day Profile (AZ)'!$A11,'Source Data'!$E$2:$E$157681,'Worst Day Profile (AZ)'!W$2) -> 0.45 | X11: =SUMIFS('Source Data'!$G$2:$G$157681,'Source Data'!$F$2:$F$157681,'Worst Day Profile (AZ)'!$A$1,'Source Data'!$A$2:$A$157681,'Worst Day Profile (AZ)'!$A11,'Source Data'!$E$2:$E$157681,'Worst Day Profile (AZ)'!X$2) -> 0.49 | Y11: =SUMIFS('Source Data'!$G$2:$G$157681,'Source Data'!$F$2:$F$157681,'Worst Day Profile (AZ)'!$A$1,'Source Data'!$A$2:$A$157681,'Worst Day Profile (AZ)'!$A11,'Source Data'!$E$2:$E$157681,'Worst Day Profile (AZ)'!Y$2) -> 0.55 | Z11: =SUMIFS('Source Data'!$G$2:$G$157681,'Source Data'!$F$2:$F$157681,'Worst Day Profile (AZ)'!$A$1,'Source Data'!$A$2:$A$157681,'Worst Day Profile (AZ)'!$A11,'Source Data'!$E$2:$E$157681,'Worst Day Profile (AZ)'!Z$2) -> 0.58
A12: 2018-02-21 | B12: 2 | C12: =SUMIFS('Source Data'!$G$2:$G$157681,'Source Data'!$F$2:$F$157681,'Worst Day Profile (AZ)'!$A$1,'Source Data'!$A$2:$A$157681,'Worst Day Profile (AZ)'!$A12,'Source Data'!$E$2:$E$157681,'Worst Day Profile (AZ)'!C$2) -> 0.07 | D12: =SUMIFS('Source Data'!$G$2:$G$157681,'Source Data'!$F$2:$F$157681,'Worst Day Profile (AZ)'!$A$1,'Source Data'!$A$2:$A$157681,'Worst Day Profile (AZ)'!$A12,'Source Data'!$E$2:$E$157681,'Worst Day Profile (AZ)'!D$2) -> 0.05 | E12: =SUMIFS('Source Data'!$G$2:$G$157681,'Source Data'!$F$2:$F$157681,'Worst Day Profile (AZ)'!$A$1,'Source Data'!$A$2:$A$157681,'Worst Day Profile (AZ)'!$A12,'Source Data'!$E$2:$E$157681,'Worst Day Profile (AZ)'!E$2) -> 0.05 | F12: =SUMIFS('Source Data'!$G$2:$G$157681,'Source Data'!$F$2:$F$157681,'Worst Day Profile (AZ)'!$A$1,'Source Data'!$A$2:$A$157681,'Worst Day Profile (AZ)'!$A12,'Source Data'!$E$2:$E$157681,'Worst Day Profile (AZ)'!F$2) -> 0.05 | G12: =SUMIFS('Source Data'!$G$2:$G$157681,'Source Data'!$F$2:$F$157681,'Worst Day Profile (AZ)'!$A$1,'Source Data'!$A$2:$A$157681,'Worst Day Profile (AZ)'!$A12,'Source Data'!$E$2:$E$157681,'Worst Day Profile (AZ)'!G$2) -> 0.05 | H12: =SUMIFS('Source Data'!$G$2:$G$157681,'Source Data'!$F$2:$F$157681,'Worst Day Profile (AZ)'!$A$1,'Source Data'!$A$2:$A$157681,'Worst Day Profile (AZ)'!$A12,'Source Data'!$E$2:$E$157681,'Worst Day Profile (AZ)'!H$2) -> 0.06 | I12: =SUMIFS('Source Data'!$G$2:$G$157681,'Source Data'!$F$2:$F$157681,'Worst Day Profile (AZ)'!$A$1,'Source Data'!$A$2:$A$157681,'Worst Day Profile (AZ)'!$A12,'Source Data'!$E$2:$E$157681,'Worst Day Profile (AZ)'!I$2) -> 0.09 | J12: =SUMIFS('Source Data'!$G$2:$G$157681,'Source Data'!$F$2:$F$157681,'Worst Day Profile (AZ)'!$A$1,'Source Data'!$A$2:$A$157681,'Worst Day Profile (AZ)'!$A12,'Source Data'!$E$2:$E$157681,'Worst Day Profile (AZ)'!J$2) -> 0.09 | K12: =SUMIFS('Source Data'!$G$2:$G$157681,'Source Data'!$F$2:$F$157681,'Worst Day Profile (AZ)'!$A$1,'Source Data'!$A$2:$A$157681,'Worst Day Profile (AZ)'!$A12,'Source Data'!$E$2:$E$157681,'Worst Day Profile (AZ)'!K$2) -> 0.08 | L12: =SUMIFS('Source Data'!$G$2:$G$157681,'Source Data'!$F$2:$F$157681,'Worst Day Profile (AZ)'!$A$1,'Source Data'!$A$2:$A$157681,'Worst Day Profile (AZ)'!$A12,'Source Data'!$E$2:$E$157681,'Worst Day Profile (AZ)'!L$2) -> 0.09 | M12: =SUMIFS('Source Data'!$G$2:$G$157681,'Source Data'!$F$2:$F$157681,'Worst Day Profile (AZ)'!$A$1,'Source Data'!$A$2:$A$157681,'Worst Day Profile (AZ)'!$A12,'Source Data'!$E$2:$E$157681,'Worst Day Profile (AZ)'!M$2) -> 0.11 | N12: =SUMIFS('Source Data'!$G$2:$G$157681,'Source Data'!$F$2:$F$157681,'Worst Day Profile (AZ)'!$A$1,'Source Data'!$A$2:$A$157681,'Worst Day Profile (AZ)'!$A12,'Source Data'!$E$2:$E$157681,'Worst Day Profile (AZ)'!N$2) -> 0.17 | O12: =SUMIFS('Source Data'!$G$2:$G$157681,'Source Data'!$F$2:$F$157681,'Worst Day Profile (AZ)'!$A$1,'Source Data'!$A$2:$A$157681,'Worst Day Profile (AZ)'!$A12,'Source Data'!$E$2:$E$157681,'Worst Day Profile (AZ)'!O$2) -> 0.28 | P12: =SUMIFS('Source Data'!$G$2:$G$157681,'Source Data'!$F$2:$F$157681,'Worst Day Profile (AZ)'!$A$1,'Source Data'!$A$2:$A$157681,'Worst Day Profile (AZ)'!$A12,'Source Data'!$E$2:$E$157681,'Worst Day Profile (AZ)'!P$2) -> 0.42 | Q12: =SUMIFS('Source Data'!$G$2:$G$157681,'Source Data'!$F$2:$F$157681,'Worst Day Profile (AZ)'!$A$1,'Source Data'!$A$2:$A$157681,'Worst Day Profile (AZ)'!$A12,'Source Data'!$E$2:$E$157681,'Worst Day Profile (AZ)'!Q$2) -> 0.45 | R12: =SUMIFS('Source Data'!$G$2:$G$157681,'Source Data'!$F$2:$F$157681,'Worst Day Profile (AZ)'!$A$1,'Source Data'!$A$2:$A$157681,'Worst Day Profile (AZ)'!$A12,'Source Data'!$E$2:$E$157681,'Worst Day Profile (AZ)'!R$2) -> 0.41 | S12: =SUMIFS('Source Data'!$G$2:$G$157681,'Source Data'!$F$2:$F$157681,'Worst Day Profile (AZ)'!$A$1,'Source Data'!$A$2:$A$157681,'Worst Day Profile (AZ)'!$A12,'Source Data'!$E$2:$E$157681,'Worst Day Profile (AZ)'!S$2) -> 0.28 | T12: =SUMIFS('Source Data'!$G$2:$G$157681,'Source Data'!$F$2:$F$157681,'Worst Day Profile (AZ)'!$A$1,'Source Data'!$A$2:$A$157681,'Worst Day Profile (AZ)'!$A12,'Source Data'!$E$2:$E$157681,'Worst Day Profile (AZ)'!T$2) -> 0.17 | U12: =SUMIFS('Source Data'!$G$2:$G$157681,'Source Data'!$F$2:$F$157681,'Worst Day Profile (AZ)'!$A$1,'Source Data'!$A$2:$A$157681,'Worst Day Profile (AZ)'!$A12,'Source Data'!$E$2:$E$157681,'Worst Day Profile (AZ)'!U$2) -> 0.16 | V12: =SUMIFS('Source Data'!$G$2:$G$157681,'Source Data'!$F$2:$F$157681,'Worst Day Profile (AZ)'!$A$1,'Source Data'!$A$2:$A$157681,'Worst Day Profile (AZ)'!$A12,'Source Data'!$E$2:$E$157681,'Worst Day Profile (AZ)'!V$2) -> 0.21 | W12: =SUMIFS('Source Data'!$G$2:$G$157681,'Source Data'!$F$2:$F$157681,'Worst Day Profile (AZ)'!$A$1,'Source Data'!$A$2:$A$157681,'Worst Day Profile (AZ)'!$A12,'Source Data'!$E$2:$E$157681,'Worst Day Profile (AZ)'!W$2) -> 0.31 | X12: =SUMIFS('Source Data'!$G$2:$G$157681,'Source Data'!$F$2:$F$157681,'Worst Day Profile (AZ)'!$A$1,'Source Data'!$A$2:$A$157681,'Worst Day Profile (AZ)'!$A12,'Source Data'!$E$2:$E$157681,'Worst Day Profile (AZ)'!X$2) -> 0.37 | Y12: =SUMIFS('Source Data'!$G$2:$G$157681,'Source Data'!$F$2:$F$157681,'Worst Day Profile (AZ)'!$A$1,'Source Data'!$A$2:$A$157681,'Worst Day Profile (AZ)'!$A12,'Source Data'!$E$2:$E$157681,'Worst Day Profile (AZ)'!Y$2) -> 0.39 | Z12: =SUMIFS('Source Data'!$G$2:$G$157681,'Source Data'!$F$2:$F$157681,'Worst Day Profile (AZ)'!$A$1,'Source Data'!$A$2:$A$157681,'Worst Day Profile (AZ)'!$A12,'Source Data'!$E$2:$E$157681,'Worst Day Profile (AZ)'!Z$2) -> 0.34
A13: 2018-03-01 | B13: 3 | C13: =SUMIFS('Source Data'!$G$2:$G$157681,'Source Data'!$F$2:$F$157681,'Worst Day Profile (AZ)'!$A$1,'Source Data'!$A$2:$A$157681,'Worst Day Profile (AZ)'!$A13,'Source Data'!$E$2:$E$157681,'Worst Day Profile (AZ)'!C$2) -> 0.03 | D13: =SUMIFS('Source Data'!$G$2:$G$157681,'Source Data'!$F$2:$F$157681,'Worst Day Profile (AZ)'!$A$1,'Source Data'!$A$2:$A$157681,'Worst Day Profile (AZ)'!$A13,'Source Data'!$E$2:$E$157681,'Worst Day Profile (AZ)'!D$2) -> 0.02 | E13: =SUMIFS('Source Data'!$G$2:$G$157681,'Source Data'!$F$2:$F$157681,'Worst Day Profile (AZ)'!$A$1,'Source Data'!$A$2:$A$157681,'Worst Day Profile (AZ)'!$A13,'Source Data'!$E$2:$E$157681,'Worst Day Profile (AZ)'!E$2) -> 0.01 | F13: =SUMIFS('Source Data'!$G$2:$G$157681,'Source Data'!$F$2:$F$157681,'Worst Day Profile (AZ)'!$A$1,'Source Data'!$A$2:$A$157681,'Worst Day Profile (AZ)'!$A13,'Source Data'!$E$2:$E$157681,'Worst Day Profile (AZ)'!F$2) -> 0.02 | G13: =SUMIFS('Source Data'!$G$2:$G$157681,'Source Data'!$F$2:$F$157681,'Worst Day Profile (AZ)'!$A$1,'Source Data'!$A$2:$A$157681,'Worst Day Profile (AZ)'!$A13,'Source Data'!$E$2:$E$157681,'Worst Day Profile (AZ)'!G$2) -> 0.02 | H13: =SUMIFS('Source Data'!$G$2:$G$157681,'Source Data'!$F$2:$F$157681,'Worst Day Profile (AZ)'!$A$1,'Source Data'!$A$2:$A$157681,'Worst Day Profile (AZ)'!$A13,'Source Data'!$E$2:$E$157681,'Worst Day Profile (AZ)'!H$2) -> 0.02 | I13: =SUMIFS('Source Data'!$G$2:$G$157681,'Source Data'!$F$2:$F$157681,'Worst Day Profile (AZ)'!$A$1,'Source Data'!$A$2:$A$157681,'Worst Day Profile (AZ)'!$A13,'Source Data'!$E$2:$E$157681,'Worst Day Profile (AZ)'!I$2) -> 0.03 | J13: =SUMIFS('Source Data'!$G$2:$G$157681,'Source Data'!$F$2:$F$157681,'Worst Day Profile (AZ)'!$A$1,'Source Data'!$A$2:$A$157681,'Worst Day Profile (AZ)'!$A13,'Source Data'!$E$2:$E$157681,'Worst Day Profile (AZ)'!J$2) -> 0.05 | K13: =SUMIFS('Source Data'!$G$2:$G$157681,'Source Data'!$F$2:$F$157681,'Worst Day Profile (AZ)'!$A$1,'Source Data'!$A$2:$A$157681,'Worst Day Profile (AZ)'!$A13,'Source Data'!$E$2:$E$157681,'Worst Day Profile (AZ)'!K$2) -> 0.1 | L13: =SUMIFS('Source Data'!$G$2:$G$157681,'Source Data'!$F$2:$F$157681,'Worst Day Profile (AZ)'!$A$1,'Source Data'!$A$2:$A$157681,'Worst Day Profile (AZ)'!$A13,'Source Data'!$E$2:$E$157681,'Worst Day Profile (AZ)'!L$2) -> 0.14 | M13: =SUMIFS('Source Data'!$G$2:$G$157681,'Source Data'!$F$2:$F$157681,'Worst Day Profile (AZ)'!$A$1,'Source Data'!$A$2:$A$157681,'Worst Day Profile (AZ)'!$A13,'Source Data'!$E$2:$E$157681,'Worst Day Profile (AZ)'!M$2) -> 0.22 | N13: =SUMIFS('Source Data'!$G$2:$G$157681,'Source Data'!$F$2:$F$157681,'Worst Day Profile (AZ)'!$A$1,'Source Data'!$A$2:$A$157681,'Worst Day Profile (AZ)'!$A13,'Source Data'!$E$2:$E$157681,'Worst Day Profile (AZ)'!N$2) -> 0.29 | O13: =SUMIFS('Source Data'!$G$2:$G$157681,'Source Data'!$F$2:$F$157681,'Worst Day Profile (AZ)'!$A$1,'Source Data'!$A$2:$A$157681,'Worst Day Profile (AZ)'!$A13,'Source Data'!$E$2:$E$157681,'Worst Day Profile (AZ)'!O$2) -> 0.42 | P13: =SUMIFS('Source Data'!$G$2:$G$157681,'Source Data'!$F$2:$F$157681,'Worst Day Profile (AZ)'!$A$1,'Source Data'!$A$2:$A$157681,'Worst Day Profile (AZ)'!$A13,'Source Data'!$E$2:$E$157681,'Worst Day Profile (AZ)'!P$2) -> 0.53 | Q13: =SUMIFS('Source Data'!$G$2:$G$157681,'Source Data'!$F$2:$F$157681,'Worst Day Profile (AZ)'!$A$1,'Source Data'!$A$2:$A$157681,'Worst Day Profile (AZ)'!$A13,'Source Data'!$E$2:$E$157681,'Worst Day Profile (AZ)'!Q$2) -> 0.6 | R13: =SUMIFS('Source Data'!$G$2:$G$157681,'Source Data'!$F$2:$F$157681,'Worst Day Profile (AZ)'!$A$1,'Source Data'!$A$2:$A$157681,'Worst Day Profile (AZ)'!$A13,'Source Data'!$E$2:$E$157681,'Worst Day Profile (AZ)'!R$2) -> 0.67 | S13: =SUMIFS('Source Data'!$G$2:$G$157681,'Source Data'!$F$2:$F$157681,'Worst Day Profile (AZ)'!$A$1,'Source Data'!$A$2:$A$157681,'Worst Day Profile (AZ)'!$A13,'Source Data'!$E$2:$E$157681,'Worst Day Profile (AZ)'!S$2) -> 0.74 | T13: =SUMIFS('Source Data'!$G$2:$G$157681,'Source Data'!$F$2:$F$157681,'Worst Day Profile (AZ)'!$A$1,'Source Data'!$A$2:$A$157681,'Worst Day Profile (AZ)'!$A13,'Source Data'!$E$2:$E$157681,'Worst Day Profile (AZ)'!T$2) -> 0.8 | U13: =SUMIFS('Source Data'!$G$2:$G$157681,'Source Data'!$F$2:$F$157681,'Worst Day Profile (AZ)'!$A$1,'Source Data'!$A$2:$A$157681,'Worst Day Profile (AZ)'!$A13,'Source Data'!$E$2:$E$157681,'Worst Day Profile (AZ)'!U$2) -> 0.81 | V13: =SUMIFS('Source Data'!$G$2:$G$157681,'Source Data'!$F$2:$F$157681,'Worst Day Profile (AZ)'!$A$1,'Source Data'!$A$2:$A$157681,'Worst Day Profile (AZ)'!$A13,'Source Data'!$E$2:$E$157681,'Worst Day Profile (AZ)'!V$2) -> 0.79 | W13: =SUMIFS('Source Data'!$G$2:$G$157681,'Source Data'!$F$2:$F$157681,'Worst Day Profile (AZ)'!$A$1,'Source Data'!$A$2:$A$157681,'Worst Day Profile (AZ)'!$A13,'Source Data'!$E$2:$E$157681,'Worst Day Profile (AZ)'!W$2) -> 0.74 | X13: =SUMIFS('Source Data'!$G$2:$G$157681,'Source Data'!$F$2:$F$157681,'Worst Day Profile (AZ)'!$A$1,'Source Data'!$A$2:$A$157681,'Worst Day Profile (AZ)'!$A13,'Source Data'!$E$2:$E$157681,'Worst Day Profile (AZ)'!X$2) -> 0.69 | Y13: =SUMIFS('Source Data'!$G$2:$G$157681,'Source Data'!$F$2:$F$157681,'Worst Day Profile (AZ)'!$A$1,'Source Data'!$A$2:$A$157681,'Worst Day Profile (AZ)'!$A13,'Source Data'!$E$2:$E$157681,'Worst Day Profile (AZ)'!Y$2) -> 0.64 | Z13: =SUMIFS('Source Data'!$G$2:$G$157681,'Source Data'!$F$2:$F$157681,'Worst Day Profile (AZ)'!$A$1,'Source Data'!$A$2:$A$157681,'Worst Day Profile (AZ)'!$A13,'Source Data'!$E$2:$E$157681,'Worst Day Profile (AZ)'!Z$2) -> 0.62
A14: 2018-03-05 | B14: 3 | C14: =SUMIFS('Source Data'!$G$2:$G$157681,'Source Data'!$F$2:$F$157681,'Worst Day Profile (AZ)'!$A$1,'Source Data'!$A$2:$A$157681,'Worst Day Profile (AZ)'!$A14,'Source Data'!$E$2:$E$157681,'Worst Day Profile (AZ)'!C$2) -> 0.75 | D14: =SUMIFS('Source Data'!$G$2:$G$157681,'Source Data'!$F$2:$F$157681,'Worst Day Profile (AZ)'!$A$1,'Source Data'!$A$2:$A$157681,'Worst Day Profile (AZ)'!$A14,'Source Data'!$E$2:$E$157681,'Worst Day Profile (AZ)'!D$2) -> 0.77 | E14: =SUMIFS('Source Data'!$G$2:$G$157681,'Source Data'!$F$2:$F$157681,'Worst Day Profile (AZ)'!$A$1,'Source Data'!$A$2:$A$157681,'Worst Day Profile (AZ)'!$A14,'Source Data'!$E$2:$E$157681,'Worst Day Profile (AZ)'!E$2) -> 0.79 | F14: =SUMIFS('Source Data'!$G$2:$G$157681,'Source Data'!$F$2:$F$157681,'Worst Day Profile (AZ)'!$A$1,'Source Data'!$A$2:$A$157681,'Worst Day Profile (AZ)'!$A14,'Source Data'!$E$2:$E$157681,'Worst Day Profile (AZ)'!F$2) -> 0.79 | G14: =SUMIFS('Source Data'!$G$2:$G$157681,'Source Data'!$F$2:$F$157681,'Worst Day Profile (AZ)'!$A$1,'Source Data'!$A$2:$A$157681,'Worst Day Profile (AZ)'!$A14,'Source Data'!$E$2:$E$157681,'Worst Day Profile (AZ)'!G$2) -> 0.77 | H14: =SUMIFS('Source Data'!$G$2:$G$157681,'Source Data'!$F$2:$F$157681,'Worst Day Profile (AZ)'!$A$1,'Source Data'!$A$2:$A$157681,'Worst Day Profile (AZ)'!$A14,'Source Data'!$E$2:$E$157681,'Worst Day Profile (AZ)'!H$2) -> 0.74 | I14: =SUMIFS('Source Data'!$G$2:$G$157681,'Source Data'!$F$2:$F$157681,'Worst Day Profile (AZ)'!$A$1,'Source Data'!$A$2:$A$157681,'Worst Day Profile (AZ)'!$A14,'Source Data'!$E$2:$E$157681,'Worst Day Profile (AZ)'!I$2) -> 0.71 | J14: =SUMIFS('Source Data'!$G$2:$G$157681,'Source Data'!$F$2:$F$157681,'Worst Day Profile (AZ)'!$A$1,'Source Data'!$A$2:$A$157681,'Worst Day Profile (AZ)'!$A14,'Source Data'!$E$2:$E$157681,'Worst Day Profile (AZ)'!J$2) -> 0.7 | K14: =SUMIFS('Source Data'!$G$2:$G$157681,'Source Data'!$F$2:$F$157681,'Worst Day Profile (AZ)'!$A$1,'Source Data'!$A$2:$A$157681,'Worst Day Profile (AZ)'!$A14,'Source Data'!$E$2:$E$157681,'Worst Day Profile (AZ)'!K$2) -> 0.76 | L14: =SUMIFS('Source Data'!$G$2:$G$157681,'Source Data'!$F$2:$F$157681,'Worst Day Profile (AZ)'!$A$1,'Source Data'!$A$2:$A$157681,'Worst Day Profile (AZ)'!$A14,'Source Data'!$E$2:$E$157681,'Worst Day Profile (AZ)'!L$2) -> 0.81 | M14: =SUMIFS('Source Data'!$G$2:$G$157681,'Source Data'!$F$2:$F$157681,'Worst Day Profile (AZ)'!$A$1,'Source Data'!$A$2:$A$157681,'Worst Day Profile (AZ)'!$A14,'Source Data'!$E$2:$E$157681,'Worst Day Profile (AZ)'!M$2) -> 0.82 | N14: =SUMIFS('Source Data'!$G$2:$G$157681,'Source Data'!$F$2:$F$157681,'Worst Day Profile (AZ)'!$A$1,'Source Data'!$A$2:$A$157681,'Worst Day Profile (AZ)'!$A14,'Source Data'!$E$2:$E$157681,'Worst Day Profile (AZ)'!N$2) -> 0.81 | O14: =SUMIFS('Source Data'!$G$2:$G$157681,'Source Data'!$F$2:$F$157681,'Worst Day Profile (AZ)'!$A$1,'Source Data'!$A$2:$A$157681,'Worst Day Profile (AZ)'!$A14,'Source Data'!$E$2:$E$157681,'Worst Day Profile (AZ)'!O$2) -> 0.75 | P14: =SUMIFS('Source Data'!$G$2:$G$157681,'Source Data'!$F$2:$F$157681,'Worst Day Profile (AZ)'!$A$1,'Source Data'!$A$2:$A$157681,'Worst Day Profile (AZ)'!$A14,'Source Data'!$E$2:$E$157681,'Worst Day Profile (AZ)'!P$2) -> 0.7 | Q14: =SUMIFS('Source Data'!$G$2:$G$157681,'Source Data'!$F$2:$F$157681,'Worst Day Profile (AZ)'!$A$1,'Source Data'!$A$2:$A$157681,'Worst Day Profile (AZ)'!$A14,'Source Data'!$E$2:$E$157681,'Worst Day Profile (AZ)'!Q$2) -> 0.65 | R14: =SUMIFS('Source Data'!$G$2:$G$157681,'Source Data'!$F$2:$F$157681,'Worst Day Profile (AZ)'!$A$1,'Source Data'!$A$2:$A$157681,'Worst Day Profile (AZ)'!$A14,'Source Data'!$E$2:$E$157681,'Worst Day Profile (AZ)'!R$2) -> 0.63 | S14: =SUMIFS('Source Data'!$G$2:$G$157681,'Source Data'!$F$2:$F$157681,'Worst Day Profile (AZ)'!$A$1,'Source Data'!$A$2:$A$157681,'Worst Day Profile (AZ)'!$A14,'Source Data'!$E$2:$E$157681,'Worst Day Profile (AZ)'!S$2) -> 0.61 | T14: =SUMIFS('Source Data'!$G$2:$G$157681,'Source Data'!$F$2:$F$157681,'Worst Day Profile (AZ)'!$A$1,'Source Data'!$A$2:$A$157681,'Worst Day Profile (AZ)'!$A14,'Source Data'!$E$2:$E$157681,'Worst Day Profile (AZ)'!T$2) -> 0.56 | U14: =SUMIFS('Source Data'!$G$2:$G$157681,'Source Data'!$F$2:$F$157681,'Worst Day Profile (AZ)'!$A$1,'Source Data'!$A$2:$A$157681,'Worst Day Profile (AZ)'!$A14,'Source Data'!$E$2:$E$157681,'Worst Day Profile (AZ)'!U$2) -> 0.51 | V14: =SUMIFS('Source Data'!$G$2:$G$157681,'Source Data'!$F$2:$F$157681,'Worst Day Profile (AZ)'!$A$1,'Source Data'!$A$2:$A$157681,'Worst Day Profile (AZ)'!$A14,'Source Data'!$E$2:$E$157681,'Worst Day Profile (AZ)'!V$2) -> 0.41 | W14: =SUMIFS('Source Data'!$G$2:$G$157681,'Source Data'!$F$2:$F$157681,'Worst Day Profile (AZ)'!$A$1,'Source Data'!$A$2:$A$157681,'Worst Day Profile (AZ)'!$A14,'Source Data'!$E$2:$E$157681,'Worst Day Profile (AZ)'!W$2) -> 0.36 | X14: =SUMIFS('Source Data'!$G$2:$G$157681,'Source Data'!$F$2:$F$157681,'Worst Day Profile (AZ)'!$A$1,'Source Data'!$A$2:$A$157681,'Worst Day Profile (AZ)'!$A14,'Source Data'!$E$2:$E$157681,'Worst Day Profile (AZ)'!X$2) -> 0.3 | Y14: =SUMIFS('Source Data'!$G$2:$G$157681,'Source Data'!$F$2:$F$157681,'Worst Day Profile (AZ)'!$A$1,'Source Data'!$A$2:$A$157681,'Worst Day Profile (AZ)'!$A14,'Source Data'!$E$2:$E$157681,'Worst Day Profile (AZ)'!Y$2) -> 0.24 | Z14: =SUMIFS('Source Data'!$G$2:$G$157681,'Source Data'!$F$2:$F$157681,'Worst Day Profile (AZ)'!$A$1,'Source Data'!$A$2:$A$157681,'Worst Day Profile (AZ)'!$A14,'Source Data'!$E$2:$E$157681,'Worst Day Profile (AZ)'!Z$2) -> 0.17
A15: 2018-03-02 | B15: 3 | C15: =SUMIFS('Source Data'!$G$2:$G$157681,'Source Data'!$F$2:$F$157681,'Worst Day Profile (AZ)'!$A$1,'Source Data'!$A$2:$A$157681,'Worst Day Profile (AZ)'!$A15,'Source Data'!$E$2:$E$157681,'Worst Day Profile (AZ)'!C$2) -> 0.59 | D15: =SUMIFS('Source Data'!$G$2:$G$157681,'Source Data'!$F$2:$F$157681,'Worst Day Profile (AZ)'!$A$1,'Source Data'!$A$2:$A$157681,'Worst Day Profile (AZ)'!$A15,'Source Data'!$E$2:$E$157681,'Worst Day Profile (AZ)'!D$2) -> 0.55 | E15: =SUMIFS('Source Data'!$G$2:$G$157681,'Source Data'!$F$2:$F$157681,'Worst Day Profile (AZ)'!$A$1,'Source Data'!$A$2:$A$157681,'Worst Day Profile (AZ)'!$A15,'Source Data'!$E$2:$E$157681,'Worst Day Profile (AZ)'!E$2) -> 0.51 | F15: =SUMIFS('Source Data'!$G$2:$G$157681,'Source Data'!$F$2:$F$157681,'Worst Day Profile (AZ)'!$A$1,'Source Data'!$A$2:$A$157681,'Worst Day Profile (AZ)'!$A15,'Source Data'!$E$2:$E$157681,'Worst Day Profile (AZ)'!F$2) -> 0.42 | G15: =SUMIFS('Source Data'!$G$2:$G$157681,'Source Data'!$F$2:$F$157681,'Worst Day Profile (AZ)'!$A$1,'Source Data'!$A$2:$A$157681,'Worst Day Profile (AZ)'!$A15,'Source Data'!$E$2:$E$157681,'Worst Day Profile (AZ)'!G$2) -> 0.36 | H15: =SUMIFS('Source Data'!$G$2:$G$157681,'Source Data'!$F$2:$F$157681,'Worst Day Profile (AZ)'!$A$1,'Source Data'!$A$2:$A$157681,'Worst Day Profile (AZ)'!$A15,'Source Data'!$E$2:$E$157681,'Worst Day Profile (AZ)'!H$2) -> 0.32 | I15: =SUMIFS('Source Data'!$G$2:$G$157681,'Source Data'!$F$2:$F$157681,'Worst Day Profile (AZ)'!$A$1,'Source Data'!$A$2:$A$157681,'Worst Day Profile (AZ)'!$A15,'Source Data'!$E$2:$E$157681,'Worst Day Profile (AZ)'!I$2) -> 0.3 | J15: =SUMIFS('Source Data'!$G$2:$G$157681,'Source Data'!$F$2:$F$157681,'Worst Day Profile (AZ)'!$A$1,'Source Data'!$A$2:$A$157681,'Worst Day Profile (AZ)'!$A15,'Source Data'!$E$2:$E$157681,'Worst Day Profile (AZ)'!J$2) -> 0.29 | K15: =SUMIFS('Source Data'!$G$2:$G$157681,'Source Data'!$F$2:$F$157681,'Worst Day Profile (AZ)'!$A$1,'Source Data'!$A$2:$A$157681,'Worst Day Profile (AZ)'!$A15,'Source Data'!$E$2:$E$157681,'Worst Day Profile (AZ)'!K$2) -> 0.3 | L15: =SUMIFS('Source Data'!$G$2:$G$157681,'Source Data'!$F$2:$F$157681,'Worst Day Profile (AZ)'!$A$1,'Source Data'!$A$2:$A$157681,'Worst Day Profile (AZ)'!$A15,'Source Data'!$E$2:$E$157681,'Worst Day Profile (AZ)'!L$2) -> 0.34 | M15: =SUMIFS('Source Data'!$G$2:$G$157681,'Source Data'!$F$2:$F$157681,'Worst Day Profile (AZ)'!$A$1,'Source Data'!$A$2:$A$157681,'Worst Day Profile (AZ)'!$A15,'Source Data'!$E$2:$E$157681,'Worst Day Profile (AZ)'!M$2) -> 0.4 | N15: =SUMIFS('Source Data'!$G$2:$G$157681,'Source Data'!$F$2:$F$157681,'Worst Day Profile (AZ)'!$A$1,'Source Data'!$A$2:$A$157681,'Worst Day Profile (AZ)'!$A15,'Source Data'!$E$2:$E$157681,'Worst Day Profile (AZ)'!N$2) -> 0.5 | O15: =SUMIFS('Source Data'!$G$2:$G$157681,'Source Data'!$F$2:$F$157681,'Worst Day Profile (AZ)'!$A$1,'Source Data'!$A$2:$A$157681,'Worst Day Profile (AZ)'!$A15,'Source Data'!$E$2:$E$157681,'Worst Day Profile (AZ)'!O$2) -> 0.56 | P15: =SUMIFS('Source Data'!$G$2:$G$157681,'Source Data'!$F$2:$F$157681,'Worst Day Profile (AZ)'!$A$1,'Source Data'!$A$2:$A$157681,'Worst Day Profile (AZ)'!$A15,'Source Data'!$E$2:$E$157681,'Worst Day Profile (AZ)'!P$2) -> 0.6 | Q15: =SUMIFS('Source Data'!$G$2:$G$157681,'Source Data'!$F$2:$F$157681,'Worst Day Profile (AZ)'!$A$1,'Source Data'!$A$2:$A$157681,'Worst Day Profile (AZ)'!$A15,'Source Data'!$E$2:$E$157681,'Worst Day Profile (AZ)'!Q$2) -> 0.63 | R15: =SUMIFS('Source Data'!$G$2:$G$157681,'Source Data'!$F$2:$F$157681,'Worst Day Profile (AZ)'!$A$1,'Source Data'!$A$2:$A$157681,'Worst Day Profile (AZ)'!$A15,'Source Data'!$E$2:$E$157681,'Worst Day Profile (AZ)'!R$2) -> 0.67 | S15: =SUMIFS('Source Data'!$G$2:$G$157681,'Source Data'!$F$2:$F$157681,'Worst Day Profile (AZ)'!$A$1,'Source Data'!$A$2:$A$157681,'Worst Day Profile (AZ)'!$A15,'Source Data'!$E$2:$E$157681,'Worst Day Profile (AZ)'!S$2) -> 0.69 | T15: =SUMIFS('Source Data'!$G$2:$G$157681,'Source Data'!$F$2:$F$157681,'Worst Day Profile (AZ)'!$A$1,'Source Data'!$A$2:$A$157681,'Worst Day Profile (AZ)'!$A15,'Source Data'!$E$2:$E$157681,'Worst Day Profile (AZ)'!T$2) -> 0.68 | U15: =SUMIFS('Source Data'!$G$2:$G$157681,'Source Data'!$F$2:$F$157681,'Worst Day Profile (AZ)'!$A$1,'Source Data'!$A$2:$A$157681,'Worst Day Profile (AZ)'!$A15,'Source Data'!$E$2:$E$157681,'Worst Day Profile (AZ)'!U$2) -> 0.64 | V15: =SUMIFS('Source Data'!$G$2:$G$157681,'Source Data'!$F$2:$F$157681,'Worst Day Profile (AZ)'!$A$1,'Source Data'!$A$2:$A$157681,'Worst Day Profile (AZ)'!$A15,'Source Data'!$E$2:$E$157681,'Worst Day Profile (AZ)'!V$2) -> 0.62 | W15: =SUMIFS('Source Data'!$G$2:$G$157681,'Source Data'!$F$2:$F$157681,'Worst Day Profile (AZ)'!$A$1,'Source Data'!$A$2:$A$157681,'Worst Day Profile (AZ)'!$A15,'Source Data'!$E$2:$E$157681,'Worst Day Profile (AZ)'!W$2) -> 0.58 | X15: =SUMIFS('Source Data'!$G$2:$G$157681,'Source Data'!$F$2:$F$157681,'Worst Day Profile (AZ)'!$A$1,'Source Data'!$A$2:$A$157681,'Worst Day Profile (AZ)'!$A15,'Source Data'!$E$2:$E$157681,'Worst Day Profile (AZ)'!X$2) -> 0.54 | Y15: =SUMIFS('Source Data'!$G$2:$G$157681,'Source Data'!$F$2:$F$157681,'Worst Day Profile (AZ)'!$A$1,'Source Data'!$A$2:$A$157681,'Worst Day Profile (AZ)'!$A15,'Source Data'!$E$2:$E$157681,'Worst Day Profile (AZ)'!Y$2) -> 0.52 | Z15: =SUMIFS('Source Data'!$G$2:$G$157681,'Source Data'!$F$2:$F$157681,'Worst Day Profile (AZ)'!$A$1,'Source Data'!$A$2:$A$157681,'Worst Day Profile (AZ)'!$A15,'Source Data'!$E$2:$E$157681,'Worst Day Profile (AZ)'!Z$2) -> 0.48
A16: 2018-03-12 | B16: 3 | C16: =SUMIFS('Source Data'!$G$2:$G$157681,'Source Data'!$F$2:$F$157681,'Worst Day Profile (AZ)'!$A$1,'Source Data'!$A$2:$A$157681,'Worst Day Profile (AZ)'!$A16,'Source Data'!$E$2:$E$157681,'Worst Day Profile (AZ)'!C$2) -> 0.1 | D16: =SUMIFS('Source Data'!$G$2:$G$157681,'Source Data'!$F$2:$F$157681,'Worst Day Profile (AZ)'!$A$1,'Source Data'!$A$2:$A$157681,'Worst Day Profile (AZ)'!$A16,'Source Data'!$E$2:$E$157681,'Worst Day Profile (AZ)'!D$2) -> 0.08 | E16: =SUMIFS('Source Data'!$G$2:$G$157681,'Source Data'!$F$2:$F$157681,'Worst Day Profile (AZ)'!$A$1,'Source Data'!$A$2:$A$157681,'Worst Day Profile (AZ)'!$A16,'Source Data'!$E$2:$E$157681,'Worst Day Profile (AZ)'!E$2) -> 0.1 | F16: =SUMIFS('Source Data'!$G$2:$G$157681,'Source Data'!$F$2:$F$157681,'Worst Day Profile (AZ)'!$A$1,'Source Data'!$A$2:$A$157681,'Worst Day Profile (AZ)'!$A16,'Source Data'!$E$2:$E$157681,'Worst Day Profile (AZ)'!F$2) -> 0.11 | G16: =SUMIFS('Source Data'!$G$2:$G$157681,'Source Data'!$F$2:$F$157681,'Worst Day Profile (AZ)'!$A$1,'Source Data'!$A$2:$A$157681,'Worst Day Profile (AZ)'!$A16,'Source Data'!$E$2:$E$157681,'Worst Day Profile (AZ)'!G$2) -> 0.13 | H16: =SUMIFS('Source Data'!$G$2:$G$157681,'Source Data'!$F$2:$F$157681,'Worst Day Profile (AZ)'!$A$1,'Source Data'!$A$2:$A$157681,'Worst Day Profile (AZ)'!$A16,'Source Data'!$E$2:$E$157681,'Worst Day Profile (AZ)'!H$2) -> 0.12 | I16: =SUMIFS('Source Data'!$G$2:$G$157681,'Source Data'!$F$2:$F$157681,'Worst Day Profile (AZ)'!$A$1,'Source Data'!$A$2:$A$157681,'Worst Day Profile (AZ)'!$A16,'Source Data'!$E$2:$E$157681,'Worst Day Profile (AZ)'!I$2) -> 0.08 | J16: =SUMIFS('Source Data'!$G$2:$G$157681,'Source Data'!$F$2:$F$157681,'Worst Day Profile (AZ)'!$A$1,'Source Data'!$A$2:$A$157681,'Worst Day Profile (AZ)'!$A16,'Source Data'!$E$2:$E$157681,'Worst Day Profile (AZ)'!J$2) -> 0.04 | K16: =SUMIFS('Source Data'!$G$2:$G$157681,'Source Data'!$F$2:$F$157681,'Worst Day Profile (AZ)'!$A$1,'Source Data'!$A$2:$A$157681,'Worst Day Profile (AZ)'!$A16,'Source Data'!$E$2:$E$157681,'Worst Day Profile (AZ)'!K$2) -> 0.02 | L16: =SUMIFS('Source Data'!$G$2:$G$157681,'Source Data'!$F$2:$F$157681,'Worst Day Profile (AZ)'!$A$1,'Source Data'!$A$2:$A$157681,'Worst Day Profile (AZ)'!$A16,'Source Data'!$E$2:$E$157681,'Worst Day Profile (AZ)'!L$2) -> 0.02 | M16: =SUMIFS('Source Data'!$G$2:$G$157681,'Source Data'!$F$2:$F$157681,'Worst Day Profile (AZ)'!$A$1,'Source Data'!$A$2:$A$157681,'Worst Day Profile (AZ)'!$A16,'Source Data'!$E$2:$E$157681,'Worst Day Profile (AZ)'!M$2) -> 0.02 | N16: =SUMIFS('Source Data'!$G$2:$G$157681,'Source Data'!$F$2:$F$157681,'Worst Day Profile (AZ)'!$A$1,'Source Data'!$A$2:$A$157681,'Worst Day Profile (AZ)'!$A16,'Source Data'!$E$2:$E$157681,'Worst Day Profile (AZ)'!N$2) -> 0.02 | O16: =SUMIFS('Source Data'!$G$2:$G$157681,'Source Data'!$F$2:$F$157681,'Worst Day Profile (AZ)'!$A$1,'Source Data'!$A$2:$A$157681,'Worst Day Profile (AZ)'!$A16,'Source Data'!$E$2:$E$157681,'Worst Day Profile (AZ)'!O$2) -> 0.03 | P16: =SUMIFS('Source Data'!$G$2:$G$157681,'Source Data'!$F$2:$F$157681,'Worst Day Profile (AZ)'!$A$1,'Source Data'!$A$2:$A$157681,'Worst Day Profile (AZ)'!$A16,'Source Data'!$E$2:$E$157681,'Worst Day Profile (AZ)'!P$2) -> 0.05 | Q16: =SUMIFS('Source Data'!$G$2:$G$157681,'Source Data'!$F$2:$F$157681,'Worst Day Profile (AZ)'!$A$1,'Source Data'!$A$2:$A$157681,'Worst Day Profile (AZ)'!$A16,'Source Data'!$E$2:$E$157681,'Worst Day Profile (AZ)'!Q$2) -> 0.13 | R16: =SUMIFS('Source Data'!$G$2:$G$157681,'Source Data'!$F$2:$F$157681,'Worst Day Profile (AZ)'!$A$1,'Source Data'!$A$2:$A$157681,'Worst Day Profile (AZ)'!$A16,'Source Data'!$E$2:$E$157681,'Worst Day Profile (AZ)'!R$2) -> 0.19 | S16: =SUMIFS('Source Data'!$G$2:$G$157681,'Source Data'!$F$2:$F$157681,'Worst Day Profile (AZ)'!$A$1,'Source Data'!$A$2:$A$157681,'Worst Day Profile (AZ)'!$A16,'Source Data'!$E$2:$E$157681,'Worst Day Profile (AZ)'!S$2) -> 0.32 | T16: =SUMIFS('Source Data'!$G$2:$G$157681,'Source Data'!$F$2:$F$157681,'Worst Day Profile (AZ)'!$A$1,'Source Data'!$A$2:$A$157681,'Worst Day Profile (AZ)'!$A16,'Source Data'!$E$2:$E$157681,'Worst Day Profile (AZ)'!T$2) -> 0.49 | U16: =SUMIFS('Source Data'!$G$2:$G$157681,'Source Data'!$F$2:$F$157681,'Worst Day Profile (AZ)'!$A$1,'Source Data'!$A$2:$A$157681,'Worst Day Profile (AZ)'!$A16,'Source Data'!$E$2:$E$157681,'Worst Day Profile (AZ)'!U$2) -> 0.55 | V16: =SUMIFS('Source Data'!$G$2:$G$157681,'Source Data'!$F$2:$F$157681,'Worst Day Profile (AZ)'!$A$1,'Source Data'!$A$2:$A$157681,'Worst Day Profile (AZ)'!$A16,'Source Data'!$E$2:$E$157681,'Worst Day Profile (AZ)'!V$2) -> 0.57 | W16: =SUMIFS('Source Data'!$G$2:$G$157681,'Source Data'!$F$2:$F$157681,'Worst Day Profile (AZ)'!$A$1,'Source Data'!$A$2:$A$157681,'Worst Day Profile (AZ)'!$A16,'Source Data'!$E$2:$E$157681,'Worst Day Profile (AZ)'!W$2) -> 0.54 | X16: =SUMIFS('Source Data'!$G$2:$G$157681,'Source Data'!$F$2:$F$157681,'Worst Day Profile (AZ)'!$A$1,'Source Data'!$A$2:$A$157681,'Worst Day Profile (AZ)'!$A16,'Source Data'!$E$2:$E$157681,'Worst Day Profile (AZ)'!X$2) -> 0.51 | Y16: =SUMIFS('Source Data'!$G$2:$G$157681,'Source Data'!$F$2:$F$157681,'Worst Day Profile (AZ)'!$A$1,'Source Data'!$A$2:$A$157681,'Worst Day Profile (AZ)'!$A16,'Source Data'!$E$2:$E$157681,'Worst Day Profile (AZ)'!Y$2) -> 0.5 | Z16: =SUMIFS('Source Data'!$G$2:$G$157681,'Source Data'!$F$2:$F$157681,'Worst Day Profile (AZ)'!$A$1,'Source Data'!$A$2:$A$157681,'Worst Day Profile (AZ)'!$A16,'Source Data'!$E$2:$E$157681,'Worst Day Profile (AZ)'!Z$2) -> 0.53
A17: 2018-03-29 | B17: 3 | C17: =SUMIFS('Source Data'!$G$2:$G$157681,'Source Data'!$F$2:$F$157681,'Worst Day Profile (AZ)'!$A$1,'Source Data'!$A$2:$A$157681,'Worst Day Profile (AZ)'!$A17,'Source Data'!$E$2:$E$157681,'Worst Day Profile (AZ)'!C$2) -> 0.2 | D17: =SUMIFS('Source Data'!$G$2:$G$157681,'Source Data'!$F$2:$F$157681,'Worst Day Profile (AZ)'!$A$1,'Source Data'!$A$2:$A$157681,'Worst Day Profile (AZ)'!$A17,'Source Data'!$E$2:$E$157681,'Worst Day Profile (AZ)'!D$2) -> 0.21 | E17: =SUMIFS('Source Data'!$G$2:$G$157681,'Source Data'!$F$2:$F$157681,'Worst Day Profile (AZ)'!$A$1,'Source Data'!$A$2:$A$157681,'Worst Day Profile (AZ)'!$A17,'Source Data'!$E$2:$E$157681,'Worst Day Profile (AZ)'!E$2) -> 0.22 | F17: =SUMIFS('Source Data'!$G$2:$G$157681,'Source Data'!$F$2:$F$157681,'Worst Day Profile (AZ)'!$A$1,'Source Data'!$A$2:$A$157681,'Worst Day Profile (AZ)'!$A17,'Source Data'!$E$2:$E$157681,'Worst Day Profile (AZ)'!F$2) -> 0.22 | G17: =SUMIFS('Source Data'!$G$2:$G$157681,'Source Data'!$F$2:$F$157681,'Worst Day Profile (AZ)'!$A$1,'Source Data'!$A$2:$A$157681,'Worst Day Profile (AZ)'!$A17,'Source Data'!$E$2:$E$157681,'Worst Day Profile (AZ)'!G$2) -> 0.15 | H17: =SUMIFS('Source Data'!$G$2:$G$157681,'Source Data'!$F$2:$F$157681,'Worst Day Profile (AZ)'!$A$1,'Source Data'!$A$2:$A$157681,'Worst Day Profile (AZ)'!$A17,'Source Data'!$E$2:$E$157681,'Worst Day Profile (AZ)'!H$2) -> 0.11 | I17: =SUMIFS('Source Data'!$G$2:$G$157681,'Source Data'!$F$2:$F$157681,'Worst Day Profile (AZ)'!$A$1,'Source Data'!$A$2:$A$157681,'Worst Day Profile (AZ)'!$A17,'Source Data'!$E$2:$E$157681,'Worst Day Profile (AZ)'!I$2) -> 0.08 | J17: =SUMIFS('Source Data'!$G$2:$G$157681,'Source Data'!$F$2:$F$157681,'Worst Day Profile (AZ)'!$A$1,'Source Data'!$A$2:$A$157681,'Worst Day Profile (AZ)'!$A17,'Source Data'!$E$2:$E$157681,'Worst Day Profile (AZ)'!J$2) -> 0.07 | K17: =SUMIFS('Source Data'!$G$2:$G$157681,'Source Data'!$F$2:$F$157681,'Worst Day Profile (AZ)'!$A$1,'Source Data'!$A$2:$A$157681,'Worst Day Profile (AZ)'!$A17,'Source Data'!$E$2:$E$157681,'Worst Day Profile (AZ)'!K$2) -> 0.13 | L17: =SUMIFS('Source Data'!$G$2:$G$157681,'Source Data'!$F$2:$F$157681,'Worst Day Profile (AZ)'!$A$1,'Source Data'!$A$2:$A$157681,'Worst Day Profile (AZ)'!$A17,'Source Data'!$E$2:$E$157681,'Worst Day Profile (AZ)'!L$2) -> 0.16 | M17: =SUMIFS('Source Data'!$G$2:$G$157681,'Source Data'!$F$2:$F$157681,'Worst Day Profile (AZ)'!$A$1,'Source Data'!$A$2:$A$157681,'Worst Day Profile (AZ)'!$A17,'Source Data'!$E$2:$E$157681,'Worst Day Profile (AZ)'!M$2) -> 0.17 | N17: =SUMIFS('Source Data'!$G$2:$G$157681,'Source Data'!$F$2:$F$157681,'Worst Day Profile (AZ)'!$A$1,'Source Data'!$A$2:$A$157681,'Worst Day Profile (AZ)'!$A17,'Source Data'!$E$2:$E$157681,'Worst Day Profile (AZ)'!N$2) -> 0.14 | O17: =SUMIFS('Source Data'!$G$2:$G$157681,'Source Data'!$F$2:$F$157681,'Worst Day Profile (AZ)'!$A$1,'Source Data'!$A$2:$A$157681,'Worst Day Profile (AZ)'!$A17,'Source Data'!$E$2:$E$157681,'Worst Day Profile (AZ)'!O$2) -> 0.09 | P17: =SUMIFS('Source Data'!$G$2:$G$157681,'Source Data'!$F$2:$F$157681,'Worst Day Profile (AZ)'!$A$1,'Source Data'!$A$2:$A$157681,'Worst Day Profile (AZ)'!$A17,'Source Data'!$E$2:$E$157681,'Worst Day Profile (AZ)'!P$2) -> 0.04 | Q17: =SUMIFS('Source Data'!$G$2:$G$157681,'Source Data'!$F$2:$F$157681,'Worst Day Profile (AZ)'!$A$1,'Source Data'!$A$2:$A$157681,'Worst Day Profile (AZ)'!$A17,'Source Data'!$E$2:$E$157681,'Worst Day Profile (AZ)'!Q$2) -> 0.05 | R17: =SUMIFS('Source Data'!$G$2:$G$157681,'Source Data'!$F$2:$F$157681,'Worst Day Profile (AZ)'!$A$1,'Source Data'!$A$2:$A$157681,'Worst Day Profile (AZ)'!$A17,'Source Data'!$E$2:$E$157681,'Worst Day Profile (AZ)'!R$2) -> 0.09 | S17: =SUMIFS('Source Data'!$G$2:$G$157681,'Source Data'!$F$2:$F$157681,'Worst Day Profile (AZ)'!$A$1,'Source Data'!$A$2:$A$157681,'Worst Day Profile (AZ)'!$A17,'Source Data'!$E$2:$E$157681,'Worst Day Profile (AZ)'!S$2) -> 0.17 | T17: =SUMIFS('Source Data'!$G$2:$G$157681,'Source Data'!$F$2:$F$157681,'Worst Day Profile (AZ)'!$A$1,'Source Data'!$A$2:$A$157681,'Worst Day Profile (AZ)'!$A17,'Source Data'!$E$2:$E$157681,'Worst Day Profile (AZ)'!T$2) -> 0.25 | U17: =SUMIFS('Source Data'!$G$2:$G$157681,'Source Data'!$F$2:$F$157681,'Worst Day Profile (AZ)'!$A$1,'Source Data'!$A$2:$A$157681,'Worst Day Profile (AZ)'!$A17,'Source Data'!$E$2:$E$157681,'Worst Day Profile (AZ)'!U$2) -> 0.36 | V17: =SUMIFS('Source Data'!$G$2:$G$157681,'Source Data'!$F$2:$F$157681,'Worst Day Profile (AZ)'!$A$1,'Source Data'!$A$2:$A$157681,'Worst Day Profile (AZ)'!$A17,'Source Data'!$E$2:$E$157681,'Worst Day Profile (AZ)'!V$2) -> 0.55 | W17: =SUMIFS('Source Data'!$G$2:$G$157681,'Source Data'!$F$2:$F$157681,'Worst Day Profile (AZ)'!$A$1,'Source Data'!$A$2:$A$157681,'Worst Day Profile (AZ)'!$A17,'Source Data'!$E$2:$E$157681,'Worst Day Profile (AZ)'!W$2) -> 0.58 | X17: =SUMIFS('Source Data'!$G$2:$G$157681,'Source Data'!$F$2:$F$157681,'Worst Day Profile (AZ)'!$A$1,'Source Data'!$A$2:$A$157681,'Worst Day Profile (AZ)'!$A17,'Source Data'!$E$2:$E$157681,'Worst Day Profile (AZ)'!X$2) -> 0.56 | Y17: =SUMIFS('Source Data'!$G$2:$G$157681,'Source Data'!$F$2:$F$157681,'Worst Day Profile (AZ)'!$A$1,'Source Data'!$A$2:$A$157681,'Worst Day Profile (AZ)'!$A17,'Source Data'!$E$2:$E$157681,'Worst Day Profile (AZ)'!Y$2) -> 0.41 | Z17: =SUMIFS('Source Data'!$G$2:$G$157681,'Source Data'!$F$2:$F$157681,'Worst Day Profile (AZ)'!$A$1,'Source Data'!$A$2:$A$157681,'Worst Day Profile (AZ)'!$A17,'Source Data'!$E$2:$E$157681,'Worst Day Profile (AZ)'!Z$2) -> 0.19
A18: 2018-04-09 | B18: 4 | C18: =SUMIFS('Source Data'!$G$2:$G$157681,'Source Data'!$F$2:$F$157681,'Worst Day Profile (AZ)'!$A$1,'Source Data'!$A$2:$A$157681,'Worst Day Profile (AZ)'!$A18,'Source Data'!$E$2:$E$157681,'Worst Day Profile (AZ)'!C$2) -> 0.2 | D18: =SUMIFS('Source Data'!$G$2:$G$157681,'Source Data'!$F$2:$F$157681,'Worst Day Profile (AZ)'!$A$1,'Source Data'!$A$2:$A$157681,'Worst Day Profile (AZ)'!$A18,'Source Data'!$E$2:$E$157681,'Worst Day Profile (AZ)'!D$2) -> 0.19 | E18: =SUMIFS('Source Data'!$G$2:$G$157681,'Source Data'!$F$2:$F$157681,'Worst Day Profile (AZ)'!$A$1,'Source Data'!$A$2:$A$157681,'Worst Day Profile (AZ)'!$A18,'Source Data'!$E$2:$E$157681,'Worst Day Profile (AZ)'!E$2) -> 0.19 | F18: =SUMIFS('Source Data'!$G$2:$G$157681,'Source Data'!$F$2:$F$157681,'Worst Day Profile (AZ)'!$A$1,'Source Data'!$A$2:$A$157681,'Worst Day Profile (AZ)'!$A18,'Source Data'!$E$2:$E$157681,'Worst Day Profile (AZ)'!F$2) -> 0.24 | G18: =SUMIFS('Source Data'!$G$2:$G$157681,'Source Data'!$F$2:$F$157681,'Worst Day Profile (AZ)'!$A$1,'Source Data'!$A$2:$A$157681,'Worst Day Profile (AZ)'!$A18,'Source Data'!$E$2:$E$157681,'Worst Day Profile (AZ)'!G$2) -> 0.24 | H18: =SUMIFS('Source Data'!$G$2:$G$157681,'Source Data'!$F$2:$F$157681,'Worst Day Profile (AZ)'!$A$1,'Source Data'!$A$2:$A$157681,'Worst Day Profile (AZ)'!$A18,'Source Data'!$E$2:$E$157681,'Worst Day Profile (AZ)'!H$2) -> 0.21 | I18: =SUMIFS('Source Data'!$G$2:$G$157681,'Source Data'!$F$2:$F$157681,'Worst Day Profile (AZ)'!$A$1,'Source Data'!$A$2:$A$157681,'Worst Day Profile (AZ)'!$A18,'Source Data'!$E$2:$E$157681,'Worst Day Profile (AZ)'!I$2) -> 0.12 | J18: =SUMIFS('Source Data'!$G$2:$G$157681,'Source Data'!$F$2:$F$157681,'Worst Day Profile (AZ)'!$A$1,'Source Data'!$A$2:$A$157681,'Worst Day Profile (AZ)'!$A18,'Source Data'!$E$2:$E$157681,'Worst Day Profile (AZ)'!J$2) -> 0.05 | K18: =SUMIFS('Source Data'!$G$2:$G$157681,'Source Data'!$F$2:$F$157681,'Worst Day Profile (AZ)'!$A$1,'Source Data'!$A$2:$A$157681,'Worst Day Profile (AZ)'!$A18,'Source Data'!$E$2:$E$157681,'Worst Day Profile (AZ)'!K$2) -> 0.03 | L18: =SUMIFS('Source Data'!$G$2:$G$157681,'Source Data'!$F$2:$F$157681,'Worst Day Profile (AZ)'!$A$1,'Source Data'!$A$2:$A$157681,'Worst Day Profile (AZ)'!$A18,'Source Data'!$E$2:$E$157681,'Worst Day Profile (AZ)'!L$2) -> 0.12 | M18: =SUMIFS('Source Data'!$G$2:$G$157681,'Source Data'!$F$2:$F$157681,'Worst Day Profile (AZ)'!$A$1,'Source Data'!$A$2:$A$157681,'Worst Day Profile (AZ)'!$A18,'Source Data'!$E$2:$E$157681,'Worst Day Profile (AZ)'!M$2) -> 0.29 | N18: =SUMIFS('Source Data'!$G$2:$G$157681,'Source Data'!$F$2:$F$157681,'Worst Day Profile (AZ)'!$A$1,'Source Data'!$A$2:$A$157681,'Worst Day Profile (AZ)'!$A18,'Source Data'!$E$2:$E$157681,'Worst Day Profile (AZ)'!N$2) -> 0.41 | O18: =SUMIFS('Source Data'!$G$2:$G$157681,'Source Data'!$F$2:$F$157681,'Worst Day Profile (AZ)'!$A$1,'Source Data'!$A$2:$A$157681,'Worst Day Profile (AZ)'!$A18,'Source Data'!$E$2:$E$157681,'Worst Day Profile (AZ)'!O$2) -> 0.47 | P18: =SUMIFS('Source Data'!$G$2:$G$157681,'Source Data'!$F$2:$F$157681,'Worst Day Profile (AZ)'!$A$1,'Source Data'!$A$2:$A$157681,'Worst Day Profile (AZ)'!$A18,'Source Data'!$E$2:$E$157681,'Worst Day Profile (AZ)'!P$2) -> 0.42 | Q18: =SUMIFS('Source Data'!$G$2:$G$157681,'Source Data'!$F$2:$F$157681,'Worst Day Profile (AZ)'!$A$1,'Source Data'!$A$2:$A$157681,'Worst Day Profile (AZ)'!$A18,'Source Data'!$E$2:$E$157681,'Worst Day Profile (AZ)'!Q$2) -> 0.39 | R18: =SUMIFS('Source Data'!$G$2:$G$157681,'Source Data'!$F$2:$F$157681,'Worst Day Profile (AZ)'!$A$1,'Source Data'!$A$2:$A$157681,'Worst Day Profile (AZ)'!$A18,'Source Data'!$E$2:$E$157681,'Worst Day Profile (AZ)'!R$2) -> 0.32 | S18: =SUMIFS('Source Data'!$G$2:$G$157681,'Source Data'!$F$2:$F$157681,'Worst Day Profile (AZ)'!$A$1,'Source Data'!$A$2:$A$157681,'Worst Day Profile (AZ)'!$A18,'Source Data'!$E$2:$E$157681,'Worst Day Profile (AZ)'!S$2) -> 0.32 | T18: =SUMIFS('Source Data'!$G$2:$G$157681,'Source Data'!$F$2:$F$157681,'Worst Day Profile (AZ)'!$A$1,'Source Data'!$A$2:$A$157681,'Worst Day Profile (AZ)'!$A18,'Source Data'!$E$2:$E$157681,'Worst Day Profile (AZ)'!T$2) -> 0.34 | U18: =SUMIFS('Source Data'!$G$2:$G$157681,'Source Data'!$F$2:$F$157681,'Worst Day Profile (AZ)'!$A$1,'Source Data'!$A$2:$A$157681,'Worst Day Profile (AZ)'!$A18,'Source Data'!$E$2:$E$157681,'Worst Day Profile (AZ)'!U$2) -> 0.3 | V18: =SUMIFS('Source Data'!$G$2:$G$157681,'Source Data'!$F$2:$F$157681,'Worst Day Profile (AZ)'!$A$1,'Source Data'!$A$2:$A$157681,'Worst Day Profile (AZ)'!$A18,'Source Data'!$E$2:$E$157681,'Worst Day Profile (AZ)'!V$2) -> 0.3 | W18: =SUMIFS('Source Data'!$G$2:$G$157681,'Source Data'!$F$2:$F$157681,'Worst Day Profile (AZ)'!$A$1,'Source Data'!$A$2:$A$157681,'Worst Day Profile (AZ)'!$A18,'Source Data'!$E$2:$E$157681,'Worst Day Profile (AZ)'!W$2) -> 0.29 | X18: =SUMIFS('Source Data'!$G$2:$G$157681,'Source Data'!$F$2:$F$157681,'Worst Day Profile (AZ)'!$A$1,'Source Data'!$A$2:$A$157681,'Worst Day Profile (AZ)'!$A18,'Source Data'!$E$2:$E$157681,'Worst Day Profile (AZ)'!X$2) -> 0.26 | Y18: =SUMIFS('Source Data'!$G$2:$G$157681,'Source Data'!$F$2:$F$157681,'Worst Day Profile (AZ)'!$A$1,'Source Data'!$A$2:$A$157681,'Worst Day Profile (AZ)'!$A18,'Source Data'!$E$2:$E$157681,'Worst Day Profile (AZ)'!Y$2) -> 0.26 | Z18: =SUMIFS('Source Data'!$G$2:$G$157681,'Source Data'!$F$2:$F$157681,'Worst Day Profile (AZ)'!$A$1,'Source Data'!$A$2:$A$157681,'Worst Day Profile (AZ)'!$A18,'Source Data'!$E$2:$E$157681,'Worst Day Profile (AZ)'!Z$2) -> 0.26
A19: 2018-04-23 | B19: 4 | C19: =SUMIFS('Source Data'!$G$2:$G$157681,'Source Data'!$F$2:$F$157681,'Worst Day Profile (AZ)'!$A$1,'Source Data'!$A$2:$A$157681,'Worst Day Profile (AZ)'!$A19,'Source Data'!$E$2:$E$157681,'Worst Day Profile (AZ)'!C$2) -> 0.02 | D19: =SUMIFS('Source Data'!$G$2:$G$157681,'Source Data'!$F$2:$F$157681,'Worst Day Profile (AZ)'!$A$1,'Source Data'!$A$2:$A$157681,'Worst Day Profile (AZ)'!$A19,'Source Data'!$E$2:$E$157681,'Worst Day Profile (AZ)'!D$2) -> 0.03 | E19: =SUMIFS('Source Data'!$G$2:$G$157681,'Source Data'!$F$2:$F$157681,'Worst Day Profile (AZ)'!$A$1,'Source Data'!$A$2:$A$157681,'Worst Day Profile (AZ)'!$A19,'Source Data'!$E$2:$E$157681,'Worst Day Profile (AZ)'!E$2) -> 0.06 | F19: =SUMIFS('Source Data'!$G$2:$G$157681,'Source Data'!$F$2:$F$157681,'Worst Day Profile (AZ)'!$A$1,'Source Data'!$A$2:$A$157681,'Worst Day Profile (AZ)'!$A19,'Source Data'!$E$2:$E$157681,'Worst Day Profile (AZ)'!F$2) -> 0.1 | G19: =SUMIFS('Source Data'!$G$2:$G$157681,'Source Data'!$F$2:$F$157681,'Worst Day Profile (AZ)'!$A$1,'Source Data'!$A$2:$A$157681,'Worst Day Profile (AZ)'!$A19,'Source Data'!$E$2:$E$157681,'Worst Day Profile (AZ)'!G$2) -> 0.13 | H19: =SUMIFS('Source Data'!$G$2:$G$157681,'Source Data'!$F$2:$F$157681,'Worst Day Profile (AZ)'!$A$1,'Source Data'!$A$2:$A$157681,'Worst Day Profile (AZ)'!$A19,'Source Data'!$E$2:$E$157681,'Worst Day Profile (AZ)'!H$2) -> 0.12 | I19: =SUMIFS('Source Data'!$G$2:$G$157681,'Source Data'!$F$2:$F$157681,'Worst Day Profile (AZ)'!$A$1,'Source Data'!$A$2:$A$157681,'Worst Day Profile (AZ)'!$A19,'Source Data'!$E$2:$E$157681,'Worst Day Profile (AZ)'!I$2) -> 0.08 | J19: =SUMIFS('Source Data'!$G$2:$G$157681,'Source Data'!$F$2:$F$157681,'Worst Day Profile (AZ)'!$A$1,'Source Data'!$A$2:$A$157681,'Worst Day Profile (AZ)'!$A19,'Source Data'!$E$2:$E$157681,'Worst Day Profile (AZ)'!J$2) -> 0.05 | K19: =SUMIFS('Source Data'!$G$2:$G$157681,'Source Data'!$F$2:$F$157681,'Worst Day Profile (AZ)'!$A$1,'Source Data'!$A$2:$A$157681,'Worst Day Profile (AZ)'!$A19,'Source Data'!$E$2:$E$157681,'Worst Day Profile (AZ)'!K$2) -> 0.03 | L19: =SUMIFS('Source Data'!$G$2:$G$157681,'Source Data'!$F$2:$F$157681,'Worst Day Profile (AZ)'!$A$1,'Source Data'!$A$2:$A$157681,'Worst Day Profile (AZ)'!$A19,'Source Data'!$E$2:$E$157681,'Worst Day Profile (AZ)'!L$2) -> 0.02 | M19: =SUMIFS('Source Data'!$G$2:$G$157681,'Source Data'!$F$2:$F$157681,'Worst Day Profile (AZ)'!$A$1,'Source Data'!$A$2:$A$157681,'Worst Day Profile (AZ)'!$A19,'Source Data'!$E$2:$E$157681,'Worst Day Profile (AZ)'!M$2) -> 0.05 | N19: =SUMIFS('Source Data'!$G$2:$G$157681,'Source Data'!$F$2:$F$157681,'Worst Day Profile (AZ)'!$A$1,'Source Data'!$A$2:$A$157681,'Worst Day Profile (AZ)'!$A19,'Source Data'!$E$2:$E$157681,'Worst Day Profile (AZ)'!N$2) -> 0.1 | O19: =SUMIFS('Source Data'!$G$2:$G$157681,'Source Data'!$F$2:$F$157681,'Worst Day Profile (AZ)'!$A$1,'Source Data'!$A$2:$A$157681,'Worst Day Profile (AZ)'!$A19,'Source Data'!$E$2:$E$157681,'Worst Day Profile (AZ)'!O$2) -> 0.17 | P19: =SUMIFS('Source Data'!$G$2:$G$157681,'Source Data'!$F$2:$F$157681,'Worst Day Profile (AZ)'!$A$1,'Source Data'!$A$2:$A$157681,'Worst Day Profile (AZ)'!$A19,'Source Data'!$E$2:$E$157681,'Worst Day Profile (AZ)'!P$2) -> 0.21 | Q19: =SUMIFS('Source Data'!$G$2:$G$157681,'Source Data'!$F$2:$F$157681,'Worst Day Profile (AZ)'!$A$1,'Source Data'!$A$2:$A$157681,'Worst Day Profile (AZ)'!$A19,'Source Data'!$E$2:$E$157681,'Worst Day Profile (AZ)'!Q$2) -> 0.13 | R19: =SUMIFS('Source Data'!$G$2:$G$157681,'Source Data'!$F$2:$F$157681,'Worst Day Profile (AZ)'!$A$1,'Source Data'!$A$2:$A$157681,'Worst Day Profile (AZ)'!$A19,'Source Data'!$E$2:$E$157681,'Worst Day Profile (AZ)'!R$2) -> 0.07 | S19: =SUMIFS('Source Data'!$G$2:$G$157681,'Source Data'!$F$2:$F$157681,'Worst Day Profile (AZ)'!$A$1,'Source Data'!$A$2:$A$157681,'Worst Day Profile (AZ)'!$A19,'Source Data'!$E$2:$E$157681,'Worst Day Profile (AZ)'!S$2) -> 0.1 | T19: =SUMIFS('Source Data'!$G$2:$G$157681,'Source Data'!$F$2:$F$157681,'Worst Day Profile (AZ)'!$A$1,'Source Data'!$A$2:$A$157681,'Worst Day Profile (AZ)'!$A19,'Source Data'!$E$2:$E$157681,'Worst Day Profile (AZ)'!T$2) -> 0.15 | U19: =SUMIFS('Source Data'!$G$2:$G$157681,'Source Data'!$F$2:$F$157681,'Worst Day Profile (AZ)'!$A$1,'Source Data'!$A$2:$A$157681,'Worst Day Profile (AZ)'!$A19,'Source Data'!$E$2:$E$157681,'Worst Day Profile (AZ)'!U$2) -> 0.28 | V19: =SUMIFS('Source Data'!$G$2:$G$157681,'Source Data'!$F$2:$F$157681,'Worst Day Profile (AZ)'!$A$1,'Source Data'!$A$2:$A$157681,'Worst Day Profile (AZ)'!$A19,'Source Data'!$E$2:$E$157681,'Worst Day Profile (AZ)'!V$2) -> 0.37 | W19: =SUMIFS('Source Data'!$G$2:$G$157681,'Source Data'!$F$2:$F$157681,'Worst Day Profile (AZ)'!$A$1,'Source Data'!$A$2:$A$157681,'Worst Day Profile (AZ)'!$A19,'Source Data'!$E$2:$E$157681,'Worst Day Profile (AZ)'!W$2) -> 0.31 | X19: =SUMIFS('Source Data'!$G$2:$G$157681,'Source Data'!$F$2:$F$157681,'Worst Day Profile (AZ)'!$A$1,'Source Data'!$A$2:$A$157681,'Worst Day Profile (AZ)'!$A19,'Source Data'!$E$2:$E$157681,'Worst Day Profile (AZ)'!X$2) -> 0.22 | Y19: =SUMIFS('Source Data'!$G$2:$G$157681,'Source Data'!$F$2:$F$157681,'Worst Day Profile (AZ)'!$A$1,'Source Data'!$A$2:$A$157681,'Worst Day Profile (AZ)'!$A19,'Source Data'!$E$2:$E$157681,'Worst Day Profile (AZ)'!Y$2) -> 0.16 | Z19: =SUMIFS('Source Data'!$G$2:$G$157681,'Source Data'!$F$2:$F$157681,'Worst Day Profile (AZ)'!$A$1,'Source Data'!$A$2:$A$157681,'Worst Day Profile (AZ)'!$A19,'Source Data'!$E$2:$E$157681,'Worst Day Profile (AZ)'!Z$2) -> 0.21
A20: 2018-04-10 | B20: 4 | C20: =SUMIFS('Source Data'!$G$2:$G$157681,'Source Data'!$F$2:$F$157681,'Worst Day Profile (AZ)'!$A$1,'Source Data'!$A$2:$A$157681,'Worst Day Profile (AZ)'!$A20,'Source Data'!$E$2:$E$157681,'Worst Day Profile (AZ)'!C$2) -> 0.25 | D20: =SUMIFS('Source Data'!$G$2:$G$157681,'Source Data'!$F$2:$F$157681,'Worst Day Profile (AZ)'!$A$1,'Source Data'!$A$2:$A$157681,'Worst Day Profile (AZ)'!$A20,'Source Data'!$E$2:$E$157681,'Worst Day Profile (AZ)'!D$2) -> 0.23 | E20: =SUMIFS('Source Data'!$G$2:$G$157681,'Source Data'!$F$2:$F$157681,'Worst Day Profile (AZ)'!$A$1,'Source Data'!$A$2:$A$157681,'Worst Day Profile (AZ)'!$A20,'Source Data'!$E$2:$E$157681,'Worst Day Profile (AZ)'!E$2) -> 0.21 | F20: =SUMIFS('Source Data'!$G$2:$G$157681,'Source Data'!$F$2:$F$157681,'Worst Day Profile (AZ)'!$A$1,'Source Data'!$A$2:$A$157681,'Worst Day Profile (AZ)'!$A20,'Source Data'!$E$2:$E$157681,'Worst Day Profile (AZ)'!F$2) -> 0.2 | G20: =SUMIFS('Source Data'!$G$2:$G$157681,'Source Data'!$F$2:$F$157681,'Worst Day Profile (AZ)'!$A$1,'Source Data'!$A$2:$A$157681,'Worst Day Profile (AZ)'!$A20,'Source Data'!$E$2:$E$157681,'Worst Day Profile (AZ)'!G$2) -> 0.23 | H20: =SUMIFS('Source Data'!$G$2:$G$157681,'Source Data'!$F$2:$F$157681,'Worst Day Profile (AZ)'!$A$1,'Source Data'!$A$2:$A$157681,'Worst Day Profile (AZ)'!$A20,'Source Data'!$E$2:$E$157681,'Worst Day Profile (AZ)'!H$2) -> 0.25 | I20: =SUMIFS('Source Data'!$G$2:$G$157681,'Source Data'!$F$2:$F$157681,'Worst Day Profile (AZ)'!$A$1,'Source Data'!$A$2:$A$157681,'Worst Day Profile (AZ)'!$A20,'Source Data'!$E$2:$E$157681,'Worst Day Profile (AZ)'!I$2) -> 0.26 | J20: =SUMIFS('Source Data'!$G$2:$G$157681,'Source Data'!$F$2:$F$157681,'Worst Day Profile (AZ)'!$A$1,'Source Data'!$A$2:$A$157681,'Worst Day Profile (AZ)'!$A20,'Source Data'!$E$2:$E$157681,'Worst Day Profile (AZ)'!J$2) -> 0.27 | K20: =SUMIFS('Source Data'!$G$2:$G$157681,'Source Data'!$F$2:$F$157681,'Worst Day Profile (AZ)'!$A$1,'Source Data'!$A$2:$A$157681,'Worst Day Profile (AZ)'!$A20,'Source Data'!$E$2:$E$157681,'Worst Day Profile (AZ)'!K$2) -> 0.28 | L20: =SUMIFS('Source Data'!$G$2:$G$157681,'Source Data'!$F$2:$F$157681,'Worst Day Profile (AZ)'!$A$1,'Source Data'!$A$2:$A$157681,'Worst Day Profile (AZ)'!$A20,'Source Data'!$E$2:$E$157681,'Worst Day Profile (AZ)'!L$2) -> 0.24 | M20: =SUMIFS('Source Data'!$G$2:$G$157681,'Source Data'!$F$2:$F$157681,'Worst Day Profile (AZ)'!$A$1,'Source Data'!$A$2:$A$157681,'Worst Day Profile (AZ)'!$A20,'Source Data'!$E$2:$E$157681,'Worst Day Profile (AZ)'!M$2) -> 0.17 | N20: =SUMIFS('Source Data'!$G$2:$G$157681,'Source Data'!$F$2:$F$157681,'Worst Day Profile (AZ)'!$A$1,'Source Data'!$A$2:$A$157681,'Worst Day Profile (AZ)'!$A20,'Source Data'!$E$2:$E$157681,'Worst Day Profile (AZ)'!N$2) -> 0.07 | O20: =SUMIFS('Source Data'!$G$2:$G$157681,'Source Data'!$F$2:$F$157681,'Worst Day Profile (AZ)'!$A$1,'Source Data'!$A$2:$A$157681,'Worst Day Profile (AZ)'!$A20,'Source Data'!$E$2:$E$157681,'Worst Day Profile (AZ)'!O$2) -> 0.02 | P20: =SUMIFS('Source Data'!$G$2:$G$157681,'Source Data'!$F$2:$F$157681,'Worst Day Profile (AZ)'!$A$1,'Source Data'!$A$2:$A$157681,'Worst Day Profile (AZ)'!$A20,'Source Data'!$E$2:$E$157681,'Worst Day Profile (AZ)'!P$2) -> 0.01 | Q20: =SUMIFS('Source Data'!$G$2:$G$157681,'Source Data'!$F$2:$F$157681,'Worst Day Profile (AZ)'!$A$1,'Source Data'!$A$2:$A$157681,'Worst Day Profile (AZ)'!$A20,'Source Data'!$E$2:$E$157681,'Worst Day Profile (AZ)'!Q$2) -> 0.05 | R20: =SUMIFS('Source Data'!$G$2:$G$157681,'Source Data'!$F$2:$F$157681,'Worst Day Profile (AZ)'!$A$1,'Source Data'!$A$2:$A$157681,'Worst Day Profile (AZ)'!$A20,'Source Data'!$E$2:$E$157681,'Worst Day Profile (AZ)'!R$2) -> 0.18 | S20: =SUMIFS('Source Data'!$G$2:$G$157681,'Source Data'!$F$2:$F$157681,'Worst Day Profile (AZ)'!$A$1,'Source Data'!$A$2:$A$157681,'Worst Day Profile (AZ)'!$A20,'Source Data'!$E$2:$E$157681,'Worst Day Profile (AZ)'!S$2) -> 0.28 | T20: =SUMIFS('Source Data'!$G$2:$G$157681,'Source Data'!$F$2:$F$157681,'Worst Day Profile (AZ)'!$A$1,'Source Data'!$A$2:$A$157681,'Worst Day Profile (AZ)'!$A20,'Source Data'!$E$2:$E$157681,'Worst Day Profile (AZ)'!T$2) -> 0.34 | U20: =SUMIFS('Source Data'!$G$2:$G$157681,'Source Data'!$F$2:$F$157681,'Worst Day Profile (AZ)'!$A$1,'Source Data'!$A$2:$A$157681,'Worst Day Profile (AZ)'!$A20,'Source Data'!$E$2:$E$157681,'Worst Day Profile (AZ)'!U$2) -> 0.32 | V20: =SUMIFS('Source Data'!$G$2:$G$157681,'Source Data'!$F$2:$F$157681,'Worst Day Profile (AZ)'!$A$1,'Source Data'!$A$2:$A$157681,'Worst Day Profile (AZ)'!$A20,'Source Data'!$E$2:$E$157681,'Worst Day Profile (AZ)'!V$2) -> 0.29 | W20: =SUMIFS('Source Data'!$G$2:$G$157681,'Source Data'!$F$2:$F$157681,'Worst Day Profile (AZ)'!$A$1,'Source Data'!$A$2:$A$157681,'Worst Day Profile (AZ)'!$A20,'Source Data'!$E$2:$E$157681,'Worst Day Profile (AZ)'!W$2) -> 0.21 | X20: =SUMIFS('Source Data'!$G$2:$G$157681,'Source Data'!$F$2:$F$157681,'Worst Day Profile (AZ)'!$A$1,'Source Data'!$A$2:$A$157681,'Worst Day Profile (AZ)'!$A20,'Source Data'!$E$2:$E$157681,'Worst Day Profile (AZ)'!X$2) -> 0.16 | Y20: =SUMIFS('Source Data'!$G$2:$G$157681,'Source Data'!$F$2:$F$157681,'Worst Day Profile (AZ)'!$A$1,'Source Data'!$A$2:$A$157681,'Worst Day Profile (AZ)'!$A20,'Source Data'!$E$2:$E$157681,'Worst Day Profile (AZ)'!Y$2) -> 0.16 | Z20: =SUMIFS('Source Data'!$G$2:$G$157681,'Source Data'!$F$2:$F$157681,'Worst Day Profile (AZ)'!$A$1,'Source Data'!$A$2:$A$157681,'Worst Day Profile (AZ)'!$A20,'Source Data'!$E$2:$E$157681,'Worst Day Profile (AZ)'!Z$2) -> 0.19
A21: 2018-04-25 | B21: 4 | C21: =SUMIFS('Source Data'!$G$2:$G$157681,'Source Data'!$F$2:$F$157681,'Worst Day Profile (AZ)'!$A$1,'Source Data'!$A$2:$A$157681,'Worst Day Profile (AZ)'!$A21,'Source Data'!$E$2:$E$157681,'Worst Day Profile (AZ)'!C$2) -> 0.19 | D21: =SUMIFS('Source Data'!$G$2:$G$157681,'Source Data'!$F$2:$F$157681,'Worst Day Profile (AZ)'!$A$1,'Source Data'!$A$2:$A$157681,'Worst Day Profile (AZ)'!$A21,'Source Data'!$E$2:$E$157681,'Worst Day Profile (AZ)'!D$2) -> 0.15 | E21: =SUMIFS('Source Data'!$G$2:$G$157681,'Source Data'!$F$2:$F$157681,'Worst Day Profile (AZ)'!$A$1,'Source Data'!$A$2:$A$157681,'Worst Day Profile (AZ)'!$A21,'Source Data'!$E$2:$E$157681,'Worst Day Profile (AZ)'!E$2) -> 0.12 | F21: =SUMIFS('Source Data'!$G$2:$G$157681,'Source Data'!$F$2:$F$157681,'Worst Day Profile (AZ)'!$A$1,'Source Data'!$A$2:$A$157681,'Worst Day Profile (AZ)'!$A21,'Source Data'!$E$2:$E$157681,'Worst Day Profile (AZ)'!F$2) -> 0.1 | G21: =SUMIFS('Source Data'!$G$2:$G$157681,'Source Data'!$F$2:$F$157681,'Worst Day Profile (AZ)'!$A$1,'Source Data'!$A$2:$A$157681,'Worst Day Profile (AZ)'!$A21,'Source Data'!$E$2:$E$157681,'Worst Day Profile (AZ)'!G$2) -> 0.07 | H21: =SUMIFS('Source Data'!$G$2:$G$157681,'Source Data'!$F$2:$F$157681,'Worst Day Profile (AZ)'!$A$1,'Source Data'!$A$2:$A$157681,'Worst Day Profile (AZ)'!$A21,'Source Data'!$E$2:$E$157681,'Worst Day Profile (AZ)'!H$2) -> 0.05 | I21: =SUMIFS('Source Data'!$G$2:$G$157681,'Source Data'!$F$2:$F$157681,'Worst Day Profile (AZ)'!$A$1,'Source Data'!$A$2:$A$157681,'Worst Day Profile (AZ)'!$A21,'Source Data'!$E$2:$E$157681,'Worst Day Profile (AZ)'!I$2) -> 0.02 | J21: =SUMIFS('Source Data'!$G$2:$G$157681,'Source Data'!$F$2:$F$157681,'Worst Day Profile (AZ)'!$A$1,'Source Data'!$A$2:$A$157681,'Worst Day Profile (AZ)'!$A21,'Source Data'!$E$2:$E$157681,'Worst Day Profile (AZ)'!J$2) -> 0.02 | K21: =SUMIFS('Source Data'!$G$2:$G$157681,'Source Data'!$F$2:$F$157681,'Worst Day Profile (AZ)'!$A$1,'Source Data'!$A$2:$A$157681,'Worst Day Profile (AZ)'!$A21,'Source Data'!$E$2:$E$157681,'Worst Day Profile (AZ)'!K$2) -> 0.02 | L21: =SUMIFS('Source Data'!$G$2:$G$157681,'Source Data'!$F$2:$F$157681,'Worst Day Profile (AZ)'!$A$1,'Source Data'!$A$2:$A$157681,'Worst Day Profile (AZ)'!$A21,'Source Data'!$E$2:$E$157681,'Worst Day Profile (AZ)'!L$2) -> 0.03 | M21: =SUMIFS('Source Data'!$G$2:$G$157681,'Source Data'!$F$2:$F$157681,'Worst Day Profile (AZ)'!$A$1,'Source Data'!$A$2:$A$157681,'Worst Day Profile (AZ)'!$A21,'Source Data'!$E$2:$E$157681,'Worst Day Profile (AZ)'!M$2) -> 0.05 | N21: =SUMIFS('Source Data'!$G$2:$G$157681,'Source Data'!$F$2:$F$157681,'Worst Day Profile (AZ)'!$A$1,'Source Data'!$A$2:$A$157681,'Worst Day Profile (AZ)'!$A21,'Source Data'!$E$2:$E$157681,'Worst Day Profile (AZ)'!N$2) -> 0.07 | O21: =SUMIFS('Source Data'!$G$2:$G$157681,'Source Data'!$F$2:$F$157681,'Worst Day Profile (AZ)'!$A$1,'Source Data'!$A$2:$A$157681,'Worst Day Profile (AZ)'!$A21,'Source Data'!$E$2:$E$157681,'Worst Day Profile (AZ)'!O$2) -> 0.08 | P21: =SUMIFS('Source Data'!$G$2:$G$157681,'Source Data'!$F$2:$F$157681,'Worst Day Profile (AZ)'!$A$1,'Source Data'!$A$2:$A$157681,'Worst Day Profile (AZ)'!$A21,'Source Data'!$E$2:$E$157681,'Worst Day Profile (AZ)'!P$2) -> 0.09 | Q21: =SUMIFS('Source Data'!$G$2:$G$157681,'Source Data'!$F$2:$F$157681,'Worst Day Profile (AZ)'!$A$1,'Source Data'!$A$2:$A$157681,'Worst Day Profile (AZ)'!$A21,'Source Data'!$E$2:$E$157681,'Worst Day Profile (AZ)'!Q$2) -> 0.07 | R21: =SUMIFS('Source Data'!$G$2:$G$157681,'Source Data'!$F$2:$F$157681,'Worst Day Profile (AZ)'!$A$1,'Source Data'!$A$2:$A$157681,'Worst Day Profile (AZ)'!$A21,'Source Data'!$E$2:$E$157681,'Worst Day Profile (AZ)'!R$2) -> 0.07 | S21: =SUMIFS('Source Data'!$G$2:$G$157681,'Source Data'!$F$2:$F$157681,'Worst Day Profile (AZ)'!$A$1,'Source Data'!$A$2:$A$157681,'Worst Day Profile (AZ)'!$A21,'Source Data'!$E$2:$E$157681,'Worst Day Profile (AZ)'!S$2) -> 0.12 | T21: =SUMIFS('Source Data'!$G$2:$G$157681,'Source Data'!$F$2:$F$157681,'Worst Day Profile (AZ)'!$A$1,'Source Data'!$A$2:$A$157681,'Worst Day Profile (AZ)'!$A21,'Source Data'!$E$2:$E$157681,'Worst Day Profile (AZ)'!T$2) -> 0.19 | U21: =SUMIFS('Source Data'!$G$2:$G$157681,'Source Data'!$F$2:$F$157681,'Worst Day Profile (AZ)'!$A$1,'Source Data'!$A$2:$A$157681,'Worst Day Profile (AZ)'!$A21,'Source Data'!$E$2:$E$157681,'Worst Day Profile (AZ)'!U$2) -> 0.25 | V21: =SUMIFS('Source Data'!$G$2:$G$157681,'Source Data'!$F$2:$F$157681,'Worst Day Profile (AZ)'!$A$1,'Source Data'!$A$2:$A$157681,'Worst Day Profile (AZ)'!$A21,'Source Data'!$E$2:$E$157681,'Worst Day Profile (AZ)'!V$2) -> 0.3 | W21: =SUMIFS('Source Data'!$G$2:$G$157681,'Source Data'!$F$2:$F$157681,'Worst Day Profile (AZ)'!$A$1,'Source Data'!$A$2:$A$157681,'Worst Day Profile (AZ)'!$A21,'Source Data'!$E$2:$E$157681,'Worst Day Profile (AZ)'!W$2) -> 0.31 | X21: =SUMIFS('Source Data'!$G$2:$G$157681,'Source Data'!$F$2:$F$157681,'Worst Day Profile (AZ)'!$A$1,'Source Data'!$A$2:$A$157681,'Worst Day Profile (AZ)'!$A21,'Source Data'!$E$2:$E$157681,'Worst Day Profile (AZ)'!X$2) -> 0.32 | Y21: =SUMIFS('Source Data'!$G$2:$G$157681,'Source Data'!$F$2:$F$157681,'Worst Day Profile (AZ)'!$A$1,'Source Data'!$A$2:$A$157681,'Worst Day Profile (AZ)'!$A21,'Source Data'!$E$2:$E$157681,'Worst Day Profile (AZ)'!Y$2) -> 0.33 | Z21: =SUMIFS('Source Data'!$G$2:$G$157681,'Source Data'!$F$2:$F$157681,'Worst Day Profile (AZ)'!$A$1,'Source Data'!$A$2:$A$157681,'Worst Day Profile (AZ)'!$A21,'Source Data'!$E$2:$E$157681,'Worst Day Profile (AZ)'!Z$2) -> 0.34
A22: 2018-04-24 | B22: 4 | C22: =SUMIFS('Source Data'!$G$2:$G$157681,'Source Data'!$F$2:$F$157681,'Worst Day Profile (AZ)'!$A$1,'Source Data'!$A$2:$A$157681,'Worst Day Profile (AZ)'!$A22,'Source Data'!$E$2:$E$157681,'Worst Day Profile (AZ)'!C$2) -> 0.41 | D22: =SUMIFS('Source Data'!$G$2:$G$157681,'Source Data'!$F$2:$F$157681,'Worst Day Profile (AZ)'!$A$1,'Source Data'!$A$2:$A$157681,'Worst Day Profile (AZ)'!$A22,'Source Data'!$E$2:$E$157681,'Worst Day Profile (AZ)'!D$2) -> 0.57 | E22: =SUMIFS('Source Data'!$G$2:$G$157681,'Source Data'!$F$2:$F$157681,'Worst Day Profile (AZ)'!$A$1,'Source Data'!$A$2:$A$157681,'Worst Day Profile (AZ)'!$A22,'Source Data'!$E$2:$E$157681,'Worst Day Profile (AZ)'!E$2) -> 0.64 | F22: =SUMIFS('Source Data'!$G$2:$G$157681,'Source Data'!$F$2:$F$157681,'Worst Day Profile (AZ)'!$A$1,'Source Data'!$A$2:$A$157681,'Worst Day Profile (AZ)'!$A22,'Source Data'!$E$2:$E$157681,'Worst Day Profile (AZ)'!F$2) -> 0.72 | G22: =SUMIFS('Source Data'!$G$2:$G$157681,'Source Data'!$F$2:$F$157681,'Worst Day Profile (AZ)'!$A$1,'Source Data'!$A$2:$A$157681,'Worst Day Profile (AZ)'!$A22,'Source Data'!$E$2:$E$157681,'Worst Day Profile (AZ)'!G$2) -> 0.7 | H22: =SUMIFS('Source Data'!$G$2:$G$157681,'Source Data'!$F$2:$F$157681,'Worst Day Profile (AZ)'!$A$1,'Source Data'!$A$2:$A$157681,'Worst Day Profile (AZ)'!$A22,'Source Data'!$E$2:$E$157681,'Worst Day Profile (AZ)'!H$2) -> 0.64 | I22: =SUMIFS('Source Data'!$G$2:$G$157681,'Source Data'!$F$2:$F$157681,'Worst Day Profile (AZ)'!$A$1,'Source Data'!$A$2:$A$157681,'Worst Day Profile (AZ)'!$A22,'Source Data'!$E$2:$E$157681,'Worst Day Profile (AZ)'!I$2) -> 0.62 | J22: =SUMIFS('Source Data'!$G$2:$G$157681,'Source Data'!$F$2:$F$157681,'Worst Day Profile (AZ)'!$A$1,'Source Data'!$A$2:$A$157681,'Worst Day Profile (AZ)'!$A22,'Source Data'!$E$2:$E$157681,'Worst Day Profile (AZ)'!J$2) -> 0.6 | K22: =SUMIFS('Source Data'!$G$2:$G$157681,'Source Data'!$F$2:$F$157681,'Worst Day Profile (AZ)'!$A$1,'Source Data'!$A$2:$A$157681,'Worst Day Profile (AZ)'!$A22,'Source Data'!$E$2:$E$157681,'Worst Day Profile (AZ)'!K$2) -> 0.58 | L22: =SUMIFS('Source Data'!$G$2:$G$157681,'Source Data'!$F$2:$F$157681,'Worst Day Profile (AZ)'!$A$1,'Source Data'!$A$2:$A$157681,'Worst Day Profile (AZ)'!$A22,'Source Data'!$E$2:$E$157681,'Worst Day Profile (AZ)'!L$2) -> 0.56 | M22: =SUMIFS('Source Data'!$G$2:$G$157681,'Source Data'!$F$2:$F$157681,'Worst Day Profile (AZ)'!$A$1,'Source Data'!$A$2:$A$157681,'Worst Day Profile (AZ)'!$A22,'Source Data'!$E$2:$E$157681,'Worst Day Profile (AZ)'!M$2) -> 0.55 | N22: =SUMIFS('Source Data'!$G$2:$G$157681,'Source Data'!$F$2:$F$157681,'Worst Day Profile (AZ)'!$A$1,'Source Data'!$A$2:$A$157681,'Worst Day Profile (AZ)'!$A22,'Source Data'!$E$2:$E$157681,'Worst Day Profile (AZ)'!N$2) -> 0.55 | O22: =SUMIFS('Source Data'!$G$2:$G$157681,'Source Data'!$F$2:$F$157681,'Worst Day Profile (AZ)'!$A$1,'Source Data'!$A$2:$A$157681,'Worst Day Profile (AZ)'!$A22,'Source Data'!$E$2:$E$157681,'Worst Day Profile (AZ)'!O$2) -> 0.55 | P22: =SUMIFS('Source Data'!$G$2:$G$157681,'Source Data'!$F$2:$F$157681,'Worst Day Profile (AZ)'!$A$1,'Source Data'!$A$2:$A$157681,'Worst Day Profile (AZ)'!$A22,'Source Data'!$E$2:$E$157681,'Worst Day Profile (AZ)'!P$2) -> 0.54 | Q22: =SUMIFS('Source Data'!$G$2:$G$157681,'Source Data'!$F$2:$F$157681,'Worst Day Profile (AZ)'!$A$1,'Source Data'!$A$2:$A$157681,'Worst Day Profile (AZ)'!$A22,'Source Data'!$E$2:$E$157681,'Worst Day Profile (AZ)'!Q$2) -> 0.53 | R22: =SUMIFS('Source Data'!$G$2:$G$157681,'Source Data'!$F$2:$F$157681,'Worst Day Profile (AZ)'!$A$1,'Source Data'!$A$2:$A$157681,'Worst Day Profile (AZ)'!$A22,'Source Data'!$E$2:$E$157681,'Worst Day Profile (AZ)'!R$2) -> 0.52 | S22: =SUMIFS('Source Data'!$G$2:$G$157681,'Source Data'!$F$2:$F$157681,'Worst Day Profile (AZ)'!$A$1,'Source Data'!$A$2:$A$157681,'Worst Day Profile (AZ)'!$A22,'Source Data'!$E$2:$E$157681,'Worst Day Profile (AZ)'!S$2) -> 0.51 | T22: =SUMIFS('Source Data'!$G$2:$G$157681,'Source Data'!$F$2:$F$157681,'Worst Day Profile (AZ)'!$A$1,'Source Data'!$A$2:$A$157681,'Worst Day Profile (AZ)'!$A22,'Source Data'!$E$2:$E$157681,'Worst Day Profile (AZ)'!T$2) -> 0.48 | U22: =SUMIFS('Source Data'!$G$2:$G$157681,'Source Data'!$F$2:$F$157681,'Worst Day Profile (AZ)'!$A$1,'Source Data'!$A$2:$A$157681,'Worst Day Profile (AZ)'!$A22,'Source Data'!$E$2:$E$157681,'Worst Day Profile (AZ)'!U$2) -> 0.43 | V22: =SUMIFS('Source Data'!$G$2:$G$157681,'Source Data'!$F$2:$F$157681,'Worst Day Profile (AZ)'!$A$1,'Source Data'!$A$2:$A$157681,'Worst Day Profile (AZ)'!$A22,'Source Data'!$E$2:$E$157681,'Worst Day Profile (AZ)'!V$2) -> 0.35 | W22: =SUMIFS('Source Data'!$G$2:$G$157681,'Source Data'!$F$2:$F$157681,'Worst Day Profile (AZ)'!$A$1,'Source Data'!$A$2:$A$157681,'Worst Day Profile (AZ)'!$A22,'Source Data'!$E$2:$E$157681,'Worst Day Profile (AZ)'!W$2) -> 0.3 | X22: =SUMIFS('Source Data'!$G$2:$G$157681,'Source Data'!$F$2:$F$157681,'Worst Day Profile (AZ)'!$A$1,'Source Data'!$A$2:$A$157681,'Worst Day Profile (AZ)'!$A22,'Source Data'!$E$2:$E$157681,'Worst Day Profile (AZ)'!X$2) -> 0.27 | Y22: =SUMIFS('Source Data'!$G$2:$G$157681,'Source Data'!$F$2:$F$157681,'Worst Day Profile (AZ)'!$A$1,'Source Data'!$A$2:$A$157681,'Worst Day Profile (AZ)'!$A22,'Source Data'!$E$2:$E$157681,'Worst Day Profile (AZ)'!Y$2) -> 0.26 | Z22: =SUMIFS('Source Data'!$G$2:$G$157681,'Source Data'!$F$2:$F$157681,'Worst Day Profile (AZ)'!$A$1,'Source Data'!$A$2:$A$157681,'Worst Day Profile (AZ)'!$A22,'Source Data'!$E$2:$E$157681,'Worst Day Profile (AZ)'!Z$2) -> 0.24
A23: 2018-05-29 | B23: 5 | C23: =SUMIFS('Source Data'!$G$2:$G$157681,'Source Data'!$F$2:$F$157681,'Worst Day Profile (AZ)'!$A$1,'Source Data'!$A$2:$A$157681,'Worst Day Profile (AZ)'!$A23,'Source Data'!$E$2:$E$157681,'Worst Day Profile (AZ)'!C$2) -> 0.67 | D23: =SUMIFS('Source Data'!$G$2:$G$157681,'Source Data'!$F$2:$F$157681,'Worst Day Profile (AZ)'!$A$1,'Source Data'!$A$2:$A$157681,'Worst Day Profile (AZ)'!$A23,'Source Data'!$E$2:$E$157681,'Worst Day Profile (AZ)'!D$2) -> 0.56 | E23: =SUMIFS('Source Data'!$G$2:$G$157681,'Source Data'!$F$2:$F$157681,'Worst Day Profile (AZ)'!$A$1,'Source Data'!$A$2:$A$157681,'Worst Day Profile (AZ)'!$A23,'Source Data'!$E$2:$E$157681,'Worst Day Profile (AZ)'!E$2) -> 0.37 | F23: =SUMIFS('Source Data'!$G$2:$G$157681,'Source Data'!$F$2:$F$157681,'Worst Day Profile (AZ)'!$A$1,'Source Data'!$A$2:$A$157681,'Worst Day Profile (AZ)'!$A23,'Source Data'!$E$2:$E$157681,'Worst Day Profile (AZ)'!F$2) -> 0.28 | G23: =SUMIFS('Source Data'!$G$2:$G$157681,'Source Data'!$F$2:$F$157681,'Worst Day Profile (AZ)'!$A$1,'Source Data'!$A$2:$A$157681,'Worst Day Profile (AZ)'!$A23,'Source Data'!$E$2:$E$157681,'Worst Day Profile (AZ)'!G$2) -> 0.18 | H23: =SUMIFS('Source Data'!$G$2:$G$157681,'Source Data'!$F$2:$F$157681,'Worst Day Profile (AZ)'!$A$1,'Source Data'!$A$2:$A$157681,'Worst Day Profile (AZ)'!$A23,'Source Data'!$E$2:$E$157681,'Worst Day Profile (AZ)'!H$2) -> 0.16 | I23: =SUMIFS('Source Data'!$G$2:$G$157681,'Source Data'!$F$2:$F$157681,'Worst Day Profile (AZ)'!$A$1,'Source Data'!$A$2:$A$157681,'Worst Day Profile (AZ)'!$A23,'Source Data'!$E$2:$E$157681,'Worst Day Profile (AZ)'!I$2) -> 0.2 | J23: =SUMIFS('Source Data'!$G$2:$G$157681,'Source Data'!$F$2:$F$157681,'Worst Day Profile (AZ)'!$A$1,'Source Data'!$A$2:$A$157681,'Worst Day Profile (AZ)'!$A23,'Source Data'!$E$2:$E$157681,'Worst Day Profile (AZ)'!J$2) -> 0.14 | K23: =SUMIFS('Source Data'!$G$2:$G$157681,'Source Data'!$F$2:$F$157681,'Worst Day Profile (AZ)'!$A$1,'Source Data'!$A$2:$A$157681,'Worst Day Profile (AZ)'!$A23,'Source Data'!$E$2:$E$157681,'Worst Day Profile (AZ)'!K$2) -> 0.1 | L23: =SUMIFS('Source Data'!$G$2:$G$157681,'Source Data'!$F$2:$F$157681,'Worst Day Profile (AZ)'!$A$1,'Source Data'!$A$2:$A$157681,'Worst Day Profile (AZ)'!$A23,'Source Data'!$E$2:$E$157681,'Worst Day Profile (AZ)'!L$2) -> 0.02 | M23: =SUMIFS('Source Data'!$G$2:$G$157681,'Source Data'!$F$2:$F$157681,'Worst Day Profile (AZ)'!$A$1,'Source Data'!$A$2:$A$157681,'Worst Day Profile (AZ)'!$A23,'Source Data'!$E$2:$E$157681,'Worst Day Profile (AZ)'!M$2) -> 0.01 | N23: =SUMIFS('Source Data'!$G$2:$G$157681,'Source Data'!$F$2:$F$157681,'Worst Day Profile (AZ)'!$A$1,'Source Data'!$A$2:$A$157681,'Worst Day Profile (AZ)'!$A23,'Source Data'!$E$2:$E$157681,'Worst Day Profile (AZ)'!N$2) -> 0.01 | O23: =SUMIFS('Source Data'!$G$2:$G$157681,'Source Data'!$F$2:$F$157681,'Worst Day Profile (AZ)'!$A$1,'Source Data'!$A$2:$A$157681,'Worst Day Profile (AZ)'!$A23,'Source Data'!$E$2:$E$157681,'Worst Day Profile (AZ)'!O$2) -> 0.01 | P23: =SUMIFS('Source Data'!$G$2:$G$157681,'Source Data'!$F$2:$F$157681,'Worst Day Profile (AZ)'!$A$1,'Source Data'!$A$2:$A$157681,'Worst Day Profile (AZ)'!$A23,'Source Data'!$E$2:$E$157681,'Worst Day Profile (AZ)'!P$2) -> 0.02 | Q23: =SUMIFS('Source Data'!$G$2:$G$157681,'Source Data'!$F$2:$F$157681,'Worst Day Profile (AZ)'!$A$1,'Source Data'!$A$2:$A$157681,'Worst Day Profile (AZ)'!$A23,'Source Data'!$E$2:$E$157681,'Worst Day Profile (AZ)'!Q$2) -> 0.09 | R23: =SUMIFS('Source Data'!$G$2:$G$157681,'Source Data'!$F$2:$F$157681,'Worst Day Profile (AZ)'!$A$1,'Source Data'!$A$2:$A$157681,'Worst Day Profile (AZ)'!$A23,'Source Data'!$E$2:$E$157681,'Worst Day Profile (AZ)'!R$2) -> 0.19 | S23: =SUMIFS('Source Data'!$G$2:$G$157681,'Source Data'!$F$2:$F$157681,'Worst Day Profile (AZ)'!$A$1,'Source Data'!$A$2:$A$157681,'Worst Day Profile (AZ)'!$A23,'Source Data'!$E$2:$E$157681,'Worst Day Profile (AZ)'!S$2) -> 0.25 | T23: =SUMIFS('Source Data'!$G$2:$G$157681,'Source Data'!$F$2:$F$157681,'Worst Day Profile (AZ)'!$A$1,'Source Data'!$A$2:$A$157681,'Worst Day Profile (AZ)'!$A23,'Source Data'!$E$2:$E$157681,'Worst Day Profile (AZ)'!T$2) -> 0.32 | U23: =SUMIFS('Source Data'!$G$2:$G$157681,'Source Data'!$F$2:$F$157681,'Worst Day Profile (AZ)'!$A$1,'Source Data'!$A$2:$A$157681,'Worst Day Profile (AZ)'!$A23,'Source Data'!$E$2:$E$157681,'Worst Day Profile (AZ)'!U$2) -> 0.34 | V23: =SUMIFS('Source Data'!$G$2:$G$157681,'Source Data'!$F$2:$F$157681,'Worst Day Profile (AZ)'!$A$1,'Source Data'!$A$2:$A$157681,'Worst Day Profile (AZ)'!$A23,'Source Data'!$E$2:$E$157681,'Worst Day Profile (AZ)'!V$2) -> 0.33 | W23: =SUMIFS('Source Data'!$G$2:$G$157681,'Source Data'!$F$2:$F$157681,'Worst Day Profile (AZ)'!$A$1,'Source Data'!$A$2:$A$157681,'Worst Day Profile (AZ)'!$A23,'Source Data'!$E$2:$E$157681,'Worst Day Profile (AZ)'!W$2) -> 0.32 | X23: =SUMIFS('Source Data'!$G$2:$G$157681,'Source Data'!$F$2:$F$157681,'Worst Day Profile (AZ)'!$A$1,'Source Data'!$A$2:$A$157681,'Worst Day Profile (AZ)'!$A23,'Source Data'!$E$2:$E$157681,'Worst Day Profile (AZ)'!X$2) -> 0.33 | Y23: =SUMIFS('Source Data'!$G$2:$G$157681,'Source Data'!$F$2:$F$157681,'Worst Day Profile (AZ)'!$A$1,'Source Data'!$A$2:$A$157681,'Worst Day Profile (AZ)'!$A23,'Source Data'!$E$2:$E$157681,'Worst Day Profile (AZ)'!Y$2) -> 0.36 | Z23: =SUMIFS('Source Data'!$G$2:$G$157681,'Source Data'!$F$2:$F$157681,'Worst Day Profile (AZ)'!$A$1,'Source Data'!$A$2:$A$157681,'Worst Day Profile (AZ)'!$A23,'Source Data'!$E$2:$E$157681,'Worst Day Profile (AZ)'!Z$2) -> 0.39
A24: 2018-05-08 | B24: 5 | C24: =SUMIFS('Source Data'!$G$2:$G$157681,'Source Data'!$F$2:$F$157681,'Worst Day Profile (AZ)'!$A$1,'Source Data'!$A$2:$A$157681,'Worst Day Profile (AZ)'!$A24,'Source Data'!$E$2:$E$157681,'Worst Day Profile (AZ)'!C$2) -> 0.2 | D24: =SUMIFS('Source Data'!$G$2:$G$157681,'Source Data'!$F$2:$F$157681,'Worst Day Profile (AZ)'!$A$1,'Source Data'!$A$2:$A$157681,'Worst Day Profile (AZ)'!$A24,'Source Data'!$E$2:$E$157681,'Worst Day Profile (AZ)'!D$2) -> 0.23 | E24: =SUMIFS('Source Data'!$G$2:$G$157681,'Source Data'!$F$2:$F$157681,'Worst Day Profile (AZ)'!$A$1,'Source Data'!$A$2:$A$157681,'Worst Day Profile (AZ)'!$A24,'Source Data'!$E$2:$E$157681,'Worst Day Profile (AZ)'!E$2) -> 0.28 | F24: =SUMIFS('Source Data'!$G$2:$G$157681,'Source Data'!$F$2:$F$157681,'Worst Day Profile (AZ)'!$A$1,'Source Data'!$A$2:$A$157681,'Worst Day Profile (AZ)'!$A24,'Source Data'!$E$2:$E$157681,'Worst Day Profile (AZ)'!F$2) -> 0.3 | G24: =SUMIFS('Source Data'!$G$2:$G$157681,'Source Data'!$F$2:$F$157681,'Worst Day Profile (AZ)'!$A$1,'Source Data'!$A$2:$A$157681,'Worst Day Profile (AZ)'!$A24,'Source Data'!$E$2:$E$157681,'Worst Day Profile (AZ)'!G$2) -> 0.33 | H24: =SUMIFS('Source Data'!$G$2:$G$157681,'Source Data'!$F$2:$F$157681,'Worst Day Profile (AZ)'!$A$1,'Source Data'!$A$2:$A$157681,'Worst Day Profile (AZ)'!$A24,'Source Data'!$E$2:$E$157681,'Worst Day Profile (AZ)'!H$2) -> 0.35 | I24: =SUMIFS('Source Data'!$G$2:$G$157681,'Source Data'!$F$2:$F$157681,'Worst Day Profile (AZ)'!$A$1,'Source Data'!$A$2:$A$157681,'Worst Day Profile (AZ)'!$A24,'Source Data'!$E$2:$E$157681,'Worst Day Profile (AZ)'!I$2) -> 0.34 | J24: =SUMIFS('Source Data'!$G$2:$G$157681,'Source Data'!$F$2:$F$157681,'Worst Day Profile (AZ)'!$A$1,'Source Data'!$A$2:$A$157681,'Worst Day Profile (AZ)'!$A24,'Source Data'!$E$2:$E$157681,'Worst Day Profile (AZ)'!J$2) -> 0.42 | K24: =SUMIFS('Source Data'!$G$2:$G$157681,'Source Data'!$F$2:$F$157681,'Worst Day Profile (AZ)'!$A$1,'Source Data'!$A$2:$A$157681,'Worst Day Profile (AZ)'!$A24,'Source Data'!$E$2:$E$157681,'Worst Day Profile (AZ)'!K$2) -> 0.45 | L24: =SUMIFS('Source Data'!$G$2:$G$157681,'Source Data'!$F$2:$F$157681,'Worst Day Profile (AZ)'!$A$1,'Source Data'!$A$2:$A$157681,'Worst Day Profile (AZ)'!$A24,'Source Data'!$E$2:$E$157681,'Worst Day Profile (AZ)'!L$2) -> 0.47 | M24: =SUMIFS('Source Data'!$G$2:$G$157681,'Source Data'!$F$2:$F$157681,'Worst Day Profile (AZ)'!$A$1,'Source Data'!$A$2:$A$157681,'Worst Day Profile (AZ)'!$A24,'Source Data'!$E$2:$E$157681,'Worst Day Profile (AZ)'!M$2) -> 0.44 | N24: =SUMIFS('Source Data'!$G$2:$G$157681,'Source Data'!$F$2:$F$157681,'Worst Day Profile (AZ)'!$A$1,'Source Data'!$A$2:$A$157681,'Worst Day Profile (AZ)'!$A24,'Source Data'!$E$2:$E$157681,'Worst Day Profile (AZ)'!N$2) -> 0.32 | O24: =SUMIFS('Source Data'!$G$2:$G$157681,'Source Data'!$F$2:$F$157681,'Worst Day Profile (AZ)'!$A$1,'Source Data'!$A$2:$A$157681,'Worst Day Profile (AZ)'!$A24,'Source Data'!$E$2:$E$157681,'Worst Day Profile (AZ)'!O$2) -> 0.25 | P24: =SUMIFS('Source Data'!$G$2:$G$157681,'Source Data'!$F$2:$F$157681,'Worst Day Profile (AZ)'!$A$1,'Source Data'!$A$2:$A$157681,'Worst Day Profile (AZ)'!$A24,'Source Data'!$E$2:$E$157681,'Worst Day Profile (AZ)'!P$2) -> 0.18 | Q24: =SUMIFS('Source Data'!$G$2:$G$157681,'Source Data'!$F$2:$F$157681,'Worst Day Profile (AZ)'!$A$1,'Source Data'!$A$2:$A$157681,'Worst Day Profile (AZ)'!$A24,'Source Data'!$E$2:$E$157681,'Worst Day Profile (AZ)'!Q$2) -> 0.23 | R24: =SUMIFS('Source Data'!$G$2:$G$157681,'Source Data'!$F$2:$F$157681,'Worst Day Profile (AZ)'!$A$1,'Source Data'!$A$2:$A$157681,'Worst Day Profile (AZ)'!$A24,'Source Data'!$E$2:$E$157681,'Worst Day Profile (AZ)'!R$2) -> 0.26 | S24: =SUMIFS('Source Data'!$G$2:$G$157681,'Source Data'!$F$2:$F$157681,'Worst Day Profile (AZ)'!$A$1,'Source Data'!$A$2:$A$157681,'Worst Day Profile (AZ)'!$A24,'Source Data'!$E$2:$E$157681,'Worst Day Profile (AZ)'!S$2) -> 0.29 | T24: =SUMIFS('Source Data'!$G$2:$G$157681,'Source Data'!$F$2:$F$157681,'Worst Day Profile (AZ)'!$A$1,'Source Data'!$A$2:$A$157681,'Worst Day Profile (AZ)'!$A24,'Source Data'!$E$2:$E$157681,'Worst Day Profile (AZ)'!T$2) -> 0.38 | U24: =SUMIFS('Source Data'!$G$2:$G$157681,'Source Data'!$F$2:$F$157681,'Worst Day Profile (AZ)'!$A$1,'Source Data'!$A$2:$A$157681,'Worst Day Profile (AZ)'!$A24,'Source Data'!$E$2:$E$157681,'Worst Day Profile (AZ)'!U$2) -> 0.48 | V24: =SUMIFS('Source Data'!$G$2:$G$157681,'Source Data'!$F$2:$F$157681,'Worst Day Profile (AZ)'!$A$1,'Source Data'!$A$2:$A$157681,'Worst Day Profile (AZ)'!$A24,'Source Data'!$E$2:$E$157681,'Worst Day Profile (AZ)'!V$2) -> 0.59 | W24: =SUMIFS('Source Data'!$G$2:$G$157681,'Source Data'!$F$2:$F$157681,'Worst Day Profile (AZ)'!$A$1,'Source Data'!$A$2:$A$157681,'Worst Day Profile (AZ)'!$A24,'Source Data'!$E$2:$E$157681,'Worst Day Profile (AZ)'!W$2) -> 0.63 | X24: =SUMIFS('Source Data'!$G$2:$G$157681,'Source Data'!$F$2:$F$157681,'Worst Day Profile (AZ)'!$A$1,'Source Data'!$A$2:$A$157681,'Worst Day Profile (AZ)'!$A24,'Source Data'!$E$2:$E$157681,'Worst Day Profile (AZ)'!X$2) -> 0.54 | Y24: =SUMIFS('Source Data'!$G$2:$G$157681,'Source Data'!$F$2:$F$157681,'Worst Day Profile (AZ)'!$A$1,'Source Data'!$A$2:$A$157681,'Worst Day Profile (AZ)'!$A24,'Source Data'!$E$2:$E$157681,'Worst Day Profile (AZ)'!Y$2) -> 0.37 | Z24: =SUMIFS('Source Data'!$G$2:$G$157681,'Source Data'!$F$2:$F$157681,'Worst Day Profile (AZ)'!$A$1,'Source Data'!$A$2:$A$157681,'Worst Day Profile (AZ)'!$A24,'Source Data'!$E$2:$E$157681,'Worst Day Profile (AZ)'!Z$2) -> 0.28
A25: 2018-05-09 | B25: 5 | C25: =SUMIFS('Source Data'!$G$2:$G$157681,'Source Data'!$F$2:$F$157681,'Worst Day Profile (AZ)'!$A$1,'Source Data'!$A$2:$A$157681,'Worst Day Profile (AZ)'!$A25,'Source Data'!$E$2:$E$157681,'Worst Day Profile (AZ)'!C$2) -> 0.23 | D25: =SUMIFS('Source Data'!$G$2:$G$157681,'Source Data'!$F$2:$F$157681,'Worst Day Profile (AZ)'!$A$1,'Source Data'!$A$2:$A$157681,'Worst Day Profile (AZ)'!$A25,'Source Data'!$E$2:$E$157681,'Worst Day Profile (AZ)'!D$2) -> 0.26 | E25: =SUMIFS('Source Data'!$G$2:$G$157681,'Source Data'!$F$2:$F$157681,'Worst Day Profile (AZ)'!$A$1,'Source Data'!$A$2:$A$157681,'Worst Day Profile (AZ)'!$A25,'Source Data'!$E$2:$E$157681,'Worst Day Profile (AZ)'!E$2) -> 0.29 | F25: =SUMIFS('Source Data'!$G$2:$G$157681,'Source Data'!$F$2:$F$157681,'Worst Day Profile (AZ)'!$A$1,'Source Data'!$A$2:$A$157681,'Worst Day Profile (AZ)'!$A25,'Source Data'!$E$2:$E$157681,'Worst Day Profile (AZ)'!F$2) -> 0.28 | G25: =SUMIFS('Source Data'!$G$2:$G$157681,'Source Data'!$F$2:$F$157681,'Worst Day Profile (AZ)'!$A$1,'Source Data'!$A$2:$A$157681,'Worst Day Profile (AZ)'!$A25,'Source Data'!$E$2:$E$157681,'Worst Day Profile (AZ)'!G$2) -> 0.27 | H25: =SUMIFS('Source Data'!$G$2:$G$157681,'Source Data'!$F$2:$F$157681,'Worst Day Profile (AZ)'!$A$1,'Source Data'!$A$2:$A$157681,'Worst Day Profile (AZ)'!$A25,'Source Data'!$E$2:$E$157681,'Worst Day Profile (AZ)'!H$2) -> 0.24 | I25: =SUMIFS('Source Data'!$G$2:$G$157681,'Source Data'!$F$2:$F$157681,'Worst Day Profile (AZ)'!$A$1,'Source Data'!$A$2:$A$157681,'Worst Day Profile (AZ)'!$A25,'Source Data'!$E$2:$E$157681,'Worst Day Profile (AZ)'!I$2) -> 0.21 | J25: =SUMIFS('Source Data'!$G$2:$G$157681,'Source Data'!$F$2:$F$157681,'Worst Day Profile (AZ)'!$A$1,'Source Data'!$A$2:$A$157681,'Worst Day Profile (AZ)'!$A25,'Source Data'!$E$2:$E$157681,'Worst Day Profile (AZ)'!J$2) -> 0.22 | K25: =SUMIFS('Source Data'!$G$2:$G$157681,'Source Data'!$F$2:$F$157681,'Worst Day Profile (AZ)'!$A$1,'Source Data'!$A$2:$A$157681,'Worst Day Profile (AZ)'!$A25,'Source Data'!$E$2:$E$157681,'Worst Day Profile (AZ)'!K$2) -> 0.22 | L25: =SUMIFS('Source Data'!$G$2:$G$157681,'Source Data'!$F$2:$F$157681,'Worst Day Profile (AZ)'!$A$1,'Source Data'!$A$2:$A$157681,'Worst Day Profile (AZ)'!$A25,'Source Data'!$E$2:$E$157681,'Worst Day Profile (AZ)'!L$2) -> 0.16 | M25: =SUMIFS('Source Data'!$G$2:$G$157681,'Source Data'!$F$2:$F$157681,'Worst Day Profile (AZ)'!$A$1,'Source Data'!$A$2:$A$157681,'Worst Day Profile (AZ)'!$A25,'Source Data'!$E$2:$E$157681,'Worst Day Profile (AZ)'!M$2) -> 0.11 | N25: =SUMIFS('Source Data'!$G$2:$G$157681,'Source Data'!$F$2:$F$157681,'Worst Day Profile (AZ)'!$A$1,'Source Data'!$A$2:$A$157681,'Worst Day Profile (AZ)'!$A25,'Source Data'!$E$2:$E$157681,'Worst Day Profile (AZ)'!N$2) -> 0.08 | O25: =SUMIFS('Source Data'!$G$2:$G$157681,'Source Data'!$F$2:$F$157681,'Worst Day Profile (AZ)'!$A$1,'Source Data'!$A$2:$A$157681,'Worst Day Profile (AZ)'!$A25,'Source Data'!$E$2:$E$157681,'Worst Day Profile (AZ)'!O$2) -> 0.05 | P25: =SUMIFS('Source Data'!$G$2:$G$157681,'Source Data'!$F$2:$F$157681,'Worst Day Profile (AZ)'!$A$1,'Source Data'!$A$2:$A$157681,'Worst Day Profile (AZ)'!$A25,'Source Data'!$E$2:$E$157681,'Worst Day Profile (AZ)'!P$2) -> 0.07 | Q25: =SUMIFS('Source Data'!$G$2:$G$157681,'Source Data'!$F$2:$F$157681,'Worst Day Profile (AZ)'!$A$1,'Source Data'!$A$2:$A$157681,'Worst Day Profile (AZ)'!$A25,'Source Data'!$E$2:$E$157681,'Worst Day Profile (AZ)'!Q$2) -> 0.16 | R25: =SUMIFS('Source Data'!$G$2:$G$157681,'Source Data'!$F$2:$F$157681,'Worst Day Profile (AZ)'!$A$1,'Source Data'!$A$2:$A$157681,'Worst Day Profile (AZ)'!$A25,'Source Data'!$E$2:$E$157681,'Worst Day Profile (AZ)'!R$2) -> 0.22 | S25: =SUMIFS('Source Data'!$G$2:$G$157681,'Source Data'!$F$2:$F$157681,'Worst Day Profile (AZ)'!$A$1,'Source Data'!$A$2:$A$157681,'Worst Day Profile (AZ)'!$A25,'Source Data'!$E$2:$E$157681,'Worst Day Profile (AZ)'!S$2) -> 0.13 | T25: =SUMIFS('Source Data'!$G$2:$G$157681,'Source Data'!$F$2:$F$157681,'Worst Day Profile (AZ)'!$A$1,'Source Data'!$A$2:$A$157681,'Worst Day Profile (AZ)'!$A25,'Source Data'!$E$2:$E$157681,'Worst Day Profile (AZ)'!T$2) -> 0.18 | U25: =SUMIFS('Source Data'!$G$2:$G$157681,'Source Data'!$F$2:$F$157681,'Worst Day Profile (AZ)'!$A$1,'Source Data'!$A$2:$A$157681,'Worst Day Profile (AZ)'!$A25,'Source Data'!$E$2:$E$157681,'Worst Day Profile (AZ)'!U$2) -> 0.17 | V25: =SUMIFS('Source Data'!$G$2:$G$157681,'Source Data'!$F$2:$F$157681,'Worst Day Profile (AZ)'!$A$1,'Source Data'!$A$2:$A$157681,'Worst Day Profile (AZ)'!$A25,'Source Data'!$E$2:$E$157681,'Worst Day Profile (AZ)'!V$2) -> 0.25 | W25: =SUMIFS('Source Data'!$G$2:$G$157681,'Source Data'!$F$2:$F$157681,'Worst Day Profile (AZ)'!$A$1,'Source Data'!$A$2:$A$157681,'Worst Day Profile (AZ)'!$A25,'Source Data'!$E$2:$E$157681,'Worst Day Profile (AZ)'!W$2) -> 0.38 | X25: =SUMIFS('Source Data'!$G$2:$G$157681,'Source Data'!$F$2:$F$157681,'Worst Day Profile (AZ)'!$A$1,'Source Data'!$A$2:$A$157681,'Worst Day Profile (AZ)'!$A25,'Source Data'!$E$2:$E$157681,'Worst Day Profile (AZ)'!X$2) -> 0.39 | Y25: =SUMIFS('Source Data'!$G$2:$G$157681,'Source Data'!$F$2:$F$157681,'Worst Day Profile (AZ)'!$A$1,'Source Data'!$A$2:$A$157681,'Worst Day Profile (AZ)'!$A25,'Source Data'!$E$2:$E$157681,'Worst Day Profile (AZ)'!Y$2) -> 0.34 | Z25: =SUMIFS('Source Data'!$G$2:$G$157681,'Source Data'!$F$2:$F$157681,'Worst Day Profile (AZ)'!$A$1,'Source Data'!$A$2:$A$157681,'Worst Day Profile (AZ)'!$A25,'Source Data'!$E$2:$E$157681,'Worst Day Profile (AZ)'!Z$2) -> 0.22
A26: 2018-05-07 | B26: 5 | C26: =SUMIFS('Source Data'!$G$2:$G$157681,'Source Data'!$F$2:$F$157681,'Worst Day Profile (AZ)'!$A$1,'Source Data'!$A$2:$A$157681,'Worst Day Profile (AZ)'!$A26,'Source Data'!$E$2:$E$157681,'Worst Day Profile (AZ)'!C$2) -> 0.22 | D26: =SUMIFS('Source Data'!$G$2:$G$157681,'Source Data'!$F$2:$F$157681,'Worst Day Profile (AZ)'!$A$1,'Source Data'!$A$2:$A$157681,'Worst Day Profile (AZ)'!$A26,'Source Data'!$E$2:$E$157681,'Worst Day Profile (AZ)'!D$2) -> 0.15 | E26: =SUMIFS('Source Data'!$G$2:$G$157681,'Source Data'!$F$2:$F$157681,'Worst Day Profile (AZ)'!$A$1,'Source Data'!$A$2:$A$157681,'Worst Day Profile (AZ)'!$A26,'Source Data'!$E$2:$E$157681,'Worst Day Profile (AZ)'!E$2) -> 0.22 | F26: =SUMIFS('Source Data'!$G$2:$G$157681,'Source Data'!$F$2:$F$157681,'Worst Day Profile (AZ)'!$A$1,'Source Data'!$A$2:$A$157681,'Worst Day Profile (AZ)'!$A26,'Source Data'!$E$2:$E$157681,'Worst Day Profile (AZ)'!F$2) -> 0.36 | G26: =SUMIFS('Source Data'!$G$2:$G$157681,'Source Data'!$F$2:$F$157681,'Worst Day Profile (AZ)'!$A$1,'Source Data'!$A$2:$A$157681,'Worst Day Profile (AZ)'!$A26,'Source Data'!$E$2:$E$157681,'Worst Day Profile (AZ)'!G$2) -> 0.41 | H26: =SUMIFS('Source Data'!$G$2:$G$157681,'Source Data'!$F$2:$F$157681,'Worst Day Profile (AZ)'!$A$1,'Source Data'!$A$2:$A$157681,'Worst Day Profile (AZ)'!$A26,'Source Data'!$E$2:$E$157681,'Worst Day Profile (AZ)'!H$2) -> 0.38 | I26: =SUMIFS('Source Data'!$G$2:$G$157681,'Source Data'!$F$2:$F$157681,'Worst Day Profile (AZ)'!$A$1,'Source Data'!$A$2:$A$157681,'Worst Day Profile (AZ)'!$A26,'Source Data'!$E$2:$E$157681,'Worst Day Profile (AZ)'!I$2) -> 0.32 | J26: =SUMIFS('Source Data'!$G$2:$G$157681,'Source Data'!$F$2:$F$157681,'Worst Day Profile (AZ)'!$A$1,'Source Data'!$A$2:$A$157681,'Worst Day Profile (AZ)'!$A26,'Source Data'!$E$2:$E$157681,'Worst Day Profile (AZ)'!J$2) -> 0.24 | K26: =SUMIFS('Source Data'!$G$2:$G$157681,'Source Data'!$F$2:$F$157681,'Worst Day Profile (AZ)'!$A$1,'Source Data'!$A$2:$A$157681,'Worst Day Profile (AZ)'!$A26,'Source Data'!$E$2:$E$157681,'Worst Day Profile (AZ)'!K$2) -> 0.13 | L26: =SUMIFS('Source Data'!$G$2:$G$157681,'Source Data'!$F$2:$F$157681,'Worst Day Profile (AZ)'!$A$1,'Source Data'!$A$2:$A$157681,'Worst Day Profile (AZ)'!$A26,'Source Data'!$E$2:$E$157681,'Worst Day Profile (AZ)'!L$2) -> 0.07 | M26: =SUMIFS('Source Data'!$G$2:$G$157681,'Source Data'!$F$2:$F$157681,'Worst Day Profile (AZ)'!$A$1,'Source Data'!$A$2:$A$157681,'Worst Day Profile (AZ)'!$A26,'Source Data'!$E$2:$E$157681,'Worst Day Profile (AZ)'!M$2) -> 0.03 | N26: =SUMIFS('Source Data'!$G$2:$G$157681,'Source Data'!$F$2:$F$157681,'Worst Day Profile (AZ)'!$A$1,'Source Data'!$A$2:$A$157681,'Worst Day Profile (AZ)'!$A26,'Source Data'!$E$2:$E$157681,'Worst Day Profile (AZ)'!N$2) -> 0.02 | O26: =SUMIFS('Source Data'!$G$2:$G$157681,'Source Data'!$F$2:$F$157681,'Worst Day Profile (AZ)'!$A$1,'Source Data'!$A$2:$A$157681,'Worst Day Profile (AZ)'!$A26,'Source Data'!$E$2:$E$157681,'Worst Day Profile (AZ)'!O$2) -> 0.03 | P26: =SUMIFS('Source Data'!$G$2:$G$157681,'Source Data'!$F$2:$F$157681,'Worst Day Profile (AZ)'!$A$1,'Source Data'!$A$2:$A$157681,'Worst Day Profile (AZ)'!$A26,'Source Data'!$E$2:$E$157681,'Worst Day Profile (AZ)'!P$2) -> 0.05 | Q26: =SUMIFS('Source Data'!$G$2:$G$157681,'Source Data'!$F$2:$F$157681,'Worst Day Profile (AZ)'!$A$1,'Source Data'!$A$2:$A$157681,'Worst Day Profile (AZ)'!$A26,'Source Data'!$E$2:$E$157681,'Worst Day Profile (AZ)'!Q$2) -> 0.07 | R26: =SUMIFS('Source Data'!$G$2:$G$157681,'Source Data'!$F$2:$F$157681,'Worst Day Profile (AZ)'!$A$1,'Source Data'!$A$2:$A$157681,'Worst Day Profile (AZ)'!$A26,'Source Data'!$E$2:$E$157681,'Worst Day Profile (AZ)'!R$2) -> 0.11 | S26: =SUMIFS('Source Data'!$G$2:$G$157681,'Source Data'!$F$2:$F$157681,'Worst Day Profile (AZ)'!$A$1,'Source Data'!$A$2:$A$157681,'Worst Day Profile (AZ)'!$A26,'Source Data'!$E$2:$E$157681,'Worst Day Profile (AZ)'!S$2) -> 0.26 | T26: =SUMIFS('Source Data'!$G$2:$G$157681,'Source Data'!$F$2:$F$157681,'Worst Day Profile (AZ)'!$A$1,'Source Data'!$A$2:$A$157681,'Worst Day Profile (AZ)'!$A26,'Source Data'!$E$2:$E$157681,'Worst Day Profile (AZ)'!T$2) -> 0.37 | U26: =SUMIFS('Source Data'!$G$2:$G$157681,'Source Data'!$F$2:$F$157681,'Worst Day Profile (AZ)'!$A$1,'Source Data'!$A$2:$A$157681,'Worst Day Profile (AZ)'!$A26,'Source Data'!$E$2:$E$157681,'Worst Day Profile (AZ)'!U$2) -> 0.46 | V26: =SUMIFS('Source Data'!$G$2:$G$157681,'Source Data'!$F$2:$F$157681,'Worst Day Profile (AZ)'!$A$1,'Source Data'!$A$2:$A$157681,'Worst Day Profile (AZ)'!$A26,'Source Data'!$E$2:$E$157681,'Worst Day Profile (AZ)'!V$2) -> 0.47 | W26: =SUMIFS('Source Data'!$G$2:$G$157681,'Source Data'!$F$2:$F$157681,'Worst Day Profile (AZ)'!$A$1,'Source Data'!$A$2:$A$157681,'Worst Day Profile (AZ)'!$A26,'Source Data'!$E$2:$E$157681,'Worst Day Profile (AZ)'!W$2) -> 0.38 | X26: =SUMIFS('Source Data'!$G$2:$G$157681,'Source Data'!$F$2:$F$157681,'Worst Day Profile (AZ)'!$A$1,'Source Data'!$A$2:$A$157681,'Worst Day Profile (AZ)'!$A26,'Source Data'!$E$2:$E$157681,'Worst Day Profile (AZ)'!X$2) -> 0.3 | Y26: =SUMIFS('Source Data'!$G$2:$G$157681,'Source Data'!$F$2:$F$157681,'Worst Day Profile (AZ)'!$A$1,'Source Data'!$A$2:$A$157681,'Worst Day Profile (AZ)'!$A26,'Source Data'!$E$2:$E$157681,'Worst Day Profile (AZ)'!Y$2) -> 0.25 | Z26: =SUMIFS('Source Data'!$G$2:$G$157681,'Source Data'!$F$2:$F$157681,'Worst Day Profile (AZ)'!$A$1,'Source Data'!$A$2:$A$157681,'Worst Day Profile (AZ)'!$A26,'Source Data'!$E$2:$E$157681,'Worst Day Profile (AZ)'!Z$2) -> 0.21
A27: 2018-05-28 | B27: 5 | C27: =SUMIFS('Source Data'!$G$2:$G$157681,'Source Data'!$F$2:$F$157681,'Worst Day Profile (AZ)'!$A$1,'Source Data'!$A$2:$A$157681,'Worst Day Profile (AZ)'!$A27,'Source Data'!$E$2:$E$157681,'Worst Day Profile (AZ)'!C$2) -> 0.53 | D27: =SUMIFS('Source Data'!$G$2:$G$157681,'Source Data'!$F$2:$F$157681,'Worst Day Profile (AZ)'!$A$1,'Source Data'!$A$2:$A$157681,'Worst Day Profile (AZ)'!$A27,'Source Data'!$E$2:$E$157681,'Worst Day Profile (AZ)'!D$2) -> 0.39 | E27: =SUMIFS('Source Data'!$G$2:$G$157681,'Source Data'!$F$2:$F$157681,'Worst Day Profile (AZ)'!$A$1,'Source Data'!$A$2:$A$157681,'Worst Day Profile (AZ)'!$A27,'Source Data'!$E$2:$E$157681,'Worst Day Profile (AZ)'!E$2) -> 0.41 | F27: =SUMIFS('Source Data'!$G$2:$G$157681,'Source Data'!$F$2:$F$157681,'Worst Day Profile (AZ)'!$A$1,'Source Data'!$A$2:$A$157681,'Worst Day Profile (AZ)'!$A27,'Source Data'!$E$2:$E$157681,'Worst Day Profile (AZ)'!F$2) -> 0.42 | G27: =SUMIFS('Source Data'!$G$2:$G$157681,'Source Data'!$F$2:$F$157681,'Worst Day Profile (AZ)'!$A$1,'Source Data'!$A$2:$A$157681,'Worst Day Profile (AZ)'!$A27,'Source Data'!$E$2:$E$157681,'Worst Day Profile (AZ)'!G$2) -> 0.53 | H27: =SUMIFS('Source Data'!$G$2:$G$157681,'Source Data'!$F$2:$F$157681,'Worst Day Profile (AZ)'!$A$1,'Source Data'!$A$2:$A$157681,'Worst Day Profile (AZ)'!$A27,'Source Data'!$E$2:$E$157681,'Worst Day Profile (AZ)'!H$2) -> 0.63 | I27: =SUMIFS('Source Data'!$G$2:$G$157681,'Source Data'!$F$2:$F$157681,'Worst Day Profile (AZ)'!$A$1,'Source Data'!$A$2:$A$157681,'Worst Day Profile (AZ)'!$A27,'Source Data'!$E$2:$E$157681,'Worst Day Profile (AZ)'!I$2) -> 0.61 | J27: =SUMIFS('Source Data'!$G$2:$G$157681,'Source Data'!$F$2:$F$157681,'Worst Day Profile (AZ)'!$A$1,'Source Data'!$A$2:$A$157681,'Worst Day Profile (AZ)'!$A27,'Source Data'!$E$2:$E$157681,'Worst Day Profile (AZ)'!J$2) -> 0.59 | K27: =SUMIFS('Source Data'!$G$2:$G$157681,'Source Data'!$F$2:$F$157681,'Worst Day Profile (AZ)'!$A$1,'Source Data'!$A$2:$A$157681,'Worst Day Profile (AZ)'!$A27,'Source Data'!$E$2:$E$157681,'Worst Day Profile (AZ)'!K$2) -> 0.53 | L27: =SUMIFS('Source Data'!$G$2:$G$157681,'Source Data'!$F$2:$F$157681,'Worst Day Profile (AZ)'!$A$1,'Source Data'!$A$2:$A$157681,'Worst Day Profile (AZ)'!$A27,'Source Data'!$E$2:$E$157681,'Worst Day Profile (AZ)'!L$2) -> 0.42 | M27: =SUMIFS('Source Data'!$G$2:$G$157681,'Source Data'!$F$2:$F$157681,'Worst Day Profile (AZ)'!$A$1,'Source Data'!$A$2:$A$157681,'Worst Day Profile (AZ)'!$A27,'Source Data'!$E$2:$E$157681,'Worst Day Profile (AZ)'!M$2) -> 0.3 | N27: =SUMIFS('Source Data'!$G$2:$G$157681,'Source Data'!$F$2:$F$157681,'Worst Day Profile (AZ)'!$A$1,'Source Data'!$A$2:$A$157681,'Worst Day Profile (AZ)'!$A27,'Source Data'!$E$2:$E$157681,'Worst Day Profile (AZ)'!N$2) -> 0.22 | O27: =SUMIFS('Source Data'!$G$2:$G$157681,'Source Data'!$F$2:$F$157681,'Worst Day Profile (AZ)'!$A$1,'Source Data'!$A$2:$A$157681,'Worst Day Profile (AZ)'!$A27,'Source Data'!$E$2:$E$157681,'Worst Day Profile (AZ)'!O$2) -> 0.19 | P27: =SUMIFS('Source Data'!$G$2:$G$157681,'Source Data'!$F$2:$F$157681,'Worst Day Profile (AZ)'!$A$1,'Source Data'!$A$2:$A$157681,'Worst Day Profile (AZ)'!$A27,'Source Data'!$E$2:$E$157681,'Worst Day Profile (AZ)'!P$2) -> 0.22 | Q27: =SUMIFS('Source Data'!$G$2:$G$157681,'Source Data'!$F$2:$F$157681,'Worst Day Profile (AZ)'!$A$1,'Source Data'!$A$2:$A$157681,'Worst Day Profile (AZ)'!$A27,'Source Data'!$E$2:$E$157681,'Worst Day Profile (AZ)'!Q$2) -> 0.36 | R27: =SUMIFS('Source Data'!$G$2:$G$157681,'Source Data'!$F$2:$F$157681,'Worst Day Profile (AZ)'!$A$1,'Source Data'!$A$2:$A$157681,'Worst Day Profile (AZ)'!$A27,'Source Data'!$E$2:$E$157681,'Worst Day Profile (AZ)'!R$2) -> 0.52 | S27: =SUMIFS('Source Data'!$G$2:$G$157681,'Source Data'!$F$2:$F$157681,'Worst Day Profile (AZ)'!$A$1,'Source Data'!$A$2:$A$157681,'Worst Day Profile (AZ)'!$A27,'Source Data'!$E$2:$E$157681,'Worst Day Profile (AZ)'!S$2) -> 0.58 | T27: =SUMIFS('Source Data'!$G$2:$G$157681,'Source Data'!$F$2:$F$157681,'Worst Day Profile (AZ)'!$A$1,'Source Data'!$A$2:$A$157681,'Worst Day Profile (AZ)'!$A27,'Source Data'!$E$2:$E$157681,'Worst Day Profile (AZ)'!T$2) -> 0.55 | U27: =SUMIFS('Source Data'!$G$2:$G$157681,'Source Data'!$F$2:$F$157681,'Worst Day Profile (AZ)'!$A$1,'Source Data'!$A$2:$A$157681,'Worst Day Profile (AZ)'!$A27,'Source Data'!$E$2:$E$157681,'Worst Day Profile (AZ)'!U$2) -> 0.44 | V27: =SUMIFS('Source Data'!$G$2:$G$157681,'Source Data'!$F$2:$F$157681,'Worst Day Profile (AZ)'!$A$1,'Source Data'!$A$2:$A$157681,'Worst Day Profile (AZ)'!$A27,'Source Data'!$E$2:$E$157681,'Worst Day Profile (AZ)'!V$2) -> 0.37 | W27: =SUMIFS('Source Data'!$G$2:$G$157681,'Source Data'!$F$2:$F$157681,'Worst Day Profile (AZ)'!$A$1,'Source Data'!$A$2:$A$157681,'Worst Day Profile (AZ)'!$A27,'Source Data'!$E$2:$E$157681,'Worst Day Profile (AZ)'!W$2) -> 0.39 | X27: =SUMIFS('Source Data'!$G$2:$G$157681,'Source Data'!$F$2:$F$157681,'Worst Day Profile (AZ)'!$A$1,'Source Data'!$A$2:$A$157681,'Worst Day Profile (AZ)'!$A27,'Source Data'!$E$2:$E$157681,'Worst Day Profile (AZ)'!X$2) -> 0.58 | Y27: =SUMIFS('Source Data'!$G$2:$G$157681,'Source Data'!$F$2:$F$157681,'Worst Day Profile (AZ)'!$A$1,'Source Data'!$A$2:$A$157681,'Worst Day Profile (AZ)'!$A27,'Source Data'!$E$2:$E$157681,'Worst Day Profile (AZ)'!Y$2) -> 0.68 | Z27: =SUMIFS('Source Data'!$G$2:$G$157681,'Source Data'!$F$2:$F$157681,'Worst Day Profile (AZ)'!$A$1,'Source Data'!$A$2:$A$157681,'Worst Day Profile (AZ)'!$A27,'Source Data'!$E$2:$E$157681,'Worst Day Profile (AZ)'!Z$2) -> 0.69
A28: 2018-06-22 | B28: 6 | C28: =SUMIFS('Source Data'!$G$2:$G$157681,'Source Data'!$F$2:$F$157681,'Worst Day Profile (AZ)'!$A$1,'Source Data'!$A$2:$A$157681,'Worst Day Profile (AZ)'!$A28,'Source Data'!$E$2:$E$157681,'Worst Day Profile (AZ)'!C$2) -> 0.12 | D28: =SUMIFS('Source Data'!$G$2:$G$157681,'Source Data'!$F$2:$F$157681,'Worst Day Profile (AZ)'!$A$1,'Source Data'!$A$2:$A$157681,'Worst Day Profile (AZ)'!$A28,'Source Data'!$E$2:$E$157681,'Worst Day Profile (AZ)'!D$2) -> 0.07 | E28: =SUMIFS('Source Data'!$G$2:$G$157681,'Source Data'!$F$2:$F$157681,'Worst Day Profile (AZ)'!$A$1,'Source Data'!$A$2:$A$157681,'Worst Day Profile (AZ)'!$A28,'Source Data'!$E$2:$E$157681,'Worst Day Profile (AZ)'!E$2) -> 0.06 | F28: =SUMIFS('Source Data'!$G$2:$G$157681,'Source Data'!$F$2:$F$157681,'Worst Day Profile (AZ)'!$A$1,'Source Data'!$A$2:$A$157681,'Worst Day Profile (AZ)'!$A28,'Source Data'!$E$2:$E$157681,'Worst Day Profile (AZ)'!F$2) -> 0.1 | G28: =SUMIFS('Source Data'!$G$2:$G$157681,'Source Data'!$F$2:$F$157681,'Worst Day Profile (AZ)'!$A$1,'Source Data'!$A$2:$A$157681,'Worst Day Profile (AZ)'!$A28,'Source Data'!$E$2:$E$157681,'Worst Day Profile (AZ)'!G$2) -> 0.17 | H28: =SUMIFS('Source Data'!$G$2:$G$157681,'Source Data'!$F$2:$F$157681,'Worst Day Profile (AZ)'!$A$1,'Source Data'!$A$2:$A$157681,'Worst Day Profile (AZ)'!$A28,'Source Data'!$E$2:$E$157681,'Worst Day Profile (AZ)'!H$2) -> 0.22 | I28: =SUMIFS('Source Data'!$G$2:$G$157681,'Source Data'!$F$2:$F$157681,'Worst Day Profile (AZ)'!$A$1,'Source Data'!$A$2:$A$157681,'Worst Day Profile (AZ)'!$A28,'Source Data'!$E$2:$E$157681,'Worst Day Profile (AZ)'!I$2) -> 0.21 | J28: =SUMIFS('Source Data'!$G$2:$G$157681,'Source Data'!$F$2:$F$157681,'Worst Day Profile (AZ)'!$A$1,'Source Data'!$A$2:$A$157681,'Worst Day Profile (AZ)'!$A28,'Source Data'!$E$2:$E$157681,'Worst Day Profile (AZ)'!J$2) -> 0.15 | K28: =SUMIFS('Source Data'!$G$2:$G$157681,'Source Data'!$F$2:$F$157681,'Worst Day Profile (AZ)'!$A$1,'Source Data'!$A$2:$A$157681,'Worst Day Profile (AZ)'!$A28,'Source Data'!$E$2:$E$157681,'Worst Day Profile (AZ)'!K$2) -> 0.1 | L28: =SUMIFS('Source Data'!$G$2:$G$157681,'Source Data'!$F$2:$F$157681,'Worst Day Profile (AZ)'!$A$1,'Source Data'!$A$2:$A$157681,'Worst Day Profile (AZ)'!$A28,'Source Data'!$E$2:$E$157681,'Worst Day Profile (AZ)'!L$2) -> 0.1 | M28: =SUMIFS('Source Data'!$G$2:$G$157681,'Source Data'!$F$2:$F$157681,'Worst Day Profile (AZ)'!$A$1,'Source Data'!$A$2:$A$157681,'Worst Day Profile (AZ)'!$A28,'Source Data'!$E$2:$E$157681,'Worst Day Profile (AZ)'!M$2) -> 0.15 | N28: =SUMIFS('Source Data'!$G$2:$G$157681,'Source Data'!$F$2:$F$157681,'Worst Day Profile (AZ)'!$A$1,'Source Data'!$A$2:$A$157681,'Worst Day Profile (AZ)'!$A28,'Source Data'!$E$2:$E$157681,'Worst Day Profile (AZ)'!N$2) -> 0.25 | O28: =SUMIFS('Source Data'!$G$2:$G$157681,'Source Data'!$F$2:$F$157681,'Worst Day Profile (AZ)'!$A$1,'Source Data'!$A$2:$A$157681,'Worst Day Profile (AZ)'!$A28,'Source Data'!$E$2:$E$157681,'Worst Day Profile (AZ)'!O$2) -> 0.28 | P28: =SUMIFS('Source Data'!$G$2:$G$157681,'Source Data'!$F$2:$F$157681,'Worst Day Profile (AZ)'!$A$1,'Source Data'!$A$2:$A$157681,'Worst Day Profile (AZ)'!$A28,'Source Data'!$E$2:$E$157681,'Worst Day Profile (AZ)'!P$2) -> 0.27 | Q28: =SUMIFS('Source Data'!$G$2:$G$157681,'Source Data'!$F$2:$F$157681,'Worst Day Profile (AZ)'!$A$1,'Source Data'!$A$2:$A$157681,'Worst Day Profile (AZ)'!$A28,'Source Data'!$E$2:$E$157681,'Worst Day Profile (AZ)'!Q$2) -> 0.17 | R28: =SUMIFS('Source Data'!$G$2:$G$157681,'Source Data'!$F$2:$F$157681,'Worst Day Profile (AZ)'!$A$1,'Source Data'!$A$2:$A$157681,'Worst Day Profile (AZ)'!$A28,'Source Data'!$E$2:$E$157681,'Worst Day Profile (AZ)'!R$2) -> 0.1 | S28: =SUMIFS('Source Data'!$G$2:$G$157681,'Source Data'!$F$2:$F$157681,'Worst Day Profile (AZ)'!$A$1,'Source Data'!$A$2:$A$157681,'Worst Day Profile (AZ)'!$A28,'Source Data'!$E$2:$E$157681,'Worst Day Profile (AZ)'!S$2) -> 0.09 | T28: =SUMIFS('Source Data'!$G$2:$G$157681,'Source Data'!$F$2:$F$157681,'Worst Day Profile (AZ)'!$A$1,'Source Data'!$A$2:$A$157681,'Worst Day Profile (AZ)'!$A28,'Source Data'!$E$2:$E$157681,'Worst Day Profile (AZ)'!T$2) -> 0.14 | U28: =SUMIFS('Source Data'!$G$2:$G$157681,'Source Data'!$F$2:$F$157681,'Worst Day Profile (AZ)'!$A$1,'Source Data'!$A$2:$A$157681,'Worst Day Profile (AZ)'!$A28,'Source Data'!$E$2:$E$157681,'Worst Day Profile (AZ)'!U$2) -> 0.28 | V28: =SUMIFS('Source Data'!$G$2:$G$157681,'Source Data'!$F$2:$F$157681,'Worst Day Profile (AZ)'!$A$1,'Source Data'!$A$2:$A$157681,'Worst Day Profile (AZ)'!$A28,'Source Data'!$E$2:$E$157681,'Worst Day Profile (AZ)'!V$2) -> 0.38 | W28: =SUMIFS('Source Data'!$G$2:$G$157681,'Source Data'!$F$2:$F$157681,'Worst Day Profile (AZ)'!$A$1,'Source Data'!$A$2:$A$157681,'Worst Day Profile (AZ)'!$A28,'Source Data'!$E$2:$E$157681,'Worst Day Profile (AZ)'!W$2) -> 0.46 | X28: =SUMIFS('Source Data'!$G$2:$G$157681,'Source Data'!$F$2:$F$157681,'Worst Day Profile (AZ)'!$A$1,'Source Data'!$A$2:$A$157681,'Worst Day Profile (AZ)'!$A28,'Source Data'!$E$2:$E$157681,'Worst Day Profile (AZ)'!X$2) -> 0.44 | Y28: =SUMIFS('Source Data'!$G$2:$G$157681,'Source Data'!$F$2:$F$157681,'Worst Day Profile (AZ)'!$A$1,'Source Data'!$A$2:$A$157681,'Worst Day Profile (AZ)'!$A28,'Source Data'!$E$2:$E$157681,'Worst Day Profile (AZ)'!Y$2) -> 0.32 | Z28: =SUMIFS('Source Data'!$G$2:$G$157681,'Source Data'!$F$2:$F$157681,'Worst Day Profile (AZ)'!$A$1,'Source Data'!$A$2:$A$157681,'Worst Day Profile (AZ)'!$A28,'Source Data'!$E$2:$E$157681,'Worst Day Profile (AZ)'!Z$2) -> 0.25
A29: 2018-06-13 | B29: 6 | C29: =SUMIFS('Source Data'!$G$2:$G$157681,'Source Data'!$F$2:$F$157681,'Worst Day Profile (AZ)'!$A$1,'Source Data'!$A$2:$A$157681,'Worst Day Profile (AZ)'!$A29,'Source Data'!$E$2:$E$157681,'Worst Day Profile (AZ)'!C$2) -> 0.25 | D29: =SUMIFS('Source Data'!$G$2:$G$157681,'Source Data'!$F$2:$F$157681,'Worst Day Profile (AZ)'!$A$1,'Source Data'!$A$2:$A$157681,'Worst Day Profile (AZ)'!$A29,'Source Data'!$E$2:$E$157681,'Worst Day Profile (AZ)'!D$2) -> 0.23 | E29: =SUMIFS('Source Data'!$G$2:$G$157681,'Source Data'!$F$2:$F$157681,'Worst Day Profile (AZ)'!$A$1,'Source Data'!$A$2:$A$157681,'Worst Day Profile (AZ)'!$A29,'Source Data'!$E$2:$E$157681,'Worst Day Profile (AZ)'!E$2) -> 0.24 | F29: =SUMIFS('Source Data'!$G$2:$G$157681,'Source Data'!$F$2:$F$157681,'Worst Day Profile (AZ)'!$A$1,'Source Data'!$A$2:$A$157681,'Worst Day Profile (AZ)'!$A29,'Source Data'!$E$2:$E$157681,'Worst Day Profile (AZ)'!F$2) -> 0.24 | G29: =SUMIFS('Source Data'!$G$2:$G$157681,'Source Data'!$F$2:$F$157681,'Worst Day Profile (AZ)'!$A$1,'Source Data'!$A$2:$A$157681,'Worst Day Profile (AZ)'!$A29,'Source Data'!$E$2:$E$157681,'Worst Day Profile (AZ)'!G$2) -> 0.24 | H29: =SUMIFS('Source Data'!$G$2:$G$157681,'Source Data'!$F$2:$F$157681,'Worst Day Profile (AZ)'!$A$1,'Source Data'!$A$2:$A$157681,'Worst Day Profile (AZ)'!$A29,'Source Data'!$E$2:$E$157681,'Worst Day Profile (AZ)'!H$2) -> 0.21 | I29: =SUMIFS('Source Data'!$G$2:$G$157681,'Source Data'!$F$2:$F$157681,'Worst Day Profile (AZ)'!$A$1,'Source Data'!$A$2:$A$157681,'Worst Day Profile (AZ)'!$A29,'Source Data'!$E$2:$E$157681,'Worst Day Profile (AZ)'!I$2) -> 0.17 | J29: =SUMIFS('Source Data'!$G$2:$G$157681,'Source Data'!$F$2:$F$157681,'Worst Day Profile (AZ)'!$A$1,'Source Data'!$A$2:$A$157681,'Worst Day Profile (AZ)'!$A29,'Source Data'!$E$2:$E$157681,'Worst Day Profile (AZ)'!J$2) -> 0.24 | K29: =SUMIFS('Source Data'!$G$2:$G$157681,'Source Data'!$F$2:$F$157681,'Worst Day Profile (AZ)'!$A$1,'Source Data'!$A$2:$A$157681,'Worst Day Profile (AZ)'!$A29,'Source Data'!$E$2:$E$157681,'Worst Day Profile (AZ)'!K$2) -> 0.34 | L29: =SUMIFS('Source Data'!$G$2:$G$157681,'Source Data'!$F$2:$F$157681,'Worst Day Profile (AZ)'!$A$1,'Source Data'!$A$2:$A$157681,'Worst Day Profile (AZ)'!$A29,'Source Data'!$E$2:$E$157681,'Worst Day Profile (AZ)'!L$2) -> 0.52 | M29: =SUMIFS('Source Data'!$G$2:$G$157681,'Source Data'!$F$2:$F$157681,'Worst Day Profile (AZ)'!$A$1,'Source Data'!$A$2:$A$157681,'Worst Day Profile (AZ)'!$A29,'Source Data'!$E$2:$E$157681,'Worst Day Profile (AZ)'!M$2) -> 0.69 | N29: =SUMIFS('Source Data'!$G$2:$G$157681,'Source Data'!$F$2:$F$157681,'Worst Day Profile (AZ)'!$A$1,'Source Data'!$A$2:$A$157681,'Worst Day Profile (AZ)'!$A29,'Source Data'!$E$2:$E$157681,'Worst Day Profile (AZ)'!N$2) -> 0.78 | O29: =SUMIFS('Source Data'!$G$2:$G$157681,'Source Data'!$F$2:$F$157681,'Worst Day Profile (AZ)'!$A$1,'Source Data'!$A$2:$A$157681,'Worst Day Profile (AZ)'!$A29,'Source Data'!$E$2:$E$157681,'Worst Day Profile (AZ)'!O$2) -> 0.84 | P29: =SUMIFS('Source Data'!$G$2:$G$157681,'Source Data'!$F$2:$F$157681,'Worst Day Profile (AZ)'!$A$1,'Source Data'!$A$2:$A$157681,'Worst Day Profile (AZ)'!$A29,'Source Data'!$E$2:$E$157681,'Worst Day Profile (AZ)'!P$2) -> 0.77 | Q29: =SUMIFS('Source Data'!$G$2:$G$157681,'Source Data'!$F$2:$F$157681,'Worst Day Profile (AZ)'!$A$1,'Source Data'!$A$2:$A$157681,'Worst Day Profile (AZ)'!$A29,'Source Data'!$E$2:$E$157681,'Worst Day Profile (AZ)'!Q$2) -> 0.6 | R29: =SUMIFS('Source Data'!$G$2:$G$157681,'Source Data'!$F$2:$F$157681,'Worst Day Profile (AZ)'!$A$1,'Source Data'!$A$2:$A$157681,'Worst Day Profile (AZ)'!$A29,'Source Data'!$E$2:$E$157681,'Worst Day Profile (AZ)'!R$2) -> 0.55 | S29: =SUMIFS('Source Data'!$G$2:$G$157681,'Source Data'!$F$2:$F$157681,'Worst Day Profile (AZ)'!$A$1,'Source Data'!$A$2:$A$157681,'Worst Day Profile (AZ)'!$A29,'Source Data'!$E$2:$E$157681,'Worst Day Profile (AZ)'!S$2) -> 0.46 | T29: =SUMIFS('Source Data'!$G$2:$G$157681,'Source Data'!$F$2:$F$157681,'Worst Day Profile (AZ)'!$A$1,'Source Data'!$A$2:$A$157681,'Worst Day Profile (AZ)'!$A29,'Source Data'!$E$2:$E$157681,'Worst Day Profile (AZ)'!T$2) -> 0.38 | U29: =SUMIFS('Source Data'!$G$2:$G$157681,'Source Data'!$F$2:$F$157681,'Worst Day Profile (AZ)'!$A$1,'Source Data'!$A$2:$A$157681,'Worst Day Profile (AZ)'!$A29,'Source Data'!$E$2:$E$157681,'Worst Day Profile (AZ)'!U$2) -> 0.4 | V29: =SUMIFS('Source Data'!$G$2:$G$157681,'Source Data'!$F$2:$F$157681,'Worst Day Profile (AZ)'!$A$1,'Source Data'!$A$2:$A$157681,'Worst Day Profile (AZ)'!$A29,'Source Data'!$E$2:$E$157681,'Worst Day Profile (AZ)'!V$2) -> 0.39 | W29: =SUMIFS('Source Data'!$G$2:$G$157681,'Source Data'!$F$2:$F$157681,'Worst Day Profile (AZ)'!$A$1,'Source Data'!$A$2:$A$157681,'Worst Day Profile (AZ)'!$A29,'Source Data'!$E$2:$E$157681,'Worst Day Profile (AZ)'!W$2) -> 0.48 | X29: =SUMIFS('Source Data'!$G$2:$G$157681,'Source Data'!$F$2:$F$157681,'Worst Day Profile (AZ)'!$A$1,'Source Data'!$A$2:$A$157681,'Worst Day Profile (AZ)'!$A29,'Source Data'!$E$2:$E$157681,'Worst Day Profile (AZ)'!X$2) -> 0.57 | Y29: =SUMIFS('Source Data'!$G$2:$G$157681,'Source Data'!$F$2:$F$157681,'Worst Day Profile (AZ)'!$A$1,'Source Data'!$A$2:$A$157681,'Worst Day Profile (AZ)'!$A29,'Source Data'!$E$2:$E$157681,'Worst Day Profile (AZ)'!Y$2) -> 0.66 | Z29: =SUMIFS('Source Data'!$G$2:$G$157681,'Source Data'!$F$2:$F$157681,'Worst Day Profile (AZ)'!$A$1,'Source Data'!$A$2:$A$157681,'Worst Day Profile (AZ)'!$A29,'Source Data'!$E$2:$E$157681,'Worst Day Profile (AZ)'!Z$2) -> 0.7
A30: 2018-06-12 | B30: 6 | C30: =SUMIFS('Source Data'!$G$2:$G$157681,'Source Data'!$F$2:$F$157681,'Worst Day Profile (AZ)'!$A$1,'Source Data'!$A$2:$A$157681,'Worst Day Profile (AZ)'!$A30,'Source Data'!$E$2:$E$157681,'Worst Day Profile (AZ)'!C$2) -> 0.3 | D30: =SUMIFS('Source Data'!$G$2:$G$157681,'Source Data'!$F$2:$F$157681,'Worst Day Profile (AZ)'!$A$1,'Source Data'!$A$2:$A$157681,'Worst Day Profile (AZ)'!$A30,'Source Data'!$E$2:$E$157681,'Worst Day Profile (AZ)'!D$2) -> 0.21 | E30: =SUMIFS('Source Data'!$G$2:$G$157681,'Source Data'!$F$2:$F$157681,'Worst Day Profile (AZ)'!$A$1,'Source Data'!$A$2:$A$157681,'Worst Day Profile (AZ)'!$A30,'Source Data'!$E$2:$E$157681,'Worst Day Profile (AZ)'!E$2) -> 0.15 | F30: =SUMIFS('Source Data'!$G$2:$G$157681,'Source Data'!$F$2:$F$157681,'Worst Day Profile (AZ)'!$A$1,'Source Data'!$A$2:$A$157681,'Worst Day Profile (AZ)'!$A30,'Source Data'!$E$2:$E$157681,'Worst Day Profile (AZ)'!F$2) -> 0.12 | G30: =SUMIFS('Source Data'!$G$2:$G$157681,'Source Data'!$F$2:$F$157681,'Worst Day Profile (AZ)'!$A$1,'Source Data'!$A$2:$A$157681,'Worst Day Profile (AZ)'!$A30,'Source Data'!$E$2:$E$157681,'Worst Day Profile (AZ)'!G$2) -> 0.1 | H30: =SUMIFS('Source Data'!$G$2:$G$157681,'Source Data'!$F$2:$F$157681,'Worst Day Profile (AZ)'!$A$1,'Source Data'!$A$2:$A$157681,'Worst Day Profile (AZ)'!$A30,'Source Data'!$E$2:$E$157681,'Worst Day Profile (AZ)'!H$2) -> 0.12 | I30: =SUMIFS('Source Data'!$G$2:$G$157681,'Source Data'!$F$2:$F$157681,'Worst Day Profile (AZ)'!$A$1,'Source Data'!$A$2:$A$157681,'Worst Day Profile (AZ)'!$A30,'Source Data'!$E$2:$E$157681,'Worst Day Profile (AZ)'!I$2) -> 0.09 | J30: =SUMIFS('Source Data'!$G$2:$G$157681,'Source Data'!$F$2:$F$157681,'Worst Day Profile (AZ)'!$A$1,'Source Data'!$A$2:$A$157681,'Worst Day Profile (AZ)'!$A30,'Source Data'!$E$2:$E$157681,'Worst Day Profile (AZ)'!J$2) -> 0.05 | K30: =SUMIFS('Source Data'!$G$2:$G$157681,'Source Data'!$F$2:$F$157681,'Worst Day Profile (AZ)'!$A$1,'Source Data'!$A$2:$A$157681,'Worst Day Profile (AZ)'!$A30,'Source Data'!$E$2:$E$157681,'Worst Day Profile (AZ)'!K$2) -> 0.05 | L30: =SUMIFS('Source Data'!$G$2:$G$157681,'Source Data'!$F$2:$F$157681,'Worst Day Profile (AZ)'!$A$1,'Source Data'!$A$2:$A$157681,'Worst Day Profile (AZ)'!$A30,'Source Data'!$E$2:$E$157681,'Worst Day Profile (AZ)'!L$2) -> 0.07 | M30: =SUMIFS('Source Data'!$G$2:$G$157681,'Source Data'!$F$2:$F$157681,'Worst Day Profile (AZ)'!$A$1,'Source Data'!$A$2:$A$157681,'Worst Day Profile (AZ)'!$A30,'Source Data'!$E$2:$E$157681,'Worst Day Profile (AZ)'!M$2) -> 0.14 | N30: =SUMIFS('Source Data'!$G$2:$G$157681,'Source Data'!$F$2:$F$157681,'Worst Day Profile (AZ)'!$A$1,'Source Data'!$A$2:$A$157681,'Worst Day Profile (AZ)'!$A30,'Source Data'!$E$2:$E$157681,'Worst Day Profile (AZ)'!N$2) -> 0.25 | O30: =SUMIFS('Source Data'!$G$2:$G$157681,'Source Data'!$F$2:$F$157681,'Worst Day Profile (AZ)'!$A$1,'Source Data'!$A$2:$A$157681,'Worst Day Profile (AZ)'!$A30,'Source Data'!$E$2:$E$157681,'Worst Day Profile (AZ)'!O$2) -> 0.34 | P30: =SUMIFS('Source Data'!$G$2:$G$157681,'Source Data'!$F$2:$F$157681,'Worst Day Profile (AZ)'!$A$1,'Source Data'!$A$2:$A$157681,'Worst Day Profile (AZ)'!$A30,'Source Data'!$E$2:$E$157681,'Worst Day Profile (AZ)'!P$2) -> 0.39 | Q30: =SUMIFS('Source Data'!$G$2:$G$157681,'Source Data'!$F$2:$F$157681,'Worst Day Profile (AZ)'!$A$1,'Source Data'!$A$2:$A$157681,'Worst Day Profile (AZ)'!$A30,'Source Data'!$E$2:$E$157681,'Worst Day Profile (AZ)'!Q$2) -> 0.42 | R30: =SUMIFS('Source Data'!$G$2:$G$157681,'Source Data'!$F$2:$F$157681,'Worst Day Profile (AZ)'!$A$1,'Source Data'!$A$2:$A$157681,'Worst Day Profile (AZ)'!$A30,'Source Data'!$E$2:$E$157681,'Worst Day Profile (AZ)'!R$2) -> 0.54 | S30: =SUMIFS('Source Data'!$G$2:$G$157681,'Source Data'!$F$2:$F$157681,'Worst Day Profile (AZ)'!$A$1,'Source Data'!$A$2:$A$157681,'Worst Day Profile (AZ)'!$A30,'Source Data'!$E$2:$E$157681,'Worst Day Profile (AZ)'!S$2) -> 0.6 | T30: =SUMIFS('Source Data'!$G$2:$G$157681,'Source Data'!$F$2:$F$157681,'Worst Day Profile (AZ)'!$A$1,'Source Data'!$A$2:$A$157681,'Worst Day Profile (AZ)'!$A30,'Source Data'!$E$2:$E$157681,'Worst Day Profile (AZ)'!T$2) -> 0.61 | U30: =SUMIFS('Source Data'!$G$2:$G$157681,'Source Data'!$F$2:$F$157681,'Worst Day Profile (AZ)'!$A$1,'Source Data'!$A$2:$A$157681,'Worst Day Profile (AZ)'!$A30,'Source Data'!$E$2:$E$157681,'Worst Day Profile (AZ)'!U$2) -> 0.59 | V30: =SUMIFS('Source Data'!$G$2:$G$157681,'Source Data'!$F$2:$F$157681,'Worst Day Profile (AZ)'!$A$1,'Source Data'!$A$2:$A$157681,'Worst Day Profile (AZ)'!$A30,'Source Data'!$E$2:$E$157681,'Worst Day Profile (AZ)'!V$2) -> 0.46 | W30: =SUMIFS('Source Data'!$G$2:$G$157681,'Source Data'!$F$2:$F$157681,'Worst Day Profile (AZ)'!$A$1,'Source Data'!$A$2:$A$157681,'Worst Day Profile (AZ)'!$A30,'Source Data'!$E$2:$E$157681,'Worst Day Profile (AZ)'!W$2) -> 0.32 | X30: =SUMIFS('Source Data'!$G$2:$G$157681,'Source Data'!$F$2:$F$157681,'Worst Day Profile (AZ)'!$A$1,'Source Data'!$A$2:$A$157681,'Worst Day Profile (AZ)'!$A30,'Source Data'!$E$2:$E$157681,'Worst Day Profile (AZ)'!X$2) -> 0.28 | Y30: =SUMIFS('Source Data'!$G$2:$G$157681,'Source Data'!$F$2:$F$157681,'Worst Day Profile (AZ)'!$A$1,'Source Data'!$A$2:$A$157681,'Worst Day Profile (AZ)'!$A30,'Source Data'!$E$2:$E$157681,'Worst Day Profile (AZ)'!Y$2) -> 0.26 | Z30: =SUMIFS('Source Data'!$G$2:$G$157681,'Source Data'!$F$2:$F$157681,'Worst Day Profile (AZ)'!$A$1,'Source Data'!$A$2:$A$157681,'Worst Day Profile (AZ)'!$A30,'Source Data'!$E$2:$E$157681,'Worst Day Profile (AZ)'!Z$2) -> 0.25
A31: 2018-06-14 | B31: 6 | C31: =SUMIFS('Source Data'!$G$2:$G$157681,'Source Data'!$F$2:$F$157681,'Worst Day Profile (AZ)'!$A$1,'Source Data'!$A$2:$A$157681,'Worst Day Profile (AZ)'!$A31,'Source Data'!$E$2:$E$157681,'Worst Day Profile (AZ)'!C$2) -> 0.69 | D31: =SUMIFS('Source Data'!$G$2:$G$157681,'Source Data'!$F$2:$F$157681,'Worst Day Profile (AZ)'!$A$1,'Source Data'!$A$2:$A$157681,'Worst Day Profile (AZ)'!$A31,'Source Data'!$E$2:$E$157681,'Worst Day Profile (AZ)'!D$2) -> 0.57 | E31: =SUMIFS('Source Data'!$G$2:$G$157681,'Source Data'!$F$2:$F$157681,'Worst Day Profile (AZ)'!$A$1,'Source Data'!$A$2:$A$157681,'Worst Day Profile (AZ)'!$A31,'Source Data'!$E$2:$E$157681,'Worst Day Profile (AZ)'!E$2) -> 0.54 | F31: =SUMIFS('Source Data'!$G$2:$G$157681,'Source Data'!$F$2:$F$157681,'Worst Day Profile (AZ)'!$A$1,'Source Data'!$A$2:$A$157681,'Worst Day Profile (AZ)'!$A31,'Source Data'!$E$2:$E$157681,'Worst Day Profile (AZ)'!F$2) -> 0.5 | G31: =SUMIFS('Source Data'!$G$2:$G$157681,'Source Data'!$F$2:$F$157681,'Worst Day Profile (AZ)'!$A$1,'Source Data'!$A$2:$A$157681,'Worst Day Profile (AZ)'!$A31,'Source Data'!$E$2:$E$157681,'Worst Day Profile (AZ)'!G$2) -> 0.46 | H31: =SUMIFS('Source Data'!$G$2:$G$157681,'Source Data'!$F$2:$F$157681,'Worst Day Profile (AZ)'!$A$1,'Source Data'!$A$2:$A$157681,'Worst Day Profile (AZ)'!$A31,'Source Data'!$E$2:$E$157681,'Worst Day Profile (AZ)'!H$2) -> 0.45 | I31: =SUMIFS('Source Data'!$G$2:$G$157681,'Source Data'!$F$2:$F$157681,'Worst Day Profile (AZ)'!$A$1,'Source Data'!$A$2:$A$157681,'Worst Day Profile (AZ)'!$A31,'Source Data'!$E$2:$E$157681,'Worst Day Profile (AZ)'!I$2) -> 0.37 | J31: =SUMIFS('Source Data'!$G$2:$G$157681,'Source Data'!$F$2:$F$157681,'Worst Day Profile (AZ)'!$A$1,'Source Data'!$A$2:$A$157681,'Worst Day Profile (AZ)'!$A31,'Source Data'!$E$2:$E$157681,'Worst Day Profile (AZ)'!J$2) -> 0.34 | K31: =SUMIFS('Source Data'!$G$2:$G$157681,'Source Data'!$F$2:$F$157681,'Worst Day Profile (AZ)'!$A$1,'Source Data'!$A$2:$A$157681,'Worst Day Profile (AZ)'!$A31,'Source Data'!$E$2:$E$157681,'Worst Day Profile (AZ)'!K$2) -> 0.34 | L31: =SUMIFS('Source Data'!$G$2:$G$157681,'Source Data'!$F$2:$F$157681,'Worst Day Profile (AZ)'!$A$1,'Source Data'!$A$2:$A$157681,'Worst Day Profile (AZ)'!$A31,'Source Data'!$E$2:$E$157681,'Worst Day Profile (AZ)'!L$2) -> 0.35 | M31: =SUMIFS('Source Data'!$G$2:$G$157681,'Source Data'!$F$2:$F$157681,'Worst Day Profile (AZ)'!$A$1,'Source Data'!$A$2:$A$157681,'Worst Day Profile (AZ)'!$A31,'Source Data'!$E$2:$E$157681,'Worst Day Profile (AZ)'!M$2) -> 0.36 | N31: =SUMIFS('Source Data'!$G$2:$G$157681,'Source Data'!$F$2:$F$157681,'Worst Day Profile (AZ)'!$A$1,'Source Data'!$A$2:$A$157681,'Worst Day Profile (AZ)'!$A31,'Source Data'!$E$2:$E$157681,'Worst Day Profile (AZ)'!N$2) -> 0.35 | O31: =SUMIFS('Source Data'!$G$2:$G$157681,'Source Data'!$F$2:$F$157681,'Worst Day Profile (AZ)'!$A$1,'Source Data'!$A$2:$A$157681,'Worst Day Profile (AZ)'!$A31,'Source Data'!$E$2:$E$157681,'Worst Day Profile (AZ)'!O$2) -> 0.32 | P31: =SUMIFS('Source Data'!$G$2:$G$157681,'Source Data'!$F$2:$F$157681,'Worst Day Profile (AZ)'!$A$1,'Source Data'!$A$2:$A$157681,'Worst Day Profile (AZ)'!$A31,'Source Data'!$E$2:$E$157681,'Worst Day Profile (AZ)'!P$2) -> 0.29 | Q31: =SUMIFS('Source Data'!$G$2:$G$157681,'Source Data'!$F$2:$F$157681,'Worst Day Profile (AZ)'!$A$1,'Source Data'!$A$2:$A$157681,'Worst Day Profile (AZ)'!$A31,'Source Data'!$E$2:$E$157681,'Worst Day Profile (AZ)'!Q$2) -> 0.27 | R31: =SUMIFS('Source Data'!$G$2:$G$157681,'Source Data'!$F$2:$F$157681,'Worst Day Profile (AZ)'!$A$1,'Source Data'!$A$2:$A$157681,'Worst Day Profile (AZ)'!$A31,'Source Data'!$E$2:$E$157681,'Worst Day Profile (AZ)'!R$2) -> 0.26 | S31: =SUMIFS('Source Data'!$G$2:$G$157681,'Source Data'!$F$2:$F$157681,'Worst Day Profile (AZ)'!$A$1,'Source Data'!$A$2:$A$157681,'Worst Day Profile (AZ)'!$A31,'Source Data'!$E$2:$E$157681,'Worst Day Profile (AZ)'!S$2) -> 0.28 | T31: =SUMIFS('Source Data'!$G$2:$G$157681,'Source Data'!$F$2:$F$157681,'Worst Day Profile (AZ)'!$A$1,'Source Data'!$A$2:$A$157681,'Worst Day Profile (AZ)'!$A31,'Source Data'!$E$2:$E$157681,'Worst Day Profile (AZ)'!T$2) -> 0.3 | U31: =SUMIFS('Source Data'!$G$2:$G$157681,'Source Data'!$F$2:$F$157681,'Worst Day Profile (AZ)'!$A$1,'Source Data'!$A$2:$A$157681,'Worst Day Profile (AZ)'!$A31,'Source Data'!$E$2:$E$157681,'Worst Day Profile (AZ)'!U$2) -> 0.38 | V31: =SUMIFS('Source Data'!$G$2:$G$157681,'Source Data'!$F$2:$F$157681,'Worst Day Profile (AZ)'!$A$1,'Source Data'!$A$2:$A$157681,'Worst Day Profile (AZ)'!$A31,'Source Data'!$E$2:$E$157681,'Worst Day Profile (AZ)'!V$2) -> 0.45 | W31: =SUMIFS('Source Data'!$G$2:$G$157681,'Source Data'!$F$2:$F$157681,'Worst Day Profile (AZ)'!$A$1,'Source Data'!$A$2:$A$157681,'Worst Day Profile (AZ)'!$A31,'Source Data'!$E$2:$E$157681,'Worst Day Profile (AZ)'!W$2) -> 0.52 | X31: =SUMIFS('Source Data'!$G$2:$G$157681,'Source Data'!$F$2:$F$157681,'Worst Day Profile (AZ)'!$A$1,'Source Data'!$A$2:$A$157681,'Worst Day Profile (AZ)'!$A31,'Source Data'!$E$2:$E$157681,'Worst Day Profile (AZ)'!X$2) -> 0.53 | Y31: =SUMIFS('Source Data'!$G$2:$G$157681,'Source Data'!$F$2:$F$157681,'Worst Day Profile (AZ)'!$A$1,'Source Data'!$A$2:$A$157681,'Worst Day Profile (AZ)'!$A31,'Source Data'!$E$2:$E$157681,'Worst Day Profile (AZ)'!Y$2) -> 0.53 | Z31: =SUMIFS('Source Data'!$G$2:$G$157681,'Source Data'!$F$2:$F$157681,'Worst Day Profile (AZ)'!$A$1,'Source Data'!$A$2:$A$157681,'Worst Day Profile (AZ)'!$A31,'Source Data'!$E$2:$E$157681,'Worst Day Profile (AZ)'!Z$2) -> 0.51
A32: 2018-06-26 | B32: 6 | C32: =SUMIFS('Source Data'!$G$2:$G$157681,'Source Data'!$F$2:$F$157681,'Worst Day Profile (AZ)'!$A$1,'Source Data'!$A$2:$A$157681,'Worst Day Profile (AZ)'!$A32,'Source Data'!$E$2:$E$157681,'Worst Day Profile (AZ)'!C$2) -> 0.05 | D32: =SUMIFS('Source Data'!$G$2:$G$157681,'Source Data'!$F$2:$F$157681,'Worst Day Profile (AZ)'!$A$1,'Source Data'!$A$2:$A$157681,'Worst Day Profile (AZ)'!$A32,'Source Data'!$E$2:$E$157681,'Worst Day Profile (AZ)'!D$2) -> 0.06 | E32: =SUMIFS('Source Data'!$G$2:$G$157681,'Source Data'!$F$2:$F$157681,'Worst Day Profile (AZ)'!$A$1,'Source Data'!$A$2:$A$157681,'Worst Day Profile (AZ)'!$A32,'Source Data'!$E$2:$E$157681,'Worst Day Profile (AZ)'!E$2) -> 0.09 | F32: =SUMIFS('Source Data'!$G$2:$G$157681,'Source Data'!$F$2:$F$157681,'Worst Day Profile (AZ)'!$A$1,'Source Data'!$A$2:$A$157681,'Worst Day Profile (AZ)'!$A32,'Source Data'!$E$2:$E$157681,'Worst Day Profile (AZ)'!F$2) -> 0.14 | G32: =SUMIFS('Source Data'!$G$2:$G$157681,'Source Data'!$F$2:$F$157681,'Worst Day Profile (AZ)'!$A$1,'Source Data'!$A$2:$A$157681,'Worst Day Profile (AZ)'!$A32,'Source Data'!$E$2:$E$157681,'Worst Day Profile (AZ)'!G$2) -> 0.17 | H32: =SUMIFS('Source Data'!$G$2:$G$157681,'Source Data'!$F$2:$F$157681,'Worst Day Profile (AZ)'!$A$1,'Source Data'!$A$2:$A$157681,'Worst Day Profile (AZ)'!$A32,'Source Data'!$E$2:$E$157681,'Worst Day Profile (AZ)'!H$2) -> 0.21 | I32: =SUMIFS('Source Data'!$G$2:$G$157681,'Source Data'!$F$2:$F$157681,'Worst Day Profile (AZ)'!$A$1,'Source Data'!$A$2:$A$157681,'Worst Day Profile (AZ)'!$A32,'Source Data'!$E$2:$E$157681,'Worst Day Profile (AZ)'!I$2) -> 0.22 | J32: =SUMIFS('Source Data'!$G$2:$G$157681,'Source Data'!$F$2:$F$157681,'Worst Day Profile (AZ)'!$A$1,'Source Data'!$A$2:$A$157681,'Worst Day Profile (AZ)'!$A32,'Source Data'!$E$2:$E$157681,'Worst Day Profile (AZ)'!J$2) -> 0.23 | K32: =SUMIFS('Source Data'!$G$2:$G$157681,'Source Data'!$F$2:$F$157681,'Worst Day Profile (AZ)'!$A$1,'Source Data'!$A$2:$A$157681,'Worst Day Profile (AZ)'!$A32,'Source Data'!$E$2:$E$157681,'Worst Day Profile (AZ)'!K$2) -> 0.23 | L32: =SUMIFS('Source Data'!$G$2:$G$157681,'Source Data'!$F$2:$F$157681,'Worst Day Profile (AZ)'!$A$1,'Source Data'!$A$2:$A$157681,'Worst Day Profile (AZ)'!$A32,'Source Data'!$E$2:$E$157681,'Worst Day Profile (AZ)'!L$2) -> 0.19 | M32: =SUMIFS('Source Data'!$G$2:$G$157681,'Source Data'!$F$2:$F$157681,'Worst Day Profile (AZ)'!$A$1,'Source Data'!$A$2:$A$157681,'Worst Day Profile (AZ)'!$A32,'Source Data'!$E$2:$E$157681,'Worst Day Profile (AZ)'!M$2) -> 0.12 | N32: =SUMIFS('Source Data'!$G$2:$G$157681,'Source Data'!$F$2:$F$157681,'Worst Day Profile (AZ)'!$A$1,'Source Data'!$A$2:$A$157681,'Worst Day Profile (AZ)'!$A32,'Source Data'!$E$2:$E$157681,'Worst Day Profile (AZ)'!N$2) -> 0.05 | O32: =SUMIFS('Source Data'!$G$2:$G$157681,'Source Data'!$F$2:$F$157681,'Worst Day Profile (AZ)'!$A$1,'Source Data'!$A$2:$A$157681,'Worst Day Profile (AZ)'!$A32,'Source Data'!$E$2:$E$157681,'Worst Day Profile (AZ)'!O$2) -> 0.02 | P32: =SUMIFS('Source Data'!$G$2:$G$157681,'Source Data'!$F$2:$F$157681,'Worst Day Profile (AZ)'!$A$1,'Source Data'!$A$2:$A$157681,'Worst Day Profile (AZ)'!$A32,'Source Data'!$E$2:$E$157681,'Worst Day Profile (AZ)'!P$2) -> 0.02 | Q32: =SUMIFS('Source Data'!$G$2:$G$157681,'Source Data'!$F$2:$F$157681,'Worst Day Profile (AZ)'!$A$1,'Source Data'!$A$2:$A$157681,'Worst Day Profile (AZ)'!$A32,'Source Data'!$E$2:$E$157681,'Worst Day Profile (AZ)'!Q$2) -> 0.04 | R32: =SUMIFS('Source Data'!$G$2:$G$157681,'Source Data'!$F$2:$F$157681,'Worst Day Profile (AZ)'!$A$1,'Source Data'!$A$2:$A$157681,'Worst Day Profile (AZ)'!$A32,'Source Data'!$E$2:$E$157681,'Worst Day Profile (AZ)'!R$2) -> 0.06 | S32: =SUMIFS('Source Data'!$G$2:$G$157681,'Source Data'!$F$2:$F$157681,'Worst Day Profile (AZ)'!$A$1,'Source Data'!$A$2:$A$157681,'Worst Day Profile (AZ)'!$A32,'Source Data'!$E$2:$E$157681,'Worst Day Profile (AZ)'!S$2) -> 0.1 | T32: =SUMIFS('Source Data'!$G$2:$G$157681,'Source Data'!$F$2:$F$157681,'Worst Day Profile (AZ)'!$A$1,'Source Data'!$A$2:$A$157681,'Worst Day Profile (AZ)'!$A32,'Source Data'!$E$2:$E$157681,'Worst Day Profile (AZ)'!T$2) -> 0.14 | U32: =SUMIFS('Source Data'!$G$2:$G$157681,'Source Data'!$F$2:$F$157681,'Worst Day Profile (AZ)'!$A$1,'Source Data'!$A$2:$A$157681,'Worst Day Profile (AZ)'!$A32,'Source Data'!$E$2:$E$157681,'Worst Day Profile (AZ)'!U$2) -> 0.16 | V32: =SUMIFS('Source Data'!$G$2:$G$157681,'Source Data'!$F$2:$F$157681,'Worst Day Profile (AZ)'!$A$1,'Source Data'!$A$2:$A$157681,'Worst Day Profile (AZ)'!$A32,'Source Data'!$E$2:$E$157681,'Worst Day Profile (AZ)'!V$2) -> 0.18 | W32: =SUMIFS('Source Data'!$G$2:$G$157681,'Source Data'!$F$2:$F$157681,'Worst Day Profile (AZ)'!$A$1,'Source Data'!$A$2:$A$157681,'Worst Day Profile (AZ)'!$A32,'Source Data'!$E$2:$E$157681,'Worst Day Profile (AZ)'!W$2) -> 0.2 | X32: =SUMIFS('Source Data'!$G$2:$G$157681,'Source Data'!$F$2:$F$157681,'Worst Day Profile (AZ)'!$A$1,'Source Data'!$A$2:$A$157681,'Worst Day Profile (AZ)'!$A32,'Source Data'!$E$2:$E$157681,'Worst Day Profile (AZ)'!X$2) -> 0.24 | Y32: =SUMIFS('Source Data'!$G$2:$G$157681,'Source Data'!$F$2:$F$157681,'Worst Day Profile (AZ)'!$A$1,'Source Data'!$A$2:$A$157681,'Worst Day Profile (AZ)'!$A32,'Source Data'!$E$2:$E$157681,'Worst Day Profile (AZ)'!Y$2) -> 0.26 | Z32: =SUMIFS('Source Data'!$G$2:$G$157681,'Source Data'!$F$2:$F$157681,'Worst Day Profile (AZ)'!$A$1,'Source Data'!$A$2:$A$157681,'Worst Day Profile (AZ)'!$A32,'Source Data'!$E$2:$E$157681,'Worst Day Profile (AZ)'!Z$2) -> 0.29
A33: 2018-07-25 | B33: 7 | C33: =SUMIFS('Source Data'!$G$2:$G$157681,'Source Data'!$F$2:$F$157681,'Worst Day Profile (AZ)'!$A$1,'Source Data'!$A$2:$A$157681,'Worst Day Profile (AZ)'!$A33,'Source Data'!$E$2:$E$157681,'Worst Day Profile (AZ)'!C$2) -> 0.13 | D33: =SUMIFS('Source Data'!$G$2:$G$157681,'Source Data'!$F$2:$F$157681,'Worst Day Profile (AZ)'!$A$1,'Source Data'!$A$2:$A$157681,'Worst Day Profile (AZ)'!$A33,'Source Data'!$E$2:$E$157681,'Worst Day Profile (AZ)'!D$2) -> 0.13 | E33: =SUMIFS('Source Data'!$G$2:$G$157681,'Source Data'!$F$2:$F$157681,'Worst Day Profile (AZ)'!$A$1,'Source Data'!$A$2:$A$157681,'Worst Day Profile (AZ)'!$A33,'Source Data'!$E$2:$E$157681,'Worst Day Profile (AZ)'!E$2) -> 0.14 | F33: =SUMIFS('Source Data'!$G$2:$G$157681,'Source Data'!$F$2:$F$157681,'Worst Day Profile (AZ)'!$A$1,'Source Data'!$A$2:$A$157681,'Worst Day Profile (AZ)'!$A33,'Source Data'!$E$2:$E$157681,'Worst Day Profile (AZ)'!F$2) -> 0.15 | G33: =SUMIFS('Source Data'!$G$2:$G$157681,'Source Data'!$F$2:$F$157681,'Worst Day Profile (AZ)'!$A$1,'Source Data'!$A$2:$A$157681,'Worst Day Profile (AZ)'!$A33,'Source Data'!$E$2:$E$157681,'Worst Day Profile (AZ)'!G$2) -> 0.18 | H33: =SUMIFS('Source Data'!$G$2:$G$157681,'Source Data'!$F$2:$F$157681,'Worst Day Profile (AZ)'!$A$1,'Source Data'!$A$2:$A$157681,'Worst Day Profile (AZ)'!$A33,'Source Data'!$E$2:$E$157681,'Worst Day Profile (AZ)'!H$2) -> 0.2 | I33: =SUMIFS('Source Data'!$G$2:$G$157681,'Source Data'!$F$2:$F$157681,'Worst Day Profile (AZ)'!$A$1,'Source Data'!$A$2:$A$157681,'Worst Day Profile (AZ)'!$A33,'Source Data'!$E$2:$E$157681,'Worst Day Profile (AZ)'!I$2) -> 0.19 | J33: =SUMIFS('Source Data'!$G$2:$G$157681,'Source Data'!$F$2:$F$157681,'Worst Day Profile (AZ)'!$A$1,'Source Data'!$A$2:$A$157681,'Worst Day Profile (AZ)'!$A33,'Source Data'!$E$2:$E$157681,'Worst Day Profile (AZ)'!J$2) -> 0.18 | K33: =SUMIFS('Source Data'!$G$2:$G$157681,'Source Data'!$F$2:$F$157681,'Worst Day Profile (AZ)'!$A$1,'Source Data'!$A$2:$A$157681,'Worst Day Profile (AZ)'!$A33,'Source Data'!$E$2:$E$157681,'Worst Day Profile (AZ)'!K$2) -> 0.18 | L33: =SUMIFS('Source Data'!$G$2:$G$157681,'Source Data'!$F$2:$F$157681,'Worst Day Profile (AZ)'!$A$1,'Source Data'!$A$2:$A$157681,'Worst Day Profile (AZ)'!$A33,'Source Data'!$E$2:$E$157681,'Worst Day Profile (AZ)'!L$2) -> 0.17 | M33: =SUMIFS('Source Data'!$G$2:$G$157681,'Source Data'!$F$2:$F$157681,'Worst Day Profile (AZ)'!$A$1,'Source Data'!$A$2:$A$157681,'Worst Day Profile (AZ)'!$A33,'Source Data'!$E$2:$E$157681,'Worst Day Profile (AZ)'!M$2) -> 0.16 | N33: =SUMIFS('Source Data'!$G$2:$G$157681,'Source Data'!$F$2:$F$157681,'Worst Day Profile (AZ)'!$A$1,'Source Data'!$A$2:$A$157681,'Worst Day Profile (AZ)'!$A33,'Source Data'!$E$2:$E$157681,'Worst Day Profile (AZ)'!N$2) -> 0.22 | O33: =SUMIFS('Source Data'!$G$2:$G$157681,'Source Data'!$F$2:$F$157681,'Worst Day Profile (AZ)'!$A$1,'Source Data'!$A$2:$A$157681,'Worst Day Profile (AZ)'!$A33,'Source Data'!$E$2:$E$157681,'Worst Day Profile (AZ)'!O$2) -> 0.29 | P33: =SUMIFS('Source Data'!$G$2:$G$157681,'Source Data'!$F$2:$F$157681,'Worst Day Profile (AZ)'!$A$1,'Source Data'!$A$2:$A$157681,'Worst Day Profile (AZ)'!$A33,'Source Data'!$E$2:$E$157681,'Worst Day Profile (AZ)'!P$2) -> 0.37 | Q33: =SUMIFS('Source Data'!$G$2:$G$157681,'Source Data'!$F$2:$F$157681,'Worst Day Profile (AZ)'!$A$1,'Source Data'!$A$2:$A$157681,'Worst Day Profile (AZ)'!$A33,'Source Data'!$E$2:$E$157681,'Worst Day Profile (AZ)'!Q$2) -> 0.41 | R33: =SUMIFS('Source Data'!$G$2:$G$157681,'Source Data'!$F$2:$F$157681,'Worst Day Profile (AZ)'!$A$1,'Source Data'!$A$2:$A$157681,'Worst Day Profile (AZ)'!$A33,'Source Data'!$E$2:$E$157681,'Worst Day Profile (AZ)'!R$2) -> 0.34 | S33: =SUMIFS('Source Data'!$G$2:$G$157681,'Source Data'!$F$2:$F$157681,'Worst Day Profile (AZ)'!$A$1,'Source Data'!$A$2:$A$157681,'Worst Day Profile (AZ)'!$A33,'Source Data'!$E$2:$E$157681,'Worst Day Profile (AZ)'!S$2) -> 0.22 | T33: =SUMIFS('Source Data'!$G$2:$G$157681,'Source Data'!$F$2:$F$157681,'Worst Day Profile (AZ)'!$A$1,'Source Data'!$A$2:$A$157681,'Worst Day Profile (AZ)'!$A33,'Source Data'!$E$2:$E$157681,'Worst Day Profile (AZ)'!T$2) -> 0.14 | U33: =SUMIFS('Source Data'!$G$2:$G$157681,'Source Data'!$F$2:$F$157681,'Worst Day Profile (AZ)'!$A$1,'Source Data'!$A$2:$A$157681,'Worst Day Profile (AZ)'!$A33,'Source Data'!$E$2:$E$157681,'Worst Day Profile (AZ)'!U$2) -> 0.11 | V33: =SUMIFS('Source Data'!$G$2:$G$157681,'Source Data'!$F$2:$F$157681,'Worst Day Profile (AZ)'!$A$1,'Source Data'!$A$2:$A$157681,'Worst Day Profile (AZ)'!$A33,'Source Data'!$E$2:$E$157681,'Worst Day Profile (AZ)'!V$2) -> 0.15 | W33: =SUMIFS('Source Data'!$G$2:$G$157681,'Source Data'!$F$2:$F$157681,'Worst Day Profile (AZ)'!$A$1,'Source Data'!$A$2:$A$157681,'Worst Day Profile (AZ)'!$A33,'Source Data'!$E$2:$E$157681,'Worst Day Profile (AZ)'!W$2) -> 0.28 | X33: =SUMIFS('Source Data'!$G$2:$G$157681,'Source Data'!$F$2:$F$157681,'Worst Day Profile (AZ)'!$A$1,'Source Data'!$A$2:$A$157681,'Worst Day Profile (AZ)'!$A33,'Source Data'!$E$2:$E$157681,'Worst Day Profile (AZ)'!X$2) -> 0.34 | Y33: =SUMIFS('Source Data'!$G$2:$G$157681,'Source Data'!$F$2:$F$157681,'Worst Day Profile (AZ)'!$A$1,'Source Data'!$A$2:$A$157681,'Worst Day Profile (AZ)'!$A33,'Source Data'!$E$2:$E$157681,'Worst Day Profile (AZ)'!Y$2) -> 0.39 | Z33: =SUMIFS('Source Data'!$G$2:$G$157681,'Source Data'!$F$2:$F$157681,'Worst Day Profile (AZ)'!$A$1,'Source Data'!$A$2:$A$157681,'Worst Day Profile (AZ)'!$A33,'Source Data'!$E$2:$E$157681,'Worst Day Profile (AZ)'!Z$2) -> 0.36
A34: 2018-07-24 | B34: 7 | C34: =SUMIFS('Source Data'!$G$2:$G$157681,'Source Data'!$F$2:$F$157681,'Worst Day Profile (AZ)'!$A$1,'Source Data'!$A$2:$A$157681,'Worst Day Profile (AZ)'!$A34,'Source Data'!$E$2:$E$157681,'Worst Day Profile (AZ)'!C$2) -> 0.09 | D34: =SUMIFS('Source Data'!$G$2:$G$157681,'Source Data'!$F$2:$F$157681,'Worst Day Profile (AZ)'!$A$1,'Source Data'!$A$2:$A$157681,'Worst Day Profile (AZ)'!$A34,'Source Data'!$E$2:$E$157681,'Worst Day Profile (AZ)'!D$2) -> 0.16 | E34: =SUMIFS('Source Data'!$G$2:$G$157681,'Source Data'!$F$2:$F$157681,'Worst Day Profile (AZ)'!$A$1,'Source Data'!$A$2:$A$157681,'Worst Day Profile (AZ)'!$A34,'Source Data'!$E$2:$E$157681,'Worst Day Profile (AZ)'!E$2) -> 0.27 | F34: =SUMIFS('Source Data'!$G$2:$G$157681,'Source Data'!$F$2:$F$157681,'Worst Day Profile (AZ)'!$A$1,'Source Data'!$A$2:$A$157681,'Worst Day Profile (AZ)'!$A34,'Source Data'!$E$2:$E$157681,'Worst Day Profile (AZ)'!F$2) -> 0.4 | G34: =SUMIFS('Source Data'!$G$2:$G$157681,'Source Data'!$F$2:$F$157681,'Worst Day Profile (AZ)'!$A$1,'Source Data'!$A$2:$A$157681,'Worst Day Profile (AZ)'!$A34,'Source Data'!$E$2:$E$157681,'Worst Day Profile (AZ)'!G$2) -> 0.41 | H34: =SUMIFS('Source Data'!$G$2:$G$157681,'Source Data'!$F$2:$F$157681,'Worst Day Profile (AZ)'!$A$1,'Source Data'!$A$2:$A$157681,'Worst Day Profile (AZ)'!$A34,'Source Data'!$E$2:$E$157681,'Worst Day Profile (AZ)'!H$2) -> 0.26 | I34: =SUMIFS('Source Data'!$G$2:$G$157681,'Source Data'!$F$2:$F$157681,'Worst Day Profile (AZ)'!$A$1,'Source Data'!$A$2:$A$157681,'Worst Day Profile (AZ)'!$A34,'Source Data'!$E$2:$E$157681,'Worst Day Profile (AZ)'!I$2) -> 0.1 | J34: =SUMIFS('Source Data'!$G$2:$G$157681,'Source Data'!$F$2:$F$157681,'Worst Day Profile (AZ)'!$A$1,'Source Data'!$A$2:$A$157681,'Worst Day Profile (AZ)'!$A34,'Source Data'!$E$2:$E$157681,'Worst Day Profile (AZ)'!J$2) -> 0.03 | K34: =SUMIFS('Source Data'!$G$2:$G$157681,'Source Data'!$F$2:$F$157681,'Worst Day Profile (AZ)'!$A$1,'Source Data'!$A$2:$A$157681,'Worst Day Profile (AZ)'!$A34,'Source Data'!$E$2:$E$157681,'Worst Day Profile (AZ)'!K$2) -> 0.02 | L34: =SUMIFS('Source Data'!$G$2:$G$157681,'Source Data'!$F$2:$F$157681,'Worst Day Profile (AZ)'!$A$1,'Source Data'!$A$2:$A$157681,'Worst Day Profile (AZ)'!$A34,'Source Data'!$E$2:$E$157681,'Worst Day Profile (AZ)'!L$2) -> 0.05 | M34: =SUMIFS('Source Data'!$G$2:$G$157681,'Source Data'!$F$2:$F$157681,'Worst Day Profile (AZ)'!$A$1,'Source Data'!$A$2:$A$157681,'Worst Day Profile (AZ)'!$A34,'Source Data'!$E$2:$E$157681,'Worst Day Profile (AZ)'!M$2) -> 0.06 | N34: =SUMIFS('Source Data'!$G$2:$G$157681,'Source Data'!$F$2:$F$157681,'Worst Day Profile (AZ)'!$A$1,'Source Data'!$A$2:$A$157681,'Worst Day Profile (AZ)'!$A34,'Source Data'!$E$2:$E$157681,'Worst Day Profile (AZ)'!N$2) -> 0.08 | O34: =SUMIFS('Source Data'!$G$2:$G$157681,'Source Data'!$F$2:$F$157681,'Worst Day Profile (AZ)'!$A$1,'Source Data'!$A$2:$A$157681,'Worst Day Profile (AZ)'!$A34,'Source Data'!$E$2:$E$157681,'Worst Day Profile (AZ)'!O$2) -> 0.09 | P34: =SUMIFS('Source Data'!$G$2:$G$157681,'Source Data'!$F$2:$F$157681,'Worst Day Profile (AZ)'!$A$1,'Source Data'!$A$2:$A$157681,'Worst Day Profile (AZ)'!$A34,'Source Data'!$E$2:$E$157681,'Worst Day Profile (AZ)'!P$2) -> 0.14 | Q34: =SUMIFS('Source Data'!$G$2:$G$157681,'Source Data'!$F$2:$F$157681,'Worst Day Profile (AZ)'!$A$1,'Source Data'!$A$2:$A$157681,'Worst Day Profile (AZ)'!$A34,'Source Data'!$E$2:$E$157681,'Worst Day Profile (AZ)'!Q$2) -> 0.26 | R34: =SUMIFS('Source Data'!$G$2:$G$157681,'Source Data'!$F$2:$F$157681,'Worst Day Profile (AZ)'!$A$1,'Source Data'!$A$2:$A$157681,'Worst Day Profile (AZ)'!$A34,'Source Data'!$E$2:$E$157681,'Worst Day Profile (AZ)'!R$2) -> 0.33 | S34: =SUMIFS('Source Data'!$G$2:$G$157681,'Source Data'!$F$2:$F$157681,'Worst Day Profile (AZ)'!$A$1,'Source Data'!$A$2:$A$157681,'Worst Day Profile (AZ)'!$A34,'Source Data'!$E$2:$E$157681,'Worst Day Profile (AZ)'!S$2) -> 0.36 | T34: =SUMIFS('Source Data'!$G$2:$G$157681,'Source Data'!$F$2:$F$157681,'Worst Day Profile (AZ)'!$A$1,'Source Data'!$A$2:$A$157681,'Worst Day Profile (AZ)'!$A34,'Source Data'!$E$2:$E$157681,'Worst Day Profile (AZ)'!T$2) -> 0.36 | U34: =SUMIFS('Source Data'!$G$2:$G$157681,'Source Data'!$F$2:$F$157681,'Worst Day Profile (AZ)'!$A$1,'Source Data'!$A$2:$A$157681,'Worst Day Profile (AZ)'!$A34,'Source Data'!$E$2:$E$157681,'Worst Day Profile (AZ)'!U$2) -> 0.3 | V34: =SUMIFS('Source Data'!$G$2:$G$157681,'Source Data'!$F$2:$F$157681,'Worst Day Profile (AZ)'!$A$1,'Source Data'!$A$2:$A$157681,'Worst Day Profile (AZ)'!$A34,'Source Data'!$E$2:$E$157681,'Worst Day Profile (AZ)'!V$2) -> 0.24 | W34: =SUMIFS('Source Data'!$G$2:$G$157681,'Source Data'!$F$2:$F$157681,'Worst Day Profile (AZ)'!$A$1,'Source Data'!$A$2:$A$157681,'Worst Day Profile (AZ)'!$A34,'Source Data'!$E$2:$E$157681,'Worst Day Profile (AZ)'!W$2) -> 0.2 | X34: =SUMIFS('Source Data'!$G$2:$G$157681,'Source Data'!$F$2:$F$157681,'Worst Day Profile (AZ)'!$A$1,'Source Data'!$A$2:$A$157681,'Worst Day Profile (AZ)'!$A34,'Source Data'!$E$2:$E$157681,'Worst Day Profile (AZ)'!X$2) -> 0.15 | Y34: =SUMIFS('Source Data'!$G$2:$G$157681,'Source Data'!$F$2:$F$157681,'Worst Day Profile (AZ)'!$A$1,'Source Data'!$A$2:$A$157681,'Worst Day Profile (AZ)'!$A34,'Source Data'!$E$2:$E$157681,'Worst Day Profile (AZ)'!Y$2) -> 0.13 | Z34: =SUMIFS('Source Data'!$G$2:$G$157681,'Source Data'!$F$2:$F$157681,'Worst Day Profile (AZ)'!$A$1,'Source Data'!$A$2:$A$157681,'Worst Day Profile (AZ)'!$A34,'Source Data'!$E$2:$E$157681,'Worst Day Profile (AZ)'!Z$2) -> 0.13
A35: 2018-07-23 | B35: 7 | C35: =SUMIFS('Source Data'!$G$2:$G$157681,'Source Data'!$F$2:$F$157681,'Worst Day Profile (AZ)'!$A$1,'Source Data'!$A$2:$A$157681,'Worst Day Profile (AZ)'!$A35,'Source Data'!$E$2:$E$157681,'Worst Day Profile (AZ)'!C$2) -> 0.28 | D35: =SUMIFS('Source Data'!$G$2:$G$157681,'Source Data'!$F$2:$F$157681,'Worst Day Profile (AZ)'!$A$1,'Source Data'!$A$2:$A$157681,'Worst Day Profile (AZ)'!$A35,'Source Data'!$E$2:$E$157681,'Worst Day Profile (AZ)'!D$2) -> 0.23 | E35: =SUMIFS('Source Data'!$G$2:$G$157681,'Source Data'!$F$2:$F$157681,'Worst Day Profile (AZ)'!$A$1,'Source Data'!$A$2:$A$157681,'Worst Day Profile (AZ)'!$A35,'Source Data'!$E$2:$E$157681,'Worst Day Profile (AZ)'!E$2) -> 0.21 | F35: =SUMIFS('Source Data'!$G$2:$G$157681,'Source Data'!$F$2:$F$157681,'Worst Day Profile (AZ)'!$A$1,'Source Data'!$A$2:$A$157681,'Worst Day Profile (AZ)'!$A35,'Source Data'!$E$2:$E$157681,'Worst Day Profile (AZ)'!F$2) -> 0.2 | G35: =SUMIFS('Source Data'!$G$2:$G$157681,'Source Data'!$F$2:$F$157681,'Worst Day Profile (AZ)'!$A$1,'Source Data'!$A$2:$A$157681,'Worst Day Profile (AZ)'!$A35,'Source Data'!$E$2:$E$157681,'Worst Day Profile (AZ)'!G$2) -> 0.12 | H35: =SUMIFS('Source Data'!$G$2:$G$157681,'Source Data'!$F$2:$F$157681,'Worst Day Profile (AZ)'!$A$1,'Source Data'!$A$2:$A$157681,'Worst Day Profile (AZ)'!$A35,'Source Data'!$E$2:$E$157681,'Worst Day Profile (AZ)'!H$2) -> 0.08 | I35: =SUMIFS('Source Data'!$G$2:$G$157681,'Source Data'!$F$2:$F$157681,'Worst Day Profile (AZ)'!$A$1,'Source Data'!$A$2:$A$157681,'Worst Day Profile (AZ)'!$A35,'Source Data'!$E$2:$E$157681,'Worst Day Profile (AZ)'!I$2) -> 0.07 | J35: =SUMIFS('Source Data'!$G$2:$G$157681,'Source Data'!$F$2:$F$157681,'Worst Day Profile (AZ)'!$A$1,'Source Data'!$A$2:$A$157681,'Worst Day Profile (AZ)'!$A35,'Source Data'!$E$2:$E$157681,'Worst Day Profile (AZ)'!J$2) -> 0.07 | K35: =SUMIFS('Source Data'!$G$2:$G$157681,'Source Data'!$F$2:$F$157681,'Worst Day Profile (AZ)'!$A$1,'Source Data'!$A$2:$A$157681,'Worst Day Profile (AZ)'!$A35,'Source Data'!$E$2:$E$157681,'Worst Day Profile (AZ)'!K$2) -> 0.15 | L35: =SUMIFS('Source Data'!$G$2:$G$157681,'Source Data'!$F$2:$F$157681,'Worst Day Profile (AZ)'!$A$1,'Source Data'!$A$2:$A$157681,'Worst Day Profile (AZ)'!$A35,'Source Data'!$E$2:$E$157681,'Worst Day Profile (AZ)'!L$2) -> 0.2 | M35: =SUMIFS('Source Data'!$G$2:$G$157681,'Source Data'!$F$2:$F$157681,'Worst Day Profile (AZ)'!$A$1,'Source Data'!$A$2:$A$157681,'Worst Day Profile (AZ)'!$A35,'Source Data'!$E$2:$E$157681,'Worst Day Profile (AZ)'!M$2) -> 0.21 | N35: =SUMIFS('Source Data'!$G$2:$G$157681,'Source Data'!$F$2:$F$157681,'Worst Day Profile (AZ)'!$A$1,'Source Data'!$A$2:$A$157681,'Worst Day Profile (AZ)'!$A35,'Source Data'!$E$2:$E$157681,'Worst Day Profile (AZ)'!N$2) -> 0.2 | O35: =SUMIFS('Source Data'!$G$2:$G$157681,'Source Data'!$F$2:$F$157681,'Worst Day Profile (AZ)'!$A$1,'Source Data'!$A$2:$A$157681,'Worst Day Profile (AZ)'!$A35,'Source Data'!$E$2:$E$157681,'Worst Day Profile (AZ)'!O$2) -> 0.18 | P35: =SUMIFS('Source Data'!$G$2:$G$157681,'Source Data'!$F$2:$F$157681,'Worst Day Profile (AZ)'!$A$1,'Source Data'!$A$2:$A$157681,'Worst Day Profile (AZ)'!$A35,'Source Data'!$E$2:$E$157681,'Worst Day Profile (AZ)'!P$2) -> 0.25 | Q35: =SUMIFS('Source Data'!$G$2:$G$157681,'Source Data'!$F$2:$F$157681,'Worst Day Profile (AZ)'!$A$1,'Source Data'!$A$2:$A$157681,'Worst Day Profile (AZ)'!$A35,'Source Data'!$E$2:$E$157681,'Worst Day Profile (AZ)'!Q$2) -> 0.4 | R35: =SUMIFS('Source Data'!$G$2:$G$157681,'Source Data'!$F$2:$F$157681,'Worst Day Profile (AZ)'!$A$1,'Source Data'!$A$2:$A$157681,'Worst Day Profile (AZ)'!$A35,'Source Data'!$E$2:$E$157681,'Worst Day Profile (AZ)'!R$2) -> 0.46 | S35: =SUMIFS('Source Data'!$G$2:$G$157681,'Source Data'!$F$2:$F$157681,'Worst Day Profile (AZ)'!$A$1,'Source Data'!$A$2:$A$157681,'Worst Day Profile (AZ)'!$A35,'Source Data'!$E$2:$E$157681,'Worst Day Profile (AZ)'!S$2) -> 0.53 | T35: =SUMIFS('Source Data'!$G$2:$G$157681,'Source Data'!$F$2:$F$157681,'Worst Day Profile (AZ)'!$A$1,'Source Data'!$A$2:$A$157681,'Worst Day Profile (AZ)'!$A35,'Source Data'!$E$2:$E$157681,'Worst Day Profile (AZ)'!T$2) -> 0.55 | U35: =SUMIFS('Source Data'!$G$2:$G$157681,'Source Data'!$F$2:$F$157681,'Worst Day Profile (AZ)'!$A$1,'Source Data'!$A$2:$A$157681,'Worst Day Profile (AZ)'!$A35,'Source Data'!$E$2:$E$157681,'Worst Day Profile (AZ)'!U$2) -> 0.47 | V35: =SUMIFS('Source Data'!$G$2:$G$157681,'Source Data'!$F$2:$F$157681,'Worst Day Profile (AZ)'!$A$1,'Source Data'!$A$2:$A$157681,'Worst Day Profile (AZ)'!$A35,'Source Data'!$E$2:$E$157681,'Worst Day Profile (AZ)'!V$2) -> 0.34 | W35: =SUMIFS('Source Data'!$G$2:$G$157681,'Source Data'!$F$2:$F$157681,'Worst Day Profile (AZ)'!$A$1,'Source Data'!$A$2:$A$157681,'Worst Day Profile (AZ)'!$A35,'Source Data'!$E$2:$E$157681,'Worst Day Profile (AZ)'!W$2) -> 0.27 | X35: =SUMIFS('Source Data'!$G$2:$G$157681,'Source Data'!$F$2:$F$157681,'Worst Day Profile (AZ)'!$A$1,'Source Data'!$A$2:$A$157681,'Worst Day Profile (AZ)'!$A35,'Source Data'!$E$2:$E$157681,'Worst Day Profile (AZ)'!X$2) -> 0.17 | Y35: =SUMIFS('Source Data'!$G$2:$G$157681,'Source Data'!$F$2:$F$157681,'Worst Day Profile (AZ)'!$A$1,'Source Data'!$A$2:$A$157681,'Worst Day Profile (AZ)'!$A35,'Source Data'!$E$2:$E$157681,'Worst Day Profile (AZ)'!Y$2) -> 0.12 | Z35: =SUMIFS('Source Data'!$G$2:$G$157681,'Source Data'!$F$2:$F$157681,'Worst Day Profile (AZ)'!$A$1,'Source Data'!$A$2:$A$157681,'Worst Day Profile (AZ)'!$A35,'Source Data'!$E$2:$E$157681,'Worst Day Profile (AZ)'!Z$2) -> 0.13
A36: 2018-07-06 | B36: 7 | C36: =SUMIFS('Source Data'!$G$2:$G$157681,'Source Data'!$F$2:$F$157681,'Worst Day Profile (AZ)'!$A$1,'Source Data'!$A$2:$A$157681,'Worst Day Profile (AZ)'!$A36,'Source Data'!$E$2:$E$157681,'Worst Day Profile (AZ)'!C$2) -> 0.06 | D36: =SUMIFS('Source Data'!$G$2:$G$157681,'Source Data'!$F$2:$F$157681,'Worst Day Profile (AZ)'!$A$1,'Source Data'!$A$2:$A$157681,'Worst Day Profile (AZ)'!$A36,'Source Data'!$E$2:$E$157681,'Worst Day Profile (AZ)'!D$2) -> 0.09 | E36: =SUMIFS('Source Data'!$G$2:$G$157681,'Source Data'!$F$2:$F$157681,'Worst Day Profile (AZ)'!$A$1,'Source Data'!$A$2:$A$157681,'Worst Day Profile (AZ)'!$A36,'Source Data'!$E$2:$E$157681,'Worst Day Profile (AZ)'!E$2) -> 0.13 | F36: =SUMIFS('Source Data'!$G$2:$G$157681,'Source Data'!$F$2:$F$157681,'Worst Day Profile (AZ)'!$A$1,'Source Data'!$A$2:$A$157681,'Worst Day Profile (AZ)'!$A36,'Source Data'!$E$2:$E$157681,'Worst Day Profile (AZ)'!F$2) -> 0.09 | G36: =SUMIFS('Source Data'!$G$2:$G$157681,'Source Data'!$F$2:$F$157681,'Worst Day Profile (AZ)'!$A$1,'Source Data'!$A$2:$A$157681,'Worst Day Profile (AZ)'!$A36,'Source Data'!$E$2:$E$157681,'Worst Day Profile (AZ)'!G$2) -> 0.06 | H36: =SUMIFS('Source Data'!$G$2:$G$157681,'Source Data'!$F$2:$F$157681,'Worst Day Profile (AZ)'!$A$1,'Source Data'!$A$2:$A$157681,'Worst Day Profile (AZ)'!$A36,'Source Data'!$E$2:$E$157681,'Worst Day Profile (AZ)'!H$2) -> 0.03 | I36: =SUMIFS('Source Data'!$G$2:$G$157681,'Source Data'!$F$2:$F$157681,'Worst Day Profile (AZ)'!$A$1,'Source Data'!$A$2:$A$157681,'Worst Day Profile (AZ)'!$A36,'Source Data'!$E$2:$E$157681,'Worst Day Profile (AZ)'!I$2) -> 0.02 | J36: =SUMIFS('Source Data'!$G$2:$G$157681,'Source Data'!$F$2:$F$157681,'Worst Day Profile (AZ)'!$A$1,'Source Data'!$A$2:$A$157681,'Worst Day Profile (AZ)'!$A36,'Source Data'!$E$2:$E$157681,'Worst Day Profile (AZ)'!J$2) -> 0.05 | K36: =SUMIFS('Source Data'!$G$2:$G$157681,'Source Data'!$F$2:$F$157681,'Worst Day Profile (AZ)'!$A$1,'Source Data'!$A$2:$A$157681,'Worst Day Profile (AZ)'!$A36,'Source Data'!$E$2:$E$157681,'Worst Day Profile (AZ)'!K$2) -> 0.08 | L36: =SUMIFS('Source Data'!$G$2:$G$157681,'Source Data'!$F$2:$F$157681,'Worst Day Profile (AZ)'!$A$1,'Source Data'!$A$2:$A$157681,'Worst Day Profile (AZ)'!$A36,'Source Data'!$E$2:$E$157681,'Worst Day Profile (AZ)'!L$2) -> 0.12 | M36: =SUMIFS('Source Data'!$G$2:$G$157681,'Source Data'!$F$2:$F$157681,'Worst Day Profile (AZ)'!$A$1,'Source Data'!$A$2:$A$157681,'Worst Day Profile (AZ)'!$A36,'Source Data'!$E$2:$E$157681,'Worst Day Profile (AZ)'!M$2) -> 0.15 | N36: =SUMIFS('Source Data'!$G$2:$G$157681,'Source Data'!$F$2:$F$157681,'Worst Day Profile (AZ)'!$A$1,'Source Data'!$A$2:$A$157681,'Worst Day Profile (AZ)'!$A36,'Source Data'!$E$2:$E$157681,'Worst Day Profile (AZ)'!N$2) -> 0.19 | O36: =SUMIFS('Source Data'!$G$2:$G$157681,'Source Data'!$F$2:$F$157681,'Worst Day Profile (AZ)'!$A$1,'Source Data'!$A$2:$A$157681,'Worst Day Profile (AZ)'!$A36,'Source Data'!$E$2:$E$157681,'Worst Day Profile (AZ)'!O$2) -> 0.23 | P36: =SUMIFS('Source Data'!$G$2:$G$157681,'Source Data'!$F$2:$F$157681,'Worst Day Profile (AZ)'!$A$1,'Source Data'!$A$2:$A$157681,'Worst Day Profile (AZ)'!$A36,'Source Data'!$E$2:$E$157681,'Worst Day Profile (AZ)'!P$2) -> 0.29 | Q36: =SUMIFS('Source Data'!$G$2:$G$157681,'Source Data'!$F$2:$F$157681,'Worst Day Profile (AZ)'!$A$1,'Source Data'!$A$2:$A$157681,'Worst Day Profile (AZ)'!$A36,'Source Data'!$E$2:$E$157681,'Worst Day Profile (AZ)'!Q$2) -> 0.34 | R36: =SUMIFS('Source Data'!$G$2:$G$157681,'Source Data'!$F$2:$F$157681,'Worst Day Profile (AZ)'!$A$1,'Source Data'!$A$2:$A$157681,'Worst Day Profile (AZ)'!$A36,'Source Data'!$E$2:$E$157681,'Worst Day Profile (AZ)'!R$2) -> 0.43 | S36: =SUMIFS('Source Data'!$G$2:$G$157681,'Source Data'!$F$2:$F$157681,'Worst Day Profile (AZ)'!$A$1,'Source Data'!$A$2:$A$157681,'Worst Day Profile (AZ)'!$A36,'Source Data'!$E$2:$E$157681,'Worst Day Profile (AZ)'!S$2) -> 0.49 | T36: =SUMIFS('Source Data'!$G$2:$G$157681,'Source Data'!$F$2:$F$157681,'Worst Day Profile (AZ)'!$A$1,'Source Data'!$A$2:$A$157681,'Worst Day Profile (AZ)'!$A36,'Source Data'!$E$2:$E$157681,'Worst Day Profile (AZ)'!T$2) -> 0.55 | U36: =SUMIFS('Source Data'!$G$2:$G$157681,'Source Data'!$F$2:$F$157681,'Worst Day Profile (AZ)'!$A$1,'Source Data'!$A$2:$A$157681,'Worst Day Profile (AZ)'!$A36,'Source Data'!$E$2:$E$157681,'Worst Day Profile (AZ)'!U$2) -> 0.56 | V36: =SUMIFS('Source Data'!$G$2:$G$157681,'Source Data'!$F$2:$F$157681,'Worst Day Profile (AZ)'!$A$1,'Source Data'!$A$2:$A$157681,'Worst Day Profile (AZ)'!$A36,'Source Data'!$E$2:$E$157681,'Worst Day Profile (AZ)'!V$2) -> 0.54 | W36: =SUMIFS('Source Data'!$G$2:$G$157681,'Source Data'!$F$2:$F$157681,'Worst Day Profile (AZ)'!$A$1,'Source Data'!$A$2:$A$157681,'Worst Day Profile (AZ)'!$A36,'Source Data'!$E$2:$E$157681,'Worst Day Profile (AZ)'!W$2) -> 0.51 | X36: =SUMIFS('Source Data'!$G$2:$G$157681,'Source Data'!$F$2:$F$157681,'Worst Day Profile (AZ)'!$A$1,'Source Data'!$A$2:$A$157681,'Worst Day Profile (AZ)'!$A36,'Source Data'!$E$2:$E$157681,'Worst Day Profile (AZ)'!X$2) -> 0.51 | Y36: =SUMIFS('Source Data'!$G$2:$G$157681,'Source Data'!$F$2:$F$157681,'Worst Day Profile (AZ)'!$A$1,'Source Data'!$A$2:$A$157681,'Worst Day Profile (AZ)'!$A36,'Source Data'!$E$2:$E$157681,'Worst Day Profile (AZ)'!Y$2) -> 0.54 | Z36: =SUMIFS('Source Data'!$G$2:$G$157681,'Source Data'!$F$2:$F$157681,'Worst Day Profile (AZ)'!$A$1,'Source Data'!$A$2:$A$157681,'Worst Day Profile (AZ)'!$A36,'Source Data'!$E$2:$E$157681,'Worst Day Profile (AZ)'!Z$2) -> 0.52
A37: 2018-07-31 | B37: 7 | C37: =SUMIFS('Source Data'!$G$2:$G$157681,'Source Data'!$F$2:$F$157681,'Worst Day Profile (AZ)'!$A$1,'Source Data'!$A$2:$A$157681,'Worst Day Profile (AZ)'!$A37,'Source Data'!$E$2:$E$157681,'Worst Day Profile (AZ)'!C$2) -> 0.06 | D37: =SUMIFS('Source Data'!$G$2:$G$157681,'Source Data'!$F$2:$F$157681,'Worst Day Profile (AZ)'!$A$1,'Source Data'!$A$2:$A$157681,'Worst Day Profile (AZ)'!$A37,'Source Data'!$E$2:$E$157681,'Worst Day Profile (AZ)'!D$2) -> 0.07 | E37: =SUMIFS('Source Data'!$G$2:$G$157681,'Source Data'!$F$2:$F$157681,'Worst Day Profile (AZ)'!$A$1,'Source Data'!$A$2:$A$157681,'Worst Day Profile (AZ)'!$A37,'Source Data'!$E$2:$E$157681,'Worst Day Profile (AZ)'!E$2) -> 0.06 | F37: =SUMIFS('Source Data'!$G$2:$G$157681,'Source Data'!$F$2:$F$157681,'Worst Day Profile (AZ)'!$A$1,'Source Data'!$A$2:$A$157681,'Worst Day Profile (AZ)'!$A37,'Source Data'!$E$2:$E$157681,'Worst Day Profile (AZ)'!F$2) -> 0.03 | G37: =SUMIFS('Source Data'!$G$2:$G$157681,'Source Data'!$F$2:$F$157681,'Worst Day Profile (AZ)'!$A$1,'Source Data'!$A$2:$A$157681,'Worst Day Profile (AZ)'!$A37,'Source Data'!$E$2:$E$157681,'Worst Day Profile (AZ)'!G$2) -> 0.02 | H37: =SUMIFS('Source Data'!$G$2:$G$157681,'Source Data'!$F$2:$F$157681,'Worst Day Profile (AZ)'!$A$1,'Source Data'!$A$2:$A$157681,'Worst Day Profile (AZ)'!$A37,'Source Data'!$E$2:$E$157681,'Worst Day Profile (AZ)'!H$2) -> 0.01 | I37: =SUMIFS('Source Data'!$G$2:$G$157681,'Source Data'!$F$2:$F$157681,'Worst Day Profile (AZ)'!$A$1,'Source Data'!$A$2:$A$157681,'Worst Day Profile (AZ)'!$A37,'Source Data'!$E$2:$E$157681,'Worst Day Profile (AZ)'!I$2) -> 0.01 | J37: =SUMIFS('Source Data'!$G$2:$G$157681,'Source Data'!$F$2:$F$157681,'Worst Day Profile (AZ)'!$A$1,'Source Data'!$A$2:$A$157681,'Worst Day Profile (AZ)'!$A37,'Source Data'!$E$2:$E$157681,'Worst Day Profile (AZ)'!J$2) -> 0.01 | K37: =SUMIFS('Source Data'!$G$2:$G$157681,'Source Data'!$F$2:$F$157681,'Worst Day Profile (AZ)'!$A$1,'Source Data'!$A$2:$A$157681,'Worst Day Profile (AZ)'!$A37,'Source Data'!$E$2:$E$157681,'Worst Day Profile (AZ)'!K$2) -> 0.01 | L37: =SUMIFS('Source Data'!$G$2:$G$157681,'Source Data'!$F$2:$F$157681,'Worst Day Profile (AZ)'!$A$1,'Source Data'!$A$2:$A$157681,'Worst Day Profile (AZ)'!$A37,'Source Data'!$E$2:$E$157681,'Worst Day Profile (AZ)'!L$2) -> 0.01 | M37: =SUMIFS('Source Data'!$G$2:$G$157681,'Source Data'!$F$2:$F$157681,'Worst Day Profile (AZ)'!$A$1,'Source Data'!$A$2:$A$157681,'Worst Day Profile (AZ)'!$A37,'Source Data'!$E$2:$E$157681,'Worst Day Profile (AZ)'!M$2) -> 0 | N37: =SUMIFS('Source Data'!$G$2:$G$157681,'Source Data'!$F$2:$F$157681,'Worst Day Profile (AZ)'!$A$1,'Source Data'!$A$2:$A$157681,'Worst Day Profile (AZ)'!$A37,'Source Data'!$E$2:$E$157681,'Worst Day Profile (AZ)'!N$2) -> 0.01 | O37: =SUMIFS('Source Data'!$G$2:$G$157681,'Source Data'!$F$2:$F$157681,'Worst Day Profile (AZ)'!$A$1,'Source Data'!$A$2:$A$157681,'Worst Day Profile (AZ)'!$A37,'Source Data'!$E$2:$E$157681,'Worst Day Profile (AZ)'!O$2) -> 0.02 | P37: =SUMIFS('Source Data'!$G$2:$G$157681,'Source Data'!$F$2:$F$157681,'Worst Day Profile (AZ)'!$A$1,'Source Data'!$A$2:$A$157681,'Worst Day Profile (AZ)'!$A37,'Source Data'!$E$2:$E$157681,'Worst Day Profile (AZ)'!P$2) -> 0.06 | Q37: =SUMIFS('Source Data'!$G$2:$G$157681,'Source Data'!$F$2:$F$157681,'Worst Day Profile (AZ)'!$A$1,'Source Data'!$A$2:$A$157681,'Worst Day Profile (AZ)'!$A37,'Source Data'!$E$2:$E$157681,'Worst Day Profile (AZ)'!Q$2) -> 0.11 | R37: =SUMIFS('Source Data'!$G$2:$G$157681,'Source Data'!$F$2:$F$157681,'Worst Day Profile (AZ)'!$A$1,'Source Data'!$A$2:$A$157681,'Worst Day Profile (AZ)'!$A37,'Source Data'!$E$2:$E$157681,'Worst Day Profile (AZ)'!R$2) -> 0.14 | S37: =SUMIFS('Source Data'!$G$2:$G$157681,'Source Data'!$F$2:$F$157681,'Worst Day Profile (AZ)'!$A$1,'Source Data'!$A$2:$A$157681,'Worst Day Profile (AZ)'!$A37,'Source Data'!$E$2:$E$157681,'Worst Day Profile (AZ)'!S$2) -> 0.11 | T37: =SUMIFS('Source Data'!$G$2:$G$157681,'Source Data'!$F$2:$F$157681,'Worst Day Profile (AZ)'!$A$1,'Source Data'!$A$2:$A$157681,'Worst Day Profile (AZ)'!$A37,'Source Data'!$E$2:$E$157681,'Worst Day Profile (AZ)'!T$2) -> 0.09 | U37: =SUMIFS('Source Data'!$G$2:$G$157681,'Source Data'!$F$2:$F$157681,'Worst Day Profile (AZ)'!$A$1,'Source Data'!$A$2:$A$157681,'Worst Day Profile (AZ)'!$A37,'Source Data'!$E$2:$E$157681,'Worst Day Profile (AZ)'!U$2) -> 0.08 | V37: =SUMIFS('Source Data'!$G$2:$G$157681,'Source Data'!$F$2:$F$157681,'Worst Day Profile (AZ)'!$A$1,'Source Data'!$A$2:$A$157681,'Worst Day Profile (AZ)'!$A37,'Source Data'!$E$2:$E$157681,'Worst Day Profile (AZ)'!V$2) -> 0.07 | W37: =SUMIFS('Source Data'!$G$2:$G$157681,'Source Data'!$F$2:$F$157681,'Worst Day Profile (AZ)'!$A$1,'Source Data'!$A$2:$A$157681,'Worst Day Profile (AZ)'!$A37,'Source Data'!$E$2:$E$157681,'Worst Day Profile (AZ)'!W$2) -> 0.06 | X37: =SUMIFS('Source Data'!$G$2:$G$157681,'Source Data'!$F$2:$F$157681,'Worst Day Profile (AZ)'!$A$1,'Source Data'!$A$2:$A$157681,'Worst Day Profile (AZ)'!$A37,'Source Data'!$E$2:$E$157681,'Worst Day Profile (AZ)'!X$2) -> 0.04 | Y37: =SUMIFS('Source Data'!$G$2:$G$157681,'Source Data'!$F$2:$F$157681,'Worst Day Profile (AZ)'!$A$1,'Source Data'!$A$2:$A$157681,'Worst Day Profile (AZ)'!$A37,'Source Data'!$E$2:$E$157681,'Worst Day Profile (AZ)'!Y$2) -> 0.04 | Z37: =SUMIFS('Source Data'!$G$2:$G$157681,'Source Data'!$F$2:$F$157681,'Worst Day Profile (AZ)'!$A$1,'Source Data'!$A$2:$A$157681,'Worst Day Profile (AZ)'!$A37,'Source Data'!$E$2:$E$157681,'Worst Day Profile (AZ)'!Z$2) -> 0.05
A38: 2018-08-09 | B38: 8 | C38: =SUMIFS('Source Data'!$G$2:$G$157681,'Source Data'!$F$2:$F$157681,'Worst Day Profile (AZ)'!$A$1,'Source Data'!$A$2:$A$157681,'Worst Day Profile (AZ)'!$A38,'Source Data'!$E$2:$E$157681,'Worst Day Profile (AZ)'!C$2) -> 0.09 | D38: =SUMIFS('Source Data'!$G$2:$G$157681,'Source Data'!$F$2:$F$157681,'Worst Day Profile (AZ)'!$A$1,'Source Data'!$A$2:$A$157681,'Worst Day Profile (AZ)'!$A38,'Source Data'!$E$2:$E$157681,'Worst Day Profile (AZ)'!D$2) -> 0.08 | E38: =SUMIFS('Source Data'!$G$2:$G$157681,'Source Data'!$F$2:$F$157681,'Worst Day Profile (AZ)'!$A$1,'Source Data'!$A$2:$A$157681,'Worst Day Profile (AZ)'!$A38,'Source Data'!$E$2:$E$157681,'Worst Day Profile (AZ)'!E$2) -> 0.07 | F38: =SUMIFS('Source Data'!$G$2:$G$157681,'Source Data'!$F$2:$F$157681,'Worst Day Profile (AZ)'!$A$1,'Source Data'!$A$2:$A$157681,'Worst Day Profile (AZ)'!$A38,'Source Data'!$E$2:$E$157681,'Worst Day Profile (AZ)'!F$2) -> 0.07 | G38: =SUMIFS('Source Data'!$G$2:$G$157681,'Source Data'!$F$2:$F$157681,'Worst Day Profile (AZ)'!$A$1,'Source Data'!$A$2:$A$157681,'Worst Day Profile (AZ)'!$A38,'Source Data'!$E$2:$E$157681,'Worst Day Profile (AZ)'!G$2) -> 0.07 | H38: =SUMIFS('Source Data'!$G$2:$G$157681,'Source Data'!$F$2:$F$157681,'Worst Day Profile (AZ)'!$A$1,'Source Data'!$A$2:$A$157681,'Worst Day Profile (AZ)'!$A38,'Source Data'!$E$2:$E$157681,'Worst Day Profile (AZ)'!H$2) -> 0.06 | I38: =SUMIFS('Source Data'!$G$2:$G$157681,'Source Data'!$F$2:$F$157681,'Worst Day Profile (AZ)'!$A$1,'Source Data'!$A$2:$A$157681,'Worst Day Profile (AZ)'!$A38,'Source Data'!$E$2:$E$157681,'Worst Day Profile (AZ)'!I$2) -> 0.05 | J38: =SUMIFS('Source Data'!$G$2:$G$157681,'Source Data'!$F$2:$F$157681,'Worst Day Profile (AZ)'!$A$1,'Source Data'!$A$2:$A$157681,'Worst Day Profile (AZ)'!$A38,'Source Data'!$E$2:$E$157681,'Worst Day Profile (AZ)'!J$2) -> 0.03 | K38: =SUMIFS('Source Data'!$G$2:$G$157681,'Source Data'!$F$2:$F$157681,'Worst Day Profile (AZ)'!$A$1,'Source Data'!$A$2:$A$157681,'Worst Day Profile (AZ)'!$A38,'Source Data'!$E$2:$E$157681,'Worst Day Profile (AZ)'!K$2) -> 0.02 | L38: =SUMIFS('Source Data'!$G$2:$G$157681,'Source Data'!$F$2:$F$157681,'Worst Day Profile (AZ)'!$A$1,'Source Data'!$A$2:$A$157681,'Worst Day Profile (AZ)'!$A38,'Source Data'!$E$2:$E$157681,'Worst Day Profile (AZ)'!L$2) -> 0.01 | M38: =SUMIFS('Source Data'!$G$2:$G$157681,'Source Data'!$F$2:$F$157681,'Worst Day Profile (AZ)'!$A$1,'Source Data'!$A$2:$A$157681,'Worst Day Profile (AZ)'!$A38,'Source Data'!$E$2:$E$157681,'Worst Day Profile (AZ)'!M$2) -> 0.02 | N38: =SUMIFS('Source Data'!$G$2:$G$157681,'Source Data'!$F$2:$F$157681,'Worst Day Profile (AZ)'!$A$1,'Source Data'!$A$2:$A$157681,'Worst Day Profile (AZ)'!$A38,'Source Data'!$E$2:$E$157681,'Worst Day Profile (AZ)'!N$2) -> 0.05 | O38: =SUMIFS('Source Data'!$G$2:$G$157681,'Source Data'!$F$2:$F$157681,'Worst Day Profile (AZ)'!$A$1,'Source Data'!$A$2:$A$157681,'Worst Day Profile (AZ)'!$A38,'Source Data'!$E$2:$E$157681,'Worst Day Profile (AZ)'!O$2) -> 0.08 | P38: =SUMIFS('Source Data'!$G$2:$G$157681,'Source Data'!$F$2:$F$157681,'Worst Day Profile (AZ)'!$A$1,'Source Data'!$A$2:$A$157681,'Worst Day Profile (AZ)'!$A38,'Source Data'!$E$2:$E$157681,'Worst Day Profile (AZ)'!P$2) -> 0.1 | Q38: =SUMIFS('Source Data'!$G$2:$G$157681,'Source Data'!$F$2:$F$157681,'Worst Day Profile (AZ)'!$A$1,'Source Data'!$A$2:$A$157681,'Worst Day Profile (AZ)'!$A38,'Source Data'!$E$2:$E$157681,'Worst Day Profile (AZ)'!Q$2) -> 0.13 | R38: =SUMIFS('Source Data'!$G$2:$G$157681,'Source Data'!$F$2:$F$157681,'Worst Day Profile (AZ)'!$A$1,'Source Data'!$A$2:$A$157681,'Worst Day Profile (AZ)'!$A38,'Source Data'!$E$2:$E$157681,'Worst Day Profile (AZ)'!R$2) -> 0.11 | S38: =SUMIFS('Source Data'!$G$2:$G$157681,'Source Data'!$F$2:$F$157681,'Worst Day Profile (AZ)'!$A$1,'Source Data'!$A$2:$A$157681,'Worst Day Profile (AZ)'!$A38,'Source Data'!$E$2:$E$157681,'Worst Day Profile (AZ)'!S$2) -> 0.11 | T38: =SUMIFS('Source Data'!$G$2:$G$157681,'Source Data'!$F$2:$F$157681,'Worst Day Profile (AZ)'!$A$1,'Source Data'!$A$2:$A$157681,'Worst Day Profile (AZ)'!$A38,'Source Data'!$E$2:$E$157681,'Worst Day Profile (AZ)'!T$2) -> 0.12 | U38: =SUMIFS('Source Data'!$G$2:$G$157681,'Source Data'!$F$2:$F$157681,'Worst Day Profile (AZ)'!$A$1,'Source Data'!$A$2:$A$157681,'Worst Day Profile (AZ)'!$A38,'Source Data'!$E$2:$E$157681,'Worst Day Profile (AZ)'!U$2) -> 0.12 | V38: =SUMIFS('Source Data'!$G$2:$G$157681,'Source Data'!$F$2:$F$157681,'Worst Day Profile (AZ)'!$A$1,'Source Data'!$A$2:$A$157681,'Worst Day Profile (AZ)'!$A38,'Source Data'!$E$2:$E$157681,'Worst Day Profile (AZ)'!V$2) -> 0.15 | W38: =SUMIFS('Source Data'!$G$2:$G$157681,'Source Data'!$F$2:$F$157681,'Worst Day Profile (AZ)'!$A$1,'Source Data'!$A$2:$A$157681,'Worst Day Profile (AZ)'!$A38,'Source Data'!$E$2:$E$157681,'Worst Day Profile (AZ)'!W$2) -> 0.13 | X38: =SUMIFS('Source Data'!$G$2:$G$157681,'Source Data'!$F$2:$F$157681,'Worst Day Profile (AZ)'!$A$1,'Source Data'!$A$2:$A$157681,'Worst Day Profile (AZ)'!$A38,'Source Data'!$E$2:$E$157681,'Worst Day Profile (AZ)'!X$2) -> 0.09 | Y38: =SUMIFS('Source Data'!$G$2:$G$157681,'Source Data'!$F$2:$F$157681,'Worst Day Profile (AZ)'!$A$1,'Source Data'!$A$2:$A$157681,'Worst Day Profile (AZ)'!$A38,'Source Data'!$E$2:$E$157681,'Worst Day Profile (AZ)'!Y$2) -> 0.06 | Z38: =SUMIFS('Source Data'!$G$2:$G$157681,'Source Data'!$F$2:$F$157681,'Worst Day Profile (AZ)'!$A$1,'Source Data'!$A$2:$A$157681,'Worst Day Profile (AZ)'!$A38,'Source Data'!$E$2:$E$157681,'Worst Day Profile (AZ)'!Z$2) -> 0.03
A39: 2018-08-06 | B39: 8 | C39: =SUMIFS('Source Data'!$G$2:$G$157681,'Source Data'!$F$2:$F$157681,'Worst Day Profile (AZ)'!$A$1,'Source Data'!$A$2:$A$157681,'Worst Day Profile (AZ)'!$A39,'Source Data'!$E$2:$E$157681,'Worst Day Profile (AZ)'!C$2) -> 0.07 | D39: =SUMIFS('Source Data'!$G$2:$G$157681,'Source Data'!$F$2:$F$157681,'Worst Day Profile (AZ)'!$A$1,'Source Data'!$A$2:$A$157681,'Worst Day Profile (AZ)'!$A39,'Source Data'!$E$2:$E$157681,'Worst Day Profile (AZ)'!D$2) -> 0.09 | E39: =SUMIFS('Source Data'!$G$2:$G$157681,'Source Data'!$F$2:$F$157681,'Worst Day Profile (AZ)'!$A$1,'Source Data'!$A$2:$A$157681,'Worst Day Profile (AZ)'!$A39,'Source Data'!$E$2:$E$157681,'Worst Day Profile (AZ)'!E$2) -> 0.13 | F39: =SUMIFS('Source Data'!$G$2:$G$157681,'Source Data'!$F$2:$F$157681,'Worst Day Profile (AZ)'!$A$1,'Source Data'!$A$2:$A$157681,'Worst Day Profile (AZ)'!$A39,'Source Data'!$E$2:$E$157681,'Worst Day Profile (AZ)'!F$2) -> 0.18 | G39: =SUMIFS('Source Data'!$G$2:$G$157681,'Source Data'!$F$2:$F$157681,'Worst Day Profile (AZ)'!$A$1,'Source Data'!$A$2:$A$157681,'Worst Day Profile (AZ)'!$A39,'Source Data'!$E$2:$E$157681,'Worst Day Profile (AZ)'!G$2) -> 0.2 | H39: =SUMIFS('Source Data'!$G$2:$G$157681,'Source Data'!$F$2:$F$157681,'Worst Day Profile (AZ)'!$A$1,'Source Data'!$A$2:$A$157681,'Worst Day Profile (AZ)'!$A39,'Source Data'!$E$2:$E$157681,'Worst Day Profile (AZ)'!H$2) -> 0.15 | I39: =SUMIFS('Source Data'!$G$2:$G$157681,'Source Data'!$F$2:$F$157681,'Worst Day Profile (AZ)'!$A$1,'Source Data'!$A$2:$A$157681,'Worst Day Profile (AZ)'!$A39,'Source Data'!$E$2:$E$157681,'Worst Day Profile (AZ)'!I$2) -> 0.09 | J39: =SUMIFS('Source Data'!$G$2:$G$157681,'Source Data'!$F$2:$F$157681,'Worst Day Profile (AZ)'!$A$1,'Source Data'!$A$2:$A$157681,'Worst Day Profile (AZ)'!$A39,'Source Data'!$E$2:$E$157681,'Worst Day Profile (AZ)'!J$2) -> 0.02 | K39: =SUMIFS('Source Data'!$G$2:$G$157681,'Source Data'!$F$2:$F$157681,'Worst Day Profile (AZ)'!$A$1,'Source Data'!$A$2:$A$157681,'Worst Day Profile (AZ)'!$A39,'Source Data'!$E$2:$E$157681,'Worst Day Profile (AZ)'!K$2) -> 0.01 | L39: =SUMIFS('Source Data'!$G$2:$G$157681,'Source Data'!$F$2:$F$157681,'Worst Day Profile (AZ)'!$A$1,'Source Data'!$A$2:$A$157681,'Worst Day Profile (AZ)'!$A39,'Source Data'!$E$2:$E$157681,'Worst Day Profile (AZ)'!L$2) -> 0.01 | M39: =SUMIFS('Source Data'!$G$2:$G$157681,'Source Data'!$F$2:$F$157681,'Worst Day Profile (AZ)'!$A$1,'Source Data'!$A$2:$A$157681,'Worst Day Profile (AZ)'!$A39,'Source Data'!$E$2:$E$157681,'Worst Day Profile (AZ)'!M$2) -> 0.01 | N39: =SUMIFS('Source Data'!$G$2:$G$157681,'Source Data'!$F$2:$F$157681,'Worst Day Profile (AZ)'!$A$1,'Source Data'!$A$2:$A$157681,'Worst Day Profile (AZ)'!$A39,'Source Data'!$E$2:$E$157681,'Worst Day Profile (AZ)'!N$2) -> 0.03 | O39: =SUMIFS('Source Data'!$G$2:$G$157681,'Source Data'!$F$2:$F$157681,'Worst Day Profile (AZ)'!$A$1,'Source Data'!$A$2:$A$157681,'Worst Day Profile (AZ)'!$A39,'Source Data'!$E$2:$E$157681,'Worst Day Profile (AZ)'!O$2) -> 0.06 | P39: =SUMIFS('Source Data'!$G$2:$G$157681,'Source Data'!$F$2:$F$157681,'Worst Day Profile (AZ)'!$A$1,'Source Data'!$A$2:$A$157681,'Worst Day Profile (AZ)'!$A39,'Source Data'!$E$2:$E$157681,'Worst Day Profile (AZ)'!P$2) -> 0.07 | Q39: =SUMIFS('Source Data'!$G$2:$G$157681,'Source Data'!$F$2:$F$157681,'Worst Day Profile (AZ)'!$A$1,'Source Data'!$A$2:$A$157681,'Worst Day Profile (AZ)'!$A39,'Source Data'!$E$2:$E$157681,'Worst Day Profile (AZ)'!Q$2) -> 0.13 | R39: =SUMIFS('Source Data'!$G$2:$G$157681,'Source Data'!$F$2:$F$157681,'Worst Day Profile (AZ)'!$A$1,'Source Data'!$A$2:$A$157681,'Worst Day Profile (AZ)'!$A39,'Source Data'!$E$2:$E$157681,'Worst Day Profile (AZ)'!R$2) -> 0.23 | S39: =SUMIFS('Source Data'!$G$2:$G$157681,'Source Data'!$F$2:$F$157681,'Worst Day Profile (AZ)'!$A$1,'Source Data'!$A$2:$A$157681,'Worst Day Profile (AZ)'!$A39,'Source Data'!$E$2:$E$157681,'Worst Day Profile (AZ)'!S$2) -> 0.31 | T39: =SUMIFS('Source Data'!$G$2:$G$157681,'Source Data'!$F$2:$F$157681,'Worst Day Profile (AZ)'!$A$1,'Source Data'!$A$2:$A$157681,'Worst Day Profile (AZ)'!$A39,'Source Data'!$E$2:$E$157681,'Worst Day Profile (AZ)'!T$2) -> 0.36 | U39: =SUMIFS('Source Data'!$G$2:$G$157681,'Source Data'!$F$2:$F$157681,'Worst Day Profile (AZ)'!$A$1,'Source Data'!$A$2:$A$157681,'Worst Day Profile (AZ)'!$A39,'Source Data'!$E$2:$E$157681,'Worst Day Profile (AZ)'!U$2) -> 0.32 | V39: =SUMIFS('Source Data'!$G$2:$G$157681,'Source Data'!$F$2:$F$157681,'Worst Day Profile (AZ)'!$A$1,'Source Data'!$A$2:$A$157681,'Worst Day Profile (AZ)'!$A39,'Source Data'!$E$2:$E$157681,'Worst Day Profile (AZ)'!V$2) -> 0.17 | W39: =SUMIFS('Source Data'!$G$2:$G$157681,'Source Data'!$F$2:$F$157681,'Worst Day Profile (AZ)'!$A$1,'Source Data'!$A$2:$A$157681,'Worst Day Profile (AZ)'!$A39,'Source Data'!$E$2:$E$157681,'Worst Day Profile (AZ)'!W$2) -> 0.08 | X39: =SUMIFS('Source Data'!$G$2:$G$157681,'Source Data'!$F$2:$F$157681,'Worst Day Profile (AZ)'!$A$1,'Source Data'!$A$2:$A$157681,'Worst Day Profile (AZ)'!$A39,'Source Data'!$E$2:$E$157681,'Worst Day Profile (AZ)'!X$2) -> 0.06 | Y39: =SUMIFS('Source Data'!$G$2:$G$157681,'Source Data'!$F$2:$F$157681,'Worst Day Profile (AZ)'!$A$1,'Source Data'!$A$2:$A$157681,'Worst Day Profile (AZ)'!$A39,'Source Data'!$E$2:$E$157681,'Worst Day Profile (AZ)'!Y$2) -> 0.06 | Z39: =SUMIFS('Source Data'!$G$2:$G$157681,'Source Data'!$F$2:$F$157681,'Worst Day Profile (AZ)'!$A$1,'Source Data'!$A$2:$A$157681,'Worst Day Profile (AZ)'!$A39,'Source Data'!$E$2:$E$157681,'Worst Day Profile (AZ)'!Z$2) -> 0.12
A40: 2018-08-07 | B40: 8 | C40: =SUMIFS('Source Data'!$G$2:$G$157681,'Source Data'!$F$2:$F$157681,'Worst Day Profile (AZ)'!$A$1,'Source Data'!$A$2:$A$157681,'Worst Day Profile (AZ)'!$A40,'Source Data'!$E$2:$E$157681,'Worst Day Profile (AZ)'!C$2) -> 0.21 | D40: =SUMIFS('Source Data'!$G$2:$G$157681,'Source Data'!$F$2:$F$157681,'Worst Day Profile (AZ)'!$A$1,'Source Data'!$A$2:$A$157681,'Worst Day Profile (AZ)'!$A40,'Source Data'!$E$2:$E$157681,'Worst Day Profile (AZ)'!D$2) -> 0.24 | E40: =SUMIFS('Source Data'!$G$2:$G$157681,'Source Data'!$F$2:$F$157681,'Worst Day Profile (AZ)'!$A$1,'Source Data'!$A$2:$A$157681,'Worst Day Profile (AZ)'!$A40,'Source Data'!$E$2:$E$157681,'Worst Day Profile (AZ)'!E$2) -> 0.25 | F40: =SUMIFS('Source Data'!$G$2:$G$157681,'Source Data'!$F$2:$F$157681,'Worst Day Profile (AZ)'!$A$1,'Source Data'!$A$2:$A$157681,'Worst Day Profile (AZ)'!$A40,'Source Data'!$E$2:$E$157681,'Worst Day Profile (AZ)'!F$2) -> 0.24 | G40: =SUMIFS('Source Data'!$G$2:$G$157681,'Source Data'!$F$2:$F$157681,'Worst Day Profile (AZ)'!$A$1,'Source Data'!$A$2:$A$157681,'Worst Day Profile (AZ)'!$A40,'Source Data'!$E$2:$E$157681,'Worst Day Profile (AZ)'!G$2) -> 0.2 | H40: =SUMIFS('Source Data'!$G$2:$G$157681,'Source Data'!$F$2:$F$157681,'Worst Day Profile (AZ)'!$A$1,'Source Data'!$A$2:$A$157681,'Worst Day Profile (AZ)'!$A40,'Source Data'!$E$2:$E$157681,'Worst Day Profile (AZ)'!H$2) -> 0.18 | I40: =SUMIFS('Source Data'!$G$2:$G$157681,'Source Data'!$F$2:$F$157681,'Worst Day Profile (AZ)'!$A$1,'Source Data'!$A$2:$A$157681,'Worst Day Profile (AZ)'!$A40,'Source Data'!$E$2:$E$157681,'Worst Day Profile (AZ)'!I$2) -> 0.15 | J40: =SUMIFS('Source Data'!$G$2:$G$157681,'Source Data'!$F$2:$F$157681,'Worst Day Profile (AZ)'!$A$1,'Source Data'!$A$2:$A$157681,'Worst Day Profile (AZ)'!$A40,'Source Data'!$E$2:$E$157681,'Worst Day Profile (AZ)'!J$2) -> 0.11 | K40: =SUMIFS('Source Data'!$G$2:$G$157681,'Source Data'!$F$2:$F$157681,'Worst Day Profile (AZ)'!$A$1,'Source Data'!$A$2:$A$157681,'Worst Day Profile (AZ)'!$A40,'Source Data'!$E$2:$E$157681,'Worst Day Profile (AZ)'!K$2) -> 0.05 | L40: =SUMIFS('Source Data'!$G$2:$G$157681,'Source Data'!$F$2:$F$157681,'Worst Day Profile (AZ)'!$A$1,'Source Data'!$A$2:$A$157681,'Worst Day Profile (AZ)'!$A40,'Source Data'!$E$2:$E$157681,'Worst Day Profile (AZ)'!L$2) -> 0.02 | M40: =SUMIFS('Source Data'!$G$2:$G$157681,'Source Data'!$F$2:$F$157681,'Worst Day Profile (AZ)'!$A$1,'Source Data'!$A$2:$A$157681,'Worst Day Profile (AZ)'!$A40,'Source Data'!$E$2:$E$157681,'Worst Day Profile (AZ)'!M$2) -> 0.02 | N40: =SUMIFS('Source Data'!$G$2:$G$157681,'Source Data'!$F$2:$F$157681,'Worst Day Profile (AZ)'!$A$1,'Source Data'!$A$2:$A$157681,'Worst Day Profile (AZ)'!$A40,'Source Data'!$E$2:$E$157681,'Worst Day Profile (AZ)'!N$2) -> 0.04 | O40: =SUMIFS('Source Data'!$G$2:$G$157681,'Source Data'!$F$2:$F$157681,'Worst Day Profile (AZ)'!$A$1,'Source Data'!$A$2:$A$157681,'Worst Day Profile (AZ)'!$A40,'Source Data'!$E$2:$E$157681,'Worst Day Profile (AZ)'!O$2) -> 0.1 | P40: =SUMIFS('Source Data'!$G$2:$G$157681,'Source Data'!$F$2:$F$157681,'Worst Day Profile (AZ)'!$A$1,'Source Data'!$A$2:$A$157681,'Worst Day Profile (AZ)'!$A40,'Source Data'!$E$2:$E$157681,'Worst Day Profile (AZ)'!P$2) -> 0.15 | Q40: =SUMIFS('Source Data'!$G$2:$G$157681,'Source Data'!$F$2:$F$157681,'Worst Day Profile (AZ)'!$A$1,'Source Data'!$A$2:$A$157681,'Worst Day Profile (AZ)'!$A40,'Source Data'!$E$2:$E$157681,'Worst Day Profile (AZ)'!Q$2) -> 0.2 | R40: =SUMIFS('Source Data'!$G$2:$G$157681,'Source Data'!$F$2:$F$157681,'Worst Day Profile (AZ)'!$A$1,'Source Data'!$A$2:$A$157681,'Worst Day Profile (AZ)'!$A40,'Source Data'!$E$2:$E$157681,'Worst Day Profile (AZ)'!R$2) -> 0.2 | S40: =SUMIFS('Source Data'!$G$2:$G$157681,'Source Data'!$F$2:$F$157681,'Worst Day Profile (AZ)'!$A$1,'Source Data'!$A$2:$A$157681,'Worst Day Profile (AZ)'!$A40,'Source Data'!$E$2:$E$157681,'Worst Day Profile (AZ)'!S$2) -> 0.19 | T40: =SUMIFS('Source Data'!$G$2:$G$157681,'Source Data'!$F$2:$F$157681,'Worst Day Profile (AZ)'!$A$1,'Source Data'!$A$2:$A$157681,'Worst Day Profile (AZ)'!$A40,'Source Data'!$E$2:$E$157681,'Worst Day Profile (AZ)'!T$2) -> 0.12 | U40: =SUMIFS('Source Data'!$G$2:$G$157681,'Source Data'!$F$2:$F$157681,'Worst Day Profile (AZ)'!$A$1,'Source Data'!$A$2:$A$157681,'Worst Day Profile (AZ)'!$A40,'Source Data'!$E$2:$E$157681,'Worst Day Profile (AZ)'!U$2) -> 0.07 | V40: =SUMIFS('Source Data'!$G$2:$G$157681,'Source Data'!$F$2:$F$157681,'Worst Day Profile (AZ)'!$A$1,'Source Data'!$A$2:$A$157681,'Worst Day Profile (AZ)'!$A40,'Source Data'!$E$2:$E$157681,'Worst Day Profile (AZ)'!V$2) -> 0.06 | W40: =SUMIFS('Source Data'!$G$2:$G$157681,'Source Data'!$F$2:$F$157681,'Worst Day Profile (AZ)'!$A$1,'Source Data'!$A$2:$A$157681,'Worst Day Profile (AZ)'!$A40,'Source Data'!$E$2:$E$157681,'Worst Day Profile (AZ)'!W$2) -> 0.06 | X40: =SUMIFS('Source Data'!$G$2:$G$157681,'Source Data'!$F$2:$F$157681,'Worst Day Profile (AZ)'!$A$1,'Source Data'!$A$2:$A$157681,'Worst Day Profile (AZ)'!$A40,'Source Data'!$E$2:$E$157681,'Worst Day Profile (AZ)'!X$2) -> 0.07 | Y40: =SUMIFS('Source Data'!$G$2:$G$157681,'Source Data'!$F$2:$F$157681,'Worst Day Profile (AZ)'!$A$1,'Source Data'!$A$2:$A$157681,'Worst Day Profile (AZ)'!$A40,'Source Data'!$E$2:$E$157681,'Worst Day Profile (AZ)'!Y$2) -> 0.08 | Z40: =SUMIFS('Source Data'!$G$2:$G$157681,'Source Data'!$F$2:$F$157681,'Worst Day Profile (AZ)'!$A$1,'Source Data'!$A$2:$A$157681,'Worst Day Profile (AZ)'!$A40,'Source Data'!$E$2:$E$157681,'Worst Day Profile (AZ)'!Z$2) -> 0.1
A41: 2018-08-08 | B41: 8 | C41: =SUMIFS('Source Data'!$G$2:$G$157681,'Source Data'!$F$2:$F$157681,'Worst Day Profile (AZ)'!$A$1,'Source Data'!$A$2:$A$157681,'Worst Day Profile (AZ)'!$A41,'Source Data'!$E$2:$E$157681,'Worst Day Profile (AZ)'!C$2) -> 0.08 | D41: =SUMIFS('Source Data'!$G$2:$G$157681,'Source Data'!$F$2:$F$157681,'Worst Day Profile (AZ)'!$A$1,'Source Data'!$A$2:$A$157681,'Worst Day Profile (AZ)'!$A41,'Source Data'!$E$2:$E$157681,'Worst Day Profile (AZ)'!D$2) -> 0.1 | E41: =SUMIFS('Source Data'!$G$2:$G$157681,'Source Data'!$F$2:$F$157681,'Worst Day Profile (AZ)'!$A$1,'Source Data'!$A$2:$A$157681,'Worst Day Profile (AZ)'!$A41,'Source Data'!$E$2:$E$157681,'Worst Day Profile (AZ)'!E$2) -> 0.08 | F41: =SUMIFS('Source Data'!$G$2:$G$157681,'Source Data'!$F$2:$F$157681,'Worst Day Profile (AZ)'!$A$1,'Source Data'!$A$2:$A$157681,'Worst Day Profile (AZ)'!$A41,'Source Data'!$E$2:$E$157681,'Worst Day Profile (AZ)'!F$2) -> 0.06 | G41: =SUMIFS('Source Data'!$G$2:$G$157681,'Source Data'!$F$2:$F$157681,'Worst Day Profile (AZ)'!$A$1,'Source Data'!$A$2:$A$157681,'Worst Day Profile (AZ)'!$A41,'Source Data'!$E$2:$E$157681,'Worst Day Profile (AZ)'!G$2) -> 0.07 | H41: =SUMIFS('Source Data'!$G$2:$G$157681,'Source Data'!$F$2:$F$157681,'Worst Day Profile (AZ)'!$A$1,'Source Data'!$A$2:$A$157681,'Worst Day Profile (AZ)'!$A41,'Source Data'!$E$2:$E$157681,'Worst Day Profile (AZ)'!H$2) -> 0.14 | I41: =SUMIFS('Source Data'!$G$2:$G$157681,'Source Data'!$F$2:$F$157681,'Worst Day Profile (AZ)'!$A$1,'Source Data'!$A$2:$A$157681,'Worst Day Profile (AZ)'!$A41,'Source Data'!$E$2:$E$157681,'Worst Day Profile (AZ)'!I$2) -> 0.2 | J41: =SUMIFS('Source Data'!$G$2:$G$157681,'Source Data'!$F$2:$F$157681,'Worst Day Profile (AZ)'!$A$1,'Source Data'!$A$2:$A$157681,'Worst Day Profile (AZ)'!$A41,'Source Data'!$E$2:$E$157681,'Worst Day Profile (AZ)'!J$2) -> 0.2 | K41: =SUMIFS('Source Data'!$G$2:$G$157681,'Source Data'!$F$2:$F$157681,'Worst Day Profile (AZ)'!$A$1,'Source Data'!$A$2:$A$157681,'Worst Day Profile (AZ)'!$A41,'Source Data'!$E$2:$E$157681,'Worst Day Profile (AZ)'!K$2) -> 0.16 | L41: =SUMIFS('Source Data'!$G$2:$G$157681,'Source Data'!$F$2:$F$157681,'Worst Day Profile (AZ)'!$A$1,'Source Data'!$A$2:$A$157681,'Worst Day Profile (AZ)'!$A41,'Source Data'!$E$2:$E$157681,'Worst Day Profile (AZ)'!L$2) -> 0.16 | M41: =SUMIFS('Source Data'!$G$2:$G$157681,'Source Data'!$F$2:$F$157681,'Worst Day Profile (AZ)'!$A$1,'Source Data'!$A$2:$A$157681,'Worst Day Profile (AZ)'!$A41,'Source Data'!$E$2:$E$157681,'Worst Day Profile (AZ)'!M$2) -> 0.1 | N41: =SUMIFS('Source Data'!$G$2:$G$157681,'Source Data'!$F$2:$F$157681,'Worst Day Profile (AZ)'!$A$1,'Source Data'!$A$2:$A$157681,'Worst Day Profile (AZ)'!$A41,'Source Data'!$E$2:$E$157681,'Worst Day Profile (AZ)'!N$2) -> 0.08 | O41: =SUMIFS('Source Data'!$G$2:$G$157681,'Source Data'!$F$2:$F$157681,'Worst Day Profile (AZ)'!$A$1,'Source Data'!$A$2:$A$157681,'Worst Day Profile (AZ)'!$A41,'Source Data'!$E$2:$E$157681,'Worst Day Profile (AZ)'!O$2) -> 0.11 | P41: =SUMIFS('Source Data'!$G$2:$G$157681,'Source Data'!$F$2:$F$157681,'Worst Day Profile (AZ)'!$A$1,'Source Data'!$A$2:$A$157681,'Worst Day Profile (AZ)'!$A41,'Source Data'!$E$2:$E$157681,'Worst Day Profile (AZ)'!P$2) -> 0.08 | Q41: =SUMIFS('Source Data'!$G$2:$G$157681,'Source Data'!$F$2:$F$157681,'Worst Day Profile (AZ)'!$A$1,'Source Data'!$A$2:$A$157681,'Worst Day Profile (AZ)'!$A41,'Source Data'!$E$2:$E$157681,'Worst Day Profile (AZ)'!Q$2) -> 0.12 | R41: =SUMIFS('Source Data'!$G$2:$G$157681,'Source Data'!$F$2:$F$157681,'Worst Day Profile (AZ)'!$A$1,'Source Data'!$A$2:$A$157681,'Worst Day Profile (AZ)'!$A41,'Source Data'!$E$2:$E$157681,'Worst Day Profile (AZ)'!R$2) -> 0.17 | S41: =SUMIFS('Source Data'!$G$2:$G$157681,'Source Data'!$F$2:$F$157681,'Worst Day Profile (AZ)'!$A$1,'Source Data'!$A$2:$A$157681,'Worst Day Profile (AZ)'!$A41,'Source Data'!$E$2:$E$157681,'Worst Day Profile (AZ)'!S$2) -> 0.2 | T41: =SUMIFS('Source Data'!$G$2:$G$157681,'Source Data'!$F$2:$F$157681,'Worst Day Profile (AZ)'!$A$1,'Source Data'!$A$2:$A$157681,'Worst Day Profile (AZ)'!$A41,'Source Data'!$E$2:$E$157681,'Worst Day Profile (AZ)'!T$2) -> 0.21 | U41: =SUMIFS('Source Data'!$G$2:$G$157681,'Source Data'!$F$2:$F$157681,'Worst Day Profile (AZ)'!$A$1,'Source Data'!$A$2:$A$157681,'Worst Day Profile (AZ)'!$A41,'Source Data'!$E$2:$E$157681,'Worst Day Profile (AZ)'!U$2) -> 0.2 | V41: =SUMIFS('Source Data'!$G$2:$G$157681,'Source Data'!$F$2:$F$157681,'Worst Day Profile (AZ)'!$A$1,'Source Data'!$A$2:$A$157681,'Worst Day Profile (AZ)'!$A41,'Source Data'!$E$2:$E$157681,'Worst Day Profile (AZ)'!V$2) -> 0.2 | W41: =SUMIFS('Source Data'!$G$2:$G$157681,'Source Data'!$F$2:$F$157681,'Worst Day Profile (AZ)'!$A$1,'Source Data'!$A$2:$A$157681,'Worst Day Profile (AZ)'!$A41,'Source Data'!$E$2:$E$157681,'Worst Day Profile (AZ)'!W$2) -> 0.17 | X41: =SUMIFS('Source Data'!$G$2:$G$157681,'Source Data'!$F$2:$F$157681,'Worst Day Profile (AZ)'!$A$1,'Source Data'!$A$2:$A$157681,'Worst Day Profile (AZ)'!$A41,'Source Data'!$E$2:$E$157681,'Worst Day Profile (AZ)'!X$2) -> 0.14 | Y41: =SUMIFS('Source Data'!$G$2:$G$157681,'Source Data'!$F$2:$F$157681,'Worst Day Profile (AZ)'!$A$1,'Source Data'!$A$2:$A$157681,'Worst Day Profile (AZ)'!$A41,'Source Data'!$E$2:$E$157681,'Worst Day Profile (AZ)'!Y$2) -> 0.13 | Z41: =SUMIFS('Source Data'!$G$2:$G$157681,'Source Data'!$F$2:$F$157681,'Worst Day Profile (AZ)'!$A$1,'Source Data'!$A$2:$A$157681,'Worst Day Profile (AZ)'!$A41,'Source Data'!$E$2:$E$157681,'Worst Day Profile (AZ)'!Z$2) -> 0.11
A42: 2018-08-01 | B42: 8 | C42: =SUMIFS('Source Data'!$G$2:$G$157681,'Source Data'!$F$2:$F$157681,'Worst Day Profile (AZ)'!$A$1,'Source Data'!$A$2:$A$157681,'Worst Day Profile (AZ)'!$A42,'Source Data'!$E$2:$E$157681,'Worst Day Profile (AZ)'!C$2) -> 0.05 | D42: =SUMIFS('Source Data'!$G$2:$G$157681,'Source Data'!$F$2:$F$157681,'Worst Day Profile (AZ)'!$A$1,'Source Data'!$A$2:$A$157681,'Worst Day Profile (AZ)'!$A42,'Source Data'!$E$2:$E$157681,'Worst Day Profile (AZ)'!D$2) -> 0.07 | E42: =SUMIFS('Source Data'!$G$2:$G$157681,'Source Data'!$F$2:$F$157681,'Worst Day Profile (AZ)'!$A$1,'Source Data'!$A$2:$A$157681,'Worst Day Profile (AZ)'!$A42,'Source Data'!$E$2:$E$157681,'Worst Day Profile (AZ)'!E$2) -> 0.08 | F42: =SUMIFS('Source Data'!$G$2:$G$157681,'Source Data'!$F$2:$F$157681,'Worst Day Profile (AZ)'!$A$1,'Source Data'!$A$2:$A$157681,'Worst Day Profile (AZ)'!$A42,'Source Data'!$E$2:$E$157681,'Worst Day Profile (AZ)'!F$2) -> 0.1 | G42: =SUMIFS('Source Data'!$G$2:$G$157681,'Source Data'!$F$2:$F$157681,'Worst Day Profile (AZ)'!$A$1,'Source Data'!$A$2:$A$157681,'Worst Day Profile (AZ)'!$A42,'Source Data'!$E$2:$E$157681,'Worst Day Profile (AZ)'!G$2) -> 0.12 | H42: =SUMIFS('Source Data'!$G$2:$G$157681,'Source Data'!$F$2:$F$157681,'Worst Day Profile (AZ)'!$A$1,'Source Data'!$A$2:$A$157681,'Worst Day Profile (AZ)'!$A42,'Source Data'!$E$2:$E$157681,'Worst Day Profile (AZ)'!H$2) -> 0.12 | I42: =SUMIFS('Source Data'!$G$2:$G$157681,'Source Data'!$F$2:$F$157681,'Worst Day Profile (AZ)'!$A$1,'Source Data'!$A$2:$A$157681,'Worst Day Profile (AZ)'!$A42,'Source Data'!$E$2:$E$157681,'Worst Day Profile (AZ)'!I$2) -> 0.09 | J42: =SUMIFS('Source Data'!$G$2:$G$157681,'Source Data'!$F$2:$F$157681,'Worst Day Profile (AZ)'!$A$1,'Source Data'!$A$2:$A$157681,'Worst Day Profile (AZ)'!$A42,'Source Data'!$E$2:$E$157681,'Worst Day Profile (AZ)'!J$2) -> 0.05 | K42: =SUMIFS('Source Data'!$G$2:$G$157681,'Source Data'!$F$2:$F$157681,'Worst Day Profile (AZ)'!$A$1,'Source Data'!$A$2:$A$157681,'Worst Day Profile (AZ)'!$A42,'Source Data'!$E$2:$E$157681,'Worst Day Profile (AZ)'!K$2) -> 0.02 | L42: =SUMIFS('Source Data'!$G$2:$G$157681,'Source Data'!$F$2:$F$157681,'Worst Day Profile (AZ)'!$A$1,'Source Data'!$A$2:$A$157681,'Worst Day Profile (AZ)'!$A42,'Source Data'!$E$2:$E$157681,'Worst Day Profile (AZ)'!L$2) -> 0.01 | M42: =SUMIFS('Source Data'!$G$2:$G$157681,'Source Data'!$F$2:$F$157681,'Worst Day Profile (AZ)'!$A$1,'Source Data'!$A$2:$A$157681,'Worst Day Profile (AZ)'!$A42,'Source Data'!$E$2:$E$157681,'Worst Day Profile (AZ)'!M$2) -> 0.01 | N42: =SUMIFS('Source Data'!$G$2:$G$157681,'Source Data'!$F$2:$F$157681,'Worst Day Profile (AZ)'!$A$1,'Source Data'!$A$2:$A$157681,'Worst Day Profile (AZ)'!$A42,'Source Data'!$E$2:$E$157681,'Worst Day Profile (AZ)'!N$2) -> 0.03 | O42: =SUMIFS('Source Data'!$G$2:$G$157681,'Source Data'!$F$2:$F$157681,'Worst Day Profile (AZ)'!$A$1,'Source Data'!$A$2:$A$157681,'Worst Day Profile (AZ)'!$A42,'Source Data'!$E$2:$E$157681,'Worst Day Profile (AZ)'!O$2) -> 0.07 | P42: =SUMIFS('Source Data'!$G$2:$G$157681,'Source Data'!$F$2:$F$157681,'Worst Day Profile (AZ)'!$A$1,'Source Data'!$A$2:$A$157681,'Worst Day Profile (AZ)'!$A42,'Source Data'!$E$2:$E$157681,'Worst Day Profile (AZ)'!P$2) -> 0.17 | Q42: =SUMIFS('Source Data'!$G$2:$G$157681,'Source Data'!$F$2:$F$157681,'Worst Day Profile (AZ)'!$A$1,'Source Data'!$A$2:$A$157681,'Worst Day Profile (AZ)'!$A42,'Source Data'!$E$2:$E$157681,'Worst Day Profile (AZ)'!Q$2) -> 0.27 | R42: =SUMIFS('Source Data'!$G$2:$G$157681,'Source Data'!$F$2:$F$157681,'Worst Day Profile (AZ)'!$A$1,'Source Data'!$A$2:$A$157681,'Worst Day Profile (AZ)'!$A42,'Source Data'!$E$2:$E$157681,'Worst Day Profile (AZ)'!R$2) -> 0.23 | S42: =SUMIFS('Source Data'!$G$2:$G$157681,'Source Data'!$F$2:$F$157681,'Worst Day Profile (AZ)'!$A$1,'Source Data'!$A$2:$A$157681,'Worst Day Profile (AZ)'!$A42,'Source Data'!$E$2:$E$157681,'Worst Day Profile (AZ)'!S$2) -> 0.18 | T42: =SUMIFS('Source Data'!$G$2:$G$157681,'Source Data'!$F$2:$F$157681,'Worst Day Profile (AZ)'!$A$1,'Source Data'!$A$2:$A$157681,'Worst Day Profile (AZ)'!$A42,'Source Data'!$E$2:$E$157681,'Worst Day Profile (AZ)'!T$2) -> 0.12 | U42: =SUMIFS('Source Data'!$G$2:$G$157681,'Source Data'!$F$2:$F$157681,'Worst Day Profile (AZ)'!$A$1,'Source Data'!$A$2:$A$157681,'Worst Day Profile (AZ)'!$A42,'Source Data'!$E$2:$E$157681,'Worst Day Profile (AZ)'!U$2) -> 0.04 | V42: =SUMIFS('Source Data'!$G$2:$G$157681,'Source Data'!$F$2:$F$157681,'Worst Day Profile (AZ)'!$A$1,'Source Data'!$A$2:$A$157681,'Worst Day Profile (AZ)'!$A42,'Source Data'!$E$2:$E$157681,'Worst Day Profile (AZ)'!V$2) -> 0.06 | W42: =SUMIFS('Source Data'!$G$2:$G$157681,'Source Data'!$F$2:$F$157681,'Worst Day Profile (AZ)'!$A$1,'Source Data'!$A$2:$A$157681,'Worst Day Profile (AZ)'!$A42,'Source Data'!$E$2:$E$157681,'Worst Day Profile (AZ)'!W$2) -> 0.09 | X42: =SUMIFS('Source Data'!$G$2:$G$157681,'Source Data'!$F$2:$F$157681,'Worst Day Profile (AZ)'!$A$1,'Source Data'!$A$2:$A$157681,'Worst Day Profile (AZ)'!$A42,'Source Data'!$E$2:$E$157681,'Worst Day Profile (AZ)'!X$2) -> 0.07 | Y42: =SUMIFS('Source Data'!$G$2:$G$157681,'Source Data'!$F$2:$F$157681,'Worst Day Profile (AZ)'!$A$1,'Source Data'!$A$2:$A$157681,'Worst Day Profile (AZ)'!$A42,'Source Data'!$E$2:$E$157681,'Worst Day Profile (AZ)'!Y$2) -> 0.05 | Z42: =SUMIFS('Source Data'!$G$2:$G$157681,'Source Data'!$F$2:$F$157681,'Worst Day Profile (AZ)'!$A$1,'Source Data'!$A$2:$A$157681,'Worst Day Profile (AZ)'!$A42,'Source Data'!$E$2:$E$157681,'Worst Day Profile (AZ)'!Z$2) -> 0.02
A43: 2018-09-07 | B43: 9 | C43: =SUMIFS('Source Data'!$G$2:$G$157681,'Source Data'!$F$2:$F$157681,'Worst Day Profile (AZ)'!$A$1,'Source Data'!$A$2:$A$157681,'Worst Day Profile (AZ)'!$A43,'Source Data'!$E$2:$E$157681,'Worst Day Profile (AZ)'!C$2) -> 0.03 | D43: =SUMIFS('Source Data'!$G$2:$G$157681,'Source Data'!$F$2:$F$157681,'Worst Day Profile (AZ)'!$A$1,'Source Data'!$A$2:$A$157681,'Worst Day Profile (AZ)'!$A43,'Source Data'!$E$2:$E$157681,'Worst Day Profile (AZ)'!D$2) -> 0.01 | E43: =SUMIFS('Source Data'!$G$2:$G$157681,'Source Data'!$F$2:$F$157681,'Worst Day Profile (AZ)'!$A$1,'Source Data'!$A$2:$A$157681,'Worst Day Profile (AZ)'!$A43,'Source Data'!$E$2:$E$157681,'Worst Day Profile (AZ)'!E$2) -> 0.01 | F43: =SUMIFS('Source Data'!$G$2:$G$157681,'Source Data'!$F$2:$F$157681,'Worst Day Profile (AZ)'!$A$1,'Source Data'!$A$2:$A$157681,'Worst Day Profile (AZ)'!$A43,'Source Data'!$E$2:$E$157681,'Worst Day Profile (AZ)'!F$2) -> 0.01 | G43: =SUMIFS('Source Data'!$G$2:$G$157681,'Source Data'!$F$2:$F$157681,'Worst Day Profile (AZ)'!$A$1,'Source Data'!$A$2:$A$157681,'Worst Day Profile (AZ)'!$A43,'Source Data'!$E$2:$E$157681,'Worst Day Profile (AZ)'!G$2) -> 0.01 | H43: =SUMIFS('Source Data'!$G$2:$G$157681,'Source Data'!$F$2:$F$157681,'Worst Day Profile (AZ)'!$A$1,'Source Data'!$A$2:$A$157681,'Worst Day Profile (AZ)'!$A43,'Source Data'!$E$2:$E$157681,'Worst Day Profile (AZ)'!H$2) -> 0.03 | I43: =SUMIFS('Source Data'!$G$2:$G$157681,'Source Data'!$F$2:$F$157681,'Worst Day Profile (AZ)'!$A$1,'Source Data'!$A$2:$A$157681,'Worst Day Profile (AZ)'!$A43,'Source Data'!$E$2:$E$157681,'Worst Day Profile (AZ)'!I$2) -> 0.06 | J43: =SUMIFS('Source Data'!$G$2:$G$157681,'Source Data'!$F$2:$F$157681,'Worst Day Profile (AZ)'!$A$1,'Source Data'!$A$2:$A$157681,'Worst Day Profile (AZ)'!$A43,'Source Data'!$E$2:$E$157681,'Worst Day Profile (AZ)'!J$2) -> 0.08 | K43: =SUMIFS('Source Data'!$G$2:$G$157681,'Source Data'!$F$2:$F$157681,'Worst Day Profile (AZ)'!$A$1,'Source Data'!$A$2:$A$157681,'Worst Day Profile (AZ)'!$A43,'Source Data'!$E$2:$E$157681,'Worst Day Profile (AZ)'!K$2) -> 0.09 | L43: =SUMIFS('Source Data'!$G$2:$G$157681,'Source Data'!$F$2:$F$157681,'Worst Day Profile (AZ)'!$A$1,'Source Data'!$A$2:$A$157681,'Worst Day Profile (AZ)'!$A43,'Source Data'!$E$2:$E$157681,'Worst Day Profile (AZ)'!L$2) -> 0.08 | M43: =SUMIFS('Source Data'!$G$2:$G$157681,'Source Data'!$F$2:$F$157681,'Worst Day Profile (AZ)'!$A$1,'Source Data'!$A$2:$A$157681,'Worst Day Profile (AZ)'!$A43,'Source Data'!$E$2:$E$157681,'Worst Day Profile (AZ)'!M$2) -> 0.07 | N43: =SUMIFS('Source Data'!$G$2:$G$157681,'Source Data'!$F$2:$F$157681,'Worst Day Profile (AZ)'!$A$1,'Source Data'!$A$2:$A$157681,'Worst Day Profile (AZ)'!$A43,'Source Data'!$E$2:$E$157681,'Worst Day Profile (AZ)'!N$2) -> 0.07 | O43: =SUMIFS('Source Data'!$G$2:$G$157681,'Source Data'!$F$2:$F$157681,'Worst Day Profile (AZ)'!$A$1,'Source Data'!$A$2:$A$157681,'Worst Day Profile (AZ)'!$A43,'Source Data'!$E$2:$E$157681,'Worst Day Profile (AZ)'!O$2) -> 0.08 | P43: =SUMIFS('Source Data'!$G$2:$G$157681,'Source Data'!$F$2:$F$157681,'Worst Day Profile (AZ)'!$A$1,'Source Data'!$A$2:$A$157681,'Worst Day Profile (AZ)'!$A43,'Source Data'!$E$2:$E$157681,'Worst Day Profile (AZ)'!P$2) -> 0.09 | Q43: =SUMIFS('Source Data'!$G$2:$G$157681,'Source Data'!$F$2:$F$157681,'Worst Day Profile (AZ)'!$A$1,'Source Data'!$A$2:$A$157681,'Worst Day Profile (AZ)'!$A43,'Source Data'!$E$2:$E$157681,'Worst Day Profile (AZ)'!Q$2) -> 0.1 | R43: =SUMIFS('Source Data'!$G$2:$G$157681,'Source Data'!$F$2:$F$157681,'Worst Day Profile (AZ)'!$A$1,'Source Data'!$A$2:$A$157681,'Worst Day Profile (AZ)'!$A43,'Source Data'!$E$2:$E$157681,'Worst Day Profile (AZ)'!R$2) -> 0.13 | S43: =SUMIFS('Source Data'!$G$2:$G$157681,'Source Data'!$F$2:$F$157681,'Worst Day Profile (AZ)'!$A$1,'Source Data'!$A$2:$A$157681,'Worst Day Profile (AZ)'!$A43,'Source Data'!$E$2:$E$157681,'Worst Day Profile (AZ)'!S$2) -> 0.14 | T43: =SUMIFS('Source Data'!$G$2:$G$157681,'Source Data'!$F$2:$F$157681,'Worst Day Profile (AZ)'!$A$1,'Source Data'!$A$2:$A$157681,'Worst Day Profile (AZ)'!$A43,'Source Data'!$E$2:$E$157681,'Worst Day Profile (AZ)'!T$2) -> 0.14 | U43: =SUMIFS('Source Data'!$G$2:$G$157681,'Source Data'!$F$2:$F$157681,'Worst Day Profile (AZ)'!$A$1,'Source Data'!$A$2:$A$157681,'Worst Day Profile (AZ)'!$A43,'Source Data'!$E$2:$E$157681,'Worst Day Profile (AZ)'!U$2) -> 0.13 | V43: =SUMIFS('Source Data'!$G$2:$G$157681,'Source Data'!$F$2:$F$157681,'Worst Day Profile (AZ)'!$A$1,'Source Data'!$A$2:$A$157681,'Worst Day Profile (AZ)'!$A43,'Source Data'!$E$2:$E$157681,'Worst Day Profile (AZ)'!V$2) -> 0.1 | W43: =SUMIFS('Source Data'!$G$2:$G$157681,'Source Data'!$F$2:$F$157681,'Worst Day Profile (AZ)'!$A$1,'Source Data'!$A$2:$A$157681,'Worst Day Profile (AZ)'!$A43,'Source Data'!$E$2:$E$157681,'Worst Day Profile (AZ)'!W$2) -> 0.05 | X43: =SUMIFS('Source Data'!$G$2:$G$157681,'Source Data'!$F$2:$F$157681,'Worst Day Profile (AZ)'!$A$1,'Source Data'!$A$2:$A$157681,'Worst Day Profile (AZ)'!$A43,'Source Data'!$E$2:$E$157681,'Worst Day Profile (AZ)'!X$2) -> 0.04 | Y43: =SUMIFS('Source Data'!$G$2:$G$157681,'Source Data'!$F$2:$F$157681,'Worst Day Profile (AZ)'!$A$1,'Source Data'!$A$2:$A$157681,'Worst Day Profile (AZ)'!$A43,'Source Data'!$E$2:$E$157681,'Worst Day Profile (AZ)'!Y$2) -> 0.02 | Z43: =SUMIFS('Source Data'!$G$2:$G$157681,'Source Data'!$F$2:$F$157681,'Worst Day Profile (AZ)'!$A$1,'Source Data'!$A$2:$A$157681,'Worst Day Profile (AZ)'!$A43,'Source Data'!$E$2:$E$157681,'Worst Day Profile (AZ)'!Z$2) -> 0.02
A44: 2018-09-08 | B44: 9 | C44: =SUMIFS('Source Data'!$G$2:$G$157681,'Source Data'!$F$2:$F$157681,'Worst Day Profile (AZ)'!$A$1,'Source Data'!$A$2:$A$157681,'Worst Day Profile (AZ)'!$A44,'Source Data'!$E$2:$E$157681,'Worst Day Profile (AZ)'!C$2) -> 0.01 | D44: =SUMIFS('Source Data'!$G$2:$G$157681,'Source Data'!$F$2:$F$157681,'Worst Day Profile (AZ)'!$A$1,'Source Data'!$A$2:$A$157681,'Worst Day Profile (AZ)'!$A44,'Source Data'!$E$2:$E$157681,'Worst Day Profile (AZ)'!D$2) -> 0.01 | E44: =SUMIFS('Source Data'!$G$2:$G$157681,'Source Data'!$F$2:$F$157681,'Worst Day Profile (AZ)'!$A$1,'Source Data'!$A$2:$A$157681,'Worst Day Profile (AZ)'!$A44,'Source Data'!$E$2:$E$157681,'Worst Day Profile (AZ)'!E$2) -> 0.02 | F44: =SUMIFS('Source Data'!$G$2:$G$157681,'Source Data'!$F$2:$F$157681,'Worst Day Profile (AZ)'!$A$1,'Source Data'!$A$2:$A$157681,'Worst Day Profile (AZ)'!$A44,'Source Data'!$E$2:$E$157681,'Worst Day Profile (AZ)'!F$2) -> 0.03 | G44: =SUMIFS('Source Data'!$G$2:$G$157681,'Source Data'!$F$2:$F$157681,'Worst Day Profile (AZ)'!$A$1,'Source Data'!$A$2:$A$157681,'Worst Day Profile (AZ)'!$A44,'Source Data'!$E$2:$E$157681,'Worst Day Profile (AZ)'!G$2) -> 0.06 | H44: =SUMIFS('Source Data'!$G$2:$G$157681,'Source Data'!$F$2:$F$157681,'Worst Day Profile (AZ)'!$A$1,'Source Data'!$A$2:$A$157681,'Worst Day Profile (AZ)'!$A44,'Source Data'!$E$2:$E$157681,'Worst Day Profile (AZ)'!H$2) -> 0.07 | I44: =SUMIFS('Source Data'!$G$2:$G$157681,'Source Data'!$F$2:$F$157681,'Worst Day Profile (AZ)'!$A$1,'Source Data'!$A$2:$A$157681,'Worst Day Profile (AZ)'!$A44,'Source Data'!$E$2:$E$157681,'Worst Day Profile (AZ)'!I$2) -> 0.06 | J44: =SUMIFS('Source Data'!$G$2:$G$157681,'Source Data'!$F$2:$F$157681,'Worst Day Profile (AZ)'!$A$1,'Source Data'!$A$2:$A$157681,'Worst Day Profile (AZ)'!$A44,'Source Data'!$E$2:$E$157681,'Worst Day Profile (AZ)'!J$2) -> 0.05 | K44: =SUMIFS('Source Data'!$G$2:$G$157681,'Source Data'!$F$2:$F$157681,'Worst Day Profile (AZ)'!$A$1,'Source Data'!$A$2:$A$157681,'Worst Day Profile (AZ)'!$A44,'Source Data'!$E$2:$E$157681,'Worst Day Profile (AZ)'!K$2) -> 0.02 | L44: =SUMIFS('Source Data'!$G$2:$G$157681,'Source Data'!$F$2:$F$157681,'Worst Day Profile (AZ)'!$A$1,'Source Data'!$A$2:$A$157681,'Worst Day Profile (AZ)'!$A44,'Source Data'!$E$2:$E$157681,'Worst Day Profile (AZ)'!L$2) -> 0.01 | M44: =SUMIFS('Source Data'!$G$2:$G$157681,'Source Data'!$F$2:$F$157681,'Worst Day Profile (AZ)'!$A$1,'Source Data'!$A$2:$A$157681,'Worst Day Profile (AZ)'!$A44,'Source Data'!$E$2:$E$157681,'Worst Day Profile (AZ)'!M$2) -> 0.01 | N44: =SUMIFS('Source Data'!$G$2:$G$157681,'Source Data'!$F$2:$F$157681,'Worst Day Profile (AZ)'!$A$1,'Source Data'!$A$2:$A$157681,'Worst Day Profile (AZ)'!$A44,'Source Data'!$E$2:$E$157681,'Worst Day Profile (AZ)'!N$2) -> 0.02 | O44: =SUMIFS('Source Data'!$G$2:$G$157681,'Source Data'!$F$2:$F$157681,'Worst Day Profile (AZ)'!$A$1,'Source Data'!$A$2:$A$157681,'Worst Day Profile (AZ)'!$A44,'Source Data'!$E$2:$E$157681,'Worst Day Profile (AZ)'!O$2) -> 0.05 | P44: =SUMIFS('Source Data'!$G$2:$G$157681,'Source Data'!$F$2:$F$157681,'Worst Day Profile (AZ)'!$A$1,'Source Data'!$A$2:$A$157681,'Worst Day Profile (AZ)'!$A44,'Source Data'!$E$2:$E$157681,'Worst Day Profile (AZ)'!P$2) -> 0.07 | Q44: =SUMIFS('Source Data'!$G$2:$G$157681,'Source Data'!$F$2:$F$157681,'Worst Day Profile (AZ)'!$A$1,'Source Data'!$A$2:$A$157681,'Worst Day Profile (AZ)'!$A44,'Source Data'!$E$2:$E$157681,'Worst Day Profile (AZ)'!Q$2) -> 0.09 | R44: =SUMIFS('Source Data'!$G$2:$G$157681,'Source Data'!$F$2:$F$157681,'Worst Day Profile (AZ)'!$A$1,'Source Data'!$A$2:$A$157681,'Worst Day Profile (AZ)'!$A44,'Source Data'!$E$2:$E$157681,'Worst Day Profile (AZ)'!R$2) -> 0.1 | S44: =SUMIFS('Source Data'!$G$2:$G$157681,'Source Data'!$F$2:$F$157681,'Worst Day Profile (AZ)'!$A$1,'Source Data'!$A$2:$A$157681,'Worst Day Profile (AZ)'!$A44,'Source Data'!$E$2:$E$157681,'Worst Day Profile (AZ)'!S$2) -> 0.12 | T44: =SUMIFS('Source Data'!$G$2:$G$157681,'Source Data'!$F$2:$F$157681,'Worst Day Profile (AZ)'!$A$1,'Source Data'!$A$2:$A$157681,'Worst Day Profile (AZ)'!$A44,'Source Data'!$E$2:$E$157681,'Worst Day Profile (AZ)'!T$2) -> 0.16 | U44: =SUMIFS('Source Data'!$G$2:$G$157681,'Source Data'!$F$2:$F$157681,'Worst Day Profile (AZ)'!$A$1,'Source Data'!$A$2:$A$157681,'Worst Day Profile (AZ)'!$A44,'Source Data'!$E$2:$E$157681,'Worst Day Profile (AZ)'!U$2) -> 0.21 | V44: =SUMIFS('Source Data'!$G$2:$G$157681,'Source Data'!$F$2:$F$157681,'Worst Day Profile (AZ)'!$A$1,'Source Data'!$A$2:$A$157681,'Worst Day Profile (AZ)'!$A44,'Source Data'!$E$2:$E$157681,'Worst Day Profile (AZ)'!V$2) -> 0.25 | W44: =SUMIFS('Source Data'!$G$2:$G$157681,'Source Data'!$F$2:$F$157681,'Worst Day Profile (AZ)'!$A$1,'Source Data'!$A$2:$A$157681,'Worst Day Profile (AZ)'!$A44,'Source Data'!$E$2:$E$157681,'Worst Day Profile (AZ)'!W$2) -> 0.27 | X44: =SUMIFS('Source Data'!$G$2:$G$157681,'Source Data'!$F$2:$F$157681,'Worst Day Profile (AZ)'!$A$1,'Source Data'!$A$2:$A$157681,'Worst Day Profile (AZ)'!$A44,'Source Data'!$E$2:$E$157681,'Worst Day Profile (AZ)'!X$2) -> 0.27 | Y44: =SUMIFS('Source Data'!$G$2:$G$157681,'Source Data'!$F$2:$F$157681,'Worst Day Profile (AZ)'!$A$1,'Source Data'!$A$2:$A$157681,'Worst Day Profile (AZ)'!$A44,'Source Data'!$E$2:$E$157681,'Worst Day Profile (AZ)'!Y$2) -> 0.25 | Z44: =SUMIFS('Source Data'!$G$2:$G$157681,'Source Data'!$F$2:$F$157681,'Worst Day Profile (AZ)'!$A$1,'Source Data'!$A$2:$A$157681,'Worst Day Profile (AZ)'!$A44,'Source Data'!$E$2:$E$157681,'Worst Day Profile (AZ)'!Z$2) -> 0.24
A45: 2018-09-10 | B45: 9 | C45: =SUMIFS('Source Data'!$G$2:$G$157681,'Source Data'!$F$2:$F$157681,'Worst Day Profile (AZ)'!$A$1,'Source Data'!$A$2:$A$157681,'Worst Day Profile (AZ)'!$A45,'Source Data'!$E$2:$E$157681,'Worst Day Profile (AZ)'!C$2) -> 0.17 | D45: =SUMIFS('Source Data'!$G$2:$G$157681,'Source Data'!$F$2:$F$157681,'Worst Day Profile (AZ)'!$A$1,'Source Data'!$A$2:$A$157681,'Worst Day Profile (AZ)'!$A45,'Source Data'!$E$2:$E$157681,'Worst Day Profile (AZ)'!D$2) -> 0.16 | E45: =SUMIFS('Source Data'!$G$2:$G$157681,'Source Data'!$F$2:$F$157681,'Worst Day Profile (AZ)'!$A$1,'Source Data'!$A$2:$A$157681,'Worst Day Profile (AZ)'!$A45,'Source Data'!$E$2:$E$157681,'Worst Day Profile (AZ)'!E$2) -> 0.17 | F45: =SUMIFS('Source Data'!$G$2:$G$157681,'Source Data'!$F$2:$F$157681,'Worst Day Profile (AZ)'!$A$1,'Source Data'!$A$2:$A$157681,'Worst Day Profile (AZ)'!$A45,'Source Data'!$E$2:$E$157681,'Worst Day Profile (AZ)'!F$2) -> 0.18 | G45: =SUMIFS('Source Data'!$G$2:$G$157681,'Source Data'!$F$2:$F$157681,'Worst Day Profile (AZ)'!$A$1,'Source Data'!$A$2:$A$157681,'Worst Day Profile (AZ)'!$A45,'Source Data'!$E$2:$E$157681,'Worst Day Profile (AZ)'!G$2) -> 0.18 | H45: =SUMIFS('Source Data'!$G$2:$G$157681,'Source Data'!$F$2:$F$157681,'Worst Day Profile (AZ)'!$A$1,'Source Data'!$A$2:$A$157681,'Worst Day Profile (AZ)'!$A45,'Source Data'!$E$2:$E$157681,'Worst Day Profile (AZ)'!H$2) -> 0.2 | I45: =SUMIFS('Source Data'!$G$2:$G$157681,'Source Data'!$F$2:$F$157681,'Worst Day Profile (AZ)'!$A$1,'Source Data'!$A$2:$A$157681,'Worst Day Profile (AZ)'!$A45,'Source Data'!$E$2:$E$157681,'Worst Day Profile (AZ)'!I$2) -> 0.18 | J45: =SUMIFS('Source Data'!$G$2:$G$157681,'Source Data'!$F$2:$F$157681,'Worst Day Profile (AZ)'!$A$1,'Source Data'!$A$2:$A$157681,'Worst Day Profile (AZ)'!$A45,'Source Data'!$E$2:$E$157681,'Worst Day Profile (AZ)'!J$2) -> 0.16 | K45: =SUMIFS('Source Data'!$G$2:$G$157681,'Source Data'!$F$2:$F$157681,'Worst Day Profile (AZ)'!$A$1,'Source Data'!$A$2:$A$157681,'Worst Day Profile (AZ)'!$A45,'Source Data'!$E$2:$E$157681,'Worst Day Profile (AZ)'!K$2) -> 0.13 | L45: =SUMIFS('Source Data'!$G$2:$G$157681,'Source Data'!$F$2:$F$157681,'Worst Day Profile (AZ)'!$A$1,'Source Data'!$A$2:$A$157681,'Worst Day Profile (AZ)'!$A45,'Source Data'!$E$2:$E$157681,'Worst Day Profile (AZ)'!L$2) -> 0.1 | M45: =SUMIFS('Source Data'!$G$2:$G$157681,'Source Data'!$F$2:$F$157681,'Worst Day Profile (AZ)'!$A$1,'Source Data'!$A$2:$A$157681,'Worst Day Profile (AZ)'!$A45,'Source Data'!$E$2:$E$157681,'Worst Day Profile (AZ)'!M$2) -> 0.07 | N45: =SUMIFS('Source Data'!$G$2:$G$157681,'Source Data'!$F$2:$F$157681,'Worst Day Profile (AZ)'!$A$1,'Source Data'!$A$2:$A$157681,'Worst Day Profile (AZ)'!$A45,'Source Data'!$E$2:$E$157681,'Worst Day Profile (AZ)'!N$2) -> 0.05 | O45: =SUMIFS('Source Data'!$G$2:$G$157681,'Source Data'!$F$2:$F$157681,'Worst Day Profile (AZ)'!$A$1,'Source Data'!$A$2:$A$157681,'Worst Day Profile (AZ)'!$A45,'Source Data'!$E$2:$E$157681,'Worst Day Profile (AZ)'!O$2) -> 0.05 | P45: =SUMIFS('Source Data'!$G$2:$G$157681,'Source Data'!$F$2:$F$157681,'Worst Day Profile (AZ)'!$A$1,'Source Data'!$A$2:$A$157681,'Worst Day Profile (AZ)'!$A45,'Source Data'!$E$2:$E$157681,'Worst Day Profile (AZ)'!P$2) -> 0.05 | Q45: =SUMIFS('Source Data'!$G$2:$G$157681,'Source Data'!$F$2:$F$157681,'Worst Day Profile (AZ)'!$A$1,'Source Data'!$A$2:$A$157681,'Worst Day Profile (AZ)'!$A45,'Source Data'!$E$2:$E$157681,'Worst Day Profile (AZ)'!Q$2) -> 0.07 | R45: =SUMIFS('Source Data'!$G$2:$G$157681,'Source Data'!$F$2:$F$157681,'Worst Day Profile (AZ)'!$A$1,'Source Data'!$A$2:$A$157681,'Worst Day Profile (AZ)'!$A45,'Source Data'!$E$2:$E$157681,'Worst Day Profile (AZ)'!R$2) -> 0.1 | S45: =SUMIFS('Source Data'!$G$2:$G$157681,'Source Data'!$F$2:$F$157681,'Worst Day Profile (AZ)'!$A$1,'Source Data'!$A$2:$A$157681,'Worst Day Profile (AZ)'!$A45,'Source Data'!$E$2:$E$157681,'Worst Day Profile (AZ)'!S$2) -> 0.2 | T45: =SUMIFS('Source Data'!$G$2:$G$157681,'Source Data'!$F$2:$F$157681,'Worst Day Profile (AZ)'!$A$1,'Source Data'!$A$2:$A$157681,'Worst Day Profile (AZ)'!$A45,'Source Data'!$E$2:$E$157681,'Worst Day Profile (AZ)'!T$2) -> 0.29 | U45: =SUMIFS('Source Data'!$G$2:$G$157681,'Source Data'!$F$2:$F$157681,'Worst Day Profile (AZ)'!$A$1,'Source Data'!$A$2:$A$157681,'Worst Day Profile (AZ)'!$A45,'Source Data'!$E$2:$E$157681,'Worst Day Profile (AZ)'!U$2) -> 0.43 | V45: =SUMIFS('Source Data'!$G$2:$G$157681,'Source Data'!$F$2:$F$157681,'Worst Day Profile (AZ)'!$A$1,'Source Data'!$A$2:$A$157681,'Worst Day Profile (AZ)'!$A45,'Source Data'!$E$2:$E$157681,'Worst Day Profile (AZ)'!V$2) -> 0.58 | W45: =SUMIFS('Source Data'!$G$2:$G$157681,'Source Data'!$F$2:$F$157681,'Worst Day Profile (AZ)'!$A$1,'Source Data'!$A$2:$A$157681,'Worst Day Profile (AZ)'!$A45,'Source Data'!$E$2:$E$157681,'Worst Day Profile (AZ)'!W$2) -> 0.62 | X45: =SUMIFS('Source Data'!$G$2:$G$157681,'Source Data'!$F$2:$F$157681,'Worst Day Profile (AZ)'!$A$1,'Source Data'!$A$2:$A$157681,'Worst Day Profile (AZ)'!$A45,'Source Data'!$E$2:$E$157681,'Worst Day Profile (AZ)'!X$2) -> 0.6 | Y45: =SUMIFS('Source Data'!$G$2:$G$157681,'Source Data'!$F$2:$F$157681,'Worst Day Profile (AZ)'!$A$1,'Source Data'!$A$2:$A$157681,'Worst Day Profile (AZ)'!$A45,'Source Data'!$E$2:$E$157681,'Worst Day Profile (AZ)'!Y$2) -> 0.54 | Z45: =SUMIFS('Source Data'!$G$2:$G$157681,'Source Data'!$F$2:$F$157681,'Worst Day Profile (AZ)'!$A$1,'Source Data'!$A$2:$A$157681,'Worst Day Profile (AZ)'!$A45,'Source Data'!$E$2:$E$157681,'Worst Day Profile (AZ)'!Z$2) -> 0.49
A46: 2018-09-09 | B46: 9 | C46: =SUMIFS('Source Data'!$G$2:$G$157681,'Source Data'!$F$2:$F$157681,'Worst Day Profile (AZ)'!$A$1,'Source Data'!$A$2:$A$157681,'Worst Day Profile (AZ)'!$A46,'Source Data'!$E$2:$E$157681,'Worst Day Profile (AZ)'!C$2) -> 0.23 | D46: =SUMIFS('Source Data'!$G$2:$G$157681,'Source Data'!$F$2:$F$157681,'Worst Day Profile (AZ)'!$A$1,'Source Data'!$A$2:$A$157681,'Worst Day Profile (AZ)'!$A46,'Source Data'!$E$2:$E$157681,'Worst Day Profile (AZ)'!D$2) -> 0.2 | E46: =SUMIFS('Source Data'!$G$2:$G$157681,'Source Data'!$F$2:$F$157681,'Worst Day Profile (AZ)'!$A$1,'Source Data'!$A$2:$A$157681,'Worst Day Profile (AZ)'!$A46,'Source Data'!$E$2:$E$157681,'Worst Day Profile (AZ)'!E$2) -> 0.18 | F46: =SUMIFS('Source Data'!$G$2:$G$157681,'Source Data'!$F$2:$F$157681,'Worst Day Profile (AZ)'!$A$1,'Source Data'!$A$2:$A$157681,'Worst Day Profile (AZ)'!$A46,'Source Data'!$E$2:$E$157681,'Worst Day Profile (AZ)'!F$2) -> 0.16 | G46: =SUMIFS('Source Data'!$G$2:$G$157681,'Source Data'!$F$2:$F$157681,'Worst Day Profile (AZ)'!$A$1,'Source Data'!$A$2:$A$157681,'Worst Day Profile (AZ)'!$A46,'Source Data'!$E$2:$E$157681,'Worst Day Profile (AZ)'!G$2) -> 0.13 | H46: =SUMIFS('Source Data'!$G$2:$G$157681,'Source Data'!$F$2:$F$157681,'Worst Day Profile (AZ)'!$A$1,'Source Data'!$A$2:$A$157681,'Worst Day Profile (AZ)'!$A46,'Source Data'!$E$2:$E$157681,'Worst Day Profile (AZ)'!H$2) -> 0.13 | I46: =SUMIFS('Source Data'!$G$2:$G$157681,'Source Data'!$F$2:$F$157681,'Worst Day Profile (AZ)'!$A$1,'Source Data'!$A$2:$A$157681,'Worst Day Profile (AZ)'!$A46,'Source Data'!$E$2:$E$157681,'Worst Day Profile (AZ)'!I$2) -> 0.11 | J46: =SUMIFS('Source Data'!$G$2:$G$157681,'Source Data'!$F$2:$F$157681,'Worst Day Profile (AZ)'!$A$1,'Source Data'!$A$2:$A$157681,'Worst Day Profile (AZ)'!$A46,'Source Data'!$E$2:$E$157681,'Worst Day Profile (AZ)'!J$2) -> 0.08 | K46: =SUMIFS('Source Data'!$G$2:$G$157681,'Source Data'!$F$2:$F$157681,'Worst Day Profile (AZ)'!$A$1,'Source Data'!$A$2:$A$157681,'Worst Day Profile (AZ)'!$A46,'Source Data'!$E$2:$E$157681,'Worst Day Profile (AZ)'!K$2) -> 0.06 | L46: =SUMIFS('Source Data'!$G$2:$G$157681,'Source Data'!$F$2:$F$157681,'Worst Day Profile (AZ)'!$A$1,'Source Data'!$A$2:$A$157681,'Worst Day Profile (AZ)'!$A46,'Source Data'!$E$2:$E$157681,'Worst Day Profile (AZ)'!L$2) -> 0.04 | M46: =SUMIFS('Source Data'!$G$2:$G$157681,'Source Data'!$F$2:$F$157681,'Worst Day Profile (AZ)'!$A$1,'Source Data'!$A$2:$A$157681,'Worst Day Profile (AZ)'!$A46,'Source Data'!$E$2:$E$157681,'Worst Day Profile (AZ)'!M$2) -> 0.02 | N46: =SUMIFS('Source Data'!$G$2:$G$157681,'Source Data'!$F$2:$F$157681,'Worst Day Profile (AZ)'!$A$1,'Source Data'!$A$2:$A$157681,'Worst Day Profile (AZ)'!$A46,'Source Data'!$E$2:$E$157681,'Worst Day Profile (AZ)'!N$2) -> 0.01 | O46: =SUMIFS('Source Data'!$G$2:$G$157681,'Source Data'!$F$2:$F$157681,'Worst Day Profile (AZ)'!$A$1,'Source Data'!$A$2:$A$157681,'Worst Day Profile (AZ)'!$A46,'Source Data'!$E$2:$E$157681,'Worst Day Profile (AZ)'!O$2) -> 0.01 | P46: =SUMIFS('Source Data'!$G$2:$G$157681,'Source Data'!$F$2:$F$157681,'Worst Day Profile (AZ)'!$A$1,'Source Data'!$A$2:$A$157681,'Worst Day Profile (AZ)'!$A46,'Source Data'!$E$2:$E$157681,'Worst Day Profile (AZ)'!P$2) -> 0.02 | Q46: =SUMIFS('Source Data'!$G$2:$G$157681,'Source Data'!$F$2:$F$157681,'Worst Day Profile (AZ)'!$A$1,'Source Data'!$A$2:$A$157681,'Worst Day Profile (AZ)'!$A46,'Source Data'!$E$2:$E$157681,'Worst Day Profile (AZ)'!Q$2) -> 0.07 | R46: =SUMIFS('Source Data'!$G$2:$G$157681,'Source Data'!$F$2:$F$157681,'Worst Day Profile (AZ)'!$A$1,'Source Data'!$A$2:$A$157681,'Worst Day Profile (AZ)'!$A46,'Source Data'!$E$2:$E$157681,'Worst Day Profile (AZ)'!R$2) -> 0.11 | S46: =SUMIFS('Source Data'!$G$2:$G$157681,'Source Data'!$F$2:$F$157681,'Worst Day Profile (AZ)'!$A$1,'Source Data'!$A$2:$A$157681,'Worst Day Profile (AZ)'!$A46,'Source Data'!$E$2:$E$157681,'Worst Day Profile (AZ)'!S$2) -> 0.16 | T46: =SUMIFS('Source Data'!$G$2:$G$157681,'Source Data'!$F$2:$F$157681,'Worst Day Profile (AZ)'!$A$1,'Source Data'!$A$2:$A$157681,'Worst Day Profile (AZ)'!$A46,'Source Data'!$E$2:$E$157681,'Worst Day Profile (AZ)'!T$2) -> 0.21 | U46: =SUMIFS('Source Data'!$G$2:$G$157681,'Source Data'!$F$2:$F$157681,'Worst Day Profile (AZ)'!$A$1,'Source Data'!$A$2:$A$157681,'Worst Day Profile (AZ)'!$A46,'Source Data'!$E$2:$E$157681,'Worst Day Profile (AZ)'!U$2) -> 0.21 | V46: =SUMIFS('Source Data'!$G$2:$G$157681,'Source Data'!$F$2:$F$157681,'Worst Day Profile (AZ)'!$A$1,'Source Data'!$A$2:$A$157681,'Worst Day Profile (AZ)'!$A46,'Source Data'!$E$2:$E$157681,'Worst Day Profile (AZ)'!V$2) -> 0.22 | W46: =SUMIFS('Source Data'!$G$2:$G$157681,'Source Data'!$F$2:$F$157681,'Worst Day Profile (AZ)'!$A$1,'Source Data'!$A$2:$A$157681,'Worst Day Profile (AZ)'!$A46,'Source Data'!$E$2:$E$157681,'Worst Day Profile (AZ)'!W$2) -> 0.22 | X46: =SUMIFS('Source Data'!$G$2:$G$157681,'Source Data'!$F$2:$F$157681,'Worst Day Profile (AZ)'!$A$1,'Source Data'!$A$2:$A$157681,'Worst Day Profile (AZ)'!$A46,'Source Data'!$E$2:$E$157681,'Worst Day Profile (AZ)'!X$2) -> 0.2 | Y46: =SUMIFS('Source Data'!$G$2:$G$157681,'Source Data'!$F$2:$F$157681,'Worst Day Profile (AZ)'!$A$1,'Source Data'!$A$2:$A$157681,'Worst Day Profile (AZ)'!$A46,'Source Data'!$E$2:$E$157681,'Worst Day Profile (AZ)'!Y$2) -> 0.18 | Z46: =SUMIFS('Source Data'!$G$2:$G$157681,'Source Data'!$F$2:$F$157681,'Worst Day Profile (AZ)'!$A$1,'Source Data'!$A$2:$A$157681,'Worst Day Profile (AZ)'!$A46,'Source Data'!$E$2:$E$157681,'Worst Day Profile (AZ)'!Z$2) -> 0.17
A47: 2018-09-04 | B47: 9 | C47: =SUMIFS('Source Data'!$G$2:$G$157681,'Source Data'!$F$2:$F$157681,'Worst Day Profile (AZ)'!$A$1,'Source Data'!$A$2:$A$157681,'Worst Day Profile (AZ)'!$A47,'Source Data'!$E$2:$E$157681,'Worst Day Profile (AZ)'!C$2) -> 0.11 | D47: =SUMIFS('Source Data'!$G$2:$G$157681,'Source Data'!$F$2:$F$157681,'Worst Day Profile (AZ)'!$A$1,'Source Data'!$A$2:$A$157681,'Worst Day Profile (AZ)'!$A47,'Source Data'!$E$2:$E$157681,'Worst Day Profile (AZ)'!D$2) -> 0.12 | E47: =SUMIFS('Source Data'!$G$2:$G$157681,'Source Data'!$F$2:$F$157681,'Worst Day Profile (AZ)'!$A$1,'Source Data'!$A$2:$A$157681,'Worst Day Profile (AZ)'!$A47,'Source Data'!$E$2:$E$157681,'Worst Day Profile (AZ)'!E$2) -> 0.11 | F47: =SUMIFS('Source Data'!$G$2:$G$157681,'Source Data'!$F$2:$F$157681,'Worst Day Profile (AZ)'!$A$1,'Source Data'!$A$2:$A$157681,'Worst Day Profile (AZ)'!$A47,'Source Data'!$E$2:$E$157681,'Worst Day Profile (AZ)'!F$2) -> 0.11 | G47: =SUMIFS('Source Data'!$G$2:$G$157681,'Source Data'!$F$2:$F$157681,'Worst Day Profile (AZ)'!$A$1,'Source Data'!$A$2:$A$157681,'Worst Day Profile (AZ)'!$A47,'Source Data'!$E$2:$E$157681,'Worst Day Profile (AZ)'!G$2) -> 0.11 | H47: =SUMIFS('Source Data'!$G$2:$G$157681,'Source Data'!$F$2:$F$157681,'Worst Day Profile (AZ)'!$A$1,'Source Data'!$A$2:$A$157681,'Worst Day Profile (AZ)'!$A47,'Source Data'!$E$2:$E$157681,'Worst Day Profile (AZ)'!H$2) -> 0.11 | I47: =SUMIFS('Source Data'!$G$2:$G$157681,'Source Data'!$F$2:$F$157681,'Worst Day Profile (AZ)'!$A$1,'Source Data'!$A$2:$A$157681,'Worst Day Profile (AZ)'!$A47,'Source Data'!$E$2:$E$157681,'Worst Day Profile (AZ)'!I$2) -> 0.12 | J47: =SUMIFS('Source Data'!$G$2:$G$157681,'Source Data'!$F$2:$F$157681,'Worst Day Profile (AZ)'!$A$1,'Source Data'!$A$2:$A$157681,'Worst Day Profile (AZ)'!$A47,'Source Data'!$E$2:$E$157681,'Worst Day Profile (AZ)'!J$2) -> 0.1 | K47: =SUMIFS('Source Data'!$G$2:$G$157681,'Source Data'!$F$2:$F$157681,'Worst Day Profile (AZ)'!$A$1,'Source Data'!$A$2:$A$157681,'Worst Day Profile (AZ)'!$A47,'Source Data'!$E$2:$E$157681,'Worst Day Profile (AZ)'!K$2) -> 0.08 | L47: =SUMIFS('Source Data'!$G$2:$G$157681,'Source Data'!$F$2:$F$157681,'Worst Day Profile (AZ)'!$A$1,'Source Data'!$A$2:$A$157681,'Worst Day Profile (AZ)'!$A47,'Source Data'!$E$2:$E$157681,'Worst Day Profile (AZ)'!L$2) -> 0.05 | M47: =SUMIFS('Source Data'!$G$2:$G$157681,'Source Data'!$F$2:$F$157681,'Worst Day Profile (AZ)'!$A$1,'Source Data'!$A$2:$A$157681,'Worst Day Profile (AZ)'!$A47,'Source Data'!$E$2:$E$157681,'Worst Day Profile (AZ)'!M$2) -> 0.02 | N47: =SUMIFS('Source Data'!$G$2:$G$157681,'Source Data'!$F$2:$F$157681,'Worst Day Profile (AZ)'!$A$1,'Source Data'!$A$2:$A$157681,'Worst Day Profile (AZ)'!$A47,'Source Data'!$E$2:$E$157681,'Worst Day Profile (AZ)'!N$2) -> 0.02 | O47: =SUMIFS('Source Data'!$G$2:$G$157681,'Source Data'!$F$2:$F$157681,'Worst Day Profile (AZ)'!$A$1,'Source Data'!$A$2:$A$157681,'Worst Day Profile (AZ)'!$A47,'Source Data'!$E$2:$E$157681,'Worst Day Profile (AZ)'!O$2) -> 0.05 | P47: =SUMIFS('Source Data'!$G$2:$G$157681,'Source Data'!$F$2:$F$157681,'Worst Day Profile (AZ)'!$A$1,'Source Data'!$A$2:$A$157681,'Worst Day Profile (AZ)'!$A47,'Source Data'!$E$2:$E$157681,'Worst Day Profile (AZ)'!P$2) -> 0.06 | Q47: =SUMIFS('Source Data'!$G$2:$G$157681,'Source Data'!$F$2:$F$157681,'Worst Day Profile (AZ)'!$A$1,'Source Data'!$A$2:$A$157681,'Worst Day Profile (AZ)'!$A47,'Source Data'!$E$2:$E$157681,'Worst Day Profile (AZ)'!Q$2) -> 0.07 | R47: =SUMIFS('Source Data'!$G$2:$G$157681,'Source Data'!$F$2:$F$157681,'Worst Day Profile (AZ)'!$A$1,'Source Data'!$A$2:$A$157681,'Worst Day Profile (AZ)'!$A47,'Source Data'!$E$2:$E$157681,'Worst Day Profile (AZ)'!R$2) -> 0.04 | S47: =SUMIFS('Source Data'!$G$2:$G$157681,'Source Data'!$F$2:$F$157681,'Worst Day Profile (AZ)'!$A$1,'Source Data'!$A$2:$A$157681,'Worst Day Profile (AZ)'!$A47,'Source Data'!$E$2:$E$157681,'Worst Day Profile (AZ)'!S$2) -> 0.02 | T47: =SUMIFS('Source Data'!$G$2:$G$157681,'Source Data'!$F$2:$F$157681,'Worst Day Profile (AZ)'!$A$1,'Source Data'!$A$2:$A$157681,'Worst Day Profile (AZ)'!$A47,'Source Data'!$E$2:$E$157681,'Worst Day Profile (AZ)'!T$2) -> 0.01 | U47: =SUMIFS('Source Data'!$G$2:$G$157681,'Source Data'!$F$2:$F$157681,'Worst Day Profile (AZ)'!$A$1,'Source Data'!$A$2:$A$157681,'Worst Day Profile (AZ)'!$A47,'Source Data'!$E$2:$E$157681,'Worst Day Profile (AZ)'!U$2) -> 0.01 | V47: =SUMIFS('Source Data'!$G$2:$G$157681,'Source Data'!$F$2:$F$157681,'Worst Day Profile (AZ)'!$A$1,'Source Data'!$A$2:$A$157681,'Worst Day Profile (AZ)'!$A47,'Source Data'!$E$2:$E$157681,'Worst Day Profile (AZ)'!V$2) -> 0.02 | W47: =SUMIFS('Source Data'!$G$2:$G$157681,'Source Data'!$F$2:$F$157681,'Worst Day Profile (AZ)'!$A$1,'Source Data'!$A$2:$A$157681,'Worst Day Profile (AZ)'!$A47,'Source Data'!$E$2:$E$157681,'Worst Day Profile (AZ)'!W$2) -> 0.03 | X47: =SUMIFS('Source Data'!$G$2:$G$157681,'Source Data'!$F$2:$F$157681,'Worst Day Profile (AZ)'!$A$1,'Source Data'!$A$2:$A$157681,'Worst Day Profile (AZ)'!$A47,'Source Data'!$E$2:$E$157681,'Worst Day Profile (AZ)'!X$2) -> 0.03 | Y47: =SUMIFS('Source Data'!$G$2:$G$157681,'Source Data'!$F$2:$F$157681,'Worst Day Profile (AZ)'!$A$1,'Source Data'!$A$2:$A$157681,'Worst Day Profile (AZ)'!$A47,'Source Data'!$E$2:$E$157681,'Worst Day Profile (AZ)'!Y$2) -> 0.03 | Z47: =SUMIFS('Source Data'!$G$2:$G$157681,'Source Data'!$F$2:$F$157681,'Worst Day Profile (AZ)'!$A$1,'Source Data'!$A$2:$A$157681,'Worst Day Profile (AZ)'!$A47,'Source Data'!$E$2:$E$157681,'Worst Day Profile (AZ)'!Z$2) -> 0.04
A48: 2018-10-01 | B48: 10 | C48: =SUMIFS('Source Data'!$G$2:$G$157681,'Source Data'!$F$2:$F$157681,'Worst Day Profile (AZ)'!$A$1,'Source Data'!$A$2:$A$157681,'Worst Day Profile (AZ)'!$A48,'Source Data'!$E$2:$E$157681,'Worst Day Profile (AZ)'!C$2) -> 0.1 | D48: =SUMIFS('Source Data'!$G$2:$G$157681,'Source Data'!$F$2:$F$157681,'Worst Day Profile (AZ)'!$A$1,'Source Data'!$A$2:$A$157681,'Worst Day Profile (AZ)'!$A48,'Source Data'!$E$2:$E$157681,'Worst Day Profile (AZ)'!D$2) -> 0.04 | E48: =SUMIFS('Source Data'!$G$2:$G$157681,'Source Data'!$F$2:$F$157681,'Worst Day Profile (AZ)'!$A$1,'Source Data'!$A$2:$A$157681,'Worst Day Profile (AZ)'!$A48,'Source Data'!$E$2:$E$157681,'Worst Day Profile (AZ)'!E$2) -> 0.02 | F48: =SUMIFS('Source Data'!$G$2:$G$157681,'Source Data'!$F$2:$F$157681,'Worst Day Profile (AZ)'!$A$1,'Source Data'!$A$2:$A$157681,'Worst Day Profile (AZ)'!$A48,'Source Data'!$E$2:$E$157681,'Worst Day Profile (AZ)'!F$2) -> 0.03 | G48: =SUMIFS('Source Data'!$G$2:$G$157681,'Source Data'!$F$2:$F$157681,'Worst Day Profile (AZ)'!$A$1,'Source Data'!$A$2:$A$157681,'Worst Day Profile (AZ)'!$A48,'Source Data'!$E$2:$E$157681,'Worst Day Profile (AZ)'!G$2) -> 0.06 | H48: =SUMIFS('Source Data'!$G$2:$G$157681,'Source Data'!$F$2:$F$157681,'Worst Day Profile (AZ)'!$A$1,'Source Data'!$A$2:$A$157681,'Worst Day Profile (AZ)'!$A48,'Source Data'!$E$2:$E$157681,'Worst Day Profile (AZ)'!H$2) -> 0.12 | I48: =SUMIFS('Source Data'!$G$2:$G$157681,'Source Data'!$F$2:$F$157681,'Worst Day Profile (AZ)'!$A$1,'Source Data'!$A$2:$A$157681,'Worst Day Profile (AZ)'!$A48,'Source Data'!$E$2:$E$157681,'Worst Day Profile (AZ)'!I$2) -> 0.15 | J48: =SUMIFS('Source Data'!$G$2:$G$157681,'Source Data'!$F$2:$F$157681,'Worst Day Profile (AZ)'!$A$1,'Source Data'!$A$2:$A$157681,'Worst Day Profile (AZ)'!$A48,'Source Data'!$E$2:$E$157681,'Worst Day Profile (AZ)'!J$2) -> 0.13 | K48: =SUMIFS('Source Data'!$G$2:$G$157681,'Source Data'!$F$2:$F$157681,'Worst Day Profile (AZ)'!$A$1,'Source Data'!$A$2:$A$157681,'Worst Day Profile (AZ)'!$A48,'Source Data'!$E$2:$E$157681,'Worst Day Profile (AZ)'!K$2) -> 0.09 | L48: =SUMIFS('Source Data'!$G$2:$G$157681,'Source Data'!$F$2:$F$157681,'Worst Day Profile (AZ)'!$A$1,'Source Data'!$A$2:$A$157681,'Worst Day Profile (AZ)'!$A48,'Source Data'!$E$2:$E$157681,'Worst Day Profile (AZ)'!L$2) -> 0.07 | M48: =SUMIFS('Source Data'!$G$2:$G$157681,'Source Data'!$F$2:$F$157681,'Worst Day Profile (AZ)'!$A$1,'Source Data'!$A$2:$A$157681,'Worst Day Profile (AZ)'!$A48,'Source Data'!$E$2:$E$157681,'Worst Day Profile (AZ)'!M$2) -> 0.03 | N48: =SUMIFS('Source Data'!$G$2:$G$157681,'Source Data'!$F$2:$F$157681,'Worst Day Profile (AZ)'!$A$1,'Source Data'!$A$2:$A$157681,'Worst Day Profile (AZ)'!$A48,'Source Data'!$E$2:$E$157681,'Worst Day Profile (AZ)'!N$2) -> 0.01 | O48: =SUMIFS('Source Data'!$G$2:$G$157681,'Source Data'!$F$2:$F$157681,'Worst Day Profile (AZ)'!$A$1,'Source Data'!$A$2:$A$157681,'Worst Day Profile (AZ)'!$A48,'Source Data'!$E$2:$E$157681,'Worst Day Profile (AZ)'!O$2) -> 0.01 | P48: =SUMIFS('Source Data'!$G$2:$G$157681,'Source Data'!$F$2:$F$157681,'Worst Day Profile (AZ)'!$A$1,'Source Data'!$A$2:$A$157681,'Worst Day Profile (AZ)'!$A48,'Source Data'!$E$2:$E$157681,'Worst Day Profile (AZ)'!P$2) -> 0.01 | Q48: =SUMIFS('Source Data'!$G$2:$G$157681,'Source Data'!$F$2:$F$157681,'Worst Day Profile (AZ)'!$A$1,'Source Data'!$A$2:$A$157681,'Worst Day Profile (AZ)'!$A48,'Source Data'!$E$2:$E$157681,'Worst Day Profile (AZ)'!Q$2) -> 0.01 | R48: =SUMIFS('Source Data'!$G$2:$G$157681,'Source Data'!$F$2:$F$157681,'Worst Day Profile (AZ)'!$A$1,'Source Data'!$A$2:$A$157681,'Worst Day Profile (AZ)'!$A48,'Source Data'!$E$2:$E$157681,'Worst Day Profile (AZ)'!R$2) -> 0.03 | S48: =SUMIFS('Source Data'!$G$2:$G$157681,'Source Data'!$F$2:$F$157681,'Worst Day Profile (AZ)'!$A$1,'Source Data'!$A$2:$A$157681,'Worst Day Profile (AZ)'!$A48,'Source Data'!$E$2:$E$157681,'Worst Day Profile (AZ)'!S$2) -> 0.06 | T48: =SUMIFS('Source Data'!$G$2:$G$157681,'Source Data'!$F$2:$F$157681,'Worst Day Profile (AZ)'!$A$1,'Source Data'!$A$2:$A$157681,'Worst Day Profile (AZ)'!$A48,'Source Data'!$E$2:$E$157681,'Worst Day Profile (AZ)'!T$2) -> 0.12 | U48: =SUMIFS('Source Data'!$G$2:$G$157681,'Source Data'!$F$2:$F$157681,'Worst Day Profile (AZ)'!$A$1,'Source Data'!$A$2:$A$157681,'Worst Day Profile (AZ)'!$A48,'Source Data'!$E$2:$E$157681,'Worst Day Profile (AZ)'!U$2) -> 0.19 | V48: =SUMIFS('Source Data'!$G$2:$G$157681,'Source Data'!$F$2:$F$157681,'Worst Day Profile (AZ)'!$A$1,'Source Data'!$A$2:$A$157681,'Worst Day Profile (AZ)'!$A48,'Source Data'!$E$2:$E$157681,'Worst Day Profile (AZ)'!V$2) -> 0.19 | W48: =SUMIFS('Source Data'!$G$2:$G$157681,'Source Data'!$F$2:$F$157681,'Worst Day Profile (AZ)'!$A$1,'Source Data'!$A$2:$A$157681,'Worst Day Profile (AZ)'!$A48,'Source Data'!$E$2:$E$157681,'Worst Day Profile (AZ)'!W$2) -> 0.12 | X48: =SUMIFS('Source Data'!$G$2:$G$157681,'Source Data'!$F$2:$F$157681,'Worst Day Profile (AZ)'!$A$1,'Source Data'!$A$2:$A$157681,'Worst Day Profile (AZ)'!$A48,'Source Data'!$E$2:$E$157681,'Worst Day Profile (AZ)'!X$2) -> 0.05 | Y48: =SUMIFS('Source Data'!$G$2:$G$157681,'Source Data'!$F$2:$F$157681,'Worst Day Profile (AZ)'!$A$1,'Source Data'!$A$2:$A$157681,'Worst Day Profile (AZ)'!$A48,'Source Data'!$E$2:$E$157681,'Worst Day Profile (AZ)'!Y$2) -> 0.02 | Z48: =SUMIFS('Source Data'!$G$2:$G$157681,'Source Data'!$F$2:$F$157681,'Worst Day Profile (AZ)'!$A$1,'Source Data'!$A$2:$A$157681,'Worst Day Profile (AZ)'!$A48,'Source Data'!$E$2:$E$157681,'Worst Day Profile (AZ)'!Z$2) -> 0.01
